Workbook

Sheet Report - ALL
A1: Dashboard | B1: Select Parameter: | F1: Select Statistic: | I1: Select Seasonal Period: | L1: Do you want to convert CFS values to TAF/Mon? | W1: 79
W2: 5
W3: 20
W4: TRUE
B12: =CONCATENATE('Report Data'!$P$7," / seasonal statistics (plate ",$W$1,"-",$W$2,"-",$W$3,"-",IF(NOT($W$4),1,2),"a):") -> Upstream Flows - Release-Sacramento Keswick / seasonal statistics (plate 79-5-20-2a):
C16: ='Report Data'!P6 -> March-June
C17: ='Report Data'!P7 -> Upstream Flows - Release-Sacramento Keswick
C18: ='Report Data'!P9 -> (C5/FLOW-CHANNEL)
C19: ='Report Data'!P8 -> Driest Periods (29-34,76-77,87-92) Totals
C20: ='Report Data'!P11 -> Volume (TAF) | G20: Range (Low to High) | H20: Difference from Base
C23: =CONCATENATE('Report Data'!O14," (Base)") -> NAA_ELT (Base) | F23: ='Report Data'!P14 -> 1636.809904
C24: ='Report Data'!O15 -> NAA_ELT_V1 | F24: ='Report Data'!P15 -> 1632.920128 | G24: ='Report Data'!Q15 -> -3.889776463 | H24: ='Report Data'!R15 -> -3.889776463
C25: ='Report Data'!O16 -> NAA_LLT | F25: ='Report Data'!P16 -> 1691.941434 | G25: ='Report Data'!Q16 -> 59.02130648 | H25: ='Report Data'!R16 -> 55.13153002
C26: ='Report Data'!O17 -> NAA_LLT_V1 | F26: ='Report Data'!P17 -> 1713.34986 | G26: ='Report Data'!Q17 -> 21.40842607 | H26: ='Report Data'!R17 -> 76.5399561
C27: ='Report Data'!O18 -> 0 | F27: ='Report Data'!P18 ->  | G27: ='Report Data'!Q18 ->  | H27: ='Report Data'!R18 -> 
C28: ='Report Data'!O19 -> 0 | F28: ='Report Data'!P19 ->  | G28: ='Report Data'!Q19 ->  | H28: ='Report Data'!R19 -> 
B60: =CONCATENATE('Report Data'!$P$7," / monthly statistics (plate ",$W$1,"-",$W$2,"-",$W$3,"-",IF(NOT($W$4),1,2),"b):") -> Upstream Flows - Release-Sacramento Keswick / monthly statistics (plate 79-5-20-2b):
B93: =CONCATENATE('Report Data'!$P$7," / time series (plate ",$W$1,"-",$W$2,"-",$W$3,"-",IF(NOT($W$4),1,2),"c):") -> Upstream Flows - Release-Sacramento Keswick / time series (plate 79-5-20-2c):

Sheet Report Data
A2: Information, Tables and Calculations for Reports
A4: Table of Selected Values for Monthly Chart: | O4: Trend Evaluation:
A6: Titla: | B6: ='Compile Data'!$B$5 -> Upstream Flows - Release-Sacramento Keswick | O6: Titla: | P6: =INDEX(Other!$B$9:$B$30,'Report - ALL'!$W$3) -> March-June
B7: =INDEX(Other!$C$9:$C$19,'Report - ALL'!$W$2) -> Driest Periods (29-34,76-77,87-92) | P7: ='Compile Data'!$B$5 -> Upstream Flows - Release-Sacramento Keswick
B8: =CONCATENATE("(",'Compile Data'!$B$6,"/",'Compile Data'!$B$7,")") -> (C5/FLOW-CHANNEL) | P8: =CONCATENATE(INDEX(Other!$C$9:$C$19,'Report - ALL'!$W$2)," ",IF('Report - ALL'!$W$2>4,IF(AND('Compile Data'!$B$10="TAF",'Compile Data'!$B$8="PER-AVG"),"Totals","Averages"),"")) -> Driest Periods (29-34,76-77,87-92) Totals
P9: =CONCATENATE("(",'Compile Data'!$B$6,"/",'Compile Data'!$B$7,")") -> (C5/FLOW-CHANNEL)
A10: Y-axis: | B10: =IF('Compile Data'!$B$10="CFS","Flow (CFS)",IF('Compile Data'!$B$10="TAF","Volume (TAF)",IF('Compile Data'!$B$10="KM","POSITION (KM)",""))) -> Volume (TAF)
P11: =IF('Compile Data'!$B$10="CFS","Flow (CFS)",IF('Compile Data'!$B$10="TAF","Volume (TAF)",IF('Compile Data'!$B$10="KM","POSITION (KM)",""))) -> Volume (TAF)
B13: OCT | C13: NOV | D13: DEC | E13: JAN | F13: FEB | G13: MAR | H13: APR | I13: MAY | J13: JUN | K13: JUL | L13: AUG | M13: SEP | P13: Value | R13: Diff from Base
A14: ='Compile Data'!$B$1 -> NAA_ELT | B14: =INDEX('Compile Data'!M$95:M$105,'Report - ALL'!$W$2) -> 330.6312822 | C14: =INDEX('Compile Data'!N$95:N$105,'Report - ALL'!$W$2) -> 271.7880896 | D14: =INDEX('Compile Data'!O$95:O$105,'Report - ALL'!$W$2) -> 218.9136083 | E14: =INDEX('Compile Data'!P$95:P$105,'Report - ALL'!$W$2) -> 224.1769081 | F14: =INDEX('Compile Data'!Q$95:Q$105,'Report - ALL'!$W$2) -> 189.3831067 | G14: =INDEX('Compile Data'!R$95:R$105,'Report - ALL'!$W$2) -> 212.5429312 | H14: =INDEX('Compile Data'!S$95:S$105,'Report - ALL'!$W$2) -> 347.8914072 | I14: =INDEX('Compile Data'!T$95:T$105,'Report - ALL'!$W$2) -> 430.5092761 | J14: =INDEX('Compile Data'!U$95:U$105,'Report - ALL'!$W$2) -> 645.8662896 | K14: =INDEX('Compile Data'!V$95:V$105,'Report - ALL'!$W$2) -> 731.4774937 | L14: =INDEX('Compile Data'!W$95:W$105,'Report - ALL'!$W$2) -> 501.3000651 | M14: =INDEX('Compile Data'!X$95:X$105,'Report - ALL'!$W$2) -> 258.5337579 | O14: ='Compile Data'!$B$1 -> NAA_ELT | P14: =INDEX('Compile Data'!$M$95:$AH$105,'Report - ALL'!$W$2,'Report - ALL'!$W$3) -> 1636.809904
A15: ='Compile Data'!$C$1 -> NAA_ELT_V1 | B15: =INDEX('Compile Data'!AK$95:AK$105,'Report - ALL'!$W$2) -> 330.7734487 | C15: =INDEX('Compile Data'!AL$95:AL$105,'Report - ALL'!$W$2) -> 247.6284075 | D15: =INDEX('Compile Data'!AM$95:AM$105,'Report - ALL'!$W$2) -> 218.7549783 | E15: =INDEX('Compile Data'!AN$95:AN$105,'Report - ALL'!$W$2) -> 261.6709611 | F15: =INDEX('Compile Data'!AO$95:AO$105,'Report - ALL'!$W$2) -> 190.4873712 | G15: =INDEX('Compile Data'!AP$95:AP$105,'Report - ALL'!$W$2) -> 213.0472316 | H15: =INDEX('Compile Data'!AQ$95:AQ$105,'Report - ALL'!$W$2) -> 343.6312479 | I15: =INDEX('Compile Data'!AR$95:AR$105,'Report - ALL'!$W$2) -> 429.4341609 | J15: =INDEX('Compile Data'!AS$95:AS$105,'Report - ALL'!$W$2) -> 646.8074871 | K15: =INDEX('Compile Data'!AT$95:AT$105,'Report - ALL'!$W$2) -> 742.0887846 | L15: =INDEX('Compile Data'!AU$95:AU$105,'Report - ALL'!$W$2) -> 500.5020676 | M15: =INDEX('Compile Data'!AV$95:AV$105,'Report - ALL'!$W$2) -> 276.204056 | O15: ='Compile Data'!$C$1 -> NAA_ELT_V1 | P15: =INDEX('Compile Data'!$AK$95:$BF$105,'Report - ALL'!$W$2,'Report - ALL'!$W$3) -> 1632.920128 | Q15: =P15-P14 -> -3.889776463 | R15: =P15-P$14 -> -3.889776463
A16: ='Compile Data'!$D$1 -> NAA_LLT | B16: =INDEX('Compile Data'!BI$95:BI$105,'Report - ALL'!$W$2) -> 344.793538 | C16: =INDEX('Compile Data'!BJ$95:BJ$105,'Report - ALL'!$W$2) -> 273.4783851 | D16: =INDEX('Compile Data'!BK$95:BK$105,'Report - ALL'!$W$2) -> 220.0313468 | E16: =INDEX('Compile Data'!BL$95:BL$105,'Report - ALL'!$W$2) -> 239.9266332 | F16: =INDEX('Compile Data'!BM$95:BM$105,'Report - ALL'!$W$2) -> 188.3325411 | G16: =INDEX('Compile Data'!BN$95:BN$105,'Report - ALL'!$W$2) -> 211.4763651 | H16: =INDEX('Compile Data'!BO$95:BO$105,'Report - ALL'!$W$2) -> 358.3625209 | I16: =INDEX('Compile Data'!BP$95:BP$105,'Report - ALL'!$W$2) -> 465.1293573 | J16: =INDEX('Compile Data'!BQ$95:BQ$105,'Report - ALL'!$W$2) -> 656.9731908 | K16: =INDEX('Compile Data'!BR$95:BR$105,'Report - ALL'!$W$2) -> 694.8051351 | L16: =INDEX('Compile Data'!BS$95:BS$105,'Report - ALL'!$W$2) -> 468.6305951 | M16: =INDEX('Compile Data'!BT$95:BT$105,'Report - ALL'!$W$2) -> 255.8345185 | O16: ='Compile Data'!$D$1 -> NAA_LLT | P16: =INDEX('Compile Data'!$BI$95:$CD$105,'Report - ALL'!$W$2,'Report - ALL'!$W$3) -> 1691.941434 | Q16: =P16-P15 -> 59.02130648 | R16: =P16-P$14 -> 55.13153002
A17: ='Compile Data'!$E$1 -> NAA_LLT_V1 | B17: =INDEX('Compile Data'!CG$95:CG$105,'Report - ALL'!$W$2) -> 348.9317082 | C17: =INDEX('Compile Data'!CH$95:CH$105,'Report - ALL'!$W$2) -> 247.0603995 | D17: =INDEX('Compile Data'!CI$95:CI$105,'Report - ALL'!$W$2) -> 216.9689964 | E17: =INDEX('Compile Data'!CJ$95:CJ$105,'Report - ALL'!$W$2) -> 277.8965579 | F17: =INDEX('Compile Data'!CK$95:CK$105,'Report - ALL'!$W$2) -> 188.5635136 | G17: =INDEX('Compile Data'!CL$95:CL$105,'Report - ALL'!$W$2) -> 214.1359645 | H17: =INDEX('Compile Data'!CM$95:CM$105,'Report - ALL'!$W$2) -> 363.4076015 | I17: =INDEX('Compile Data'!CN$95:CN$105,'Report - ALL'!$W$2) -> 462.7710615 | J17: =INDEX('Compile Data'!CO$95:CO$105,'Report - ALL'!$W$2) -> 673.0352326 | K17: =INDEX('Compile Data'!CP$95:CP$105,'Report - ALL'!$W$2) -> 712.3336398 | L17: =INDEX('Compile Data'!CQ$95:CQ$105,'Report - ALL'!$W$2) -> 477.2974477 | M17: =INDEX('Compile Data'!CR$95:CR$105,'Report - ALL'!$W$2) -> 249.7183874 | O17: ='Compile Data'!$E$1 -> NAA_LLT_V1 | P17: =INDEX('Compile Data'!$CG$95:$DB$105,'Report - ALL'!$W$2,'Report - ALL'!$W$3) -> 1713.34986 | Q17: =P17-P16 -> 21.40842607 | R17: =P17-P$14 -> 76.5399561
A18: ='Compile Data'!$F$1 -> 0 | B18: =INDEX('Compile Data'!DE$95:DE$105,'Report - ALL'!$W$2) ->  | C18: =INDEX('Compile Data'!DF$95:DF$105,'Report - ALL'!$W$2) ->  | D18: =INDEX('Compile Data'!DG$95:DG$105,'Report - ALL'!$W$2) ->  | E18: =INDEX('Compile Data'!DH$95:DH$105,'Report - ALL'!$W$2) ->  | F18: =INDEX('Compile Data'!DI$95:DI$105,'Report - ALL'!$W$2) ->  | G18: =INDEX('Compile Data'!DJ$95:DJ$105,'Report - ALL'!$W$2) ->  | H18: =INDEX('Compile Data'!DK$95:DK$105,'Report - ALL'!$W$2) ->  | I18: =INDEX('Compile Data'!DL$95:DL$105,'Report - ALL'!$W$2) ->  | J18: =INDEX('Compile Data'!DM$95:DM$105,'Report - ALL'!$W$2) ->  | K18: =INDEX('Compile Data'!DN$95:DN$105,'Report - ALL'!$W$2) ->  | L18: =INDEX('Compile Data'!DO$95:DO$105,'Report - ALL'!$W$2) ->  | M18: =INDEX('Compile Data'!DP$95:DP$105,'Report - ALL'!$W$2) ->  | O18: ='Compile Data'!$F$1 -> 0 | P18: =INDEX('Compile Data'!$DE$95:$DZ$105,'Report - ALL'!$W$2,'Report - ALL'!$W$3) ->  | Q18: =P18-P17 ->  | R18: =P18-P$14 -> 
A19: ='Compile Data'!$G$1 -> 0 | B19: =INDEX('Compile Data'!EC$95:EC$105,'Report - ALL'!$W$2) ->  | C19: =INDEX('Compile Data'!ED$95:ED$105,'Report - ALL'!$W$2) ->  | D19: =INDEX('Compile Data'!EE$95:EE$105,'Report - ALL'!$W$2) ->  | E19: =INDEX('Compile Data'!EF$95:EF$105,'Report - ALL'!$W$2) ->  | F19: =INDEX('Compile Data'!EG$95:EG$105,'Report - ALL'!$W$2) ->  | G19: =INDEX('Compile Data'!EH$95:EH$105,'Report - ALL'!$W$2) ->  | H19: =INDEX('Compile Data'!EI$95:EI$105,'Report - ALL'!$W$2) ->  | I19: =INDEX('Compile Data'!EJ$95:EJ$105,'Report - ALL'!$W$2) ->  | J19: =INDEX('Compile Data'!EK$95:EK$105,'Report - ALL'!$W$2) ->  | K19: =INDEX('Compile Data'!EL$95:EL$105,'Report - ALL'!$W$2) ->  | L19: =INDEX('Compile Data'!EM$95:EM$105,'Report - ALL'!$W$2) ->  | M19: =INDEX('Compile Data'!EN$95:EN$105,'Report - ALL'!$W$2) ->  | O19: ='Compile Data'!$G$1 -> 0 | P19: =INDEX('Compile Data'!$EC$95:$EX$105,'Report - ALL'!$W$2,'Report - ALL'!$W$3) -> 
A20: ='Compile Data'!$H$1 -> 0 | B20: =INDEX('Compile Data'!FA$95:FA$105,'Report - ALL'!$W$2) ->  | C20: =INDEX('Compile Data'!FB$95:FB$105,'Report - ALL'!$W$2) ->  | D20: =INDEX('Compile Data'!FC$95:FC$105,'Report - ALL'!$W$2) ->  | E20: =INDEX('Compile Data'!FD$95:FD$105,'Report - ALL'!$W$2) ->  | F20: =INDEX('Compile Data'!FE$95:FE$105,'Report - ALL'!$W$2) ->  | G20: =INDEX('Compile Data'!FF$95:FF$105,'Report - ALL'!$W$2) ->  | H20: =INDEX('Compile Data'!FG$95:FG$105,'Report - ALL'!$W$2) ->  | I20: =INDEX('Compile Data'!FH$95:FH$105,'Report - ALL'!$W$2) ->  | J20: =INDEX('Compile Data'!FI$95:FI$105,'Report - ALL'!$W$2) ->  | K20: =INDEX('Compile Data'!FJ$95:FJ$105,'Report - ALL'!$W$2) ->  | L20: =INDEX('Compile Data'!FK$95:FK$105,'Report - ALL'!$W$2) ->  | M20: =INDEX('Compile Data'!FL$95:FL$105,'Report - ALL'!$W$2) ->  | O20: ='Compile Data'!$H$1 -> 0
A23: Annuals Plot: | O23: Exceedence Plot:
A25: Titla: | B25: =INDEX(Other!$B$9:$B$30,'Report - ALL'!$W$3) -> March-June | I25: lcpsimfile(s) | J25: =VLOOKUP('Compile Data'!B2,Control!$A$25:$J$31,10) -> 0 | L25: =IF(VLOOKUP('Compile Data'!D2,Control!$A$25:$K$31,11)=0,"",VLOOKUP('Compile Data'!D2,Control!$A$25:$K$31,11)) ->  | O25: Titla: | P25: =INDEX(Other!$B$9:$B$30,'Report - ALL'!$W$3) -> March-June
B26: ='Compile Data'!$B$5 -> Upstream Flows - Release-Sacramento Keswick | P26: ='Compile Data'!$B$5 -> Upstream Flows - Release-Sacramento Keswick
B27: =IF('Compile Data'!$B$10="CFS","Flow (CFS)",IF('Compile Data'!$B$10="TAF","Volume (TAF)",IF('Compile Data'!$B$10="KM","POSITION (KM)",""))) -> Volume (TAF) | P27: =IF('Compile Data'!$B$10="CFS","Flow (CFS)",IF('Compile Data'!$B$10="TAF","Volume (TAF)",IF('Compile Data'!$B$10="KM","POSITION (KM)",""))) -> Volume (TAF)
B29: ='Compile Data'!$B$1 -> NAA_ELT | C29: ='Compile Data'!$C$1 -> NAA_ELT_V1 | D29: ='Compile Data'!$D$1 -> NAA_LLT | E29: ='Compile Data'!$E$1 -> NAA_LLT_V1 | F29: ='Compile Data'!$F$1 -> 0 | G29: ='Compile Data'!$G$1 -> 0 | H29: ='Compile Data'!$H$1 -> 0 | Q29: ='Compile Data'!$B$1 -> NAA_ELT | R29: ='Compile Data'!$C$1 -> NAA_ELT_V1 | S29: ='Compile Data'!$D$1 -> NAA_LLT | T29: ='Compile Data'!$E$1 -> NAA_LLT_V1 | U29: ='Compile Data'!$F$1 -> 0 | V29: ='Compile Data'!$G$1 -> 0 | W29: ='Compile Data'!$H$1 -> 0
A30: 1922 | B30: =INDEX('Compile Data'!$M$12:$AH$93,$A30-1921,'Report - ALL'!$W$3) -> 1823.303961 | C30: =INDEX('Compile Data'!$AK$12:$BF$93,$A30-1921,'Report - ALL'!$W$3) -> 1920.893542 | D30: =INDEX('Compile Data'!$BI$12:$CD$93,$A30-1921,'Report - ALL'!$W$3) -> 1847.892381 | E30: =INDEX('Compile Data'!$CG$12:$DB$93,$A30-1921,'Report - ALL'!$W$3) -> 2088.02931 | F30: =INDEX('Compile Data'!$DE$12:$DZ$93,$A30-1921,'Report - ALL'!$W$3) ->  | G30: =INDEX('Compile Data'!$EC$12:$EX$93,$A30-1921,'Report - ALL'!$W$3) ->  | H30: =INDEX('Compile Data'!$FA$12:$FV$93,$A30-1921,'Report - ALL'!$W$3) ->  | O30: 1 | P30: =(O30-1)/81 -> 0 | Q30: =INDEX('Compile Data'!$M$108:$AH$189,$O30,'Report - ALL'!$W$3) -> 4997.056521 | R30: =INDEX('Compile Data'!$AK$108:$BF$189,$O30,'Report - ALL'!$W$3) -> 4997.05605 | S30: =INDEX('Compile Data'!$BI$108:$CD$189,$O30,'Report - ALL'!$W$3) -> 4693.025403 | T30: =INDEX('Compile Data'!$CG$108:$DB$189,$O30,'Report - ALL'!$W$3) -> 4693.025078 | U30: =INDEX('Compile Data'!$DE$108:$DZ$189,$O30,'Report - ALL'!$W$3) ->  | V30: =INDEX('Compile Data'!$EC$108:$EX$189,$O30,'Report - ALL'!$W$3) ->  | W30: =INDEX('Compile Data'!$FA$108:$FV$189,$O30,'Report - ALL'!$W$3) -> 
A31: =A30+1 -> 1923 | B31: =INDEX('Compile Data'!$M$12:$AH$93,$A31-1921,'Report - ALL'!$W$3) -> 1592.90987 | C31: =INDEX('Compile Data'!$AK$12:$BF$93,$A31-1921,'Report - ALL'!$W$3) -> 1772.203113 | D31: =INDEX('Compile Data'!$BI$12:$CD$93,$A31-1921,'Report - ALL'!$W$3) -> 1521.586522 | E31: =INDEX('Compile Data'!$CG$12:$DB$93,$A31-1921,'Report - ALL'!$W$3) -> 1679.036529 | F31: =INDEX('Compile Data'!$DE$12:$DZ$93,$A31-1921,'Report - ALL'!$W$3) ->  | G31: =INDEX('Compile Data'!$EC$12:$EX$93,$A31-1921,'Report - ALL'!$W$3) ->  | H31: =INDEX('Compile Data'!$FA$12:$FV$93,$A31-1921,'Report - ALL'!$W$3) ->  | O31: 2 | P31: 0.01234567901 | Q31: =INDEX('Compile Data'!$M$108:$AH$189,$O31,'Report - ALL'!$W$3) -> 4475.630137 | R31: =INDEX('Compile Data'!$AK$108:$BF$189,$O31,'Report - ALL'!$W$3) -> 4475.630137 | S31: =INDEX('Compile Data'!$BI$108:$CD$189,$O31,'Report - ALL'!$W$3) -> 4404.866837 | T31: =INDEX('Compile Data'!$CG$108:$DB$189,$O31,'Report - ALL'!$W$3) -> 4347.467925 | U31: =INDEX('Compile Data'!$DE$108:$DZ$189,$O31,'Report - ALL'!$W$3) ->  | V31: =INDEX('Compile Data'!$EC$108:$EX$189,$O31,'Report - ALL'!$W$3) ->  | W31: =INDEX('Compile Data'!$FA$108:$FV$189,$O31,'Report - ALL'!$W$3) -> 
A32: =A31+1 -> 1924 | B32: =INDEX('Compile Data'!$M$12:$AH$93,$A32-1921,'Report - ALL'!$W$3) -> 1849.500862 | C32: =INDEX('Compile Data'!$AK$12:$BF$93,$A32-1921,'Report - ALL'!$W$3) -> 1852.882047 | D32: =INDEX('Compile Data'!$BI$12:$CD$93,$A32-1921,'Report - ALL'!$W$3) -> 1921.898954 | E32: =INDEX('Compile Data'!$CG$12:$DB$93,$A32-1921,'Report - ALL'!$W$3) -> 1878.740474 | F32: =INDEX('Compile Data'!$DE$12:$DZ$93,$A32-1921,'Report - ALL'!$W$3) ->  | G32: =INDEX('Compile Data'!$EC$12:$EX$93,$A32-1921,'Report - ALL'!$W$3) ->  | H32: =INDEX('Compile Data'!$FA$12:$FV$93,$A32-1921,'Report - ALL'!$W$3) ->  | O32: 3 | P32: 0.02469135802 | Q32: =INDEX('Compile Data'!$M$108:$AH$189,$O32,'Report - ALL'!$W$3) -> 4325.614596 | R32: =INDEX('Compile Data'!$AK$108:$BF$189,$O32,'Report - ALL'!$W$3) -> 4325.614596 | S32: =INDEX('Compile Data'!$BI$108:$CD$189,$O32,'Report - ALL'!$W$3) -> 4272.728641 | T32: =INDEX('Compile Data'!$CG$108:$DB$189,$O32,'Report - ALL'!$W$3) -> 4309.953153 | U32: =INDEX('Compile Data'!$DE$108:$DZ$189,$O32,'Report - ALL'!$W$3) ->  | V32: =INDEX('Compile Data'!$EC$108:$EX$189,$O32,'Report - ALL'!$W$3) ->  | W32: =INDEX('Compile Data'!$FA$108:$FV$189,$O32,'Report - ALL'!$W$3) -> 
A33: 1925 | B33: =INDEX('Compile Data'!$M$12:$AH$93,$A33-1921,'Report - ALL'!$W$3) -> 1378.042754 | C33: =INDEX('Compile Data'!$AK$12:$BF$93,$A33-1921,'Report - ALL'!$W$3) -> 1377.461848 | D33: =INDEX('Compile Data'!$BI$12:$CD$93,$A33-1921,'Report - ALL'!$W$3) -> 1327.312789 | E33: =INDEX('Compile Data'!$CG$12:$DB$93,$A33-1921,'Report - ALL'!$W$3) -> 1324.406831 | F33: =INDEX('Compile Data'!$DE$12:$DZ$93,$A33-1921,'Report - ALL'!$W$3) ->  | G33: =INDEX('Compile Data'!$EC$12:$EX$93,$A33-1921,'Report - ALL'!$W$3) ->  | H33: =INDEX('Compile Data'!$FA$12:$FV$93,$A33-1921,'Report - ALL'!$W$3) ->  | O33: 4 | P33: 0.03703703704 | Q33: =INDEX('Compile Data'!$M$108:$AH$189,$O33,'Report - ALL'!$W$3) -> 3953.697769 | R33: =INDEX('Compile Data'!$AK$108:$BF$189,$O33,'Report - ALL'!$W$3) -> 3953.501366 | S33: =INDEX('Compile Data'!$BI$108:$CD$189,$O33,'Report - ALL'!$W$3) -> 3954.284381 | T33: =INDEX('Compile Data'!$CG$108:$DB$189,$O33,'Report - ALL'!$W$3) -> 3954.301992 | U33: =INDEX('Compile Data'!$DE$108:$DZ$189,$O33,'Report - ALL'!$W$3) ->  | V33: =INDEX('Compile Data'!$EC$108:$EX$189,$O33,'Report - ALL'!$W$3) ->  | W33: =INDEX('Compile Data'!$FA$108:$FV$189,$O33,'Report - ALL'!$W$3) -> 
A34: 1926 | B34: =INDEX('Compile Data'!$M$12:$AH$93,$A34-1921,'Report - ALL'!$W$3) -> 1554.388143 | C34: =INDEX('Compile Data'!$AK$12:$BF$93,$A34-1921,'Report - ALL'!$W$3) -> 1654.373333 | D34: =INDEX('Compile Data'!$BI$12:$CD$93,$A34-1921,'Report - ALL'!$W$3) -> 1784.90813 | E34: =INDEX('Compile Data'!$CG$12:$DB$93,$A34-1921,'Report - ALL'!$W$3) -> 1791.029007 | F34: =INDEX('Compile Data'!$DE$12:$DZ$93,$A34-1921,'Report - ALL'!$W$3) ->  | G34: =INDEX('Compile Data'!$EC$12:$EX$93,$A34-1921,'Report - ALL'!$W$3) ->  | H34: =INDEX('Compile Data'!$FA$12:$FV$93,$A34-1921,'Report - ALL'!$W$3) ->  | O34: 5 | P34: 0.04938271605 | Q34: =INDEX('Compile Data'!$M$108:$AH$189,$O34,'Report - ALL'!$W$3) -> 3498.957008 | R34: =INDEX('Compile Data'!$AK$108:$BF$189,$O34,'Report - ALL'!$W$3) -> 3499.442632 | S34: =INDEX('Compile Data'!$BI$108:$CD$189,$O34,'Report - ALL'!$W$3) -> 3592.679288 | T34: =INDEX('Compile Data'!$CG$108:$DB$189,$O34,'Report - ALL'!$W$3) -> 3593.407737 | U34: =INDEX('Compile Data'!$DE$108:$DZ$189,$O34,'Report - ALL'!$W$3) ->  | V34: =INDEX('Compile Data'!$EC$108:$EX$189,$O34,'Report - ALL'!$W$3) ->  | W34: =INDEX('Compile Data'!$FA$108:$FV$189,$O34,'Report - ALL'!$W$3) -> 
A35: 1927 | B35: =INDEX('Compile Data'!$M$12:$AH$93,$A35-1921,'Report - ALL'!$W$3) -> 1963.994779 | C35: =INDEX('Compile Data'!$AK$12:$BF$93,$A35-1921,'Report - ALL'!$W$3) -> 1963.831259 | D35: =INDEX('Compile Data'!$BI$12:$CD$93,$A35-1921,'Report - ALL'!$W$3) -> 1878.576412 | E35: =INDEX('Compile Data'!$CG$12:$DB$93,$A35-1921,'Report - ALL'!$W$3) -> 1883.88367 | F35: =INDEX('Compile Data'!$DE$12:$DZ$93,$A35-1921,'Report - ALL'!$W$3) ->  | G35: =INDEX('Compile Data'!$EC$12:$EX$93,$A35-1921,'Report - ALL'!$W$3) ->  | H35: =INDEX('Compile Data'!$FA$12:$FV$93,$A35-1921,'Report - ALL'!$W$3) ->  | O35: 6 | P35: 0.06172839506 | Q35: =INDEX('Compile Data'!$M$108:$AH$189,$O35,'Report - ALL'!$W$3) -> 3193.832898 | R35: =INDEX('Compile Data'!$AK$108:$BF$189,$O35,'Report - ALL'!$W$3) -> 3193.192299 | S35: =INDEX('Compile Data'!$BI$108:$CD$189,$O35,'Report - ALL'!$W$3) -> 3564.321456 | T35: =INDEX('Compile Data'!$CG$108:$DB$189,$O35,'Report - ALL'!$W$3) -> 3553.411249 | U35: =INDEX('Compile Data'!$DE$108:$DZ$189,$O35,'Report - ALL'!$W$3) ->  | V35: =INDEX('Compile Data'!$EC$108:$EX$189,$O35,'Report - ALL'!$W$3) ->  | W35: =INDEX('Compile Data'!$FA$108:$FV$189,$O35,'Report - ALL'!$W$3) -> 
A36: 1928 | B36: =INDEX('Compile Data'!$M$12:$AH$93,$A36-1921,'Report - ALL'!$W$3) -> 2273.263552 | C36: =INDEX('Compile Data'!$AK$12:$BF$93,$A36-1921,'Report - ALL'!$W$3) -> 2481.423704 | D36: =INDEX('Compile Data'!$BI$12:$CD$93,$A36-1921,'Report - ALL'!$W$3) -> 2331.734934 | E36: =INDEX('Compile Data'!$CG$12:$DB$93,$A36-1921,'Report - ALL'!$W$3) -> 2569.199516 | F36: =INDEX('Compile Data'!$DE$12:$DZ$93,$A36-1921,'Report - ALL'!$W$3) ->  | G36: =INDEX('Compile Data'!$EC$12:$EX$93,$A36-1921,'Report - ALL'!$W$3) ->  | H36: =INDEX('Compile Data'!$FA$12:$FV$93,$A36-1921,'Report - ALL'!$W$3) ->  | O36: 7 | P36: 0.07407407407 | Q36: =INDEX('Compile Data'!$M$108:$AH$189,$O36,'Report - ALL'!$W$3) -> 3130.351722 | R36: =INDEX('Compile Data'!$AK$108:$BF$189,$O36,'Report - ALL'!$W$3) -> 3153.19784 | S36: =INDEX('Compile Data'!$BI$108:$CD$189,$O36,'Report - ALL'!$W$3) -> 3169.404725 | T36: =INDEX('Compile Data'!$CG$108:$DB$189,$O36,'Report - ALL'!$W$3) -> 3227.943701 | U36: =INDEX('Compile Data'!$DE$108:$DZ$189,$O36,'Report - ALL'!$W$3) ->  | V36: =INDEX('Compile Data'!$EC$108:$EX$189,$O36,'Report - ALL'!$W$3) ->  | W36: =INDEX('Compile Data'!$FA$108:$FV$189,$O36,'Report - ALL'!$W$3) -> 
A37: 1929 | B37: =INDEX('Compile Data'!$M$12:$AH$93,$A37-1921,'Report - ALL'!$W$3) -> 1571.599876 | C37: =INDEX('Compile Data'!$AK$12:$BF$93,$A37-1921,'Report - ALL'!$W$3) -> 1599.159882 | D37: =INDEX('Compile Data'!$BI$12:$CD$93,$A37-1921,'Report - ALL'!$W$3) -> 1598.659396 | E37: =INDEX('Compile Data'!$CG$12:$DB$93,$A37-1921,'Report - ALL'!$W$3) -> 1602.834537 | F37: =INDEX('Compile Data'!$DE$12:$DZ$93,$A37-1921,'Report - ALL'!$W$3) ->  | G37: =INDEX('Compile Data'!$EC$12:$EX$93,$A37-1921,'Report - ALL'!$W$3) ->  | H37: =INDEX('Compile Data'!$FA$12:$FV$93,$A37-1921,'Report - ALL'!$W$3) ->  | O37: 8 | P37: 0.08641975309 | Q37: =INDEX('Compile Data'!$M$108:$AH$189,$O37,'Report - ALL'!$W$3) -> 3123.947634 | R37: =INDEX('Compile Data'!$AK$108:$BF$189,$O37,'Report - ALL'!$W$3) -> 3129.948327 | S37: =INDEX('Compile Data'!$BI$108:$CD$189,$O37,'Report - ALL'!$W$3) -> 3162.452846 | T37: =INDEX('Compile Data'!$CG$108:$DB$189,$O37,'Report - ALL'!$W$3) -> 3168.497934 | U37: =INDEX('Compile Data'!$DE$108:$DZ$189,$O37,'Report - ALL'!$W$3) ->  | V37: =INDEX('Compile Data'!$EC$108:$EX$189,$O37,'Report - ALL'!$W$3) ->  | W37: =INDEX('Compile Data'!$FA$108:$FV$189,$O37,'Report - ALL'!$W$3) -> 
A38: 1930 | B38: =INDEX('Compile Data'!$M$12:$AH$93,$A38-1921,'Report - ALL'!$W$3) -> 1335.392535 | C38: =INDEX('Compile Data'!$AK$12:$BF$93,$A38-1921,'Report - ALL'!$W$3) -> 1335.194963 | D38: =INDEX('Compile Data'!$BI$12:$CD$93,$A38-1921,'Report - ALL'!$W$3) -> 1335.576891 | E38: =INDEX('Compile Data'!$CG$12:$DB$93,$A38-1921,'Report - ALL'!$W$3) -> 1335.408306 | F38: =INDEX('Compile Data'!$DE$12:$DZ$93,$A38-1921,'Report - ALL'!$W$3) ->  | G38: =INDEX('Compile Data'!$EC$12:$EX$93,$A38-1921,'Report - ALL'!$W$3) ->  | H38: =INDEX('Compile Data'!$FA$12:$FV$93,$A38-1921,'Report - ALL'!$W$3) ->  | O38: 9 | P38: 0.0987654321 | Q38: =INDEX('Compile Data'!$M$108:$AH$189,$O38,'Report - ALL'!$W$3) -> 3064.856979 | R38: =INDEX('Compile Data'!$AK$108:$BF$189,$O38,'Report - ALL'!$W$3) -> 3064.345088 | S38: =INDEX('Compile Data'!$BI$108:$CD$189,$O38,'Report - ALL'!$W$3) -> 3108.950118 | T38: =INDEX('Compile Data'!$CG$108:$DB$189,$O38,'Report - ALL'!$W$3) -> 3162.110895 | U38: =INDEX('Compile Data'!$DE$108:$DZ$189,$O38,'Report - ALL'!$W$3) ->  | V38: =INDEX('Compile Data'!$EC$108:$EX$189,$O38,'Report - ALL'!$W$3) ->  | W38: =INDEX('Compile Data'!$FA$108:$FV$189,$O38,'Report - ALL'!$W$3) -> 
A39: 1931 | B39: =INDEX('Compile Data'!$M$12:$AH$93,$A39-1921,'Report - ALL'!$W$3) -> 1745.395737 | C39: =INDEX('Compile Data'!$AK$12:$BF$93,$A39-1921,'Report - ALL'!$W$3) -> 1770.731975 | D39: =INDEX('Compile Data'!$BI$12:$CD$93,$A39-1921,'Report - ALL'!$W$3) -> 1817.382498 | E39: =INDEX('Compile Data'!$CG$12:$DB$93,$A39-1921,'Report - ALL'!$W$3) -> 1817.094795 | F39: =INDEX('Compile Data'!$DE$12:$DZ$93,$A39-1921,'Report - ALL'!$W$3) ->  | G39: =INDEX('Compile Data'!$EC$12:$EX$93,$A39-1921,'Report - ALL'!$W$3) ->  | H39: =INDEX('Compile Data'!$FA$12:$FV$93,$A39-1921,'Report - ALL'!$W$3) ->  | O39: 10 | P39: 0.1111111111 | Q39: =INDEX('Compile Data'!$M$108:$AH$189,$O39,'Report - ALL'!$W$3) -> 2945.712949 | R39: =INDEX('Compile Data'!$AK$108:$BF$189,$O39,'Report - ALL'!$W$3) -> 2945.59981 | S39: =INDEX('Compile Data'!$BI$108:$CD$189,$O39,'Report - ALL'!$W$3) -> 2864.192063 | T39: =INDEX('Compile Data'!$CG$108:$DB$189,$O39,'Report - ALL'!$W$3) -> 2878.206506 | U39: =INDEX('Compile Data'!$DE$108:$DZ$189,$O39,'Report - ALL'!$W$3) ->  | V39: =INDEX('Compile Data'!$EC$108:$EX$189,$O39,'Report - ALL'!$W$3) ->  | W39: =INDEX('Compile Data'!$FA$108:$FV$189,$O39,'Report - ALL'!$W$3) -> 
A40: 1932 | B40: =INDEX('Compile Data'!$M$12:$AH$93,$A40-1921,'Report - ALL'!$W$3) -> 1319.686421 | C40: =INDEX('Compile Data'!$AK$12:$BF$93,$A40-1921,'Report - ALL'!$W$3) -> 1318.394663 | D40: =INDEX('Compile Data'!$BI$12:$CD$93,$A40-1921,'Report - ALL'!$W$3) -> 1325.150838 | E40: =INDEX('Compile Data'!$CG$12:$DB$93,$A40-1921,'Report - ALL'!$W$3) -> 1324.796591 | F40: =INDEX('Compile Data'!$DE$12:$DZ$93,$A40-1921,'Report - ALL'!$W$3) ->  | G40: =INDEX('Compile Data'!$EC$12:$EX$93,$A40-1921,'Report - ALL'!$W$3) ->  | H40: =INDEX('Compile Data'!$FA$12:$FV$93,$A40-1921,'Report - ALL'!$W$3) ->  | O40: 11 | P40: 0.1234567901 | Q40: =INDEX('Compile Data'!$M$108:$AH$189,$O40,'Report - ALL'!$W$3) -> 2746.940844 | R40: =INDEX('Compile Data'!$AK$108:$BF$189,$O40,'Report - ALL'!$W$3) -> 2777.243126 | S40: =INDEX('Compile Data'!$BI$108:$CD$189,$O40,'Report - ALL'!$W$3) -> 2814.453084 | T40: =INDEX('Compile Data'!$CG$108:$DB$189,$O40,'Report - ALL'!$W$3) -> 2801.245889 | U40: =INDEX('Compile Data'!$DE$108:$DZ$189,$O40,'Report - ALL'!$W$3) ->  | V40: =INDEX('Compile Data'!$EC$108:$EX$189,$O40,'Report - ALL'!$W$3) ->  | W40: =INDEX('Compile Data'!$FA$108:$FV$189,$O40,'Report - ALL'!$W$3) -> 
A41: 1933 | B41: =INDEX('Compile Data'!$M$12:$AH$93,$A41-1921,'Report - ALL'!$W$3) -> 1305.571417 | C41: =INDEX('Compile Data'!$AK$12:$BF$93,$A41-1921,'Report - ALL'!$W$3) -> 1292.052867 | D41: =INDEX('Compile Data'!$BI$12:$CD$93,$A41-1921,'Report - ALL'!$W$3) -> 1564.16405 | E41: =INDEX('Compile Data'!$CG$12:$DB$93,$A41-1921,'Report - ALL'!$W$3) -> 1592.419169 | F41: =INDEX('Compile Data'!$DE$12:$DZ$93,$A41-1921,'Report - ALL'!$W$3) ->  | G41: =INDEX('Compile Data'!$EC$12:$EX$93,$A41-1921,'Report - ALL'!$W$3) ->  | H41: =INDEX('Compile Data'!$FA$12:$FV$93,$A41-1921,'Report - ALL'!$W$3) ->  | O41: 12 | P41: 0.1358024691 | Q41: =INDEX('Compile Data'!$M$108:$AH$189,$O41,'Report - ALL'!$W$3) -> 2691.467136 | R41: =INDEX('Compile Data'!$AK$108:$BF$189,$O41,'Report - ALL'!$W$3) -> 2695.179842 | S41: =INDEX('Compile Data'!$BI$108:$CD$189,$O41,'Report - ALL'!$W$3) -> 2782.366989 | T41: =INDEX('Compile Data'!$CG$108:$DB$189,$O41,'Report - ALL'!$W$3) -> 2781.939619 | U41: =INDEX('Compile Data'!$DE$108:$DZ$189,$O41,'Report - ALL'!$W$3) ->  | V41: =INDEX('Compile Data'!$EC$108:$EX$189,$O41,'Report - ALL'!$W$3) ->  | W41: =INDEX('Compile Data'!$FA$108:$FV$189,$O41,'Report - ALL'!$W$3) -> 
A42: 1934 | B42: =INDEX('Compile Data'!$M$12:$AH$93,$A42-1921,'Report - ALL'!$W$3) -> 1623.77405 | C42: =INDEX('Compile Data'!$AK$12:$BF$93,$A42-1921,'Report - ALL'!$W$3) -> 1623.413901 | D42: =INDEX('Compile Data'!$BI$12:$CD$93,$A42-1921,'Report - ALL'!$W$3) -> 1628.625408 | E42: =INDEX('Compile Data'!$CG$12:$DB$93,$A42-1921,'Report - ALL'!$W$3) -> 1645.436741 | F42: =INDEX('Compile Data'!$DE$12:$DZ$93,$A42-1921,'Report - ALL'!$W$3) ->  | G42: =INDEX('Compile Data'!$EC$12:$EX$93,$A42-1921,'Report - ALL'!$W$3) ->  | H42: =INDEX('Compile Data'!$FA$12:$FV$93,$A42-1921,'Report - ALL'!$W$3) ->  | O42: 13 | P42: 0.1481481481 | Q42: =INDEX('Compile Data'!$M$108:$AH$189,$O42,'Report - ALL'!$W$3) -> 2611.52775 | R42: =INDEX('Compile Data'!$AK$108:$BF$189,$O42,'Report - ALL'!$W$3) -> 2612.851655 | S42: =INDEX('Compile Data'!$BI$108:$CD$189,$O42,'Report - ALL'!$W$3) -> 2781.918082 | T42: =INDEX('Compile Data'!$CG$108:$DB$189,$O42,'Report - ALL'!$W$3) -> 2748.994622 | U42: =INDEX('Compile Data'!$DE$108:$DZ$189,$O42,'Report - ALL'!$W$3) ->  | V42: =INDEX('Compile Data'!$EC$108:$EX$189,$O42,'Report - ALL'!$W$3) ->  | W42: =INDEX('Compile Data'!$FA$108:$FV$189,$O42,'Report - ALL'!$W$3) -> 
A43: 1935 | B43: =INDEX('Compile Data'!$M$12:$AH$93,$A43-1921,'Report - ALL'!$W$3) -> 1133.74981 | C43: =INDEX('Compile Data'!$AK$12:$BF$93,$A43-1921,'Report - ALL'!$W$3) -> 1135.997983 | D43: =INDEX('Compile Data'!$BI$12:$CD$93,$A43-1921,'Report - ALL'!$W$3) -> 1236.198035 | E43: =INDEX('Compile Data'!$CG$12:$DB$93,$A43-1921,'Report - ALL'!$W$3) -> 1292.429714 | F43: =INDEX('Compile Data'!$DE$12:$DZ$93,$A43-1921,'Report - ALL'!$W$3) ->  | G43: =INDEX('Compile Data'!$EC$12:$EX$93,$A43-1921,'Report - ALL'!$W$3) ->  | H43: =INDEX('Compile Data'!$FA$12:$FV$93,$A43-1921,'Report - ALL'!$W$3) ->  | O43: 14 | P43: 0.1604938272 | Q43: =INDEX('Compile Data'!$M$108:$AH$189,$O43,'Report - ALL'!$W$3) -> 2516.790309 | R43: =INDEX('Compile Data'!$AK$108:$BF$189,$O43,'Report - ALL'!$W$3) -> 2516.708258 | S43: =INDEX('Compile Data'!$BI$108:$CD$189,$O43,'Report - ALL'!$W$3) -> 2581.711097 | T43: =INDEX('Compile Data'!$CG$108:$DB$189,$O43,'Report - ALL'!$W$3) -> 2667.539795 | U43: =INDEX('Compile Data'!$DE$108:$DZ$189,$O43,'Report - ALL'!$W$3) ->  | V43: =INDEX('Compile Data'!$EC$108:$EX$189,$O43,'Report - ALL'!$W$3) ->  | W43: =INDEX('Compile Data'!$FA$108:$FV$189,$O43,'Report - ALL'!$W$3) -> 
A44: 1936 | B44: =INDEX('Compile Data'!$M$12:$AH$93,$A44-1921,'Report - ALL'!$W$3) -> 1413.706974 | C44: =INDEX('Compile Data'!$AK$12:$BF$93,$A44-1921,'Report - ALL'!$W$3) -> 1414.178482 | D44: =INDEX('Compile Data'!$BI$12:$CD$93,$A44-1921,'Report - ALL'!$W$3) -> 1419.231765 | E44: =INDEX('Compile Data'!$CG$12:$DB$93,$A44-1921,'Report - ALL'!$W$3) -> 1419.466469 | F44: =INDEX('Compile Data'!$DE$12:$DZ$93,$A44-1921,'Report - ALL'!$W$3) ->  | G44: =INDEX('Compile Data'!$EC$12:$EX$93,$A44-1921,'Report - ALL'!$W$3) ->  | H44: =INDEX('Compile Data'!$FA$12:$FV$93,$A44-1921,'Report - ALL'!$W$3) ->  | O44: 15 | P44: 0.1728395062 | Q44: =INDEX('Compile Data'!$M$108:$AH$189,$O44,'Report - ALL'!$W$3) -> 2376.919616 | R44: =INDEX('Compile Data'!$AK$108:$BF$189,$O44,'Report - ALL'!$W$3) -> 2481.423704 | S44: =INDEX('Compile Data'!$BI$108:$CD$189,$O44,'Report - ALL'!$W$3) -> 2420.849435 | T44: =INDEX('Compile Data'!$CG$108:$DB$189,$O44,'Report - ALL'!$W$3) -> 2584.436103 | U44: =INDEX('Compile Data'!$DE$108:$DZ$189,$O44,'Report - ALL'!$W$3) ->  | V44: =INDEX('Compile Data'!$EC$108:$EX$189,$O44,'Report - ALL'!$W$3) ->  | W44: =INDEX('Compile Data'!$FA$108:$FV$189,$O44,'Report - ALL'!$W$3) -> 
A45: 1937 | B45: =INDEX('Compile Data'!$M$12:$AH$93,$A45-1921,'Report - ALL'!$W$3) -> 1231.559686 | C45: =INDEX('Compile Data'!$AK$12:$BF$93,$A45-1921,'Report - ALL'!$W$3) -> 1232.271589 | D45: =INDEX('Compile Data'!$BI$12:$CD$93,$A45-1921,'Report - ALL'!$W$3) -> 1229.278103 | E45: =INDEX('Compile Data'!$CG$12:$DB$93,$A45-1921,'Report - ALL'!$W$3) -> 1229.268535 | F45: =INDEX('Compile Data'!$DE$12:$DZ$93,$A45-1921,'Report - ALL'!$W$3) ->  | G45: =INDEX('Compile Data'!$EC$12:$EX$93,$A45-1921,'Report - ALL'!$W$3) ->  | H45: =INDEX('Compile Data'!$FA$12:$FV$93,$A45-1921,'Report - ALL'!$W$3) ->  | O45: 16 | P45: 0.1851851852 | Q45: =INDEX('Compile Data'!$M$108:$AH$189,$O45,'Report - ALL'!$W$3) -> 2334.264474 | R45: =INDEX('Compile Data'!$AK$108:$BF$189,$O45,'Report - ALL'!$W$3) -> 2469.545126 | S45: =INDEX('Compile Data'!$BI$108:$CD$189,$O45,'Report - ALL'!$W$3) -> 2404.73513 | T45: =INDEX('Compile Data'!$CG$108:$DB$189,$O45,'Report - ALL'!$W$3) -> 2569.199516 | U45: =INDEX('Compile Data'!$DE$108:$DZ$189,$O45,'Report - ALL'!$W$3) ->  | V45: =INDEX('Compile Data'!$EC$108:$EX$189,$O45,'Report - ALL'!$W$3) ->  | W45: =INDEX('Compile Data'!$FA$108:$FV$189,$O45,'Report - ALL'!$W$3) -> 
A46: 1938 | B46: =INDEX('Compile Data'!$M$12:$AH$93,$A46-1921,'Report - ALL'!$W$3) -> 3953.697769 | C46: =INDEX('Compile Data'!$AK$12:$BF$93,$A46-1921,'Report - ALL'!$W$3) -> 3953.501366 | D46: =INDEX('Compile Data'!$BI$12:$CD$93,$A46-1921,'Report - ALL'!$W$3) -> 3954.284381 | E46: =INDEX('Compile Data'!$CG$12:$DB$93,$A46-1921,'Report - ALL'!$W$3) -> 3954.301992 | F46: =INDEX('Compile Data'!$DE$12:$DZ$93,$A46-1921,'Report - ALL'!$W$3) ->  | G46: =INDEX('Compile Data'!$EC$12:$EX$93,$A46-1921,'Report - ALL'!$W$3) ->  | H46: =INDEX('Compile Data'!$FA$12:$FV$93,$A46-1921,'Report - ALL'!$W$3) ->  | O46: 17 | P46: 0.1975308642 | Q46: =INDEX('Compile Data'!$M$108:$AH$189,$O46,'Report - ALL'!$W$3) -> 2304.975551 | R46: =INDEX('Compile Data'!$AK$108:$BF$189,$O46,'Report - ALL'!$W$3) -> 2376.769112 | S46: =INDEX('Compile Data'!$BI$108:$CD$189,$O46,'Report - ALL'!$W$3) -> 2331.734934 | T46: =INDEX('Compile Data'!$CG$108:$DB$189,$O46,'Report - ALL'!$W$3) -> 2440.731749 | U46: =INDEX('Compile Data'!$DE$108:$DZ$189,$O46,'Report - ALL'!$W$3) ->  | V46: =INDEX('Compile Data'!$EC$108:$EX$189,$O46,'Report - ALL'!$W$3) ->  | W46: =INDEX('Compile Data'!$FA$108:$FV$189,$O46,'Report - ALL'!$W$3) -> 
A47: 1939 | B47: =INDEX('Compile Data'!$M$12:$AH$93,$A47-1921,'Report - ALL'!$W$3) -> 2027.14765 | C47: =INDEX('Compile Data'!$AK$12:$BF$93,$A47-1921,'Report - ALL'!$W$3) -> 2003.462973 | D47: =INDEX('Compile Data'!$BI$12:$CD$93,$A47-1921,'Report - ALL'!$W$3) -> 2195.920268 | E47: =INDEX('Compile Data'!$CG$12:$DB$93,$A47-1921,'Report - ALL'!$W$3) -> 2200.878951 | F47: =INDEX('Compile Data'!$DE$12:$DZ$93,$A47-1921,'Report - ALL'!$W$3) ->  | G47: =INDEX('Compile Data'!$EC$12:$EX$93,$A47-1921,'Report - ALL'!$W$3) ->  | H47: =INDEX('Compile Data'!$FA$12:$FV$93,$A47-1921,'Report - ALL'!$W$3) ->  | O47: 18 | P47: 0.2098765432 | Q47: =INDEX('Compile Data'!$M$108:$AH$189,$O47,'Report - ALL'!$W$3) -> 2280.757491 | R47: =INDEX('Compile Data'!$AK$108:$BF$189,$O47,'Report - ALL'!$W$3) -> 2374.251631 | S47: =INDEX('Compile Data'!$BI$108:$CD$189,$O47,'Report - ALL'!$W$3) -> 2309.633363 | T47: =INDEX('Compile Data'!$CG$108:$DB$189,$O47,'Report - ALL'!$W$3) -> 2404.355057 | U47: =INDEX('Compile Data'!$DE$108:$DZ$189,$O47,'Report - ALL'!$W$3) ->  | V47: =INDEX('Compile Data'!$EC$108:$EX$189,$O47,'Report - ALL'!$W$3) ->  | W47: =INDEX('Compile Data'!$FA$108:$FV$189,$O47,'Report - ALL'!$W$3) -> 
A48: 1940 | B48: =INDEX('Compile Data'!$M$12:$AH$93,$A48-1921,'Report - ALL'!$W$3) -> 2691.467136 | C48: =INDEX('Compile Data'!$AK$12:$BF$93,$A48-1921,'Report - ALL'!$W$3) -> 2695.179842 | D48: =INDEX('Compile Data'!$BI$12:$CD$93,$A48-1921,'Report - ALL'!$W$3) -> 2814.453084 | E48: =INDEX('Compile Data'!$CG$12:$DB$93,$A48-1921,'Report - ALL'!$W$3) -> 2801.245889 | F48: =INDEX('Compile Data'!$DE$12:$DZ$93,$A48-1921,'Report - ALL'!$W$3) ->  | G48: =INDEX('Compile Data'!$EC$12:$EX$93,$A48-1921,'Report - ALL'!$W$3) ->  | H48: =INDEX('Compile Data'!$FA$12:$FV$93,$A48-1921,'Report - ALL'!$W$3) ->  | O48: 19 | P48: 0.2222222222 | Q48: =INDEX('Compile Data'!$M$108:$AH$189,$O48,'Report - ALL'!$W$3) -> 2273.263552 | R48: =INDEX('Compile Data'!$AK$108:$BF$189,$O48,'Report - ALL'!$W$3) -> 2340.000674 | S48: =INDEX('Compile Data'!$BI$108:$CD$189,$O48,'Report - ALL'!$W$3) -> 2200.761727 | T48: =INDEX('Compile Data'!$CG$108:$DB$189,$O48,'Report - ALL'!$W$3) -> 2309.177901 | U48: =INDEX('Compile Data'!$DE$108:$DZ$189,$O48,'Report - ALL'!$W$3) ->  | V48: =INDEX('Compile Data'!$EC$108:$EX$189,$O48,'Report - ALL'!$W$3) ->  | W48: =INDEX('Compile Data'!$FA$108:$FV$189,$O48,'Report - ALL'!$W$3) -> 
A49: 1941 | B49: =INDEX('Compile Data'!$M$12:$AH$93,$A49-1921,'Report - ALL'!$W$3) -> 2945.712949 | C49: =INDEX('Compile Data'!$AK$12:$BF$93,$A49-1921,'Report - ALL'!$W$3) -> 2945.59981 | D49: =INDEX('Compile Data'!$BI$12:$CD$93,$A49-1921,'Report - ALL'!$W$3) -> 2864.192063 | E49: =INDEX('Compile Data'!$CG$12:$DB$93,$A49-1921,'Report - ALL'!$W$3) -> 2878.206506 | F49: =INDEX('Compile Data'!$DE$12:$DZ$93,$A49-1921,'Report - ALL'!$W$3) ->  | G49: =INDEX('Compile Data'!$EC$12:$EX$93,$A49-1921,'Report - ALL'!$W$3) ->  | H49: =INDEX('Compile Data'!$FA$12:$FV$93,$A49-1921,'Report - ALL'!$W$3) ->  | O49: 20 | P49: 0.2345679012 | Q49: =INDEX('Compile Data'!$M$108:$AH$189,$O49,'Report - ALL'!$W$3) -> 2189.065533 | R49: =INDEX('Compile Data'!$AK$108:$BF$189,$O49,'Report - ALL'!$W$3) -> 2335.342504 | S49: =INDEX('Compile Data'!$BI$108:$CD$189,$O49,'Report - ALL'!$W$3) -> 2195.920268 | T49: =INDEX('Compile Data'!$CG$108:$DB$189,$O49,'Report - ALL'!$W$3) -> 2203.12717 | U49: =INDEX('Compile Data'!$DE$108:$DZ$189,$O49,'Report - ALL'!$W$3) ->  | V49: =INDEX('Compile Data'!$EC$108:$EX$189,$O49,'Report - ALL'!$W$3) ->  | W49: =INDEX('Compile Data'!$FA$108:$FV$189,$O49,'Report - ALL'!$W$3) -> 
A50: 1942 | B50: =INDEX('Compile Data'!$M$12:$AH$93,$A50-1921,'Report - ALL'!$W$3) -> 1574.471848 | C50: =INDEX('Compile Data'!$AK$12:$BF$93,$A50-1921,'Report - ALL'!$W$3) -> 1574.609683 | D50: =INDEX('Compile Data'!$BI$12:$CD$93,$A50-1921,'Report - ALL'!$W$3) -> 1442.510837 | E50: =INDEX('Compile Data'!$CG$12:$DB$93,$A50-1921,'Report - ALL'!$W$3) -> 1443.720066 | F50: =INDEX('Compile Data'!$DE$12:$DZ$93,$A50-1921,'Report - ALL'!$W$3) ->  | G50: =INDEX('Compile Data'!$EC$12:$EX$93,$A50-1921,'Report - ALL'!$W$3) ->  | H50: =INDEX('Compile Data'!$FA$12:$FV$93,$A50-1921,'Report - ALL'!$W$3) ->  | O50: 21 | P50: 0.2469135802 | Q50: =INDEX('Compile Data'!$M$108:$AH$189,$O50,'Report - ALL'!$W$3) -> 2176.882216 | R50: =INDEX('Compile Data'!$AK$108:$BF$189,$O50,'Report - ALL'!$W$3) -> 2188.756216 | S50: =INDEX('Compile Data'!$BI$108:$CD$189,$O50,'Report - ALL'!$W$3) -> 2190.349659 | T50: =INDEX('Compile Data'!$CG$108:$DB$189,$O50,'Report - ALL'!$W$3) -> 2200.878951 | U50: =INDEX('Compile Data'!$DE$108:$DZ$189,$O50,'Report - ALL'!$W$3) ->  | V50: =INDEX('Compile Data'!$EC$108:$EX$189,$O50,'Report - ALL'!$W$3) ->  | W50: =INDEX('Compile Data'!$FA$108:$FV$189,$O50,'Report - ALL'!$W$3) -> 
A51: 1943 | B51: =INDEX('Compile Data'!$M$12:$AH$93,$A51-1921,'Report - ALL'!$W$3) -> 1951.837007 | C51: =INDEX('Compile Data'!$AK$12:$BF$93,$A51-1921,'Report - ALL'!$W$3) -> 1951.992626 | D51: =INDEX('Compile Data'!$BI$12:$CD$93,$A51-1921,'Report - ALL'!$W$3) -> 1834.651907 | E51: =INDEX('Compile Data'!$CG$12:$DB$93,$A51-1921,'Report - ALL'!$W$3) -> 1940.538166 | F51: =INDEX('Compile Data'!$DE$12:$DZ$93,$A51-1921,'Report - ALL'!$W$3) ->  | G51: =INDEX('Compile Data'!$EC$12:$EX$93,$A51-1921,'Report - ALL'!$W$3) ->  | H51: =INDEX('Compile Data'!$FA$12:$FV$93,$A51-1921,'Report - ALL'!$W$3) ->  | O51: 22 | P51: 0.2592592593 | Q51: =INDEX('Compile Data'!$M$108:$AH$189,$O51,'Report - ALL'!$W$3) -> 2176.074206 | R51: =INDEX('Compile Data'!$AK$108:$BF$189,$O51,'Report - ALL'!$W$3) -> 2176.536114 | S51: =INDEX('Compile Data'!$BI$108:$CD$189,$O51,'Report - ALL'!$W$3) -> 2176.832156 | T51: =INDEX('Compile Data'!$CG$108:$DB$189,$O51,'Report - ALL'!$W$3) -> 2185.254269 | U51: =INDEX('Compile Data'!$DE$108:$DZ$189,$O51,'Report - ALL'!$W$3) ->  | V51: =INDEX('Compile Data'!$EC$108:$EX$189,$O51,'Report - ALL'!$W$3) ->  | W51: =INDEX('Compile Data'!$FA$108:$FV$189,$O51,'Report - ALL'!$W$3) -> 
A52: 1944 | B52: =INDEX('Compile Data'!$M$12:$AH$93,$A52-1921,'Report - ALL'!$W$3) -> 1390.723731 | C52: =INDEX('Compile Data'!$AK$12:$BF$93,$A52-1921,'Report - ALL'!$W$3) -> 1549.776807 | D52: =INDEX('Compile Data'!$BI$12:$CD$93,$A52-1921,'Report - ALL'!$W$3) -> 1454.5753 | E52: =INDEX('Compile Data'!$CG$12:$DB$93,$A52-1921,'Report - ALL'!$W$3) -> 1572.927309 | F52: =INDEX('Compile Data'!$DE$12:$DZ$93,$A52-1921,'Report - ALL'!$W$3) ->  | G52: =INDEX('Compile Data'!$EC$12:$EX$93,$A52-1921,'Report - ALL'!$W$3) ->  | H52: =INDEX('Compile Data'!$FA$12:$FV$93,$A52-1921,'Report - ALL'!$W$3) ->  | O52: 23 | P52: 0.2716049383 | Q52: =INDEX('Compile Data'!$M$108:$AH$189,$O52,'Report - ALL'!$W$3) -> 2152.120026 | R52: =INDEX('Compile Data'!$AK$108:$BF$189,$O52,'Report - ALL'!$W$3) -> 2175.940205 | S52: =INDEX('Compile Data'!$BI$108:$CD$189,$O52,'Report - ALL'!$W$3) -> 2139.062522 | T52: =INDEX('Compile Data'!$CG$108:$DB$189,$O52,'Report - ALL'!$W$3) -> 2170.433219 | U52: =INDEX('Compile Data'!$DE$108:$DZ$189,$O52,'Report - ALL'!$W$3) ->  | V52: =INDEX('Compile Data'!$EC$108:$EX$189,$O52,'Report - ALL'!$W$3) ->  | W52: =INDEX('Compile Data'!$FA$108:$FV$189,$O52,'Report - ALL'!$W$3) -> 
A53: 1945 | B53: =INDEX('Compile Data'!$M$12:$AH$93,$A53-1921,'Report - ALL'!$W$3) -> 1395.408652 | C53: =INDEX('Compile Data'!$AK$12:$BF$93,$A53-1921,'Report - ALL'!$W$3) -> 1497.461795 | D53: =INDEX('Compile Data'!$BI$12:$CD$93,$A53-1921,'Report - ALL'!$W$3) -> 1395.452032 | E53: =INDEX('Compile Data'!$CG$12:$DB$93,$A53-1921,'Report - ALL'!$W$3) -> 1405.094536 | F53: =INDEX('Compile Data'!$DE$12:$DZ$93,$A53-1921,'Report - ALL'!$W$3) ->  | G53: =INDEX('Compile Data'!$EC$12:$EX$93,$A53-1921,'Report - ALL'!$W$3) ->  | H53: =INDEX('Compile Data'!$FA$12:$FV$93,$A53-1921,'Report - ALL'!$W$3) ->  | O53: 24 | P53: 0.2839506173 | Q53: =INDEX('Compile Data'!$M$108:$AH$189,$O53,'Report - ALL'!$W$3) -> 2088.789584 | R53: =INDEX('Compile Data'!$AK$108:$BF$189,$O53,'Report - ALL'!$W$3) -> 2175.139732 | S53: =INDEX('Compile Data'!$BI$108:$CD$189,$O53,'Report - ALL'!$W$3) -> 2139.034684 | T53: =INDEX('Compile Data'!$CG$108:$DB$189,$O53,'Report - ALL'!$W$3) -> 2168.212975 | U53: =INDEX('Compile Data'!$DE$108:$DZ$189,$O53,'Report - ALL'!$W$3) ->  | V53: =INDEX('Compile Data'!$EC$108:$EX$189,$O53,'Report - ALL'!$W$3) ->  | W53: =INDEX('Compile Data'!$FA$108:$FV$189,$O53,'Report - ALL'!$W$3) -> 
A54: 1946 | B54: =INDEX('Compile Data'!$M$12:$AH$93,$A54-1921,'Report - ALL'!$W$3) -> 1811.028738 | C54: =INDEX('Compile Data'!$AK$12:$BF$93,$A54-1921,'Report - ALL'!$W$3) -> 1824.620172 | D54: =INDEX('Compile Data'!$BI$12:$CD$93,$A54-1921,'Report - ALL'!$W$3) -> 1742.108517 | E54: =INDEX('Compile Data'!$CG$12:$DB$93,$A54-1921,'Report - ALL'!$W$3) -> 1750.815896 | F54: =INDEX('Compile Data'!$DE$12:$DZ$93,$A54-1921,'Report - ALL'!$W$3) ->  | G54: =INDEX('Compile Data'!$EC$12:$EX$93,$A54-1921,'Report - ALL'!$W$3) ->  | H54: =INDEX('Compile Data'!$FA$12:$FV$93,$A54-1921,'Report - ALL'!$W$3) ->  | O54: 25 | P54: 0.2962962963 | Q54: =INDEX('Compile Data'!$M$108:$AH$189,$O54,'Report - ALL'!$W$3) -> 2047.528662 | R54: =INDEX('Compile Data'!$AK$108:$BF$189,$O54,'Report - ALL'!$W$3) -> 2151.729904 | S54: =INDEX('Compile Data'!$BI$108:$CD$189,$O54,'Report - ALL'!$W$3) -> 2138.520672 | T54: =INDEX('Compile Data'!$CG$108:$DB$189,$O54,'Report - ALL'!$W$3) -> 2166.298461 | U54: =INDEX('Compile Data'!$DE$108:$DZ$189,$O54,'Report - ALL'!$W$3) ->  | V54: =INDEX('Compile Data'!$EC$108:$EX$189,$O54,'Report - ALL'!$W$3) ->  | W54: =INDEX('Compile Data'!$FA$108:$FV$189,$O54,'Report - ALL'!$W$3) -> 
A55: 1947 | B55: =INDEX('Compile Data'!$M$12:$AH$93,$A55-1921,'Report - ALL'!$W$3) -> 1642.116018 | C55: =INDEX('Compile Data'!$AK$12:$BF$93,$A55-1921,'Report - ALL'!$W$3) -> 1693.714141 | D55: =INDEX('Compile Data'!$BI$12:$CD$93,$A55-1921,'Report - ALL'!$W$3) -> 1819.113541 | E55: =INDEX('Compile Data'!$CG$12:$DB$93,$A55-1921,'Report - ALL'!$W$3) -> 1810.7303 | F55: =INDEX('Compile Data'!$DE$12:$DZ$93,$A55-1921,'Report - ALL'!$W$3) ->  | G55: =INDEX('Compile Data'!$EC$12:$EX$93,$A55-1921,'Report - ALL'!$W$3) ->  | H55: =INDEX('Compile Data'!$FA$12:$FV$93,$A55-1921,'Report - ALL'!$W$3) ->  | O55: 26 | P55: 0.3086419753 | Q55: =INDEX('Compile Data'!$M$108:$AH$189,$O55,'Report - ALL'!$W$3) -> 2027.14765 | R55: =INDEX('Compile Data'!$AK$108:$BF$189,$O55,'Report - ALL'!$W$3) -> 2055.03244 | S55: =INDEX('Compile Data'!$BI$108:$CD$189,$O55,'Report - ALL'!$W$3) -> 2119.74726 | T55: =INDEX('Compile Data'!$CG$108:$DB$189,$O55,'Report - ALL'!$W$3) -> 2139.42413 | U55: =INDEX('Compile Data'!$DE$108:$DZ$189,$O55,'Report - ALL'!$W$3) ->  | V55: =INDEX('Compile Data'!$EC$108:$EX$189,$O55,'Report - ALL'!$W$3) ->  | W55: =INDEX('Compile Data'!$FA$108:$FV$189,$O55,'Report - ALL'!$W$3) -> 
A56: 1948 | B56: =INDEX('Compile Data'!$M$12:$AH$93,$A56-1921,'Report - ALL'!$W$3) -> 1325.37317 | C56: =INDEX('Compile Data'!$AK$12:$BF$93,$A56-1921,'Report - ALL'!$W$3) -> 1456.100504 | D56: =INDEX('Compile Data'!$BI$12:$CD$93,$A56-1921,'Report - ALL'!$W$3) -> 1080.719202 | E56: =INDEX('Compile Data'!$CG$12:$DB$93,$A56-1921,'Report - ALL'!$W$3) -> 1093.189153 | F56: =INDEX('Compile Data'!$DE$12:$DZ$93,$A56-1921,'Report - ALL'!$W$3) ->  | G56: =INDEX('Compile Data'!$EC$12:$EX$93,$A56-1921,'Report - ALL'!$W$3) ->  | H56: =INDEX('Compile Data'!$FA$12:$FV$93,$A56-1921,'Report - ALL'!$W$3) ->  | O56: 27 | P56: 0.3209876543 | Q56: =INDEX('Compile Data'!$M$108:$AH$189,$O56,'Report - ALL'!$W$3) -> 2000.83719 | R56: =INDEX('Compile Data'!$AK$108:$BF$189,$O56,'Report - ALL'!$W$3) -> 2009.386449 | S56: =INDEX('Compile Data'!$BI$108:$CD$189,$O56,'Report - ALL'!$W$3) -> 2100.22574 | T56: =INDEX('Compile Data'!$CG$108:$DB$189,$O56,'Report - ALL'!$W$3) -> 2119.34315 | U56: =INDEX('Compile Data'!$DE$108:$DZ$189,$O56,'Report - ALL'!$W$3) ->  | V56: =INDEX('Compile Data'!$EC$108:$EX$189,$O56,'Report - ALL'!$W$3) ->  | W56: =INDEX('Compile Data'!$FA$108:$FV$189,$O56,'Report - ALL'!$W$3) -> 
A57: 1949 | B57: =INDEX('Compile Data'!$M$12:$AH$93,$A57-1921,'Report - ALL'!$W$3) -> 1880.950038 | C57: =INDEX('Compile Data'!$AK$12:$BF$93,$A57-1921,'Report - ALL'!$W$3) -> 1862.121039 | D57: =INDEX('Compile Data'!$BI$12:$CD$93,$A57-1921,'Report - ALL'!$W$3) -> 1994.74133 | E57: =INDEX('Compile Data'!$CG$12:$DB$93,$A57-1921,'Report - ALL'!$W$3) -> 2016.342999 | F57: =INDEX('Compile Data'!$DE$12:$DZ$93,$A57-1921,'Report - ALL'!$W$3) ->  | G57: =INDEX('Compile Data'!$EC$12:$EX$93,$A57-1921,'Report - ALL'!$W$3) ->  | H57: =INDEX('Compile Data'!$FA$12:$FV$93,$A57-1921,'Report - ALL'!$W$3) ->  | O57: 28 | P57: 0.3333333333 | Q57: =INDEX('Compile Data'!$M$108:$AH$189,$O57,'Report - ALL'!$W$3) -> 1964.871766 | R57: =INDEX('Compile Data'!$AK$108:$BF$189,$O57,'Report - ALL'!$W$3) -> 2006.067678 | S57: =INDEX('Compile Data'!$BI$108:$CD$189,$O57,'Report - ALL'!$W$3) -> 2092.161485 | T57: =INDEX('Compile Data'!$CG$108:$DB$189,$O57,'Report - ALL'!$W$3) -> 2104.273354 | U57: =INDEX('Compile Data'!$DE$108:$DZ$189,$O57,'Report - ALL'!$W$3) ->  | V57: =INDEX('Compile Data'!$EC$108:$EX$189,$O57,'Report - ALL'!$W$3) ->  | W57: =INDEX('Compile Data'!$FA$108:$FV$189,$O57,'Report - ALL'!$W$3) -> 
A58: 1950 | B58: =INDEX('Compile Data'!$M$12:$AH$93,$A58-1921,'Report - ALL'!$W$3) -> 1402.407434 | C58: =INDEX('Compile Data'!$AK$12:$BF$93,$A58-1921,'Report - ALL'!$W$3) -> 1401.569413 | D58: =INDEX('Compile Data'!$BI$12:$CD$93,$A58-1921,'Report - ALL'!$W$3) -> 1398.530171 | E58: =INDEX('Compile Data'!$CG$12:$DB$93,$A58-1921,'Report - ALL'!$W$3) -> 1399.038257 | F58: =INDEX('Compile Data'!$DE$12:$DZ$93,$A58-1921,'Report - ALL'!$W$3) ->  | G58: =INDEX('Compile Data'!$EC$12:$EX$93,$A58-1921,'Report - ALL'!$W$3) ->  | H58: =INDEX('Compile Data'!$FA$12:$FV$93,$A58-1921,'Report - ALL'!$W$3) ->  | O58: 29 | P58: 0.3456790123 | Q58: =INDEX('Compile Data'!$M$108:$AH$189,$O58,'Report - ALL'!$W$3) -> 1963.994779 | R58: =INDEX('Compile Data'!$AK$108:$BF$189,$O58,'Report - ALL'!$W$3) -> 2003.462973 | S58: =INDEX('Compile Data'!$BI$108:$CD$189,$O58,'Report - ALL'!$W$3) -> 2058.288145 | T58: =INDEX('Compile Data'!$CG$108:$DB$189,$O58,'Report - ALL'!$W$3) -> 2099.630582 | U58: =INDEX('Compile Data'!$DE$108:$DZ$189,$O58,'Report - ALL'!$W$3) ->  | V58: =INDEX('Compile Data'!$EC$108:$EX$189,$O58,'Report - ALL'!$W$3) ->  | W58: =INDEX('Compile Data'!$FA$108:$FV$189,$O58,'Report - ALL'!$W$3) -> 
A59: 1951 | B59: =INDEX('Compile Data'!$M$12:$AH$93,$A59-1921,'Report - ALL'!$W$3) -> 1680.986346 | C59: =INDEX('Compile Data'!$AK$12:$BF$93,$A59-1921,'Report - ALL'!$W$3) -> 1684.680013 | D59: =INDEX('Compile Data'!$BI$12:$CD$93,$A59-1921,'Report - ALL'!$W$3) -> 1642.862077 | E59: =INDEX('Compile Data'!$CG$12:$DB$93,$A59-1921,'Report - ALL'!$W$3) -> 1643.112837 | F59: =INDEX('Compile Data'!$DE$12:$DZ$93,$A59-1921,'Report - ALL'!$W$3) ->  | G59: =INDEX('Compile Data'!$EC$12:$EX$93,$A59-1921,'Report - ALL'!$W$3) ->  | H59: =INDEX('Compile Data'!$FA$12:$FV$93,$A59-1921,'Report - ALL'!$W$3) ->  | O59: 30 | P59: 0.3580246914 | Q59: =INDEX('Compile Data'!$M$108:$AH$189,$O59,'Report - ALL'!$W$3) -> 1963.136214 | R59: =INDEX('Compile Data'!$AK$108:$BF$189,$O59,'Report - ALL'!$W$3) -> 2000.687513 | S59: =INDEX('Compile Data'!$BI$108:$CD$189,$O59,'Report - ALL'!$W$3) -> 2024.766564 | T59: =INDEX('Compile Data'!$CG$108:$DB$189,$O59,'Report - ALL'!$W$3) -> 2088.02931 | U59: =INDEX('Compile Data'!$DE$108:$DZ$189,$O59,'Report - ALL'!$W$3) ->  | V59: =INDEX('Compile Data'!$EC$108:$EX$189,$O59,'Report - ALL'!$W$3) ->  | W59: =INDEX('Compile Data'!$FA$108:$FV$189,$O59,'Report - ALL'!$W$3) -> 
A60: 1952 | B60: =INDEX('Compile Data'!$M$12:$AH$93,$A60-1921,'Report - ALL'!$W$3) -> 2516.790309 | C60: =INDEX('Compile Data'!$AK$12:$BF$93,$A60-1921,'Report - ALL'!$W$3) -> 2516.708258 | D60: =INDEX('Compile Data'!$BI$12:$CD$93,$A60-1921,'Report - ALL'!$W$3) -> 2420.849435 | E60: =INDEX('Compile Data'!$CG$12:$DB$93,$A60-1921,'Report - ALL'!$W$3) -> 2440.731749 | F60: =INDEX('Compile Data'!$DE$12:$DZ$93,$A60-1921,'Report - ALL'!$W$3) ->  | G60: =INDEX('Compile Data'!$EC$12:$EX$93,$A60-1921,'Report - ALL'!$W$3) ->  | H60: =INDEX('Compile Data'!$FA$12:$FV$93,$A60-1921,'Report - ALL'!$W$3) ->  | O60: 31 | P60: 0.3703703704 | Q60: =INDEX('Compile Data'!$M$108:$AH$189,$O60,'Report - ALL'!$W$3) -> 1951.837007 | R60: =INDEX('Compile Data'!$AK$108:$BF$189,$O60,'Report - ALL'!$W$3) -> 1963.831259 | S60: =INDEX('Compile Data'!$BI$108:$CD$189,$O60,'Report - ALL'!$W$3) -> 1994.74133 | T60: =INDEX('Compile Data'!$CG$108:$DB$189,$O60,'Report - ALL'!$W$3) -> 2071.506839 | U60: =INDEX('Compile Data'!$DE$108:$DZ$189,$O60,'Report - ALL'!$W$3) ->  | V60: =INDEX('Compile Data'!$EC$108:$EX$189,$O60,'Report - ALL'!$W$3) ->  | W60: =INDEX('Compile Data'!$FA$108:$FV$189,$O60,'Report - ALL'!$W$3) -> 
A61: 1953 | B61: =INDEX('Compile Data'!$M$12:$AH$93,$A61-1921,'Report - ALL'!$W$3) -> 1597.532487 | C61: =INDEX('Compile Data'!$AK$12:$BF$93,$A61-1921,'Report - ALL'!$W$3) -> 1593.431304 | D61: =INDEX('Compile Data'!$BI$12:$CD$93,$A61-1921,'Report - ALL'!$W$3) -> 1457.506811 | E61: =INDEX('Compile Data'!$CG$12:$DB$93,$A61-1921,'Report - ALL'!$W$3) -> 1463.149741 | F61: =INDEX('Compile Data'!$DE$12:$DZ$93,$A61-1921,'Report - ALL'!$W$3) ->  | G61: =INDEX('Compile Data'!$EC$12:$EX$93,$A61-1921,'Report - ALL'!$W$3) ->  | H61: =INDEX('Compile Data'!$FA$12:$FV$93,$A61-1921,'Report - ALL'!$W$3) ->  | O61: 32 | P61: 0.3827160494 | Q61: =INDEX('Compile Data'!$M$108:$AH$189,$O61,'Report - ALL'!$W$3) -> 1941.284396 | R61: =INDEX('Compile Data'!$AK$108:$BF$189,$O61,'Report - ALL'!$W$3) -> 1951.992626 | S61: =INDEX('Compile Data'!$BI$108:$CD$189,$O61,'Report - ALL'!$W$3) -> 1984.830278 | T61: =INDEX('Compile Data'!$CG$108:$DB$189,$O61,'Report - ALL'!$W$3) -> 2052.268815 | U61: =INDEX('Compile Data'!$DE$108:$DZ$189,$O61,'Report - ALL'!$W$3) ->  | V61: =INDEX('Compile Data'!$EC$108:$EX$189,$O61,'Report - ALL'!$W$3) ->  | W61: =INDEX('Compile Data'!$FA$108:$FV$189,$O61,'Report - ALL'!$W$3) -> 
A62: 1954 | B62: =INDEX('Compile Data'!$M$12:$AH$93,$A62-1921,'Report - ALL'!$W$3) -> 2304.975551 | C62: =INDEX('Compile Data'!$AK$12:$BF$93,$A62-1921,'Report - ALL'!$W$3) -> 2340.000674 | D62: =INDEX('Compile Data'!$BI$12:$CD$93,$A62-1921,'Report - ALL'!$W$3) -> 2781.918082 | E62: =INDEX('Compile Data'!$CG$12:$DB$93,$A62-1921,'Report - ALL'!$W$3) -> 2748.994622 | F62: =INDEX('Compile Data'!$DE$12:$DZ$93,$A62-1921,'Report - ALL'!$W$3) ->  | G62: =INDEX('Compile Data'!$EC$12:$EX$93,$A62-1921,'Report - ALL'!$W$3) ->  | H62: =INDEX('Compile Data'!$FA$12:$FV$93,$A62-1921,'Report - ALL'!$W$3) ->  | O62: 33 | P62: =(O62-1)/81 -> 0.3950617284 | Q62: =INDEX('Compile Data'!$M$108:$AH$189,$O62,'Report - ALL'!$W$3) -> 1940.819667 | R62: =INDEX('Compile Data'!$AK$108:$BF$189,$O62,'Report - ALL'!$W$3) -> 1939.388692 | S62: =INDEX('Compile Data'!$BI$108:$CD$189,$O62,'Report - ALL'!$W$3) -> 1952.98121 | T62: =INDEX('Compile Data'!$CG$108:$DB$189,$O62,'Report - ALL'!$W$3) -> 2016.342999 | U62: =INDEX('Compile Data'!$DE$108:$DZ$189,$O62,'Report - ALL'!$W$3) ->  | V62: =INDEX('Compile Data'!$EC$108:$EX$189,$O62,'Report - ALL'!$W$3) ->  | W62: =INDEX('Compile Data'!$FA$108:$FV$189,$O62,'Report - ALL'!$W$3) -> 
A63: 1955 | B63: =INDEX('Compile Data'!$M$12:$AH$93,$A63-1921,'Report - ALL'!$W$3) -> 1528.285665 | C63: =INDEX('Compile Data'!$AK$12:$BF$93,$A63-1921,'Report - ALL'!$W$3) -> 1538.423336 | D63: =INDEX('Compile Data'!$BI$12:$CD$93,$A63-1921,'Report - ALL'!$W$3) -> 1509.986272 | E63: =INDEX('Compile Data'!$CG$12:$DB$93,$A63-1921,'Report - ALL'!$W$3) -> 1607.800108 | F63: =INDEX('Compile Data'!$DE$12:$DZ$93,$A63-1921,'Report - ALL'!$W$3) ->  | G63: =INDEX('Compile Data'!$EC$12:$EX$93,$A63-1921,'Report - ALL'!$W$3) ->  | H63: =INDEX('Compile Data'!$FA$12:$FV$93,$A63-1921,'Report - ALL'!$W$3) ->  | O63: 34 | P63: 0.4074074074 | Q63: =INDEX('Compile Data'!$M$108:$AH$189,$O63,'Report - ALL'!$W$3) -> 1928.25358 | R63: =INDEX('Compile Data'!$AK$108:$BF$189,$O63,'Report - ALL'!$W$3) -> 1931.777258 | S63: =INDEX('Compile Data'!$BI$108:$CD$189,$O63,'Report - ALL'!$W$3) -> 1952.722502 | T63: =INDEX('Compile Data'!$CG$108:$DB$189,$O63,'Report - ALL'!$W$3) -> 1983.214552 | U63: =INDEX('Compile Data'!$DE$108:$DZ$189,$O63,'Report - ALL'!$W$3) ->  | V63: =INDEX('Compile Data'!$EC$108:$EX$189,$O63,'Report - ALL'!$W$3) ->  | W63: =INDEX('Compile Data'!$FA$108:$FV$189,$O63,'Report - ALL'!$W$3) -> 
A64: 1956 | B64: =INDEX('Compile Data'!$M$12:$AH$93,$A64-1921,'Report - ALL'!$W$3) -> 1648.791349 | C64: =INDEX('Compile Data'!$AK$12:$BF$93,$A64-1921,'Report - ALL'!$W$3) -> 1649.253669 | D64: =INDEX('Compile Data'!$BI$12:$CD$93,$A64-1921,'Report - ALL'!$W$3) -> 1494.186964 | E64: =INDEX('Compile Data'!$CG$12:$DB$93,$A64-1921,'Report - ALL'!$W$3) -> 1494.737 | F64: =INDEX('Compile Data'!$DE$12:$DZ$93,$A64-1921,'Report - ALL'!$W$3) ->  | G64: =INDEX('Compile Data'!$EC$12:$EX$93,$A64-1921,'Report - ALL'!$W$3) ->  | H64: =INDEX('Compile Data'!$FA$12:$FV$93,$A64-1921,'Report - ALL'!$W$3) ->  | O64: 35 | P64: 0.4197530864 | Q64: =INDEX('Compile Data'!$M$108:$AH$189,$O64,'Report - ALL'!$W$3) -> 1906.318786 | R64: =INDEX('Compile Data'!$AK$108:$BF$189,$O64,'Report - ALL'!$W$3) -> 1928.698109 | S64: =INDEX('Compile Data'!$BI$108:$CD$189,$O64,'Report - ALL'!$W$3) -> 1934.234946 | T64: =INDEX('Compile Data'!$CG$108:$DB$189,$O64,'Report - ALL'!$W$3) -> 1982.299269 | U64: =INDEX('Compile Data'!$DE$108:$DZ$189,$O64,'Report - ALL'!$W$3) ->  | V64: =INDEX('Compile Data'!$EC$108:$EX$189,$O64,'Report - ALL'!$W$3) ->  | W64: =INDEX('Compile Data'!$FA$108:$FV$189,$O64,'Report - ALL'!$W$3) -> 
A65: 1957 | B65: =INDEX('Compile Data'!$M$12:$AH$93,$A65-1921,'Report - ALL'!$W$3) -> 1836.40335 | C65: =INDEX('Compile Data'!$AK$12:$BF$93,$A65-1921,'Report - ALL'!$W$3) -> 2175.139732 | D65: =INDEX('Compile Data'!$BI$12:$CD$93,$A65-1921,'Report - ALL'!$W$3) -> 1703.772525 | E65: =INDEX('Compile Data'!$CG$12:$DB$93,$A65-1921,'Report - ALL'!$W$3) -> 2166.298461 | F65: =INDEX('Compile Data'!$DE$12:$DZ$93,$A65-1921,'Report - ALL'!$W$3) ->  | G65: =INDEX('Compile Data'!$EC$12:$EX$93,$A65-1921,'Report - ALL'!$W$3) ->  | H65: =INDEX('Compile Data'!$FA$12:$FV$93,$A65-1921,'Report - ALL'!$W$3) ->  | O65: 36 | P65: 0.4320987654 | Q65: =INDEX('Compile Data'!$M$108:$AH$189,$O65,'Report - ALL'!$W$3) -> 1902.791503 | R65: =INDEX('Compile Data'!$AK$108:$BF$189,$O65,'Report - ALL'!$W$3) -> 1920.893542 | S65: =INDEX('Compile Data'!$BI$108:$CD$189,$O65,'Report - ALL'!$W$3) -> 1924.099686 | T65: =INDEX('Compile Data'!$CG$108:$DB$189,$O65,'Report - ALL'!$W$3) -> 1971.326418 | U65: =INDEX('Compile Data'!$DE$108:$DZ$189,$O65,'Report - ALL'!$W$3) ->  | V65: =INDEX('Compile Data'!$EC$108:$EX$189,$O65,'Report - ALL'!$W$3) ->  | W65: =INDEX('Compile Data'!$FA$108:$FV$189,$O65,'Report - ALL'!$W$3) -> 
A66: 1958 | B66: =INDEX('Compile Data'!$M$12:$AH$93,$A66-1921,'Report - ALL'!$W$3) -> 4325.614596 | C66: =INDEX('Compile Data'!$AK$12:$BF$93,$A66-1921,'Report - ALL'!$W$3) -> 4325.614596 | D66: =INDEX('Compile Data'!$BI$12:$CD$93,$A66-1921,'Report - ALL'!$W$3) -> 4404.866837 | E66: =INDEX('Compile Data'!$CG$12:$DB$93,$A66-1921,'Report - ALL'!$W$3) -> 4347.467925 | F66: =INDEX('Compile Data'!$DE$12:$DZ$93,$A66-1921,'Report - ALL'!$W$3) ->  | G66: =INDEX('Compile Data'!$EC$12:$EX$93,$A66-1921,'Report - ALL'!$W$3) ->  | H66: =INDEX('Compile Data'!$FA$12:$FV$93,$A66-1921,'Report - ALL'!$W$3) ->  | O66: 37 | P66: 0.4444444444 | Q66: =INDEX('Compile Data'!$M$108:$AH$189,$O66,'Report - ALL'!$W$3) -> 1880.950038 | R66: =INDEX('Compile Data'!$AK$108:$BF$189,$O66,'Report - ALL'!$W$3) -> 1917.836084 | S66: =INDEX('Compile Data'!$BI$108:$CD$189,$O66,'Report - ALL'!$W$3) -> 1921.898954 | T66: =INDEX('Compile Data'!$CG$108:$DB$189,$O66,'Report - ALL'!$W$3) -> 1940.538166 | U66: =INDEX('Compile Data'!$DE$108:$DZ$189,$O66,'Report - ALL'!$W$3) ->  | V66: =INDEX('Compile Data'!$EC$108:$EX$189,$O66,'Report - ALL'!$W$3) ->  | W66: =INDEX('Compile Data'!$FA$108:$FV$189,$O66,'Report - ALL'!$W$3) -> 
A67: 1959 | B67: =INDEX('Compile Data'!$M$12:$AH$93,$A67-1921,'Report - ALL'!$W$3) -> 1902.791503 | C67: =INDEX('Compile Data'!$AK$12:$BF$93,$A67-1921,'Report - ALL'!$W$3) -> 1931.777258 | D67: =INDEX('Compile Data'!$BI$12:$CD$93,$A67-1921,'Report - ALL'!$W$3) -> 2139.034684 | E67: =INDEX('Compile Data'!$CG$12:$DB$93,$A67-1921,'Report - ALL'!$W$3) -> 2052.268815 | F67: =INDEX('Compile Data'!$DE$12:$DZ$93,$A67-1921,'Report - ALL'!$W$3) ->  | G67: =INDEX('Compile Data'!$EC$12:$EX$93,$A67-1921,'Report - ALL'!$W$3) ->  | H67: =INDEX('Compile Data'!$FA$12:$FV$93,$A67-1921,'Report - ALL'!$W$3) ->  | O67: 38 | P67: 0.4567901235 | Q67: =INDEX('Compile Data'!$M$108:$AH$189,$O67,'Report - ALL'!$W$3) -> 1849.500862 | R67: =INDEX('Compile Data'!$AK$108:$BF$189,$O67,'Report - ALL'!$W$3) -> 1900.449567 | S67: =INDEX('Compile Data'!$BI$108:$CD$189,$O67,'Report - ALL'!$W$3) -> 1878.576412 | T67: =INDEX('Compile Data'!$CG$108:$DB$189,$O67,'Report - ALL'!$W$3) -> 1940.232232 | U67: =INDEX('Compile Data'!$DE$108:$DZ$189,$O67,'Report - ALL'!$W$3) ->  | V67: =INDEX('Compile Data'!$EC$108:$EX$189,$O67,'Report - ALL'!$W$3) ->  | W67: =INDEX('Compile Data'!$FA$108:$FV$189,$O67,'Report - ALL'!$W$3) -> 
A68: 1960 | B68: =INDEX('Compile Data'!$M$12:$AH$93,$A68-1921,'Report - ALL'!$W$3) -> 1751.275178 | C68: =INDEX('Compile Data'!$AK$12:$BF$93,$A68-1921,'Report - ALL'!$W$3) -> 1735.908419 | D68: =INDEX('Compile Data'!$BI$12:$CD$93,$A68-1921,'Report - ALL'!$W$3) -> 1696.041752 | E68: =INDEX('Compile Data'!$CG$12:$DB$93,$A68-1921,'Report - ALL'!$W$3) -> 1839.410452 | F68: =INDEX('Compile Data'!$DE$12:$DZ$93,$A68-1921,'Report - ALL'!$W$3) ->  | G68: =INDEX('Compile Data'!$EC$12:$EX$93,$A68-1921,'Report - ALL'!$W$3) ->  | H68: =INDEX('Compile Data'!$FA$12:$FV$93,$A68-1921,'Report - ALL'!$W$3) ->  | O68: 39 | P68: 0.4691358025 | Q68: =INDEX('Compile Data'!$M$108:$AH$189,$O68,'Report - ALL'!$W$3) -> 1836.40335 | R68: =INDEX('Compile Data'!$AK$108:$BF$189,$O68,'Report - ALL'!$W$3) -> 1862.121039 | S68: =INDEX('Compile Data'!$BI$108:$CD$189,$O68,'Report - ALL'!$W$3) -> 1869.439149 | T68: =INDEX('Compile Data'!$CG$108:$DB$189,$O68,'Report - ALL'!$W$3) -> 1929.762366 | U68: =INDEX('Compile Data'!$DE$108:$DZ$189,$O68,'Report - ALL'!$W$3) ->  | V68: =INDEX('Compile Data'!$EC$108:$EX$189,$O68,'Report - ALL'!$W$3) ->  | W68: =INDEX('Compile Data'!$FA$108:$FV$189,$O68,'Report - ALL'!$W$3) -> 
A69: 1961 | B69: =INDEX('Compile Data'!$M$12:$AH$93,$A69-1921,'Report - ALL'!$W$3) -> 1906.318786 | C69: =INDEX('Compile Data'!$AK$12:$BF$93,$A69-1921,'Report - ALL'!$W$3) -> 1917.836084 | D69: =INDEX('Compile Data'!$BI$12:$CD$93,$A69-1921,'Report - ALL'!$W$3) -> 1924.099686 | E69: =INDEX('Compile Data'!$CG$12:$DB$93,$A69-1921,'Report - ALL'!$W$3) -> 1929.762366 | F69: =INDEX('Compile Data'!$DE$12:$DZ$93,$A69-1921,'Report - ALL'!$W$3) ->  | G69: =INDEX('Compile Data'!$EC$12:$EX$93,$A69-1921,'Report - ALL'!$W$3) ->  | H69: =INDEX('Compile Data'!$FA$12:$FV$93,$A69-1921,'Report - ALL'!$W$3) ->  | O69: 40 | P69: 0.4814814815 | Q69: =INDEX('Compile Data'!$M$108:$AH$189,$O69,'Report - ALL'!$W$3) -> 1832.331758 | R69: =INDEX('Compile Data'!$AK$108:$BF$189,$O69,'Report - ALL'!$W$3) -> 1852.882047 | S69: =INDEX('Compile Data'!$BI$108:$CD$189,$O69,'Report - ALL'!$W$3) -> 1847.892381 | T69: =INDEX('Compile Data'!$CG$108:$DB$189,$O69,'Report - ALL'!$W$3) -> 1895.817494 | U69: =INDEX('Compile Data'!$DE$108:$DZ$189,$O69,'Report - ALL'!$W$3) ->  | V69: =INDEX('Compile Data'!$EC$108:$EX$189,$O69,'Report - ALL'!$W$3) ->  | W69: =INDEX('Compile Data'!$FA$108:$FV$189,$O69,'Report - ALL'!$W$3) -> 
A70: 1962 | B70: =INDEX('Compile Data'!$M$12:$AH$93,$A70-1921,'Report - ALL'!$W$3) -> 1576.132703 | C70: =INDEX('Compile Data'!$AK$12:$BF$93,$A70-1921,'Report - ALL'!$W$3) -> 1575.500253 | D70: =INDEX('Compile Data'!$BI$12:$CD$93,$A70-1921,'Report - ALL'!$W$3) -> 1608.194796 | E70: =INDEX('Compile Data'!$CG$12:$DB$93,$A70-1921,'Report - ALL'!$W$3) -> 1609.624027 | F70: =INDEX('Compile Data'!$DE$12:$DZ$93,$A70-1921,'Report - ALL'!$W$3) ->  | G70: =INDEX('Compile Data'!$EC$12:$EX$93,$A70-1921,'Report - ALL'!$W$3) ->  | H70: =INDEX('Compile Data'!$FA$12:$FV$93,$A70-1921,'Report - ALL'!$W$3) ->  | O70: 41 | P70: 0.4938271605 | Q70: =INDEX('Compile Data'!$M$108:$AH$189,$O70,'Report - ALL'!$W$3) -> 1823.303961 | R70: =INDEX('Compile Data'!$AK$108:$BF$189,$O70,'Report - ALL'!$W$3) -> 1836.517235 | S70: =INDEX('Compile Data'!$BI$108:$CD$189,$O70,'Report - ALL'!$W$3) -> 1834.651907 | T70: =INDEX('Compile Data'!$CG$108:$DB$189,$O70,'Report - ALL'!$W$3) -> 1883.88367 | U70: =INDEX('Compile Data'!$DE$108:$DZ$189,$O70,'Report - ALL'!$W$3) ->  | V70: =INDEX('Compile Data'!$EC$108:$EX$189,$O70,'Report - ALL'!$W$3) ->  | W70: =INDEX('Compile Data'!$FA$108:$FV$189,$O70,'Report - ALL'!$W$3) -> 
A71: 1963 | B71: =INDEX('Compile Data'!$M$12:$AH$93,$A71-1921,'Report - ALL'!$W$3) -> 3130.351722 | C71: =INDEX('Compile Data'!$AK$12:$BF$93,$A71-1921,'Report - ALL'!$W$3) -> 3129.948327 | D71: =INDEX('Compile Data'!$BI$12:$CD$93,$A71-1921,'Report - ALL'!$W$3) -> 3162.452846 | E71: =INDEX('Compile Data'!$CG$12:$DB$93,$A71-1921,'Report - ALL'!$W$3) -> 3162.110895 | F71: =INDEX('Compile Data'!$DE$12:$DZ$93,$A71-1921,'Report - ALL'!$W$3) ->  | G71: =INDEX('Compile Data'!$EC$12:$EX$93,$A71-1921,'Report - ALL'!$W$3) ->  | H71: =INDEX('Compile Data'!$FA$12:$FV$93,$A71-1921,'Report - ALL'!$W$3) ->  | O71: 42 | P71: 0.5061728395 | Q71: =INDEX('Compile Data'!$M$108:$AH$189,$O71,'Report - ALL'!$W$3) -> 1811.028738 | R71: =INDEX('Compile Data'!$AK$108:$BF$189,$O71,'Report - ALL'!$W$3) -> 1826.552286 | S71: =INDEX('Compile Data'!$BI$108:$CD$189,$O71,'Report - ALL'!$W$3) -> 1827.983444 | T71: =INDEX('Compile Data'!$CG$108:$DB$189,$O71,'Report - ALL'!$W$3) -> 1881.088433 | U71: =INDEX('Compile Data'!$DE$108:$DZ$189,$O71,'Report - ALL'!$W$3) ->  | V71: =INDEX('Compile Data'!$EC$108:$EX$189,$O71,'Report - ALL'!$W$3) ->  | W71: =INDEX('Compile Data'!$FA$108:$FV$189,$O71,'Report - ALL'!$W$3) -> 
A72: 1964 | B72: =INDEX('Compile Data'!$M$12:$AH$93,$A72-1921,'Report - ALL'!$W$3) -> 1714.694069 | C72: =INDEX('Compile Data'!$AK$12:$BF$93,$A72-1921,'Report - ALL'!$W$3) -> 1792.93578 | D72: =INDEX('Compile Data'!$BI$12:$CD$93,$A72-1921,'Report - ALL'!$W$3) -> 1800.2829 | E72: =INDEX('Compile Data'!$CG$12:$DB$93,$A72-1921,'Report - ALL'!$W$3) -> 1807.005755 | F72: =INDEX('Compile Data'!$DE$12:$DZ$93,$A72-1921,'Report - ALL'!$W$3) ->  | G72: =INDEX('Compile Data'!$EC$12:$EX$93,$A72-1921,'Report - ALL'!$W$3) ->  | H72: =INDEX('Compile Data'!$FA$12:$FV$93,$A72-1921,'Report - ALL'!$W$3) ->  | O72: 43 | P72: 0.5185185185 | Q72: =INDEX('Compile Data'!$M$108:$AH$189,$O72,'Report - ALL'!$W$3) -> 1773.675272 | R72: =INDEX('Compile Data'!$AK$108:$BF$189,$O72,'Report - ALL'!$W$3) -> 1824.620172 | S72: =INDEX('Compile Data'!$BI$108:$CD$189,$O72,'Report - ALL'!$W$3) -> 1819.113541 | T72: =INDEX('Compile Data'!$CG$108:$DB$189,$O72,'Report - ALL'!$W$3) -> 1878.740474 | U72: =INDEX('Compile Data'!$DE$108:$DZ$189,$O72,'Report - ALL'!$W$3) ->  | V72: =INDEX('Compile Data'!$EC$108:$EX$189,$O72,'Report - ALL'!$W$3) ->  | W72: =INDEX('Compile Data'!$FA$108:$FV$189,$O72,'Report - ALL'!$W$3) -> 
A73: 1965 | B73: =INDEX('Compile Data'!$M$12:$AH$93,$A73-1921,'Report - ALL'!$W$3) -> 1553.111864 | C73: =INDEX('Compile Data'!$AK$12:$BF$93,$A73-1921,'Report - ALL'!$W$3) -> 1553.397428 | D73: =INDEX('Compile Data'!$BI$12:$CD$93,$A73-1921,'Report - ALL'!$W$3) -> 1616.862335 | E73: =INDEX('Compile Data'!$CG$12:$DB$93,$A73-1921,'Report - ALL'!$W$3) -> 1616.898027 | F73: =INDEX('Compile Data'!$DE$12:$DZ$93,$A73-1921,'Report - ALL'!$W$3) ->  | G73: =INDEX('Compile Data'!$EC$12:$EX$93,$A73-1921,'Report - ALL'!$W$3) ->  | H73: =INDEX('Compile Data'!$FA$12:$FV$93,$A73-1921,'Report - ALL'!$W$3) ->  | O73: 44 | P73: 0.5308641975 | Q73: =INDEX('Compile Data'!$M$108:$AH$189,$O73,'Report - ALL'!$W$3) -> 1768.560943 | R73: =INDEX('Compile Data'!$AK$108:$BF$189,$O73,'Report - ALL'!$W$3) -> 1792.93578 | S73: =INDEX('Compile Data'!$BI$108:$CD$189,$O73,'Report - ALL'!$W$3) -> 1817.455158 | T73: =INDEX('Compile Data'!$CG$108:$DB$189,$O73,'Report - ALL'!$W$3) -> 1856.464629 | U73: =INDEX('Compile Data'!$DE$108:$DZ$189,$O73,'Report - ALL'!$W$3) ->  | V73: =INDEX('Compile Data'!$EC$108:$EX$189,$O73,'Report - ALL'!$W$3) ->  | W73: =INDEX('Compile Data'!$FA$108:$FV$189,$O73,'Report - ALL'!$W$3) -> 
A74: 1966 | B74: =INDEX('Compile Data'!$M$12:$AH$93,$A74-1921,'Report - ALL'!$W$3) -> 2334.264474 | C74: =INDEX('Compile Data'!$AK$12:$BF$93,$A74-1921,'Report - ALL'!$W$3) -> 2374.251631 | D74: =INDEX('Compile Data'!$BI$12:$CD$93,$A74-1921,'Report - ALL'!$W$3) -> 2404.73513 | E74: =INDEX('Compile Data'!$CG$12:$DB$93,$A74-1921,'Report - ALL'!$W$3) -> 2404.355057 | F74: =INDEX('Compile Data'!$DE$12:$DZ$93,$A74-1921,'Report - ALL'!$W$3) ->  | G74: =INDEX('Compile Data'!$EC$12:$EX$93,$A74-1921,'Report - ALL'!$W$3) ->  | H74: =INDEX('Compile Data'!$FA$12:$FV$93,$A74-1921,'Report - ALL'!$W$3) ->  | O74: 45 | P74: 0.5432098765 | Q74: =INDEX('Compile Data'!$M$108:$AH$189,$O74,'Report - ALL'!$W$3) -> 1764.301326 | R74: =INDEX('Compile Data'!$AK$108:$BF$189,$O74,'Report - ALL'!$W$3) -> 1788.549419 | S74: =INDEX('Compile Data'!$BI$108:$CD$189,$O74,'Report - ALL'!$W$3) -> 1817.382498 | T74: =INDEX('Compile Data'!$CG$108:$DB$189,$O74,'Report - ALL'!$W$3) -> 1852.588538 | U74: =INDEX('Compile Data'!$DE$108:$DZ$189,$O74,'Report - ALL'!$W$3) ->  | V74: =INDEX('Compile Data'!$EC$108:$EX$189,$O74,'Report - ALL'!$W$3) ->  | W74: =INDEX('Compile Data'!$FA$108:$FV$189,$O74,'Report - ALL'!$W$3) -> 
A75: 1967 | B75: =INDEX('Compile Data'!$M$12:$AH$93,$A75-1921,'Report - ALL'!$W$3) -> 2746.940844 | C75: =INDEX('Compile Data'!$AK$12:$BF$93,$A75-1921,'Report - ALL'!$W$3) -> 2777.243126 | D75: =INDEX('Compile Data'!$BI$12:$CD$93,$A75-1921,'Report - ALL'!$W$3) -> 2782.366989 | E75: =INDEX('Compile Data'!$CG$12:$DB$93,$A75-1921,'Report - ALL'!$W$3) -> 2781.939619 | F75: =INDEX('Compile Data'!$DE$12:$DZ$93,$A75-1921,'Report - ALL'!$W$3) ->  | G75: =INDEX('Compile Data'!$EC$12:$EX$93,$A75-1921,'Report - ALL'!$W$3) ->  | H75: =INDEX('Compile Data'!$FA$12:$FV$93,$A75-1921,'Report - ALL'!$W$3) ->  | O75: 46 | P75: 0.5555555556 | Q75: =INDEX('Compile Data'!$M$108:$AH$189,$O75,'Report - ALL'!$W$3) -> 1751.275178 | R75: =INDEX('Compile Data'!$AK$108:$BF$189,$O75,'Report - ALL'!$W$3) -> 1781.353952 | S75: =INDEX('Compile Data'!$BI$108:$CD$189,$O75,'Report - ALL'!$W$3) -> 1800.573273 | T75: =INDEX('Compile Data'!$CG$108:$DB$189,$O75,'Report - ALL'!$W$3) -> 1839.410452 | U75: =INDEX('Compile Data'!$DE$108:$DZ$189,$O75,'Report - ALL'!$W$3) ->  | V75: =INDEX('Compile Data'!$EC$108:$EX$189,$O75,'Report - ALL'!$W$3) ->  | W75: =INDEX('Compile Data'!$FA$108:$FV$189,$O75,'Report - ALL'!$W$3) -> 
A76: 1968 | B76: =INDEX('Compile Data'!$M$12:$AH$93,$A76-1921,'Report - ALL'!$W$3) -> 1768.560943 | C76: =INDEX('Compile Data'!$AK$12:$BF$93,$A76-1921,'Report - ALL'!$W$3) -> 1788.549419 | D76: =INDEX('Compile Data'!$BI$12:$CD$93,$A76-1921,'Report - ALL'!$W$3) -> 1869.439149 | E76: =INDEX('Compile Data'!$CG$12:$DB$93,$A76-1921,'Report - ALL'!$W$3) -> 1856.464629 | F76: =INDEX('Compile Data'!$DE$12:$DZ$93,$A76-1921,'Report - ALL'!$W$3) ->  | G76: =INDEX('Compile Data'!$EC$12:$EX$93,$A76-1921,'Report - ALL'!$W$3) ->  | H76: =INDEX('Compile Data'!$FA$12:$FV$93,$A76-1921,'Report - ALL'!$W$3) ->  | O76: 47 | P76: 0.5679012346 | Q76: =INDEX('Compile Data'!$M$108:$AH$189,$O76,'Report - ALL'!$W$3) -> 1745.395737 | R76: =INDEX('Compile Data'!$AK$108:$BF$189,$O76,'Report - ALL'!$W$3) -> 1772.203113 | S76: =INDEX('Compile Data'!$BI$108:$CD$189,$O76,'Report - ALL'!$W$3) -> 1800.2829 | T76: =INDEX('Compile Data'!$CG$108:$DB$189,$O76,'Report - ALL'!$W$3) -> 1834.71637 | U76: =INDEX('Compile Data'!$DE$108:$DZ$189,$O76,'Report - ALL'!$W$3) ->  | V76: =INDEX('Compile Data'!$EC$108:$EX$189,$O76,'Report - ALL'!$W$3) ->  | W76: =INDEX('Compile Data'!$FA$108:$FV$189,$O76,'Report - ALL'!$W$3) -> 
A77: 1969 | B77: =INDEX('Compile Data'!$M$12:$AH$93,$A77-1921,'Report - ALL'!$W$3) -> 2176.074206 | C77: =INDEX('Compile Data'!$AK$12:$BF$93,$A77-1921,'Report - ALL'!$W$3) -> 2175.940205 | D77: =INDEX('Compile Data'!$BI$12:$CD$93,$A77-1921,'Report - ALL'!$W$3) -> 2024.766564 | E77: =INDEX('Compile Data'!$CG$12:$DB$93,$A77-1921,'Report - ALL'!$W$3) -> 1982.299269 | F77: =INDEX('Compile Data'!$DE$12:$DZ$93,$A77-1921,'Report - ALL'!$W$3) ->  | G77: =INDEX('Compile Data'!$EC$12:$EX$93,$A77-1921,'Report - ALL'!$W$3) ->  | H77: =INDEX('Compile Data'!$FA$12:$FV$93,$A77-1921,'Report - ALL'!$W$3) ->  | O77: 48 | P77: 0.5802469136 | Q77: =INDEX('Compile Data'!$M$108:$AH$189,$O77,'Report - ALL'!$W$3) -> 1738.484315 | R77: =INDEX('Compile Data'!$AK$108:$BF$189,$O77,'Report - ALL'!$W$3) -> 1770.731975 | S77: =INDEX('Compile Data'!$BI$108:$CD$189,$O77,'Report - ALL'!$W$3) -> 1797.105559 | T77: =INDEX('Compile Data'!$CG$108:$DB$189,$O77,'Report - ALL'!$W$3) -> 1829.598231 | U77: =INDEX('Compile Data'!$DE$108:$DZ$189,$O77,'Report - ALL'!$W$3) ->  | V77: =INDEX('Compile Data'!$EC$108:$EX$189,$O77,'Report - ALL'!$W$3) ->  | W77: =INDEX('Compile Data'!$FA$108:$FV$189,$O77,'Report - ALL'!$W$3) -> 
A78: 1970 | B78: =INDEX('Compile Data'!$M$12:$AH$93,$A78-1921,'Report - ALL'!$W$3) -> 1724.925645 | C78: =INDEX('Compile Data'!$AK$12:$BF$93,$A78-1921,'Report - ALL'!$W$3) -> 1730.89664 | D78: =INDEX('Compile Data'!$BI$12:$CD$93,$A78-1921,'Report - ALL'!$W$3) -> 1827.983444 | E78: =INDEX('Compile Data'!$CG$12:$DB$93,$A78-1921,'Report - ALL'!$W$3) -> 1834.71637 | F78: =INDEX('Compile Data'!$DE$12:$DZ$93,$A78-1921,'Report - ALL'!$W$3) ->  | G78: =INDEX('Compile Data'!$EC$12:$EX$93,$A78-1921,'Report - ALL'!$W$3) ->  | H78: =INDEX('Compile Data'!$FA$12:$FV$93,$A78-1921,'Report - ALL'!$W$3) ->  | O78: 49 | P78: 0.5925925926 | Q78: =INDEX('Compile Data'!$M$108:$AH$189,$O78,'Report - ALL'!$W$3) -> 1732.713262 | R78: =INDEX('Compile Data'!$AK$108:$BF$189,$O78,'Report - ALL'!$W$3) -> 1740.531754 | S78: =INDEX('Compile Data'!$BI$108:$CD$189,$O78,'Report - ALL'!$W$3) -> 1784.90813 | T78: =INDEX('Compile Data'!$CG$108:$DB$189,$O78,'Report - ALL'!$W$3) -> 1817.094795 | U78: =INDEX('Compile Data'!$DE$108:$DZ$189,$O78,'Report - ALL'!$W$3) ->  | V78: =INDEX('Compile Data'!$EC$108:$EX$189,$O78,'Report - ALL'!$W$3) ->  | W78: =INDEX('Compile Data'!$FA$108:$FV$189,$O78,'Report - ALL'!$W$3) -> 
A79: 1971 | B79: =INDEX('Compile Data'!$M$12:$AH$93,$A79-1921,'Report - ALL'!$W$3) -> 2280.757491 | C79: =INDEX('Compile Data'!$AK$12:$BF$93,$A79-1921,'Report - ALL'!$W$3) -> 2335.342504 | D79: =INDEX('Compile Data'!$BI$12:$CD$93,$A79-1921,'Report - ALL'!$W$3) -> 2138.520672 | E79: =INDEX('Compile Data'!$CG$12:$DB$93,$A79-1921,'Report - ALL'!$W$3) -> 2170.433219 | F79: =INDEX('Compile Data'!$DE$12:$DZ$93,$A79-1921,'Report - ALL'!$W$3) ->  | G79: =INDEX('Compile Data'!$EC$12:$EX$93,$A79-1921,'Report - ALL'!$W$3) ->  | H79: =INDEX('Compile Data'!$FA$12:$FV$93,$A79-1921,'Report - ALL'!$W$3) ->  | O79: 50 | P79: 0.6049382716 | Q79: =INDEX('Compile Data'!$M$108:$AH$189,$O79,'Report - ALL'!$W$3) -> 1724.925645 | R79: =INDEX('Compile Data'!$AK$108:$BF$189,$O79,'Report - ALL'!$W$3) -> 1737.532673 | S79: =INDEX('Compile Data'!$BI$108:$CD$189,$O79,'Report - ALL'!$W$3) -> 1782.601986 | T79: =INDEX('Compile Data'!$CG$108:$DB$189,$O79,'Report - ALL'!$W$3) -> 1810.7303 | U79: =INDEX('Compile Data'!$DE$108:$DZ$189,$O79,'Report - ALL'!$W$3) ->  | V79: =INDEX('Compile Data'!$EC$108:$EX$189,$O79,'Report - ALL'!$W$3) ->  | W79: =INDEX('Compile Data'!$FA$108:$FV$189,$O79,'Report - ALL'!$W$3) -> 
A80: 1972 | B80: =INDEX('Compile Data'!$M$12:$AH$93,$A80-1921,'Report - ALL'!$W$3) -> 1940.819667 | C80: =INDEX('Compile Data'!$AK$12:$BF$93,$A80-1921,'Report - ALL'!$W$3) -> 2469.545126 | D80: =INDEX('Compile Data'!$BI$12:$CD$93,$A80-1921,'Report - ALL'!$W$3) -> 1952.722502 | E80: =INDEX('Compile Data'!$CG$12:$DB$93,$A80-1921,'Report - ALL'!$W$3) -> 2667.539795 | F80: =INDEX('Compile Data'!$DE$12:$DZ$93,$A80-1921,'Report - ALL'!$W$3) ->  | G80: =INDEX('Compile Data'!$EC$12:$EX$93,$A80-1921,'Report - ALL'!$W$3) ->  | H80: =INDEX('Compile Data'!$FA$12:$FV$93,$A80-1921,'Report - ALL'!$W$3) ->  | O80: 51 | P80: 0.6172839506 | Q80: =INDEX('Compile Data'!$M$108:$AH$189,$O80,'Report - ALL'!$W$3) -> 1714.694069 | R80: =INDEX('Compile Data'!$AK$108:$BF$189,$O80,'Report - ALL'!$W$3) -> 1735.908419 | S80: =INDEX('Compile Data'!$BI$108:$CD$189,$O80,'Report - ALL'!$W$3) -> 1768.222324 | T80: =INDEX('Compile Data'!$CG$108:$DB$189,$O80,'Report - ALL'!$W$3) -> 1807.005755 | U80: =INDEX('Compile Data'!$DE$108:$DZ$189,$O80,'Report - ALL'!$W$3) ->  | V80: =INDEX('Compile Data'!$EC$108:$EX$189,$O80,'Report - ALL'!$W$3) ->  | W80: =INDEX('Compile Data'!$FA$108:$FV$189,$O80,'Report - ALL'!$W$3) -> 
A81: 1973 | B81: =INDEX('Compile Data'!$M$12:$AH$93,$A81-1921,'Report - ALL'!$W$3) -> 1941.284396 | C81: =INDEX('Compile Data'!$AK$12:$BF$93,$A81-1921,'Report - ALL'!$W$3) -> 1900.449567 | D81: =INDEX('Compile Data'!$BI$12:$CD$93,$A81-1921,'Report - ALL'!$W$3) -> 1984.830278 | E81: =INDEX('Compile Data'!$CG$12:$DB$93,$A81-1921,'Report - ALL'!$W$3) -> 1983.214552 | F81: =INDEX('Compile Data'!$DE$12:$DZ$93,$A81-1921,'Report - ALL'!$W$3) ->  | G81: =INDEX('Compile Data'!$EC$12:$EX$93,$A81-1921,'Report - ALL'!$W$3) ->  | H81: =INDEX('Compile Data'!$FA$12:$FV$93,$A81-1921,'Report - ALL'!$W$3) ->  | O81: 52 | P81: 0.6296296296 | Q81: =INDEX('Compile Data'!$M$108:$AH$189,$O81,'Report - ALL'!$W$3) -> 1694.836439 | R81: =INDEX('Compile Data'!$AK$108:$BF$189,$O81,'Report - ALL'!$W$3) -> 1730.89664 | S81: =INDEX('Compile Data'!$BI$108:$CD$189,$O81,'Report - ALL'!$W$3) -> 1742.108517 | T81: =INDEX('Compile Data'!$CG$108:$DB$189,$O81,'Report - ALL'!$W$3) -> 1799.827986 | U81: =INDEX('Compile Data'!$DE$108:$DZ$189,$O81,'Report - ALL'!$W$3) ->  | V81: =INDEX('Compile Data'!$EC$108:$EX$189,$O81,'Report - ALL'!$W$3) ->  | W81: =INDEX('Compile Data'!$FA$108:$FV$189,$O81,'Report - ALL'!$W$3) -> 
A82: 1974 | B82: =INDEX('Compile Data'!$M$12:$AH$93,$A82-1921,'Report - ALL'!$W$3) -> 3498.957008 | C82: =INDEX('Compile Data'!$AK$12:$BF$93,$A82-1921,'Report - ALL'!$W$3) -> 3499.442632 | D82: =INDEX('Compile Data'!$BI$12:$CD$93,$A82-1921,'Report - ALL'!$W$3) -> 3592.679288 | E82: =INDEX('Compile Data'!$CG$12:$DB$93,$A82-1921,'Report - ALL'!$W$3) -> 3593.407737 | F82: =INDEX('Compile Data'!$DE$12:$DZ$93,$A82-1921,'Report - ALL'!$W$3) ->  | G82: =INDEX('Compile Data'!$EC$12:$EX$93,$A82-1921,'Report - ALL'!$W$3) ->  | H82: =INDEX('Compile Data'!$FA$12:$FV$93,$A82-1921,'Report - ALL'!$W$3) ->  | O82: 53 | P82: 0.6419753086 | Q82: =INDEX('Compile Data'!$M$108:$AH$189,$O82,'Report - ALL'!$W$3) -> 1694.635904 | R82: =INDEX('Compile Data'!$AK$108:$BF$189,$O82,'Report - ALL'!$W$3) -> 1697.049309 | S82: =INDEX('Compile Data'!$BI$108:$CD$189,$O82,'Report - ALL'!$W$3) -> 1729.446683 | T82: =INDEX('Compile Data'!$CG$108:$DB$189,$O82,'Report - ALL'!$W$3) -> 1791.029007 | U82: =INDEX('Compile Data'!$DE$108:$DZ$189,$O82,'Report - ALL'!$W$3) ->  | V82: =INDEX('Compile Data'!$EC$108:$EX$189,$O82,'Report - ALL'!$W$3) ->  | W82: =INDEX('Compile Data'!$FA$108:$FV$189,$O82,'Report - ALL'!$W$3) -> 
A83: 1975 | B83: =INDEX('Compile Data'!$M$12:$AH$93,$A83-1921,'Report - ALL'!$W$3) -> 3193.832898 | C83: =INDEX('Compile Data'!$AK$12:$BF$93,$A83-1921,'Report - ALL'!$W$3) -> 3193.192299 | D83: =INDEX('Compile Data'!$BI$12:$CD$93,$A83-1921,'Report - ALL'!$W$3) -> 3108.950118 | E83: =INDEX('Compile Data'!$CG$12:$DB$93,$A83-1921,'Report - ALL'!$W$3) -> 3227.943701 | F83: =INDEX('Compile Data'!$DE$12:$DZ$93,$A83-1921,'Report - ALL'!$W$3) ->  | G83: =INDEX('Compile Data'!$EC$12:$EX$93,$A83-1921,'Report - ALL'!$W$3) ->  | H83: =INDEX('Compile Data'!$FA$12:$FV$93,$A83-1921,'Report - ALL'!$W$3) ->  | O83: 54 | P83: 0.6543209877 | Q83: =INDEX('Compile Data'!$M$108:$AH$189,$O83,'Report - ALL'!$W$3) -> 1680.986346 | R83: =INDEX('Compile Data'!$AK$108:$BF$189,$O83,'Report - ALL'!$W$3) -> 1694.585474 | S83: =INDEX('Compile Data'!$BI$108:$CD$189,$O83,'Report - ALL'!$W$3) -> 1703.772525 | T83: =INDEX('Compile Data'!$CG$108:$DB$189,$O83,'Report - ALL'!$W$3) -> 1770.46576 | U83: =INDEX('Compile Data'!$DE$108:$DZ$189,$O83,'Report - ALL'!$W$3) ->  | V83: =INDEX('Compile Data'!$EC$108:$EX$189,$O83,'Report - ALL'!$W$3) ->  | W83: =INDEX('Compile Data'!$FA$108:$FV$189,$O83,'Report - ALL'!$W$3) -> 
A84: 1976 | B84: =INDEX('Compile Data'!$M$12:$AH$93,$A84-1921,'Report - ALL'!$W$3) -> 1963.136214 | C84: =INDEX('Compile Data'!$AK$12:$BF$93,$A84-1921,'Report - ALL'!$W$3) -> 1939.388692 | D84: =INDEX('Compile Data'!$BI$12:$CD$93,$A84-1921,'Report - ALL'!$W$3) -> 2176.832156 | E84: =INDEX('Compile Data'!$CG$12:$DB$93,$A84-1921,'Report - ALL'!$W$3) -> 2139.42413 | F84: =INDEX('Compile Data'!$DE$12:$DZ$93,$A84-1921,'Report - ALL'!$W$3) ->  | G84: =INDEX('Compile Data'!$EC$12:$EX$93,$A84-1921,'Report - ALL'!$W$3) ->  | H84: =INDEX('Compile Data'!$FA$12:$FV$93,$A84-1921,'Report - ALL'!$W$3) ->  | O84: 55 | P84: 0.6666666667 | Q84: =INDEX('Compile Data'!$M$108:$AH$189,$O84,'Report - ALL'!$W$3) -> 1648.791349 | R84: =INDEX('Compile Data'!$AK$108:$BF$189,$O84,'Report - ALL'!$W$3) -> 1693.714141 | S84: =INDEX('Compile Data'!$BI$108:$CD$189,$O84,'Report - ALL'!$W$3) -> 1696.041752 | T84: =INDEX('Compile Data'!$CG$108:$DB$189,$O84,'Report - ALL'!$W$3) -> 1750.815896 | U84: =INDEX('Compile Data'!$DE$108:$DZ$189,$O84,'Report - ALL'!$W$3) ->  | V84: =INDEX('Compile Data'!$EC$108:$EX$189,$O84,'Report - ALL'!$W$3) ->  | W84: =INDEX('Compile Data'!$FA$108:$FV$189,$O84,'Report - ALL'!$W$3) -> 
A85: 1977 | B85: =INDEX('Compile Data'!$M$12:$AH$93,$A85-1921,'Report - ALL'!$W$3) -> 2088.789584 | C85: =INDEX('Compile Data'!$AK$12:$BF$93,$A85-1921,'Report - ALL'!$W$3) -> 2055.03244 | D85: =INDEX('Compile Data'!$BI$12:$CD$93,$A85-1921,'Report - ALL'!$W$3) -> 1729.446683 | E85: =INDEX('Compile Data'!$CG$12:$DB$93,$A85-1921,'Report - ALL'!$W$3) -> 1881.088433 | F85: =INDEX('Compile Data'!$DE$12:$DZ$93,$A85-1921,'Report - ALL'!$W$3) ->  | G85: =INDEX('Compile Data'!$EC$12:$EX$93,$A85-1921,'Report - ALL'!$W$3) ->  | H85: =INDEX('Compile Data'!$FA$12:$FV$93,$A85-1921,'Report - ALL'!$W$3) ->  | O85: 56 | P85: 0.6790123457 | Q85: =INDEX('Compile Data'!$M$108:$AH$189,$O85,'Report - ALL'!$W$3) -> 1642.116018 | R85: =INDEX('Compile Data'!$AK$108:$BF$189,$O85,'Report - ALL'!$W$3) -> 1684.680013 | S85: =INDEX('Compile Data'!$BI$108:$CD$189,$O85,'Report - ALL'!$W$3) -> 1673.928742 | T85: =INDEX('Compile Data'!$CG$108:$DB$189,$O85,'Report - ALL'!$W$3) -> 1679.036529 | U85: =INDEX('Compile Data'!$DE$108:$DZ$189,$O85,'Report - ALL'!$W$3) ->  | V85: =INDEX('Compile Data'!$EC$108:$EX$189,$O85,'Report - ALL'!$W$3) ->  | W85: =INDEX('Compile Data'!$FA$108:$FV$189,$O85,'Report - ALL'!$W$3) -> 
A86: 1978 | B86: =INDEX('Compile Data'!$M$12:$AH$93,$A86-1921,'Report - ALL'!$W$3) -> 2376.919616 | C86: =INDEX('Compile Data'!$AK$12:$BF$93,$A86-1921,'Report - ALL'!$W$3) -> 2376.769112 | D86: =INDEX('Compile Data'!$BI$12:$CD$93,$A86-1921,'Report - ALL'!$W$3) -> 2309.633363 | E86: =INDEX('Compile Data'!$CG$12:$DB$93,$A86-1921,'Report - ALL'!$W$3) -> 2309.177901 | F86: =INDEX('Compile Data'!$DE$12:$DZ$93,$A86-1921,'Report - ALL'!$W$3) ->  | G86: =INDEX('Compile Data'!$EC$12:$EX$93,$A86-1921,'Report - ALL'!$W$3) ->  | H86: =INDEX('Compile Data'!$FA$12:$FV$93,$A86-1921,'Report - ALL'!$W$3) ->  | O86: 57 | P86: 0.6913580247 | Q86: =INDEX('Compile Data'!$M$108:$AH$189,$O86,'Report - ALL'!$W$3) -> 1634.311652 | R86: =INDEX('Compile Data'!$AK$108:$BF$189,$O86,'Report - ALL'!$W$3) -> 1654.373333 | S86: =INDEX('Compile Data'!$BI$108:$CD$189,$O86,'Report - ALL'!$W$3) -> 1642.862077 | T86: =INDEX('Compile Data'!$CG$108:$DB$189,$O86,'Report - ALL'!$W$3) -> 1670.438315 | U86: =INDEX('Compile Data'!$DE$108:$DZ$189,$O86,'Report - ALL'!$W$3) ->  | V86: =INDEX('Compile Data'!$EC$108:$EX$189,$O86,'Report - ALL'!$W$3) ->  | W86: =INDEX('Compile Data'!$FA$108:$FV$189,$O86,'Report - ALL'!$W$3) -> 
A87: 1979 | B87: =INDEX('Compile Data'!$M$12:$AH$93,$A87-1921,'Report - ALL'!$W$3) -> 1316.077475 | C87: =INDEX('Compile Data'!$AK$12:$BF$93,$A87-1921,'Report - ALL'!$W$3) -> 1373.141483 | D87: =INDEX('Compile Data'!$BI$12:$CD$93,$A87-1921,'Report - ALL'!$W$3) -> 1410.872112 | E87: =INDEX('Compile Data'!$CG$12:$DB$93,$A87-1921,'Report - ALL'!$W$3) -> 1468.889742 | F87: =INDEX('Compile Data'!$DE$12:$DZ$93,$A87-1921,'Report - ALL'!$W$3) ->  | G87: =INDEX('Compile Data'!$EC$12:$EX$93,$A87-1921,'Report - ALL'!$W$3) ->  | H87: =INDEX('Compile Data'!$FA$12:$FV$93,$A87-1921,'Report - ALL'!$W$3) ->  | O87: 58 | P87: 0.7037037037 | Q87: =INDEX('Compile Data'!$M$108:$AH$189,$O87,'Report - ALL'!$W$3) -> 1627.606709 | R87: =INDEX('Compile Data'!$AK$108:$BF$189,$O87,'Report - ALL'!$W$3) -> 1649.253669 | S87: =INDEX('Compile Data'!$BI$108:$CD$189,$O87,'Report - ALL'!$W$3) -> 1628.625408 | T87: =INDEX('Compile Data'!$CG$108:$DB$189,$O87,'Report - ALL'!$W$3) -> 1645.721498 | U87: =INDEX('Compile Data'!$DE$108:$DZ$189,$O87,'Report - ALL'!$W$3) ->  | V87: =INDEX('Compile Data'!$EC$108:$EX$189,$O87,'Report - ALL'!$W$3) ->  | W87: =INDEX('Compile Data'!$FA$108:$FV$189,$O87,'Report - ALL'!$W$3) -> 
A88: 1980 | B88: =INDEX('Compile Data'!$M$12:$AH$93,$A88-1921,'Report - ALL'!$W$3) -> 1627.606709 | C88: =INDEX('Compile Data'!$AK$12:$BF$93,$A88-1921,'Report - ALL'!$W$3) -> 1627.234526 | D88: =INDEX('Compile Data'!$BI$12:$CD$93,$A88-1921,'Report - ALL'!$W$3) -> 1573.401399 | E88: =INDEX('Compile Data'!$CG$12:$DB$93,$A88-1921,'Report - ALL'!$W$3) -> 1645.721498 | F88: =INDEX('Compile Data'!$DE$12:$DZ$93,$A88-1921,'Report - ALL'!$W$3) ->  | G88: =INDEX('Compile Data'!$EC$12:$EX$93,$A88-1921,'Report - ALL'!$W$3) ->  | H88: =INDEX('Compile Data'!$FA$12:$FV$93,$A88-1921,'Report - ALL'!$W$3) ->  | O88: 59 | P88: 0.7160493827 | Q88: =INDEX('Compile Data'!$M$108:$AH$189,$O88,'Report - ALL'!$W$3) -> 1623.77405 | R88: =INDEX('Compile Data'!$AK$108:$BF$189,$O88,'Report - ALL'!$W$3) -> 1643.780362 | S88: =INDEX('Compile Data'!$BI$108:$CD$189,$O88,'Report - ALL'!$W$3) -> 1616.862335 | T88: =INDEX('Compile Data'!$CG$108:$DB$189,$O88,'Report - ALL'!$W$3) -> 1645.436741 | U88: =INDEX('Compile Data'!$DE$108:$DZ$189,$O88,'Report - ALL'!$W$3) ->  | V88: =INDEX('Compile Data'!$EC$108:$EX$189,$O88,'Report - ALL'!$W$3) ->  | W88: =INDEX('Compile Data'!$FA$108:$FV$189,$O88,'Report - ALL'!$W$3) -> 
A89: 1981 | B89: =INDEX('Compile Data'!$M$12:$AH$93,$A89-1921,'Report - ALL'!$W$3) -> 1764.301326 | C89: =INDEX('Compile Data'!$AK$12:$BF$93,$A89-1921,'Report - ALL'!$W$3) -> 1826.552286 | D89: =INDEX('Compile Data'!$BI$12:$CD$93,$A89-1921,'Report - ALL'!$W$3) -> 1782.601986 | E89: =INDEX('Compile Data'!$CG$12:$DB$93,$A89-1921,'Report - ALL'!$W$3) -> 1799.827986 | F89: =INDEX('Compile Data'!$DE$12:$DZ$93,$A89-1921,'Report - ALL'!$W$3) ->  | G89: =INDEX('Compile Data'!$EC$12:$EX$93,$A89-1921,'Report - ALL'!$W$3) ->  | H89: =INDEX('Compile Data'!$FA$12:$FV$93,$A89-1921,'Report - ALL'!$W$3) ->  | O89: 60 | P89: 0.7283950617 | Q89: =INDEX('Compile Data'!$M$108:$AH$189,$O89,'Report - ALL'!$W$3) -> 1597.532487 | R89: =INDEX('Compile Data'!$AK$108:$BF$189,$O89,'Report - ALL'!$W$3) -> 1627.234526 | S89: =INDEX('Compile Data'!$BI$108:$CD$189,$O89,'Report - ALL'!$W$3) -> 1608.194796 | T89: =INDEX('Compile Data'!$CG$108:$DB$189,$O89,'Report - ALL'!$W$3) -> 1643.112837 | U89: =INDEX('Compile Data'!$DE$108:$DZ$189,$O89,'Report - ALL'!$W$3) ->  | V89: =INDEX('Compile Data'!$EC$108:$EX$189,$O89,'Report - ALL'!$W$3) ->  | W89: =INDEX('Compile Data'!$FA$108:$FV$189,$O89,'Report - ALL'!$W$3) -> 
A90: 1982 | B90: =INDEX('Compile Data'!$M$12:$AH$93,$A90-1921,'Report - ALL'!$W$3) -> 3064.856979 | C90: =INDEX('Compile Data'!$AK$12:$BF$93,$A90-1921,'Report - ALL'!$W$3) -> 3064.345088 | D90: =INDEX('Compile Data'!$BI$12:$CD$93,$A90-1921,'Report - ALL'!$W$3) -> 3169.404725 | E90: =INDEX('Compile Data'!$CG$12:$DB$93,$A90-1921,'Report - ALL'!$W$3) -> 3168.497934 | F90: =INDEX('Compile Data'!$DE$12:$DZ$93,$A90-1921,'Report - ALL'!$W$3) ->  | G90: =INDEX('Compile Data'!$EC$12:$EX$93,$A90-1921,'Report - ALL'!$W$3) ->  | H90: =INDEX('Compile Data'!$FA$12:$FV$93,$A90-1921,'Report - ALL'!$W$3) ->  | O90: 61 | P90: 0.7407407407 | Q90: =INDEX('Compile Data'!$M$108:$AH$189,$O90,'Report - ALL'!$W$3) -> 1592.90987 | R90: =INDEX('Compile Data'!$AK$108:$BF$189,$O90,'Report - ALL'!$W$3) -> 1623.413901 | S90: =INDEX('Compile Data'!$BI$108:$CD$189,$O90,'Report - ALL'!$W$3) -> 1598.659396 | T90: =INDEX('Compile Data'!$CG$108:$DB$189,$O90,'Report - ALL'!$W$3) -> 1616.898027 | U90: =INDEX('Compile Data'!$DE$108:$DZ$189,$O90,'Report - ALL'!$W$3) ->  | V90: =INDEX('Compile Data'!$EC$108:$EX$189,$O90,'Report - ALL'!$W$3) ->  | W90: =INDEX('Compile Data'!$FA$108:$FV$189,$O90,'Report - ALL'!$W$3) -> 
A91: 1983 | B91: =INDEX('Compile Data'!$M$12:$AH$93,$A91-1921,'Report - ALL'!$W$3) -> 4997.056521 | C91: =INDEX('Compile Data'!$AK$12:$BF$93,$A91-1921,'Report - ALL'!$W$3) -> 4997.05605 | D91: =INDEX('Compile Data'!$BI$12:$CD$93,$A91-1921,'Report - ALL'!$W$3) -> 4693.025403 | E91: =INDEX('Compile Data'!$CG$12:$DB$93,$A91-1921,'Report - ALL'!$W$3) -> 4693.025078 | F91: =INDEX('Compile Data'!$DE$12:$DZ$93,$A91-1921,'Report - ALL'!$W$3) ->  | G91: =INDEX('Compile Data'!$EC$12:$EX$93,$A91-1921,'Report - ALL'!$W$3) ->  | H91: =INDEX('Compile Data'!$FA$12:$FV$93,$A91-1921,'Report - ALL'!$W$3) ->  | O91: 62 | P91: 0.7530864198 | Q91: =INDEX('Compile Data'!$M$108:$AH$189,$O91,'Report - ALL'!$W$3) -> 1576.132703 | R91: =INDEX('Compile Data'!$AK$108:$BF$189,$O91,'Report - ALL'!$W$3) -> 1599.159882 | S91: =INDEX('Compile Data'!$BI$108:$CD$189,$O91,'Report - ALL'!$W$3) -> 1595.873407 | T91: =INDEX('Compile Data'!$CG$108:$DB$189,$O91,'Report - ALL'!$W$3) -> 1609.624027 | U91: =INDEX('Compile Data'!$DE$108:$DZ$189,$O91,'Report - ALL'!$W$3) ->  | V91: =INDEX('Compile Data'!$EC$108:$EX$189,$O91,'Report - ALL'!$W$3) ->  | W91: =INDEX('Compile Data'!$FA$108:$FV$189,$O91,'Report - ALL'!$W$3) -> 
A92: 1984 | B92: =INDEX('Compile Data'!$M$12:$AH$93,$A92-1921,'Report - ALL'!$W$3) -> 1928.25358 | C92: =INDEX('Compile Data'!$AK$12:$BF$93,$A92-1921,'Report - ALL'!$W$3) -> 1928.698109 | D92: =INDEX('Compile Data'!$BI$12:$CD$93,$A92-1921,'Report - ALL'!$W$3) -> 2119.74726 | E92: =INDEX('Compile Data'!$CG$12:$DB$93,$A92-1921,'Report - ALL'!$W$3) -> 2119.34315 | F92: =INDEX('Compile Data'!$DE$12:$DZ$93,$A92-1921,'Report - ALL'!$W$3) ->  | G92: =INDEX('Compile Data'!$EC$12:$EX$93,$A92-1921,'Report - ALL'!$W$3) ->  | H92: =INDEX('Compile Data'!$FA$12:$FV$93,$A92-1921,'Report - ALL'!$W$3) ->  | O92: 63 | P92: 0.7654320988 | Q92: =INDEX('Compile Data'!$M$108:$AH$189,$O92,'Report - ALL'!$W$3) -> 1574.471848 | R92: =INDEX('Compile Data'!$AK$108:$BF$189,$O92,'Report - ALL'!$W$3) -> 1593.431304 | S92: =INDEX('Compile Data'!$BI$108:$CD$189,$O92,'Report - ALL'!$W$3) -> 1573.401399 | T92: =INDEX('Compile Data'!$CG$108:$DB$189,$O92,'Report - ALL'!$W$3) -> 1607.800108 | U92: =INDEX('Compile Data'!$DE$108:$DZ$189,$O92,'Report - ALL'!$W$3) ->  | V92: =INDEX('Compile Data'!$EC$108:$EX$189,$O92,'Report - ALL'!$W$3) ->  | W92: =INDEX('Compile Data'!$FA$108:$FV$189,$O92,'Report - ALL'!$W$3) -> 
A93: 1985 | B93: =INDEX('Compile Data'!$M$12:$AH$93,$A93-1921,'Report - ALL'!$W$3) -> 1732.713262 | C93: =INDEX('Compile Data'!$AK$12:$BF$93,$A93-1921,'Report - ALL'!$W$3) -> 1740.531754 | D93: =INDEX('Compile Data'!$BI$12:$CD$93,$A93-1921,'Report - ALL'!$W$3) -> 1817.455158 | E93: =INDEX('Compile Data'!$CG$12:$DB$93,$A93-1921,'Report - ALL'!$W$3) -> 1895.817494 | F93: =INDEX('Compile Data'!$DE$12:$DZ$93,$A93-1921,'Report - ALL'!$W$3) ->  | G93: =INDEX('Compile Data'!$EC$12:$EX$93,$A93-1921,'Report - ALL'!$W$3) ->  | H93: =INDEX('Compile Data'!$FA$12:$FV$93,$A93-1921,'Report - ALL'!$W$3) ->  | O93: 64 | P93: 0.7777777778 | Q93: =INDEX('Compile Data'!$M$108:$AH$189,$O93,'Report - ALL'!$W$3) -> 1571.599876 | R93: =INDEX('Compile Data'!$AK$108:$BF$189,$O93,'Report - ALL'!$W$3) -> 1575.500253 | S93: =INDEX('Compile Data'!$BI$108:$CD$189,$O93,'Report - ALL'!$W$3) -> 1564.16405 | T93: =INDEX('Compile Data'!$CG$108:$DB$189,$O93,'Report - ALL'!$W$3) -> 1602.834537 | U93: =INDEX('Compile Data'!$DE$108:$DZ$189,$O93,'Report - ALL'!$W$3) ->  | V93: =INDEX('Compile Data'!$EC$108:$EX$189,$O93,'Report - ALL'!$W$3) ->  | W93: =INDEX('Compile Data'!$FA$108:$FV$189,$O93,'Report - ALL'!$W$3) -> 
A94: 1986 | B94: =INDEX('Compile Data'!$M$12:$AH$93,$A94-1921,'Report - ALL'!$W$3) -> 2611.52775 | C94: =INDEX('Compile Data'!$AK$12:$BF$93,$A94-1921,'Report - ALL'!$W$3) -> 2612.851655 | D94: =INDEX('Compile Data'!$BI$12:$CD$93,$A94-1921,'Report - ALL'!$W$3) -> 2581.711097 | E94: =INDEX('Compile Data'!$CG$12:$DB$93,$A94-1921,'Report - ALL'!$W$3) -> 2584.436103 | F94: =INDEX('Compile Data'!$DE$12:$DZ$93,$A94-1921,'Report - ALL'!$W$3) ->  | G94: =INDEX('Compile Data'!$EC$12:$EX$93,$A94-1921,'Report - ALL'!$W$3) ->  | H94: =INDEX('Compile Data'!$FA$12:$FV$93,$A94-1921,'Report - ALL'!$W$3) ->  | O94: 65 | P94: =(O94-1)/81 -> 0.7901234568 | Q94: =INDEX('Compile Data'!$M$108:$AH$189,$O94,'Report - ALL'!$W$3) -> 1554.388143 | R94: =INDEX('Compile Data'!$AK$108:$BF$189,$O94,'Report - ALL'!$W$3) -> 1574.609683 | S94: =INDEX('Compile Data'!$BI$108:$CD$189,$O94,'Report - ALL'!$W$3) -> 1563.392752 | T94: =INDEX('Compile Data'!$CG$108:$DB$189,$O94,'Report - ALL'!$W$3) -> 1592.419169 | U94: =INDEX('Compile Data'!$DE$108:$DZ$189,$O94,'Report - ALL'!$W$3) ->  | V94: =INDEX('Compile Data'!$EC$108:$EX$189,$O94,'Report - ALL'!$W$3) ->  | W94: =INDEX('Compile Data'!$FA$108:$FV$189,$O94,'Report - ALL'!$W$3) -> 
A95: 1987 | B95: =INDEX('Compile Data'!$M$12:$AH$93,$A95-1921,'Report - ALL'!$W$3) -> 2047.528662 | C95: =INDEX('Compile Data'!$AK$12:$BF$93,$A95-1921,'Report - ALL'!$W$3) -> 2006.067678 | D95: =INDEX('Compile Data'!$BI$12:$CD$93,$A95-1921,'Report - ALL'!$W$3) -> 2092.161485 | E95: =INDEX('Compile Data'!$CG$12:$DB$93,$A95-1921,'Report - ALL'!$W$3) -> 2168.212975 | F95: =INDEX('Compile Data'!$DE$12:$DZ$93,$A95-1921,'Report - ALL'!$W$3) ->  | G95: =INDEX('Compile Data'!$EC$12:$EX$93,$A95-1921,'Report - ALL'!$W$3) ->  | H95: =INDEX('Compile Data'!$FA$12:$FV$93,$A95-1921,'Report - ALL'!$W$3) ->  | O95: 66 | P95: 0.8024691358 | Q95: =INDEX('Compile Data'!$M$108:$AH$189,$O95,'Report - ALL'!$W$3) -> 1553.111864 | R95: =INDEX('Compile Data'!$AK$108:$BF$189,$O95,'Report - ALL'!$W$3) -> 1553.397428 | S95: =INDEX('Compile Data'!$BI$108:$CD$189,$O95,'Report - ALL'!$W$3) -> 1521.586522 | T95: =INDEX('Compile Data'!$CG$108:$DB$189,$O95,'Report - ALL'!$W$3) -> 1572.927309 | U95: =INDEX('Compile Data'!$DE$108:$DZ$189,$O95,'Report - ALL'!$W$3) ->  | V95: =INDEX('Compile Data'!$EC$108:$EX$189,$O95,'Report - ALL'!$W$3) ->  | W95: =INDEX('Compile Data'!$FA$108:$FV$189,$O95,'Report - ALL'!$W$3) -> 
A96: =A95+1 -> 1988 | B96: =INDEX('Compile Data'!$M$12:$AH$93,$A96-1921,'Report - ALL'!$W$3) -> 1773.675272 | C96: =INDEX('Compile Data'!$AK$12:$BF$93,$A96-1921,'Report - ALL'!$W$3) -> 1781.353952 | D96: =INDEX('Compile Data'!$BI$12:$CD$93,$A96-1921,'Report - ALL'!$W$3) -> 1797.105559 | E96: =INDEX('Compile Data'!$CG$12:$DB$93,$A96-1921,'Report - ALL'!$W$3) -> 1829.598231 | F96: =INDEX('Compile Data'!$DE$12:$DZ$93,$A96-1921,'Report - ALL'!$W$3) ->  | G96: =INDEX('Compile Data'!$EC$12:$EX$93,$A96-1921,'Report - ALL'!$W$3) ->  | H96: =INDEX('Compile Data'!$FA$12:$FV$93,$A96-1921,'Report - ALL'!$W$3) ->  | O96: 67 | P96: 0.8148148148 | Q96: =INDEX('Compile Data'!$M$108:$AH$189,$O96,'Report - ALL'!$W$3) -> 1542.209868 | R96: =INDEX('Compile Data'!$AK$108:$BF$189,$O96,'Report - ALL'!$W$3) -> 1549.776807 | S96: =INDEX('Compile Data'!$BI$108:$CD$189,$O96,'Report - ALL'!$W$3) -> 1509.986272 | T96: =INDEX('Compile Data'!$CG$108:$DB$189,$O96,'Report - ALL'!$W$3) -> 1563.278544 | U96: =INDEX('Compile Data'!$DE$108:$DZ$189,$O96,'Report - ALL'!$W$3) ->  | V96: =INDEX('Compile Data'!$EC$108:$EX$189,$O96,'Report - ALL'!$W$3) ->  | W96: =INDEX('Compile Data'!$FA$108:$FV$189,$O96,'Report - ALL'!$W$3) -> 
A97: 1989 | B97: =INDEX('Compile Data'!$M$12:$AH$93,$A97-1921,'Report - ALL'!$W$3) -> 1634.311652 | C97: =INDEX('Compile Data'!$AK$12:$BF$93,$A97-1921,'Report - ALL'!$W$3) -> 1643.780362 | D97: =INDEX('Compile Data'!$BI$12:$CD$93,$A97-1921,'Report - ALL'!$W$3) -> 1800.573273 | E97: =INDEX('Compile Data'!$CG$12:$DB$93,$A97-1921,'Report - ALL'!$W$3) -> 1852.588538 | F97: =INDEX('Compile Data'!$DE$12:$DZ$93,$A97-1921,'Report - ALL'!$W$3) ->  | G97: =INDEX('Compile Data'!$EC$12:$EX$93,$A97-1921,'Report - ALL'!$W$3) ->  | H97: =INDEX('Compile Data'!$FA$12:$FV$93,$A97-1921,'Report - ALL'!$W$3) ->  | O97: 68 | P97: 0.8271604938 | Q97: =INDEX('Compile Data'!$M$108:$AH$189,$O97,'Report - ALL'!$W$3) -> 1528.285665 | R97: =INDEX('Compile Data'!$AK$108:$BF$189,$O97,'Report - ALL'!$W$3) -> 1538.423336 | S97: =INDEX('Compile Data'!$BI$108:$CD$189,$O97,'Report - ALL'!$W$3) -> 1494.186964 | T97: =INDEX('Compile Data'!$CG$108:$DB$189,$O97,'Report - ALL'!$W$3) -> 1555.183495 | U97: =INDEX('Compile Data'!$DE$108:$DZ$189,$O97,'Report - ALL'!$W$3) ->  | V97: =INDEX('Compile Data'!$EC$108:$EX$189,$O97,'Report - ALL'!$W$3) ->  | W97: =INDEX('Compile Data'!$FA$108:$FV$189,$O97,'Report - ALL'!$W$3) -> 
A98: 1990 | B98: =INDEX('Compile Data'!$M$12:$AH$93,$A98-1921,'Report - ALL'!$W$3) -> 1542.209868 | C98: =INDEX('Compile Data'!$AK$12:$BF$93,$A98-1921,'Report - ALL'!$W$3) -> 1532.889285 | D98: =INDEX('Compile Data'!$BI$12:$CD$93,$A98-1921,'Report - ALL'!$W$3) -> 1595.873407 | E98: =INDEX('Compile Data'!$CG$12:$DB$93,$A98-1921,'Report - ALL'!$W$3) -> 1555.183495 | F98: =INDEX('Compile Data'!$DE$12:$DZ$93,$A98-1921,'Report - ALL'!$W$3) ->  | G98: =INDEX('Compile Data'!$EC$12:$EX$93,$A98-1921,'Report - ALL'!$W$3) ->  | H98: =INDEX('Compile Data'!$FA$12:$FV$93,$A98-1921,'Report - ALL'!$W$3) ->  | O98: 69 | P98: 0.8395061728 | Q98: =INDEX('Compile Data'!$M$108:$AH$189,$O98,'Report - ALL'!$W$3) -> 1413.706974 | R98: =INDEX('Compile Data'!$AK$108:$BF$189,$O98,'Report - ALL'!$W$3) -> 1532.889285 | S98: =INDEX('Compile Data'!$BI$108:$CD$189,$O98,'Report - ALL'!$W$3) -> 1457.506811 | T98: =INDEX('Compile Data'!$CG$108:$DB$189,$O98,'Report - ALL'!$W$3) -> 1494.737 | U98: =INDEX('Compile Data'!$DE$108:$DZ$189,$O98,'Report - ALL'!$W$3) ->  | V98: =INDEX('Compile Data'!$EC$108:$EX$189,$O98,'Report - ALL'!$W$3) ->  | W98: =INDEX('Compile Data'!$FA$108:$FV$189,$O98,'Report - ALL'!$W$3) -> 
A99: 1991 | B99: =INDEX('Compile Data'!$M$12:$AH$93,$A99-1921,'Report - ALL'!$W$3) -> 1269.430928 | C99: =INDEX('Compile Data'!$AK$12:$BF$93,$A99-1921,'Report - ALL'!$W$3) -> 1268.835651 | D99: =INDEX('Compile Data'!$BI$12:$CD$93,$A99-1921,'Report - ALL'!$W$3) -> 1272.647223 | E99: =INDEX('Compile Data'!$CG$12:$DB$93,$A99-1921,'Report - ALL'!$W$3) -> 1271.485681 | F99: =INDEX('Compile Data'!$DE$12:$DZ$93,$A99-1921,'Report - ALL'!$W$3) ->  | G99: =INDEX('Compile Data'!$EC$12:$EX$93,$A99-1921,'Report - ALL'!$W$3) ->  | H99: =INDEX('Compile Data'!$FA$12:$FV$93,$A99-1921,'Report - ALL'!$W$3) ->  | O99: 70 | P99: 0.8518518519 | Q99: =INDEX('Compile Data'!$M$108:$AH$189,$O99,'Report - ALL'!$W$3) -> 1402.407434 | R99: =INDEX('Compile Data'!$AK$108:$BF$189,$O99,'Report - ALL'!$W$3) -> 1497.461795 | S99: =INDEX('Compile Data'!$BI$108:$CD$189,$O99,'Report - ALL'!$W$3) -> 1454.5753 | T99: =INDEX('Compile Data'!$CG$108:$DB$189,$O99,'Report - ALL'!$W$3) -> 1468.889742 | U99: =INDEX('Compile Data'!$DE$108:$DZ$189,$O99,'Report - ALL'!$W$3) ->  | V99: =INDEX('Compile Data'!$EC$108:$EX$189,$O99,'Report - ALL'!$W$3) ->  | W99: =INDEX('Compile Data'!$FA$108:$FV$189,$O99,'Report - ALL'!$W$3) -> 
A100: 1992 | B100: =INDEX('Compile Data'!$M$12:$AH$93,$A100-1921,'Report - ALL'!$W$3) -> 1694.836439 | C100: =INDEX('Compile Data'!$AK$12:$BF$93,$A100-1921,'Report - ALL'!$W$3) -> 1694.585474 | D100: =INDEX('Compile Data'!$BI$12:$CD$93,$A100-1921,'Report - ALL'!$W$3) -> 1952.98121 | E100: =INDEX('Compile Data'!$CG$12:$DB$93,$A100-1921,'Report - ALL'!$W$3) -> 1971.326418 | F100: =INDEX('Compile Data'!$DE$12:$DZ$93,$A100-1921,'Report - ALL'!$W$3) ->  | G100: =INDEX('Compile Data'!$EC$12:$EX$93,$A100-1921,'Report - ALL'!$W$3) ->  | H100: =INDEX('Compile Data'!$FA$12:$FV$93,$A100-1921,'Report - ALL'!$W$3) ->  | O100: 71 | P100: 0.8641975309 | Q100: =INDEX('Compile Data'!$M$108:$AH$189,$O100,'Report - ALL'!$W$3) -> 1395.408652 | R100: =INDEX('Compile Data'!$AK$108:$BF$189,$O100,'Report - ALL'!$W$3) -> 1456.100504 | S100: =INDEX('Compile Data'!$BI$108:$CD$189,$O100,'Report - ALL'!$W$3) -> 1442.510837 | T100: =INDEX('Compile Data'!$CG$108:$DB$189,$O100,'Report - ALL'!$W$3) -> 1463.149741 | U100: =INDEX('Compile Data'!$DE$108:$DZ$189,$O100,'Report - ALL'!$W$3) ->  | V100: =INDEX('Compile Data'!$EC$108:$EX$189,$O100,'Report - ALL'!$W$3) ->  | W100: =INDEX('Compile Data'!$FA$108:$FV$189,$O100,'Report - ALL'!$W$3) -> 
A101: 1993 | B101: =INDEX('Compile Data'!$M$12:$AH$93,$A101-1921,'Report - ALL'!$W$3) -> 1294.198127 | C101: =INDEX('Compile Data'!$AK$12:$BF$93,$A101-1921,'Report - ALL'!$W$3) -> 1286.806212 | D101: =INDEX('Compile Data'!$BI$12:$CD$93,$A101-1921,'Report - ALL'!$W$3) -> 1563.392752 | E101: =INDEX('Compile Data'!$CG$12:$DB$93,$A101-1921,'Report - ALL'!$W$3) -> 1563.278544 | F101: =INDEX('Compile Data'!$DE$12:$DZ$93,$A101-1921,'Report - ALL'!$W$3) ->  | G101: =INDEX('Compile Data'!$EC$12:$EX$93,$A101-1921,'Report - ALL'!$W$3) ->  | H101: =INDEX('Compile Data'!$FA$12:$FV$93,$A101-1921,'Report - ALL'!$W$3) ->  | O101: 72 | P101: 0.8765432099 | Q101: =INDEX('Compile Data'!$M$108:$AH$189,$O101,'Report - ALL'!$W$3) -> 1390.723731 | R101: =INDEX('Compile Data'!$AK$108:$BF$189,$O101,'Report - ALL'!$W$3) -> 1414.178482 | S101: =INDEX('Compile Data'!$BI$108:$CD$189,$O101,'Report - ALL'!$W$3) -> 1419.231765 | T101: =INDEX('Compile Data'!$CG$108:$DB$189,$O101,'Report - ALL'!$W$3) -> 1443.720066 | U101: =INDEX('Compile Data'!$DE$108:$DZ$189,$O101,'Report - ALL'!$W$3) ->  | V101: =INDEX('Compile Data'!$EC$108:$EX$189,$O101,'Report - ALL'!$W$3) ->  | W101: =INDEX('Compile Data'!$FA$108:$FV$189,$O101,'Report - ALL'!$W$3) -> 
A102: 1994 | B102: =INDEX('Compile Data'!$M$12:$AH$93,$A102-1921,'Report - ALL'!$W$3) -> 1738.484315 | C102: =INDEX('Compile Data'!$AK$12:$BF$93,$A102-1921,'Report - ALL'!$W$3) -> 1737.532673 | D102: =INDEX('Compile Data'!$BI$12:$CD$93,$A102-1921,'Report - ALL'!$W$3) -> 1768.222324 | E102: =INDEX('Compile Data'!$CG$12:$DB$93,$A102-1921,'Report - ALL'!$W$3) -> 1770.46576 | F102: =INDEX('Compile Data'!$DE$12:$DZ$93,$A102-1921,'Report - ALL'!$W$3) ->  | G102: =INDEX('Compile Data'!$EC$12:$EX$93,$A102-1921,'Report - ALL'!$W$3) ->  | H102: =INDEX('Compile Data'!$FA$12:$FV$93,$A102-1921,'Report - ALL'!$W$3) ->  | O102: 73 | P102: 0.8888888889 | Q102: =INDEX('Compile Data'!$M$108:$AH$189,$O102,'Report - ALL'!$W$3) -> 1378.042754 | R102: =INDEX('Compile Data'!$AK$108:$BF$189,$O102,'Report - ALL'!$W$3) -> 1401.569413 | S102: =INDEX('Compile Data'!$BI$108:$CD$189,$O102,'Report - ALL'!$W$3) -> 1410.872112 | T102: =INDEX('Compile Data'!$CG$108:$DB$189,$O102,'Report - ALL'!$W$3) -> 1419.466469 | U102: =INDEX('Compile Data'!$DE$108:$DZ$189,$O102,'Report - ALL'!$W$3) ->  | V102: =INDEX('Compile Data'!$EC$108:$EX$189,$O102,'Report - ALL'!$W$3) ->  | W102: =INDEX('Compile Data'!$FA$108:$FV$189,$O102,'Report - ALL'!$W$3) -> 
A103: 1995 | B103: =INDEX('Compile Data'!$M$12:$AH$93,$A103-1921,'Report - ALL'!$W$3) -> 4475.630137 | C103: =INDEX('Compile Data'!$AK$12:$BF$93,$A103-1921,'Report - ALL'!$W$3) -> 4475.630137 | D103: =INDEX('Compile Data'!$BI$12:$CD$93,$A103-1921,'Report - ALL'!$W$3) -> 4272.728641 | E103: =INDEX('Compile Data'!$CG$12:$DB$93,$A103-1921,'Report - ALL'!$W$3) -> 4309.953153 | F103: =INDEX('Compile Data'!$DE$12:$DZ$93,$A103-1921,'Report - ALL'!$W$3) ->  | G103: =INDEX('Compile Data'!$EC$12:$EX$93,$A103-1921,'Report - ALL'!$W$3) ->  | H103: =INDEX('Compile Data'!$FA$12:$FV$93,$A103-1921,'Report - ALL'!$W$3) ->  | O103: 74 | P103: 0.9012345679 | Q103: =INDEX('Compile Data'!$M$108:$AH$189,$O103,'Report - ALL'!$W$3) -> 1335.392535 | R103: =INDEX('Compile Data'!$AK$108:$BF$189,$O103,'Report - ALL'!$W$3) -> 1377.461848 | S103: =INDEX('Compile Data'!$BI$108:$CD$189,$O103,'Report - ALL'!$W$3) -> 1398.530171 | T103: =INDEX('Compile Data'!$CG$108:$DB$189,$O103,'Report - ALL'!$W$3) -> 1405.094536 | U103: =INDEX('Compile Data'!$DE$108:$DZ$189,$O103,'Report - ALL'!$W$3) ->  | V103: =INDEX('Compile Data'!$EC$108:$EX$189,$O103,'Report - ALL'!$W$3) ->  | W103: =INDEX('Compile Data'!$FA$108:$FV$189,$O103,'Report - ALL'!$W$3) -> 
A104: 1996 | B104: =INDEX('Compile Data'!$M$12:$AH$93,$A104-1921,'Report - ALL'!$W$3) -> 2189.065533 | C104: =INDEX('Compile Data'!$AK$12:$BF$93,$A104-1921,'Report - ALL'!$W$3) -> 2188.756216 | D104: =INDEX('Compile Data'!$BI$12:$CD$93,$A104-1921,'Report - ALL'!$W$3) -> 2190.349659 | E104: =INDEX('Compile Data'!$CG$12:$DB$93,$A104-1921,'Report - ALL'!$W$3) -> 2185.254269 | F104: =INDEX('Compile Data'!$DE$12:$DZ$93,$A104-1921,'Report - ALL'!$W$3) ->  | G104: =INDEX('Compile Data'!$EC$12:$EX$93,$A104-1921,'Report - ALL'!$W$3) ->  | H104: =INDEX('Compile Data'!$FA$12:$FV$93,$A104-1921,'Report - ALL'!$W$3) ->  | O104: 75 | P104: 0.9135802469 | Q104: =INDEX('Compile Data'!$M$108:$AH$189,$O104,'Report - ALL'!$W$3) -> 1325.37317 | R104: =INDEX('Compile Data'!$AK$108:$BF$189,$O104,'Report - ALL'!$W$3) -> 1373.141483 | S104: =INDEX('Compile Data'!$BI$108:$CD$189,$O104,'Report - ALL'!$W$3) -> 1395.452032 | T104: =INDEX('Compile Data'!$CG$108:$DB$189,$O104,'Report - ALL'!$W$3) -> 1399.038257 | U104: =INDEX('Compile Data'!$DE$108:$DZ$189,$O104,'Report - ALL'!$W$3) ->  | V104: =INDEX('Compile Data'!$EC$108:$EX$189,$O104,'Report - ALL'!$W$3) ->  | W104: =INDEX('Compile Data'!$FA$108:$FV$189,$O104,'Report - ALL'!$W$3) -> 
A105: 1997 | B105: =INDEX('Compile Data'!$M$12:$AH$93,$A105-1921,'Report - ALL'!$W$3) -> 1832.331758 | C105: =INDEX('Compile Data'!$AK$12:$BF$93,$A105-1921,'Report - ALL'!$W$3) -> 1836.517235 | D105: =INDEX('Compile Data'!$BI$12:$CD$93,$A105-1921,'Report - ALL'!$W$3) -> 1934.234946 | E105: =INDEX('Compile Data'!$CG$12:$DB$93,$A105-1921,'Report - ALL'!$W$3) -> 1940.232232 | F105: =INDEX('Compile Data'!$DE$12:$DZ$93,$A105-1921,'Report - ALL'!$W$3) ->  | G105: =INDEX('Compile Data'!$EC$12:$EX$93,$A105-1921,'Report - ALL'!$W$3) ->  | H105: =INDEX('Compile Data'!$FA$12:$FV$93,$A105-1921,'Report - ALL'!$W$3) ->  | O105: 76 | P105: 0.9259259259 | Q105: =INDEX('Compile Data'!$M$108:$AH$189,$O105,'Report - ALL'!$W$3) -> 1319.686421 | R105: =INDEX('Compile Data'!$AK$108:$BF$189,$O105,'Report - ALL'!$W$3) -> 1335.194963 | S105: =INDEX('Compile Data'!$BI$108:$CD$189,$O105,'Report - ALL'!$W$3) -> 1335.576891 | T105: =INDEX('Compile Data'!$CG$108:$DB$189,$O105,'Report - ALL'!$W$3) -> 1335.408306 | U105: =INDEX('Compile Data'!$DE$108:$DZ$189,$O105,'Report - ALL'!$W$3) ->  | V105: =INDEX('Compile Data'!$EC$108:$EX$189,$O105,'Report - ALL'!$W$3) ->  | W105: =INDEX('Compile Data'!$FA$108:$FV$189,$O105,'Report - ALL'!$W$3) -> 
A106: 1998 | B106: =INDEX('Compile Data'!$M$12:$AH$93,$A106-1921,'Report - ALL'!$W$3) -> 3123.947634 | C106: =INDEX('Compile Data'!$AK$12:$BF$93,$A106-1921,'Report - ALL'!$W$3) -> 3153.19784 | D106: =INDEX('Compile Data'!$BI$12:$CD$93,$A106-1921,'Report - ALL'!$W$3) -> 3564.321456 | E106: =INDEX('Compile Data'!$CG$12:$DB$93,$A106-1921,'Report - ALL'!$W$3) -> 3553.411249 | F106: =INDEX('Compile Data'!$DE$12:$DZ$93,$A106-1921,'Report - ALL'!$W$3) ->  | G106: =INDEX('Compile Data'!$EC$12:$EX$93,$A106-1921,'Report - ALL'!$W$3) ->  | H106: =INDEX('Compile Data'!$FA$12:$FV$93,$A106-1921,'Report - ALL'!$W$3) ->  | O106: 77 | P106: 0.9382716049 | Q106: =INDEX('Compile Data'!$M$108:$AH$189,$O106,'Report - ALL'!$W$3) -> 1316.077475 | R106: =INDEX('Compile Data'!$AK$108:$BF$189,$O106,'Report - ALL'!$W$3) -> 1318.394663 | S106: =INDEX('Compile Data'!$BI$108:$CD$189,$O106,'Report - ALL'!$W$3) -> 1327.312789 | T106: =INDEX('Compile Data'!$CG$108:$DB$189,$O106,'Report - ALL'!$W$3) -> 1324.796591 | U106: =INDEX('Compile Data'!$DE$108:$DZ$189,$O106,'Report - ALL'!$W$3) ->  | V106: =INDEX('Compile Data'!$EC$108:$EX$189,$O106,'Report - ALL'!$W$3) ->  | W106: =INDEX('Compile Data'!$FA$108:$FV$189,$O106,'Report - ALL'!$W$3) -> 
A107: 1999 | B107: =INDEX('Compile Data'!$M$12:$AH$93,$A107-1921,'Report - ALL'!$W$3) -> 2176.882216 | C107: =INDEX('Compile Data'!$AK$12:$BF$93,$A107-1921,'Report - ALL'!$W$3) -> 2176.536114 | D107: =INDEX('Compile Data'!$BI$12:$CD$93,$A107-1921,'Report - ALL'!$W$3) -> 2200.761727 | E107: =INDEX('Compile Data'!$CG$12:$DB$93,$A107-1921,'Report - ALL'!$W$3) -> 2203.12717 | F107: =INDEX('Compile Data'!$DE$12:$DZ$93,$A107-1921,'Report - ALL'!$W$3) ->  | G107: =INDEX('Compile Data'!$EC$12:$EX$93,$A107-1921,'Report - ALL'!$W$3) ->  | H107: =INDEX('Compile Data'!$FA$12:$FV$93,$A107-1921,'Report - ALL'!$W$3) ->  | O107: 78 | P107: 0.950617284 | Q107: =INDEX('Compile Data'!$M$108:$AH$189,$O107,'Report - ALL'!$W$3) -> 1305.571417 | R107: =INDEX('Compile Data'!$AK$108:$BF$189,$O107,'Report - ALL'!$W$3) -> 1292.052867 | S107: =INDEX('Compile Data'!$BI$108:$CD$189,$O107,'Report - ALL'!$W$3) -> 1325.150838 | T107: =INDEX('Compile Data'!$CG$108:$DB$189,$O107,'Report - ALL'!$W$3) -> 1324.406831 | U107: =INDEX('Compile Data'!$DE$108:$DZ$189,$O107,'Report - ALL'!$W$3) ->  | V107: =INDEX('Compile Data'!$EC$108:$EX$189,$O107,'Report - ALL'!$W$3) ->  | W107: =INDEX('Compile Data'!$FA$108:$FV$189,$O107,'Report - ALL'!$W$3) -> 
A108: 2000 | B108: =INDEX('Compile Data'!$M$12:$AH$93,$A108-1921,'Report - ALL'!$W$3) -> 2000.83719 | C108: =INDEX('Compile Data'!$AK$12:$BF$93,$A108-1921,'Report - ALL'!$W$3) -> 2000.687513 | D108: =INDEX('Compile Data'!$BI$12:$CD$93,$A108-1921,'Report - ALL'!$W$3) -> 2139.062522 | E108: =INDEX('Compile Data'!$CG$12:$DB$93,$A108-1921,'Report - ALL'!$W$3) -> 2071.506839 | F108: =INDEX('Compile Data'!$DE$12:$DZ$93,$A108-1921,'Report - ALL'!$W$3) ->  | G108: =INDEX('Compile Data'!$EC$12:$EX$93,$A108-1921,'Report - ALL'!$W$3) ->  | H108: =INDEX('Compile Data'!$FA$12:$FV$93,$A108-1921,'Report - ALL'!$W$3) ->  | O108: 79 | P108: 0.962962963 | Q108: =INDEX('Compile Data'!$M$108:$AH$189,$O108,'Report - ALL'!$W$3) -> 1294.198127 | R108: =INDEX('Compile Data'!$AK$108:$BF$189,$O108,'Report - ALL'!$W$3) -> 1286.806212 | S108: =INDEX('Compile Data'!$BI$108:$CD$189,$O108,'Report - ALL'!$W$3) -> 1272.647223 | T108: =INDEX('Compile Data'!$CG$108:$DB$189,$O108,'Report - ALL'!$W$3) -> 1292.429714 | U108: =INDEX('Compile Data'!$DE$108:$DZ$189,$O108,'Report - ALL'!$W$3) ->  | V108: =INDEX('Compile Data'!$EC$108:$EX$189,$O108,'Report - ALL'!$W$3) ->  | W108: =INDEX('Compile Data'!$FA$108:$FV$189,$O108,'Report - ALL'!$W$3) -> 
A109: 2001 | B109: =INDEX('Compile Data'!$M$12:$AH$93,$A109-1921,'Report - ALL'!$W$3) -> 1964.871766 | C109: =INDEX('Compile Data'!$AK$12:$BF$93,$A109-1921,'Report - ALL'!$W$3) -> 2009.386449 | D109: =INDEX('Compile Data'!$BI$12:$CD$93,$A109-1921,'Report - ALL'!$W$3) -> 2058.288145 | E109: =INDEX('Compile Data'!$CG$12:$DB$93,$A109-1921,'Report - ALL'!$W$3) -> 2104.273354 | F109: =INDEX('Compile Data'!$DE$12:$DZ$93,$A109-1921,'Report - ALL'!$W$3) ->  | G109: =INDEX('Compile Data'!$EC$12:$EX$93,$A109-1921,'Report - ALL'!$W$3) ->  | H109: =INDEX('Compile Data'!$FA$12:$FV$93,$A109-1921,'Report - ALL'!$W$3) ->  | O109: 80 | P109: 0.975308642 | Q109: =INDEX('Compile Data'!$M$108:$AH$189,$O109,'Report - ALL'!$W$3) -> 1269.430928 | R109: =INDEX('Compile Data'!$AK$108:$BF$189,$O109,'Report - ALL'!$W$3) -> 1268.835651 | S109: =INDEX('Compile Data'!$BI$108:$CD$189,$O109,'Report - ALL'!$W$3) -> 1236.198035 | T109: =INDEX('Compile Data'!$CG$108:$DB$189,$O109,'Report - ALL'!$W$3) -> 1271.485681 | U109: =INDEX('Compile Data'!$DE$108:$DZ$189,$O109,'Report - ALL'!$W$3) ->  | V109: =INDEX('Compile Data'!$EC$108:$EX$189,$O109,'Report - ALL'!$W$3) ->  | W109: =INDEX('Compile Data'!$FA$108:$FV$189,$O109,'Report - ALL'!$W$3) -> 
A110: 2002 | B110: =INDEX('Compile Data'!$M$12:$AH$93,$A110-1921,'Report - ALL'!$W$3) -> 1694.635904 | C110: =INDEX('Compile Data'!$AK$12:$BF$93,$A110-1921,'Report - ALL'!$W$3) -> 1697.049309 | D110: =INDEX('Compile Data'!$BI$12:$CD$93,$A110-1921,'Report - ALL'!$W$3) -> 1673.928742 | E110: =INDEX('Compile Data'!$CG$12:$DB$93,$A110-1921,'Report - ALL'!$W$3) -> 1670.438315 | F110: =INDEX('Compile Data'!$DE$12:$DZ$93,$A110-1921,'Report - ALL'!$W$3) ->  | G110: =INDEX('Compile Data'!$EC$12:$EX$93,$A110-1921,'Report - ALL'!$W$3) ->  | H110: =INDEX('Compile Data'!$FA$12:$FV$93,$A110-1921,'Report - ALL'!$W$3) ->  | O110: 81 | P110: 0.987654321 | Q110: =INDEX('Compile Data'!$M$108:$AH$189,$O110,'Report - ALL'!$W$3) -> 1231.559686 | R110: =INDEX('Compile Data'!$AK$108:$BF$189,$O110,'Report - ALL'!$W$3) -> 1232.271589 | S110: =INDEX('Compile Data'!$BI$108:$CD$189,$O110,'Report - ALL'!$W$3) -> 1229.278103 | T110: =INDEX('Compile Data'!$CG$108:$DB$189,$O110,'Report - ALL'!$W$3) -> 1229.268535 | U110: =INDEX('Compile Data'!$DE$108:$DZ$189,$O110,'Report - ALL'!$W$3) ->  | V110: =INDEX('Compile Data'!$EC$108:$EX$189,$O110,'Report - ALL'!$W$3) ->  | W110: =INDEX('Compile Data'!$FA$108:$FV$189,$O110,'Report - ALL'!$W$3) -> 
A111: 2003 | B111: =INDEX('Compile Data'!$M$12:$AH$93,$A111-1921,'Report - ALL'!$W$3) -> 2152.120026 | C111: =INDEX('Compile Data'!$AK$12:$BF$93,$A111-1921,'Report - ALL'!$W$3) -> 2151.729904 | D111: =INDEX('Compile Data'!$BI$12:$CD$93,$A111-1921,'Report - ALL'!$W$3) -> 2100.22574 | E111: =INDEX('Compile Data'!$CG$12:$DB$93,$A111-1921,'Report - ALL'!$W$3) -> 2099.630582 | F111: =INDEX('Compile Data'!$DE$12:$DZ$93,$A111-1921,'Report - ALL'!$W$3) ->  | G111: =INDEX('Compile Data'!$EC$12:$EX$93,$A111-1921,'Report - ALL'!$W$3) ->  | H111: =INDEX('Compile Data'!$FA$12:$FV$93,$A111-1921,'Report - ALL'!$W$3) ->  | O111: 82 | P111: 1 | Q111: =INDEX('Compile Data'!$M$108:$AH$189,$O111,'Report - ALL'!$W$3) -> 1133.74981 | R111: =INDEX('Compile Data'!$AK$108:$BF$189,$O111,'Report - ALL'!$W$3) -> 1135.997983 | S111: =INDEX('Compile Data'!$BI$108:$CD$189,$O111,'Report - ALL'!$W$3) -> 1080.719202 | T111: =INDEX('Compile Data'!$CG$108:$DB$189,$O111,'Report - ALL'!$W$3) -> 1093.189153 | U111: =INDEX('Compile Data'!$DE$108:$DZ$189,$O111,'Report - ALL'!$W$3) ->  | V111: =INDEX('Compile Data'!$EC$108:$EX$189,$O111,'Report - ALL'!$W$3) ->  | W111: =INDEX('Compile Data'!$FA$108:$FV$189,$O111,'Report - ALL'!$W$3) -> 

Sheet Compile Data
A1: Study | B1: =Control!$B$9 -> NAA_ELT | C1: =Control!$B$10 -> NAA_ELT_V1 | D1: =Control!$B$11 -> NAA_LLT | E1: =Control!$B$12 -> NAA_LLT_V1 | F1: =Control!$B$13 -> 0 | G1: =Control!$B$14 -> 0 | H1: =Control!$B$15 -> 0 | AD1: =$B$8 -> PER-AVG | BB1: =$C$8 -> PER-AVG | BZ1: =$D$8 -> PER-AVG | CX1: =$E$8 -> PER-AVG | DV1: ='Compile Data'!$F$8 -> PER-AVG | ET1: ='Compile Data'!$G$8 -> PER-AVG | FR1: ='Compile Data'!$H$8 -> PER-AVG
A2: Index: | B2: ='Report - ALL'!W1 -> 79 | C2: =B2 -> 79 | D2: 79 | E2: 79 | F2: =E2 -> 79 | G2: 79 | H2: 79
A3: Convert? | B3: =IF('Report - ALL'!W4,1,0) -> 1 | C3: 1 | D3: 1 | E3: 1 | F3: 1 | G3: 1 | H3: 1
A4: Column: | B4: =VLOOKUP(B$2,Control!$A$25:$I$173,6) -> BX | C4: BX | D4: BX | E4: BX | F4: BX | G4: BX | H4: BX
A5: Title: | B5: =VLOOKUP(B$2,Control!$A$25:$I$173,9) -> Upstream Flows - Release-Sacramento Keswick | C5: =$B5 -> Upstream Flows - Release-Sacramento Keswick | D5: =$B5 -> Upstream Flows - Release-Sacramento Keswick | E5: Upstream Flows - Release-Sacramento Keswick | F5: Upstream Flows - Release-Sacramento Keswick | G5: Upstream Flows - Release-Sacramento Keswick | H5: Upstream Flows - Release-Sacramento Keswick
A6: Parameter: | B6: =INDIRECT(CONCATENATE("'",B$1,"'!",B$4,2)) -> C5 | C6: C5 | D6: C5 | E6: C5
B7: =INDIRECT(CONCATENATE("'",B$1,"'!",B$4,3)) -> FLOW-CHANNEL | C7: FLOW-CHANNEL | D7: FLOW-CHANNEL | E7: FLOW-CHANNEL
A8: Type: | B8: =TRIM(VLOOKUP(B$2,Control!$A$25:$I$173,8)) -> PER-AVG | C8: =$B8 -> PER-AVG | D8: =$B8 -> PER-AVG | E8: PER-AVG | F8: PER-AVG | G8: PER-AVG | H8: PER-AVG | L8: =CONCATENATE(TRIM(B$1),": ",TRIM(B$5)," - ",TRIM(B$6)," ",TRIM(B$7)," (",TRIM(B$10),") ",TRIM(B$11)) -> NAA_ELT: Upstream Flows - Release-Sacramento Keswick - C5 FLOW-CHANNEL (TAF) | AJ8: =CONCATENATE(TRIM(C$1),": ",TRIM(C$5)," - ",TRIM(C$6)," ",TRIM(C$7)," (",TRIM(C$10),") ",TRIM(C$11)) -> NAA_ELT_V1: Upstream Flows - Release-Sacramento Keswick - C5 FLOW-CHANNEL (TAF) | BH8: =CONCATENATE(TRIM(D$1),": ",TRIM(D$5)," - ",TRIM(D$6)," ",TRIM(D$7)," (",TRIM(D$10),") ",TRIM(D$11)) -> NAA_LLT: Upstream Flows - Release-Sacramento Keswick - C5 FLOW-CHANNEL (TAF) | CF8: =CONCATENATE(TRIM(E$1),": ",TRIM(E$5)," - ",TRIM(E$6)," ",TRIM(E$7)," (",TRIM(E$10),") ",TRIM(E$11)) -> NAA_LLT_V1: Upstream Flows - Release-Sacramento Keswick - C5 FLOW-CHANNEL (TAF) | DD8: =CONCATENATE(TRIM('Compile Data'!F$1),": ",TRIM('Compile Data'!F$5)," - ",TRIM('Compile Data'!F$6)," ",TRIM('Compile Data'!F$7)," (",TRIM('Compile Data'!F$10),") ",TRIM('Compile Data'!F$11)) ->  | EB8: =CONCATENATE(TRIM('Compile Data'!G$1),": ",TRIM('Compile Data'!G$5)," - ",TRIM('Compile Data'!G$6)," ",TRIM('Compile Data'!G$7)," (",TRIM('Compile Data'!G$10),") ",TRIM('Compile Data'!G$11)) ->  | EZ8: =CONCATENATE(TRIM('Compile Data'!H$1),": ",TRIM('Compile Data'!H$5)," - ",TRIM('Compile Data'!H$6)," ",TRIM('Compile Data'!H$7)," (",TRIM('Compile Data'!H$10),") ",TRIM('Compile Data'!H$11)) -> 
A9: Units-native: | B9: =TRIM(INDIRECT(CONCATENATE("'",B$1,"'!",B$4,11))) -> CFS | C9: CFS | D9: CFS | E9: CFS
A10: Units-shown: | B10: =IF(AND(B$3>0,B$9="CFS"),"TAF",B$9) -> TAF | C10: TAF | D10: TAF | E10: TAF | Z10: Jan-Dec | AA10: Mar-Feb | AB10: Oct-Sep | AD10: Oct-Jan | AE10: Dec-Feb | AF10: Mar-Jun | AG10: Jun-Sep | AH10: Sep-Nov | AX10: Jan-Dec | AY10: Mar-Feb | AZ10: Oct-Sep | BB10: Oct-Jan | BC10: Dec-Feb | BD10: Mar-Jun | BE10: Jun-Sep | BF10: Sep-Nov | BV10: Jan-Dec | BW10: Mar-Feb | BX10: Oct-Sep | BZ10: Oct-Jan | CA10: Dec-Feb | CB10: Mar-Jun | CC10: Jun-Sep | CD10: Sep-Nov | CT10: Jan-Dec | CU10: Mar-Feb | CV10: Oct-Sep | CX10: Oct-Jan | CY10: Dec-Feb | CZ10: Mar-Jun | DA10: Jun-Sep | DB10: Sep-Nov | DR10: Jan-Dec | DS10: Mar-Feb | DT10: Oct-Sep | DV10: Oct-Jan | DW10: Dec-Feb | DX10: Mar-Jun | DY10: Jun-Sep | DZ10: Sep-Nov | EP10: Jan-Dec | EQ10: Mar-Feb | ER10: Oct-Sep | ET10: Oct-Jan | EU10: Dec-Feb | EV10: Mar-Jun | EW10: Jun-Sep | EX10: Sep-Nov | FN10: Jan-Dec | FO10: Mar-Feb | FP10: Oct-Sep | FR10: Oct-Jan | FS10: Dec-Feb | FT10: Mar-Jun | FU10: Jun-Sep | FV10: Sep-Nov
A11: Date | B11: =IF(ISNUMBER(FIND("PRV",B$6)),"SHIFTED","") ->  | H11: =IF(ISNUMBER(FIND("PRV",H$6)),"SHIFTED","") ->  | L11: YEAR | M11: OCT | N11: NOV | O11: DEC | P11: JAN | Q11: FEB | R11: MAR | S11: APR | T11: MAY | U11: JUN | V11: JUL | W11: AUG | X11: SEP | Z11: =IF(AND($B$10="TAF",$B$8="PER-AVG"),"TOT","AVG") -> TOT | AA11: =IF(AND($B$10="TAF",$B$8="PER-AVG"),"TOT","AVG") -> TOT | AB11: =IF(AND($B$10="TAF",$B$8="PER-AVG"),"TOT","AVG") -> TOT | AD11: =IF(AND($B$10="TAF",$B$8="PER-AVG"),"TOT","AVG") -> TOT | AE11: =IF(AND($B$10="TAF",$B$8="PER-AVG"),"TOT","AVG") -> TOT | AF11: =IF(AND($B$10="TAF",$B$8="PER-AVG"),"TOT","AVG") -> TOT | AG11: =IF(AND($B$10="TAF",$B$8="PER-AVG"),"TOT","AVG") -> TOT | AH11: =IF(AND($B$10="TAF",$B$8="PER-AVG"),"TOT","AVG") -> TOT | AJ11: YEAR | AK11: OCT | AL11: NOV | AM11: DEC | AN11: JAN | AO11: FEB | AP11: MAR | AQ11: APR | AR11: MAY | AS11: JUN | AT11: JUL | AU11: AUG | AV11: SEP | AX11: =IF(AND($C$10="TAF",$C$8="PER-AVG"),"TOT","AVG") -> TOT | AY11: =IF(AND($C$10="TAF",$C$8="PER-AVG"),"TOT","AVG") -> TOT | AZ11: =IF(AND($C$10="TAF",$C$8="PER-AVG"),"TOT","AVG") -> TOT | BB11: =IF(AND($C$10="TAF",$C$8="PER-AVG"),"TOT","AVG") -> TOT | BC11: =IF(AND($C$10="TAF",$C$8="PER-AVG"),"TOT","AVG") -> TOT | BD11: =IF(AND($C$10="TAF",$C$8="PER-AVG"),"TOT","AVG") -> TOT | BE11: =IF(AND($C$10="TAF",$C$8="PER-AVG"),"TOT","AVG") -> TOT | BF11: =IF(AND($C$10="TAF",$C$8="PER-AVG"),"TOT","AVG") -> TOT | BH11: YEAR | BI11: OCT | BJ11: NOV | BK11: DEC | BL11: JAN | BM11: FEB | BN11: MAR | BO11: APR | BP11: MAY | BQ11: JUN | BR11: JUL | BS11: AUG | BT11: SEP | BV11: =IF(AND($D$10="TAF",$D$8="PER-AVG"),"TOT","AVG") -> TOT | BW11: =IF(AND($D$10="TAF",$D$8="PER-AVG"),"TOT","AVG") -> TOT | BX11: =IF(AND($D$10="TAF",$D$8="PER-AVG"),"TOT","AVG") -> TOT | BZ11: =IF(AND($D$10="TAF",$D$8="PER-AVG"),"TOT","AVG") -> TOT | CA11: =IF(AND($D$10="TAF",$D$8="PER-AVG"),"TOT","AVG") -> TOT | CB11: =IF(AND($D$10="TAF",$D$8="PER-AVG"),"TOT","AVG") -> TOT | CC11: =IF(AND($D$10="TAF",$D$8="PER-AVG"),"TOT","AVG") -> TOT | CD11: =IF(AND($D$10="TAF",$D$8="PER-AVG"),"TOT","AVG") -> TOT | CF11: YEAR | CG11: OCT | CH11: NOV | CI11: DEC | CJ11: JAN | CK11: FEB | CL11: MAR | CM11: APR | CN11: MAY | CO11: JUN | CP11: JUL | CQ11: AUG | CR11: SEP | CT11: =IF(AND($E$10="TAF",$E$8="PER-AVG"),"TOT","AVG") -> TOT | CU11: =IF(AND($E$10="TAF",$E$8="PER-AVG"),"TOT","AVG") -> TOT | CV11: =IF(AND($E$10="TAF",$E$8="PER-AVG"),"TOT","AVG") -> TOT | CX11: =IF(AND($E$10="TAF",$E$8="PER-AVG"),"TOT","AVG") -> TOT | CY11: =IF(AND($E$10="TAF",$E$8="PER-AVG"),"TOT","AVG") -> TOT | CZ11: =IF(AND($E$10="TAF",$E$8="PER-AVG"),"TOT","AVG") -> TOT | DA11: =IF(AND($E$10="TAF",$E$8="PER-AVG"),"TOT","AVG") -> TOT | DB11: =IF(AND($E$10="TAF",$E$8="PER-AVG"),"TOT","AVG") -> TOT | DD11: YEAR | DE11: OCT | DF11: NOV | DG11: DEC | DH11: JAN | DI11: FEB | DJ11: MAR | DK11: APR | DL11: MAY | DM11: JUN | DN11: JUL | DO11: AUG | DP11: SEP | DR11: =IF(AND('Compile Data'!$F$10="TAF",'Compile Data'!$F$8="PER-AVG"),"TOT","AVG") ->  | DS11: =IF(AND('Compile Data'!$F$10="TAF",'Compile Data'!$F$8="PER-AVG"),"TOT","AVG") ->  | DT11: =IF(AND('Compile Data'!$F$10="TAF",'Compile Data'!$F$8="PER-AVG"),"TOT","AVG") ->  | DV11: =IF(AND('Compile Data'!$F$10="TAF",'Compile Data'!$F$8="PER-AVG"),"TOT","AVG") ->  | DW11: =IF(AND('Compile Data'!$F$10="TAF",'Compile Data'!$F$8="PER-AVG"),"TOT","AVG") ->  | DX11: =IF(AND('Compile Data'!$F$10="TAF",'Compile Data'!$F$8="PER-AVG"),"TOT","AVG") ->  | DY11: =IF(AND('Compile Data'!$F$10="TAF",'Compile Data'!$F$8="PER-AVG"),"TOT","AVG") ->  | DZ11: =IF(AND('Compile Data'!$F$10="TAF",'Compile Data'!$F$8="PER-AVG"),"TOT","AVG") ->  | EB11: YEAR | EC11: OCT | ED11: NOV | EE11: DEC | EF11: JAN | EG11: FEB | EH11: MAR | EI11: APR | EJ11: MAY | EK11: JUN | EL11: JUL | EM11: AUG | EN11: SEP | EP11: =IF(AND('Compile Data'!$G$10="TAF",'Compile Data'!$G$8="PER-AVG"),"TOT","AVG") ->  | EQ11: =IF(AND('Compile Data'!$G$10="TAF",'Compile Data'!$G$8="PER-AVG"),"TOT","AVG") ->  | ER11: =IF(AND('Compile Data'!$G$10="TAF",'Compile Data'!$G$8="PER-AVG"),"TOT","AVG") ->  | ET11: =IF(AND('Compile Data'!$G$10="TAF",'Compile Data'!$G$8="PER-AVG"),"TOT","AVG") ->  | EU11: =IF(AND('Compile Data'!$G$10="TAF",'Compile Data'!$G$8="PER-AVG"),"TOT","AVG") ->  | EV11: =IF(AND('Compile Data'!$G$10="TAF",'Compile Data'!$G$8="PER-AVG"),"TOT","AVG") ->  | EW11: =IF(AND('Compile Data'!$G$10="TAF",'Compile Data'!$G$8="PER-AVG"),"TOT","AVG") ->  | EX11: =IF(AND('Compile Data'!$G$10="TAF",'Compile Data'!$G$8="PER-AVG"),"TOT","AVG") ->  | EZ11: YEAR | FA11: OCT | FB11: NOV | FC11: DEC | FD11: JAN | FE11: FEB | FF11: MAR | FG11: APR | FH11: MAY | FI11: JUN | FJ11: JUL | FK11: AUG | FL11: SEP | FN11: =IF(AND('Compile Data'!$H$10="TAF",'Compile Data'!$H$8="PER-AVG"),"TOT","AVG") ->  | FO11: =IF(AND('Compile Data'!$H$10="TAF",'Compile Data'!$H$8="PER-AVG"),"TOT","AVG") ->  | FP11: =IF(AND('Compile Data'!$H$10="TAF",'Compile Data'!$H$8="PER-AVG"),"TOT","AVG") ->  | FR11: =IF(AND('Compile Data'!$H$10="TAF",'Compile Data'!$H$8="PER-AVG"),"TOT","AVG") ->  | FS11: =IF(AND('Compile Data'!$H$10="TAF",'Compile Data'!$H$8="PER-AVG"),"TOT","AVG") ->  | FT11: =IF(AND('Compile Data'!$H$10="TAF",'Compile Data'!$H$8="PER-AVG"),"TOT","AVG") ->  | FU11: =IF(AND('Compile Data'!$H$10="TAF",'Compile Data'!$H$8="PER-AVG"),"TOT","AVG") ->  | FV11: =IF(AND('Compile Data'!$H$10="TAF",'Compile Data'!$H$8="PER-AVG"),"TOT","AVG") -> 
A12: 1921-09-30 | L12: 1922 | M12: =B13 -> 538.9333787 | N12: =B14 -> 384.9569861 | O12: =B15 -> 230.1890659 | P12: =B16 -> 199.8347107 | Q12: =B17 -> 249.9173554 | R12: =B18 -> 276.6942149 | S12: =B19 -> 299.053648 | T12: =B20 -> 497.8276249 | U12: =B21 -> 749.7284737 | V12: =B22 -> 819.9554442 | W12: =B23 -> 706.4728667 | X12: =B24 -> 770.439805 | Z12: =IF(Z$11="AVG",AVERAGE(P12:X12,M13:O13),SUM(P12:X12,M13:O13)) -> 5613.499662 | AA12: =IF(AA$11="AVG",AVERAGE(R12:X12,M13:Q13),SUM(R12:X12,M13:Q13)) -> 5567.925772 | AB12: =IF(AB$11="AVG",AVERAGE(M12:X12),SUM(M12:X12)) -> 5724.003574 | AD12: =IF(AD$11="AVG",IF(AD$1="INST-VAL",AVERAGE(X11,M12:O12,M12:P12),AVERAGE(M12:P12)),SUM(M12:P12)) -> 1353.914141 | AE12: =IF(AE$11="AVG",IF(AD$1="INST-VAL",AVERAGE(N12:P12,O12:Q12),AVERAGE(O12:Q12)),SUM(O12:Q12)) -> 679.941132 | AF12: =IF(AF$11="AVG",IF(AD$1="INST-VAL",AVERAGE(Q12:T12,R12:U12),AVERAGE(R12:U12)),SUM(R12:U12)) -> 1823.303961 | AG12: =IF(AG$11="AVG",IF(AD$1="INST-VAL",AVERAGE(T12:W12,U12:X12),AVERAGE(U12:X12)),SUM(U12:X12)) -> 3046.59659 | AH12: =IF(AH$11="AVG",IF(AD$1="INST-VAL",AVERAGE(W12:X12,M13,X12,M13:N13),AVERAGE(X12,M13:N13)),SUM(X12,M13:N13)) -> 1568.064911 | AJ12: 1922 | AK12: =C13 -> 533.9548044 | AL12: =C14 -> 323.2292936 | AM12: =C15 -> 230.1890659 | AN12: =C16 -> 199.8347107 | AO12: =C17 -> 249.9173554 | AP12: =C18 -> 276.6942149 | AQ12: =C19 -> 299.3161286 | AR12: =C20 -> 589.8063843 | AS12: =C21 -> 755.0768143 | AT12: =C22 -> 817.9937255 | AU12: =C23 -> 705.3334246 | AV12: =C24 -> 423.67869 | AX12: =IF(AX$11="AVG",AVERAGE(AN12:AV12,AK13:AM13),SUM(AN12:AV12,AK13:AM13)) -> 5107.668943 | AY12: =IF(AY$11="AVG",AVERAGE(AP12:AV12,AK13:AO13),SUM(AP12:AV12,AK13:AO13)) -> 5062.095053 | AZ12: =IF(AZ$11="AVG",AVERAGE(AK12:AV12),SUM(AK12:AV12)) -> 5405.024612 | BB12: =IF(BB$11="AVG",IF(BB$1="INST-VAL",AVERAGE(AV11,AK12:AM12,AK12:AN12),AVERAGE(AK12:AN12)),SUM(AK12:AN12)) -> 1287.207875 | BC12: =IF(BC$11="AVG",IF(BB$1="INST-VAL",AVERAGE(AL12:AN12,AM12:AO12),AVERAGE(AM12:AO12)),SUM(AM12:AO12)) -> 679.941132 | BD12: =IF(BD$11="AVG",IF(BB$1="INST-VAL",AVERAGE(AO12:AR12,AP12:AS12),AVERAGE(AP12:AS12)),SUM(AP12:AS12)) -> 1920.893542 | BE12: =IF(BE$11="AVG",IF(BB$1="INST-VAL",AVERAGE(AR12:AU12,AS12:AV12),AVERAGE(AS12:AV12)),SUM(AS12:AV12)) -> 2702.082654 | BF12: =IF(BF$11="AVG",IF(BB$1="INST-VAL",AVERAGE(AU12:AV12,AK13,AV12,AK13:AL13),AVERAGE(AV12,AK13:AL13)),SUM(AV12,AK13:AL13)) -> 967.7457712 | BH12: 1922 | BI12: ='Compile Data'!D13 -> 867.2002008 | BJ12: ='Compile Data'!D14 -> 414.1334775 | BK12: ='Compile Data'!D15 -> 230.1890659 | BL12: ='Compile Data'!D16 -> 199.8347107 | BM12: ='Compile Data'!D17 -> 249.9173554 | BN12: ='Compile Data'!D18 -> 276.6942149 | BO12: ='Compile Data'!D19 -> 296.2282186 | BP12: ='Compile Data'!D20 -> 523.0856696 | BQ12: ='Compile Data'!D21 -> 751.8842782 | BR12: ='Compile Data'!D22 -> 820.3006515 | BS12: ='Compile Data'!D23 -> 706.2656463 | BT12: ='Compile Data'!D24 -> 892.5619835 | BV12: =IF(BV$11="AVG",AVERAGE(BL12:BT12,BI13:BK13),SUM(BL12:BT12,BI13:BK13)) -> 5918.082453 | BW12: =IF(BW$11="AVG",AVERAGE(BN12:BT12,BI13:BM13),SUM(BN12:BT12,BI13:BM13)) -> 5885.678606 | BX12: =IF(BX$11="AVG",AVERAGE(BI12:BT12),SUM(BI12:BT12)) -> 6228.295473 | BZ12: =IF(BZ$11="AVG",IF(BZ$1="INST-VAL",AVERAGE(BT11,BI12:BK12,BI12:BL12),AVERAGE(BI12:BL12)),SUM(BI12:BL12)) -> 1711.357455 | CA12: =IF(CA$11="AVG",IF(BZ$1="INST-VAL",AVERAGE(BJ12:BL12,BK12:BM12),AVERAGE(BK12:BM12)),SUM(BK12:BM12)) -> 679.941132 | CB12: =IF(CB$11="AVG",IF(BZ$1="INST-VAL",AVERAGE(BM12:BP12,BN12:BQ12),AVERAGE(BN12:BQ12)),SUM(BN12:BQ12)) -> 1847.892381 | CC12: =IF(CC$11="AVG",IF(BZ$1="INST-VAL",AVERAGE(BP12:BS12,BQ12:BT12),AVERAGE(BQ12:BT12)),SUM(BQ12:BT12)) -> 3171.012559 | CD12: =IF(CD$11="AVG",IF(BZ$1="INST-VAL",AVERAGE(BS12:BT12,BI13,BT12,BI13:BJ13),AVERAGE(BT12,BI13:BJ13)),SUM(BT12,BI13:BJ13)) -> 1847.921295 | CF12: 1922 | CG12: ='Compile Data'!E13 -> 535.9468466 | CH12: ='Compile Data'!E14 -> 324.62244 | CI12: ='Compile Data'!E15 -> 230.1890659 | CJ12: ='Compile Data'!E16 -> 199.8347107 | CK12: ='Compile Data'!E17 -> 249.9173554 | CL12: ='Compile Data'!E18 -> 276.6942149 | CM12: ='Compile Data'!E19 -> 436.1282444 | CN12: ='Compile Data'!E20 -> 621.1891406 | CO12: ='Compile Data'!E21 -> 754.0177105 | CP12: ='Compile Data'!E22 -> 817.9165657 | CQ12: ='Compile Data'!E23 -> 704.2989437 | CR12: ='Compile Data'!E24 -> 423.7381941 | CT12: =IF(CT$11="AVG",AVERAGE(CJ12:CR12,CG13:CI13),SUM(CJ12:CR12,CG13:CI13)) -> 5451.482176 | CU12: =IF(CU$11="AVG",AVERAGE(CL12:CR12,CG13:CK13),SUM(CL12:CR12,CG13:CK13)) -> 5527.887291 | CV12: =IF(CV$11="AVG",AVERAGE(CG12:CR12),SUM(CG12:CR12)) -> 5574.493432 | CX12: =IF(CX$11="AVG",IF(CX$1="INST-VAL",AVERAGE(CR11,CG12:CI12,CG12:CJ12),AVERAGE(CG12:CJ12)),SUM(CG12:CJ12)) -> 1290.593063 | CY12: =IF(CY$11="AVG",IF(CX$1="INST-VAL",AVERAGE(CH12:CJ12,CI12:CK12),AVERAGE(CI12:CK12)),SUM(CI12:CK12)) -> 679.941132 | CZ12: =IF(CZ$11="AVG",IF(CX$1="INST-VAL",AVERAGE(CK12:CN12,CL12:CO12),AVERAGE(CL12:CO12)),SUM(CL12:CO12)) -> 2088.02931 | DA12: =IF(DA$11="AVG",IF(CX$1="INST-VAL",AVERAGE(CN12:CQ12,CO12:CR12),AVERAGE(CO12:CR12)),SUM(CO12:CR12)) -> 2699.971414 | DB12: =IF(DB$11="AVG",IF(CX$1="INST-VAL",AVERAGE(CQ12:CR12,CG13,CR12,CG13:CH13),AVERAGE(CR12,CG13:CH13)),SUM(CR12,CG13:CH13)) -> 1145.534877 | DD12: 1922 | DE12: ='Compile Data'!F13 ->  | DF12: ='Compile Data'!F14 ->  | DG12: ='Compile Data'!F15 ->  | DH12: ='Compile Data'!F16 ->  | DI12: ='Compile Data'!F17 ->  | DJ12: ='Compile Data'!F18 ->  | DK12: ='Compile Data'!F19 ->  | DL12: ='Compile Data'!F20 ->  | DM12: ='Compile Data'!F21 ->  | DN12: ='Compile Data'!F22 ->  | DO12: ='Compile Data'!F23 ->  | DP12: ='Compile Data'!F24 ->  | DR12: =IF(DR$11="AVG",AVERAGE(DH12:DP12,DE13:DG13),SUM(DH12:DP12,DE13:DG13)) ->  | DS12: =IF(DS$11="AVG",AVERAGE(DJ12:DP12,DE13:DI13),SUM(DJ12:DP12,DE13:DI13)) ->  | DT12: =IF(DT$11="AVG",AVERAGE(DE12:DP12),SUM(DE12:DP12)) ->  | DV12: =IF(DV$11="AVG",IF(DV$1="INST-VAL",AVERAGE(DP11,DE12:DG12,DE12:DH12),AVERAGE(DE12:DH12)),SUM(DE12:DH12)) ->  | DW12: =IF(DW$11="AVG",IF(DV$1="INST-VAL",AVERAGE(DF12:DH12,DG12:DI12),AVERAGE(DG12:DI12)),SUM(DG12:DI12)) ->  | DX12: =IF(DX$11="AVG",IF(DV$1="INST-VAL",AVERAGE(DI12:DL12,DJ12:DM12),AVERAGE(DJ12:DM12)),SUM(DJ12:DM12)) ->  | DY12: =IF(DY$11="AVG",IF(DV$1="INST-VAL",AVERAGE(DL12:DO12,DM12:DP12),AVERAGE(DM12:DP12)),SUM(DM12:DP12)) ->  | DZ12: =IF(DZ$11="AVG",IF(DV$1="INST-VAL",AVERAGE(DO12:DP12,DE13,DP12,DE13:DF13),AVERAGE(DP12,DE13:DF13)),SUM(DP12,DE13:DF13)) ->  | EB12: 1922 | EC12: ='Compile Data'!G13 ->  | ED12: ='Compile Data'!G14 ->  | EE12: ='Compile Data'!G15 ->  | EF12: ='Compile Data'!G16 ->  | EG12: ='Compile Data'!G17 ->  | EH12: ='Compile Data'!G18 ->  | EI12: ='Compile Data'!G19 ->  | EJ12: ='Compile Data'!G20 ->  | EK12: ='Compile Data'!G21 ->  | EL12: ='Compile Data'!G22 ->  | EM12: ='Compile Data'!G23 ->  | EN12: ='Compile Data'!G24 ->  | EP12: =IF(EP$11="AVG",AVERAGE(EF12:EN12,EC13:EE13),SUM(EF12:EN12,EC13:EE13)) ->  | EQ12: =IF(EQ$11="AVG",AVERAGE(EH12:EN12,EC13:EG13),SUM(EH12:EN12,EC13:EG13)) ->  | ER12: =IF(ER$11="AVG",AVERAGE(EC12:EN12),SUM(EC12:EN12)) ->  | ET12: =IF(ET$11="AVG",IF(ET$1="INST-VAL",AVERAGE(EN11,EC12:EE12,EC12:EF12),AVERAGE(EC12:EF12)),SUM(EC12:EF12)) ->  | EU12: =IF(EU$11="AVG",IF(ET$1="INST-VAL",AVERAGE(ED12:EF12,EE12:EG12),AVERAGE(EE12:EG12)),SUM(EE12:EG12)) ->  | EV12: =IF(EV$11="AVG",IF(ET$1="INST-VAL",AVERAGE(EG12:EJ12,EH12:EK12),AVERAGE(EH12:EK12)),SUM(EH12:EK12)) ->  | EW12: =IF(EW$11="AVG",IF(ET$1="INST-VAL",AVERAGE(EJ12:EM12,EK12:EN12),AVERAGE(EK12:EN12)),SUM(EK12:EN12)) ->  | EX12: =IF(EX$11="AVG",IF(ET$1="INST-VAL",AVERAGE(EM12:EN12,EC13,EN12,EC13:ED13),AVERAGE(EN12,EC13:ED13)),SUM(EN12,EC13:ED13)) ->  | EZ12: 1922 | FA12: ='Compile Data'!H13 ->  | FB12: ='Compile Data'!H14 ->  | FC12: ='Compile Data'!H15 ->  | FD12: ='Compile Data'!H16 ->  | FE12: ='Compile Data'!H17 ->  | FF12: ='Compile Data'!H18 ->  | FG12: ='Compile Data'!H19 ->  | FH12: ='Compile Data'!H20 ->  | FI12: ='Compile Data'!H21 ->  | FJ12: ='Compile Data'!H22 ->  | FK12: ='Compile Data'!H23 ->  | FL12: ='Compile Data'!H24 ->  | FN12: =IF(FN$11="AVG",AVERAGE(FD12:FL12,FA13:FC13),SUM(FD12:FL12,FA13:FC13)) ->  | FO12: =IF(FO$11="AVG",AVERAGE(FF12:FL12,FA13:FE13),SUM(FF12:FL12,FA13:FE13)) ->  | FP12: =IF(FP$11="AVG",AVERAGE(FA12:FL12),SUM(FA12:FL12)) ->  | FR12: =IF(FR$11="AVG",IF(FR$1="INST-VAL",AVERAGE(FL11,FA12:FC12,FA12:FD12),AVERAGE(FA12:FD12)),SUM(FA12:FD12)) ->  | FS12: =IF(FS$11="AVG",IF(FR$1="INST-VAL",AVERAGE(FB12:FD12,FC12:FE12),AVERAGE(FC12:FE12)),SUM(FC12:FE12)) ->  | FT12: =IF(FT$11="AVG",IF(FR$1="INST-VAL",AVERAGE(FE12:FH12,FF12:FI12),AVERAGE(FF12:FI12)),SUM(FF12:FI12)) ->  | FU12: =IF(FU$11="AVG",IF(FR$1="INST-VAL",AVERAGE(FH12:FK12,FI12:FL12),AVERAGE(FI12:FL12)),SUM(FI12:FL12)) ->  | FV12: =IF(FV$11="AVG",IF(FR$1="INST-VAL",AVERAGE(FK12:FL12,FA13,FL12,FA13:FB13),AVERAGE(FL12,FA13:FB13)),SUM(FL12,FA13:FB13)) -> 
A13: 1921-10-31 | B13: =INDIRECT(CONCATENATE("'",B$1,"'!",B$4,(YEAR($A13)-1921)*12+MONTH($A13)+3+IF(ISNUMBER(FIND("PRV",B$6)),1,0)))*IF(AND(B$3>0,TRIM(B$9)="CFS"),Conv_Flags!$C13,1) -> 538.9333787 | C13: =INDIRECT(CONCATENATE("'",C$1,"'!",C$4,(YEAR($A13)-1921)*12+MONTH($A13)+3+IF(ISNUMBER(FIND("PRV",C$6)),1,0)))*IF(AND(C$3>0,TRIM(C$9)="CFS"),Conv_Flags!$C13,1) -> 533.9548044 | D13: =INDIRECT(CONCATENATE("'",D$1,"'!",D$4,(YEAR($A13)-1921)*12+MONTH($A13)+3+IF(ISNUMBER(FIND("PRV",D$6)),1,0)))*IF(AND(D$3>0,TRIM(D$9)="CFS"),Conv_Flags!$C13,1) -> 867.2002008 | E13: =INDIRECT(CONCATENATE("'",E$1,"'!",E$4,(YEAR($A13)-1921)*12+MONTH($A13)+3+IF(ISNUMBER(FIND("PRV",E$6)),1,0)))*IF(AND(E$3>0,TRIM(E$9)="CFS"),Conv_Flags!$C13,1) -> 535.9468466 | F13: =INDIRECT(CONCATENATE("'",F$1,"'!",F$4,(YEAR($A13)-1921)*12+MONTH($A13)+3+IF(ISNUMBER(FIND("PRV",F$6)),1,0)))*IF(AND(F$3>0,TRIM(F$9)="CFS"),Conv_Flags!$C13,1) ->  | G13: =INDIRECT(CONCATENATE("'",G$1,"'!",G$4,(YEAR($A13)-1921)*12+MONTH($A13)+3+IF(ISNUMBER(FIND("PRV",G$6)),1,0)))*IF(AND(G$3>0,TRIM(G$9)="CFS"),Conv_Flags!$C13,1) ->  | H13: =INDIRECT(CONCATENATE("'",H$1,"'!",H$4,(YEAR($A13)-1921)*12+MONTH($A13)+3+IF(ISNUMBER(FIND("PRV",H$6)),1,0)))*IF(AND(H$3>0,TRIM(H$9)="CFS"),Conv_Flags!$C13,1) ->  | L13: 1923 | M13: =B25 -> 351.1698434 | N13: =B26 -> 446.4552621 | O13: =B27 -> 245.9504132 | P13: =B28 -> 223.6823084 | Q13: =B29 -> 180.4958678 | R13: =B30 -> 199.8347107 | S13: =B31 -> 193.3884298 | T13: =B32 -> 577.5354642 | U13: =B33 -> 622.1512655 | V13: =B34 -> 851.936864 | W13: =B35 -> 597.2817517 | X13: =B36 -> 264.0226821 | Z13: 4500.549174 | AA13: 4543.642562 | AB13: 4753.904863 | AD13: 1267.257827 | AE13: 650.1285894 | AF13: 1592.90987 | AG13: 2335.392563 | AH13: 827.699754 | AJ13: 1923 | AK13: =C25 -> 306.0505524 | AL13: =C26 -> 238.0165289 | AM13: =C27 -> 245.9504132 | AN13: =C28 -> 223.6823084 | AO13: =C29 -> 180.4958678 | AP13: =C30 -> 199.8347107 | AQ13: =C31 -> 193.3884298 | AR13: =C32 -> 670.6486519 | AS13: =C33 -> 708.331321 | AT13: =C34 -> 909.6429197 | AU13: =C35 -> 680.740605 | AV13: =C36 -> 320.3332903 | AX13: 5059.892494 | AY13: 5112.485327 | AZ13: 4877.115599 | BB13: 1013.699803 | BC13: 650.1285894 | BD13: 1772.203113 | BE13: 2619.048136 | BF13: 1008.408162 | BH13: 1923 | BI13: ='Compile Data'!D25 -> 537.7446384 | BJ13: ='Compile Data'!D26 -> 417.6146726 | BK13: ='Compile Data'!D27 -> 245.9504132 | BL13: ='Compile Data'!D28 -> 223.6823084 | BM13: ='Compile Data'!D29 -> 193.6659104 | BN13: ='Compile Data'!D30 -> 199.8347107 | BO13: ='Compile Data'!D31 -> 193.3884298 | BP13: ='Compile Data'!D32 -> 540.3500555 | BQ13: ='Compile Data'!D33 -> 588.0133264 | BR13: ='Compile Data'!D34 -> 776.1864185 | BS13: ='Compile Data'!D35 -> 618.7874613 | BT13: ='Compile Data'!D36 -> 261.6811015 | BV13: 4382.534882 | BW13: 4519.702335 | BX13: 4796.899447 | BZ13: 1424.992033 | CA13: 663.298632 | CB13: 1521.586522 | CC13: 2244.668308 | CD13: 842.9663653 | CF13: 1923 | CG13: ='Compile Data'!E25 -> 364.7975739 | CH13: ='Compile Data'!E26 -> 356.999109 | CI13: ='Compile Data'!E27 -> 245.9504132 | CJ13: ='Compile Data'!E28 -> 223.6823084 | CK13: ='Compile Data'!E29 -> 302.4748722 | CL13: ='Compile Data'!E30 -> 199.8347107 | CM13: ='Compile Data'!E31 -> 193.3884298 | CN13: ='Compile Data'!E32 -> 618.7047172 | CO13: ='Compile Data'!E33 -> 667.1086712 | CP13: ='Compile Data'!E34 -> 868.3956063 | CQ13: ='Compile Data'!E35 -> 702.0073896 | CR13: ='Compile Data'!E36 -> 322.8073315 | CT13: 4974.41649 | CU13: 4944.612302 | CV13: 5066.151133 | CX13: 1191.429405 | CY13: 772.1075938 | CZ13: 1679.036529 | DA13: 2560.318999 | DB13: 946.2509572 | DD13: 1923 | DE13: ='Compile Data'!F25 ->  | DF13: ='Compile Data'!F26 ->  | DG13: ='Compile Data'!F27 ->  | DH13: ='Compile Data'!F28 ->  | DI13: ='Compile Data'!F29 ->  | DJ13: ='Compile Data'!F30 ->  | DK13: ='Compile Data'!F31 ->  | DL13: ='Compile Data'!F32 ->  | DM13: ='Compile Data'!F33 ->  | DN13: ='Compile Data'!F34 ->  | DO13: ='Compile Data'!F35 ->  | DP13: ='Compile Data'!F36 ->  | EB13: 1923 | EC13: ='Compile Data'!G25 ->  | ED13: ='Compile Data'!G26 ->  | EE13: ='Compile Data'!G27 ->  | EF13: ='Compile Data'!G28 ->  | EG13: ='Compile Data'!G29 ->  | EH13: ='Compile Data'!G30 ->  | EI13: ='Compile Data'!G31 ->  | EJ13: ='Compile Data'!G32 ->  | EK13: ='Compile Data'!G33 ->  | EL13: ='Compile Data'!G34 ->  | EM13: ='Compile Data'!G35 ->  | EN13: ='Compile Data'!G36 ->  | EZ13: 1923 | FA13: ='Compile Data'!H25 ->  | FB13: ='Compile Data'!H26 ->  | FC13: ='Compile Data'!H27 ->  | FD13: ='Compile Data'!H28 ->  | FE13: ='Compile Data'!H29 ->  | FF13: ='Compile Data'!H30 ->  | FG13: ='Compile Data'!H31 ->  | FH13: ='Compile Data'!H32 ->  | FI13: ='Compile Data'!H33 ->  | FJ13: ='Compile Data'!H34 ->  | FK13: ='Compile Data'!H35 ->  | FL13: ='Compile Data'!H36 -> 
A14: 1921-11-30 | B14: =INDIRECT(CONCATENATE("'",B$1,"'!",B$4,(YEAR($A14)-1921)*12+MONTH($A14)+3+IF(ISNUMBER(FIND("PRV",B$6)),1,0)))*IF(AND(B$3>0,TRIM(B$9)="CFS"),Conv_Flags!$C14,1) -> 384.9569861 | C14: =INDIRECT(CONCATENATE("'",C$1,"'!",C$4,(YEAR($A14)-1921)*12+MONTH($A14)+3+IF(ISNUMBER(FIND("PRV",C$6)),1,0)))*IF(AND(C$3>0,TRIM(C$9)="CFS"),Conv_Flags!$C14,1) -> 323.2292936 | D14: =INDIRECT(CONCATENATE("'",D$1,"'!",D$4,(YEAR($A14)-1921)*12+MONTH($A14)+3+IF(ISNUMBER(FIND("PRV",D$6)),1,0)))*IF(AND(D$3>0,TRIM(D$9)="CFS"),Conv_Flags!$C14,1) -> 414.1334775 | E14: =INDIRECT(CONCATENATE("'",E$1,"'!",E$4,(YEAR($A14)-1921)*12+MONTH($A14)+3+IF(ISNUMBER(FIND("PRV",E$6)),1,0)))*IF(AND(E$3>0,TRIM(E$9)="CFS"),Conv_Flags!$C14,1) -> 324.62244 | F14: =INDIRECT(CONCATENATE("'",F$1,"'!",F$4,(YEAR($A14)-1921)*12+MONTH($A14)+3+IF(ISNUMBER(FIND("PRV",F$6)),1,0)))*IF(AND(F$3>0,TRIM(F$9)="CFS"),Conv_Flags!$C14,1) ->  | G14: =INDIRECT(CONCATENATE("'",G$1,"'!",G$4,(YEAR($A14)-1921)*12+MONTH($A14)+3+IF(ISNUMBER(FIND("PRV",G$6)),1,0)))*IF(AND(G$3>0,TRIM(G$9)="CFS"),Conv_Flags!$C14,1) ->  | H14: =INDIRECT(CONCATENATE("'",H$1,"'!",H$4,(YEAR($A14)-1921)*12+MONTH($A14)+3+IF(ISNUMBER(FIND("PRV",H$6)),1,0)))*IF(AND(H$3>0,TRIM(H$9)="CFS"),Conv_Flags!$C14,1) ->  | L14: 1924 | M14: =B37 -> 296.6241245 | N14: =B38 -> 267.0529474 | O14: =B39 -> 226.5427579 | P14: =B40 -> 260.3294154 | Q14: =B41 -> 186.9421488 | R14: =B42 -> 285.7946804 | S14: =B43 -> 455.6404571 | T14: =B44 -> 468.6867342 | U14: =B45 -> 639.3789902 | V14: =B46 -> 731.2936228 | W14: =B47 -> 574.4998741 | X14: =B48 -> 417.5026956 | Z14: 4661.184346 | AA14: 4594.243375 | AB14: 4810.288448 | AD14: 1050.549245 | AE14: 673.8143221 | AF14: 1849.500862 | AG14: 2362.675183 | AH14: 858.7837122 | AJ14: 1924 | AK14: =C37 -> 362.5541171 | AL14: =C38 -> 325.5207548 | AM14: =C39 -> 284.719518 | AN14: =C40 -> 269.8288598 | AO14: =C41 -> 186.9421488 | AP14: =C42 -> 283.7419312 | AQ14: =C43 -> 453.8955449 | AR14: =C44 -> 467.2221404 | AS14: =C45 -> 648.0224303 | AT14: =C46 -> 736.8271468 | AU14: =C47 -> 533.7982632 | AV14: =C48 -> 411.914508 | AX14: 4634.377273 | AY14: 4557.936843 | AZ14: 4964.987363 | BB14: 1242.62325 | BC14: 741.4905265 | BD14: 1852.882047 | BE14: 2330.562348 | BF14: 854.2640969 | BH14: 1924 | BI14: ='Compile Data'!D37 -> 340.9990793 | BJ14: ='Compile Data'!D38 -> 240.2861845 | BK14: ='Compile Data'!D39 -> 205.6598956 | BL14: ='Compile Data'!D40 -> 367.5735231 | BM14: ='Compile Data'!D41 -> 186.9421488 | BN14: ='Compile Data'!D42 -> 282.9092665 | BO14: ='Compile Data'!D43 -> 452.9507716 | BP14: ='Compile Data'!D44 -> 466.8519838 | BQ14: ='Compile Data'!D45 -> 719.1869318 | BR14: ='Compile Data'!D46 -> 870.8090548 | BS14: ='Compile Data'!D47 -> 549.1137803 | BT14: ='Compile Data'!D48 -> 259.9628906 | BV14: 4786.823848 | BW14: 4612.638755 | BX14: 4943.245511 | BZ14: 1154.518682 | CA14: 760.1755674 | CB14: 1921.898954 | CC14: 2399.072658 | CD14: 690.6516768 | CF14: 1924 | CG14: ='Compile Data'!E37 -> 329.7652521 | CH14: ='Compile Data'!E38 -> 293.6783736 | CI14: ='Compile Data'!E39 -> 252.5688272 | CJ14: ='Compile Data'!E40 -> 309.4108439 | CK14: ='Compile Data'!E41 -> 186.9421488 | CL14: ='Compile Data'!E42 -> 282.4376314 | CM14: ='Compile Data'!E43 -> 453.2888236 | CN14: ='Compile Data'!E44 -> 467.1498144 | CO14: ='Compile Data'!E45 -> 675.8642045 | CP14: ='Compile Data'!E46 -> 929.3597243 | CQ14: ='Compile Data'!E47 -> 565.2304978 | CR14: ='Compile Data'!E48 -> 411.9544002 | CT14: 4927.733456 | CU14: 4811.711042 | CV14: 5157.650542 | CX14: 1185.423297 | CY14: 748.9218198 | CZ14: 1878.740474 | DA14: 2582.408827 | DB14: 858.2150565 | DD14: 1924 | DE14: ='Compile Data'!F37 ->  | DF14: ='Compile Data'!F38 ->  | DG14: ='Compile Data'!F39 ->  | DH14: ='Compile Data'!F40 ->  | DI14: ='Compile Data'!F41 ->  | DJ14: ='Compile Data'!F42 ->  | DK14: ='Compile Data'!F43 ->  | DL14: ='Compile Data'!F44 ->  | DM14: ='Compile Data'!F45 ->  | DN14: ='Compile Data'!F46 ->  | DO14: ='Compile Data'!F47 ->  | DP14: ='Compile Data'!F48 ->  | EB14: 1924 | EC14: ='Compile Data'!G37 ->  | ED14: ='Compile Data'!G38 ->  | EE14: ='Compile Data'!G39 ->  | EF14: ='Compile Data'!G40 ->  | EG14: ='Compile Data'!G41 ->  | EH14: ='Compile Data'!G42 ->  | EI14: ='Compile Data'!G43 ->  | EJ14: ='Compile Data'!G44 ->  | EK14: ='Compile Data'!G45 ->  | EL14: ='Compile Data'!G46 ->  | EM14: ='Compile Data'!G47 ->  | EN14: ='Compile Data'!G48 ->  | EZ14: 1924 | FA14: ='Compile Data'!H37 ->  | FB14: ='Compile Data'!H38 ->  | FC14: ='Compile Data'!H39 ->  | FD14: ='Compile Data'!H40 ->  | FE14: ='Compile Data'!H41 ->  | FF14: ='Compile Data'!H42 ->  | FG14: ='Compile Data'!H43 ->  | FH14: ='Compile Data'!H44 ->  | FI14: ='Compile Data'!H45 ->  | FJ14: ='Compile Data'!H46 ->  | FK14: ='Compile Data'!H47 ->  | FL14: ='Compile Data'!H48 -> 
A15: 1921-12-31 | B15: =INDIRECT(CONCATENATE("'",B$1,"'!",B$4,(YEAR($A15)-1921)*12+MONTH($A15)+3+IF(ISNUMBER(FIND("PRV",B$6)),1,0)))*IF(AND(B$3>0,TRIM(B$9)="CFS"),Conv_Flags!$C15,1) -> 230.1890659 | C15: =INDIRECT(CONCATENATE("'",C$1,"'!",C$4,(YEAR($A15)-1921)*12+MONTH($A15)+3+IF(ISNUMBER(FIND("PRV",C$6)),1,0)))*IF(AND(C$3>0,TRIM(C$9)="CFS"),Conv_Flags!$C15,1) -> 230.1890659 | D15: =INDIRECT(CONCATENATE("'",D$1,"'!",D$4,(YEAR($A15)-1921)*12+MONTH($A15)+3+IF(ISNUMBER(FIND("PRV",D$6)),1,0)))*IF(AND(D$3>0,TRIM(D$9)="CFS"),Conv_Flags!$C15,1) -> 230.1890659 | E15: =INDIRECT(CONCATENATE("'",E$1,"'!",E$4,(YEAR($A15)-1921)*12+MONTH($A15)+3+IF(ISNUMBER(FIND("PRV",E$6)),1,0)))*IF(AND(E$3>0,TRIM(E$9)="CFS"),Conv_Flags!$C15,1) -> 230.1890659 | F15: =INDIRECT(CONCATENATE("'",F$1,"'!",F$4,(YEAR($A15)-1921)*12+MONTH($A15)+3+IF(ISNUMBER(FIND("PRV",F$6)),1,0)))*IF(AND(F$3>0,TRIM(F$9)="CFS"),Conv_Flags!$C15,1) ->  | G15: =INDIRECT(CONCATENATE("'",G$1,"'!",G$4,(YEAR($A15)-1921)*12+MONTH($A15)+3+IF(ISNUMBER(FIND("PRV",G$6)),1,0)))*IF(AND(G$3>0,TRIM(G$9)="CFS"),Conv_Flags!$C15,1) ->  | H15: =INDIRECT(CONCATENATE("'",H$1,"'!",H$4,(YEAR($A15)-1921)*12+MONTH($A15)+3+IF(ISNUMBER(FIND("PRV",H$6)),1,0)))*IF(AND(H$3>0,TRIM(H$9)="CFS"),Conv_Flags!$C15,1) ->  | L15: 1925 | M15: =B49 -> 247.8925868 | N15: =B50 -> 193.3884298 | O15: =B51 -> 199.8347107 | P15: =B52 -> 199.8347258 | Q15: =B53 -> 180.4958678 | R15: =B54 -> 210.4207264 | S15: =B55 -> 221.2692246 | T15: =B56 -> 373.9483284 | U15: =B57 -> 572.4044744 | V15: =B58 -> 815.7916406 | W15: =B59 -> 620.1328629 | X15: =B60 -> 341.8991219 | Z15: 4354.260574 | AA15: 4354.260654 | AB15: 4177.3127 | AD15: 840.9504531 | AE15: 580.1653043 | AF15: 1378.042754 | AG15: 2350.2281 | AH15: 945.1912539 | AJ15: 1925 | AK15: =C49 -> 248.9611591 | AL15: =C50 -> 193.3884298 | AM15: =C51 -> 199.8347107 | AN15: =C52 -> 199.8347107 | AO15: =C53 -> 180.4958678 | AP15: =C54 -> 210.4207264 | AQ15: =C55 -> 221.2692246 | AR15: =C56 -> 371.1413052 | AS15: =C57 -> 574.6305914 | AT15: =C58 -> 838.7265167 | AU15: =C59 -> 616.7641348 | AV15: =C60 -> 341.2233084 | AX15: 4377.14547 | AY15: 4377.14547 | AZ15: 4196.690686 | BB15: 842.0190104 | BC15: 580.1652893 | BD15: 1377.461848 | BE15: 2371.344551 | BF15: 949.0909226 | BH15: 1925 | BI15: ='Compile Data'!D49 -> 237.3003564 | BJ15: ='Compile Data'!D50 -> 193.3884298 | BK15: ='Compile Data'!D51 -> 199.8347107 | BL15: ='Compile Data'!D52 -> 199.8347107 | BM15: ='Compile Data'!D53 -> 180.4958678 | BN15: ='Compile Data'!D54 -> 210.4207264 | BO15: ='Compile Data'!D55 -> 221.2692246 | BP15: ='Compile Data'!D56 -> 346.9808503 | BQ15: ='Compile Data'!D57 -> 548.6419873 | BR15: ='Compile Data'!D58 -> 781.8508439 | BS15: ='Compile Data'!D59 -> 704.7899438 | BT15: ='Compile Data'!D60 -> 324.383668 | BV15: 4408.238038 | BW15: 4408.238052 | BX15: 4149.19132 | BZ15: 830.3582076 | CA15: 580.1652893 | CB15: 1327.312789 | CC15: 2359.666443 | CD15: 999.1824135 | CF15: 1925 | CG15: ='Compile Data'!E49 -> 252.872212 | CH15: ='Compile Data'!E50 -> 193.3884443 | CI15: ='Compile Data'!E51 -> 199.8347107 | CJ15: ='Compile Data'!E52 -> 199.8347107 | CK15: ='Compile Data'!E53 -> 180.4958678 | CL15: ='Compile Data'!E54 -> 210.4207264 | CM15: ='Compile Data'!E55 -> 221.2692246 | CN15: ='Compile Data'!E56 -> 342.1489695 | CO15: ='Compile Data'!E57 -> 550.5679106 | CP15: ='Compile Data'!E58 -> 798.5542756 | CQ15: ='Compile Data'!E59 -> 661.0986183 | CR15: ='Compile Data'!E60 -> 362.7793195 | CT15: 4448.143899 | CU15: 4448.143899 | CV15: 4173.26499 | CX15: 845.9300778 | CY15: 580.1652893 | CZ15: 1324.406831 | DA15: 2373.000124 | DB15: 1068.982126 | DD15: 1925 | DE15: ='Compile Data'!F49 ->  | DF15: ='Compile Data'!F50 ->  | DG15: ='Compile Data'!F51 ->  | DH15: ='Compile Data'!F52 ->  | DI15: ='Compile Data'!F53 ->  | DJ15: ='Compile Data'!F54 ->  | DK15: ='Compile Data'!F55 ->  | DL15: ='Compile Data'!F56 ->  | DM15: ='Compile Data'!F57 ->  | DN15: ='Compile Data'!F58 ->  | DO15: ='Compile Data'!F59 ->  | DP15: ='Compile Data'!F60 ->  | EB15: 1925 | EC15: ='Compile Data'!G49 ->  | ED15: ='Compile Data'!G50 ->  | EE15: ='Compile Data'!G51 ->  | EF15: ='Compile Data'!G52 ->  | EG15: ='Compile Data'!G53 ->  | EH15: ='Compile Data'!G54 ->  | EI15: ='Compile Data'!G55 ->  | EJ15: ='Compile Data'!G56 ->  | EK15: ='Compile Data'!G57 ->  | EL15: ='Compile Data'!G58 ->  | EM15: ='Compile Data'!G59 ->  | EN15: ='Compile Data'!G60 ->  | EZ15: 1925 | FA15: ='Compile Data'!H49 ->  | FB15: ='Compile Data'!H50 ->  | FC15: ='Compile Data'!H51 ->  | FD15: ='Compile Data'!H52 ->  | FE15: ='Compile Data'!H53 ->  | FF15: ='Compile Data'!H54 ->  | FG15: ='Compile Data'!H55 ->  | FH15: ='Compile Data'!H56 ->  | FI15: ='Compile Data'!H57 ->  | FJ15: ='Compile Data'!H58 ->  | FK15: ='Compile Data'!H59 ->  | FL15: ='Compile Data'!H60 -> 
A16: 1922-01-31 | B16: =INDIRECT(CONCATENATE("'",B$1,"'!",B$4,(YEAR($A16)-1921)*12+MONTH($A16)+3+IF(ISNUMBER(FIND("PRV",B$6)),1,0)))*IF(AND(B$3>0,TRIM(B$9)="CFS"),Conv_Flags!$C16,1) -> 199.8347107 | C16: =INDIRECT(CONCATENATE("'",C$1,"'!",C$4,(YEAR($A16)-1921)*12+MONTH($A16)+3+IF(ISNUMBER(FIND("PRV",C$6)),1,0)))*IF(AND(C$3>0,TRIM(C$9)="CFS"),Conv_Flags!$C16,1) -> 199.8347107 | D16: =INDIRECT(CONCATENATE("'",D$1,"'!",D$4,(YEAR($A16)-1921)*12+MONTH($A16)+3+IF(ISNUMBER(FIND("PRV",D$6)),1,0)))*IF(AND(D$3>0,TRIM(D$9)="CFS"),Conv_Flags!$C16,1) -> 199.8347107 | E16: =INDIRECT(CONCATENATE("'",E$1,"'!",E$4,(YEAR($A16)-1921)*12+MONTH($A16)+3+IF(ISNUMBER(FIND("PRV",E$6)),1,0)))*IF(AND(E$3>0,TRIM(E$9)="CFS"),Conv_Flags!$C16,1) -> 199.8347107 | F16: =INDIRECT(CONCATENATE("'",F$1,"'!",F$4,(YEAR($A16)-1921)*12+MONTH($A16)+3+IF(ISNUMBER(FIND("PRV",F$6)),1,0)))*IF(AND(F$3>0,TRIM(F$9)="CFS"),Conv_Flags!$C16,1) ->  | G16: =INDIRECT(CONCATENATE("'",G$1,"'!",G$4,(YEAR($A16)-1921)*12+MONTH($A16)+3+IF(ISNUMBER(FIND("PRV",G$6)),1,0)))*IF(AND(G$3>0,TRIM(G$9)="CFS"),Conv_Flags!$C16,1) ->  | H16: =INDIRECT(CONCATENATE("'",H$1,"'!",H$4,(YEAR($A16)-1921)*12+MONTH($A16)+3+IF(ISNUMBER(FIND("PRV",H$6)),1,0)))*IF(AND(H$3>0,TRIM(H$9)="CFS"),Conv_Flags!$C16,1) ->  | L16: 1926 | M16: =B61 -> 346.9130579 | N16: =B62 -> 256.3790741 | O16: =B63 -> 214.7714697 | P16: =B64 -> 199.8347107 | Q16: =B65 -> 180.4959627 | R16: =B66 -> 254.1926343 | S16: =B67 -> 237.3963843 | T16: =B68 -> 377.90296 | U16: =B69 -> 684.8961648 | V16: =B70 -> 805.9039657 | W16: =B71 -> 631.8659465 | X16: =B72 -> 233.9937678 | Z16: 4415.029647 | AA16: 5959.445203 | AB16: 4424.546098 | AD16: 1017.898312 | AE16: 595.1021431 | AF16: 1554.388143 | AG16: 2356.659845 | AH16: 773.3677957 | AJ16: 1926 | AK16: =C61 -> 349.1665425 | AL16: =C62 -> 258.7010718 | AM16: =C63 -> 214.7714697 | AN16: =C64 -> 199.8347107 | AO16: =C65 -> 180.4958678 | AP16: =C66 -> 254.1926343 | AQ16: =C67 -> 237.3963843 | AR16: =C68 -> 507.8889243 | AS16: =C69 -> 654.89539 | AT16: =C70 -> 833.0149548 | AU16: =C71 -> 631.5132335 | AV16: =C72 -> 249.5395855 | AX16: 4579.604819 | AY16: 5988.149602 | AZ16: 4571.410769 | BB16: 1022.473795 | BC16: 595.1020482 | BD16: 1654.373333 | BE16: 2368.963164 | BF16: 811.1995971 | BH16: 1926 | BI16: ='Compile Data'!D61 -> 406.2831818 | BJ16: ='Compile Data'!D62 -> 268.5155637 | BK16: ='Compile Data'!D63 -> 214.7714697 | BL16: ='Compile Data'!D64 -> 199.8347107 | BM16: ='Compile Data'!D65 -> 180.4958813 | BN16: ='Compile Data'!D66 -> 335.1180963 | BO16: ='Compile Data'!D67 -> 237.3963843 | BP16: ='Compile Data'!D68 -> 468.0286247 | BQ16: ='Compile Data'!D69 -> 744.3650245 | BR16: ='Compile Data'!D70 -> 690.7556386 | BS16: ='Compile Data'!D71 -> 627.4922204 | BT16: ='Compile Data'!D72 -> 273.3605017 | BV16: 4511.552889 | BW16: 5762.92535 | BX16: 4646.417298 | BZ16: 1089.404926 | CA16: 595.1020618 | CB16: 1784.90813 | CC16: 2335.973385 | CD16: 758.893186 | CF16: 1926 | CG16: ='Compile Data'!E61 -> 429.4139895 | CH16: ='Compile Data'!E62 -> 276.7888171 | CI16: ='Compile Data'!E63 -> 214.7714697 | CJ16: ='Compile Data'!E64 -> 199.8347107 | CK16: ='Compile Data'!E65 -> 180.4958678 | CL16: ='Compile Data'!E66 -> 333.1387239 | CM16: ='Compile Data'!E67 -> 237.3963843 | CN16: ='Compile Data'!E68 -> 475.0221791 | CO16: ='Compile Data'!E69 -> 745.47172 | CP16: ='Compile Data'!E70 -> 704.1738068 | CQ16: ='Compile Data'!E71 -> 723.4498102 | CR16: ='Compile Data'!E72 -> 242.8356373 | CT16: 4614.631064 | CU16: 5833.404944 | CV16: 4762.793116 | CX16: 1120.808987 | CY16: 595.1020482 | CZ16: 1791.029007 | DA16: 2415.930974 | DB16: 746.4747395 | DD16: 1926 | DE16: ='Compile Data'!F61 ->  | DF16: ='Compile Data'!F62 ->  | DG16: ='Compile Data'!F63 ->  | DH16: ='Compile Data'!F64 ->  | DI16: ='Compile Data'!F65 ->  | DJ16: ='Compile Data'!F66 ->  | DK16: ='Compile Data'!F67 ->  | DL16: ='Compile Data'!F68 ->  | DM16: ='Compile Data'!F69 ->  | DN16: ='Compile Data'!F70 ->  | DO16: ='Compile Data'!F71 ->  | DP16: ='Compile Data'!F72 ->  | EB16: 1926 | EC16: ='Compile Data'!G61 ->  | ED16: ='Compile Data'!G62 ->  | EE16: ='Compile Data'!G63 ->  | EF16: ='Compile Data'!G64 ->  | EG16: ='Compile Data'!G65 ->  | EH16: ='Compile Data'!G66 ->  | EI16: ='Compile Data'!G67 ->  | EJ16: ='Compile Data'!G68 ->  | EK16: ='Compile Data'!G69 ->  | EL16: ='Compile Data'!G70 ->  | EM16: ='Compile Data'!G71 ->  | EN16: ='Compile Data'!G72 ->  | EZ16: 1926 | FA16: ='Compile Data'!H61 ->  | FB16: ='Compile Data'!H62 ->  | FC16: ='Compile Data'!H63 ->  | FD16: ='Compile Data'!H64 ->  | FE16: ='Compile Data'!H65 ->  | FF16: ='Compile Data'!H66 ->  | FG16: ='Compile Data'!H67 ->  | FH16: ='Compile Data'!H68 ->  | FI16: ='Compile Data'!H69 ->  | FJ16: ='Compile Data'!H70 ->  | FK16: ='Compile Data'!H71 ->  | FL16: ='Compile Data'!H72 -> 
A17: 1922-02-28 | B17: =INDIRECT(CONCATENATE("'",B$1,"'!",B$4,(YEAR($A17)-1921)*12+MONTH($A17)+3+IF(ISNUMBER(FIND("PRV",B$6)),1,0)))*IF(AND(B$3>0,TRIM(B$9)="CFS"),Conv_Flags!$C17,1) -> 249.9173554 | C17: =INDIRECT(CONCATENATE("'",C$1,"'!",C$4,(YEAR($A17)-1921)*12+MONTH($A17)+3+IF(ISNUMBER(FIND("PRV",C$6)),1,0)))*IF(AND(C$3>0,TRIM(C$9)="CFS"),Conv_Flags!$C17,1) -> 249.9173554 | D17: =INDIRECT(CONCATENATE("'",D$1,"'!",D$4,(YEAR($A17)-1921)*12+MONTH($A17)+3+IF(ISNUMBER(FIND("PRV",D$6)),1,0)))*IF(AND(D$3>0,TRIM(D$9)="CFS"),Conv_Flags!$C17,1) -> 249.9173554 | E17: =INDIRECT(CONCATENATE("'",E$1,"'!",E$4,(YEAR($A17)-1921)*12+MONTH($A17)+3+IF(ISNUMBER(FIND("PRV",E$6)),1,0)))*IF(AND(E$3>0,TRIM(E$9)="CFS"),Conv_Flags!$C17,1) -> 249.9173554 | F17: =INDIRECT(CONCATENATE("'",F$1,"'!",F$4,(YEAR($A17)-1921)*12+MONTH($A17)+3+IF(ISNUMBER(FIND("PRV",F$6)),1,0)))*IF(AND(F$3>0,TRIM(F$9)="CFS"),Conv_Flags!$C17,1) ->  | G17: =INDIRECT(CONCATENATE("'",G$1,"'!",G$4,(YEAR($A17)-1921)*12+MONTH($A17)+3+IF(ISNUMBER(FIND("PRV",G$6)),1,0)))*IF(AND(G$3>0,TRIM(G$9)="CFS"),Conv_Flags!$C17,1) ->  | H17: =INDIRECT(CONCATENATE("'",H$1,"'!",H$4,(YEAR($A17)-1921)*12+MONTH($A17)+3+IF(ISNUMBER(FIND("PRV",H$6)),1,0)))*IF(AND(H$3>0,TRIM(H$9)="CFS"),Conv_Flags!$C17,1) ->  | L17: 1927 | M17: =B73 -> 332.2523176 | N17: =B74 -> 207.1217104 | O17: =B75 -> 269.1731221 | P17: =B76 -> 276.6942149 | Q17: =B77 -> 1648.052014 | R17: =B78 -> 261.3214734 | S17: =B79 -> 579.6858277 | T17: =B80 -> 474.3391503 | U17: =B81 -> 648.6483277 | V17: =B82 -> 922.3140496 | W17: =B83 -> 684.4756166 | X17: =B84 -> 590.0143272 | Z17: 6981.803344 | AA17: 5527.96094 | AB17: 6894.092152 | AD17: 1085.241365 | AE17: 2193.919351 | AF17: 1963.994779 | AG17: 2845.452321 | AH17: 1240.322256 | AJ17: 1927 | AK17: =C73 -> 354.5383013 | AL17: =C74 -> 207.1217104 | AM17: =C75 -> 269.1731221 | AN17: =C76 -> 276.6942149 | AO17: =C77 -> 1512.181147 | AP17: =C78 -> 261.3214734 | AQ17: =C79 -> 579.6858277 | AR17: =C80 -> 474.3391503 | AS17: =C81 -> 648.4848076 | AT17: =C82 -> 922.3140496 | AU17: =C83 -> 684.3148121 | AV17: =C84 -> 403.7442246 | AX17: 6592.520933 | AY17: 5274.549397 | AZ17: 6593.912841 | BB17: 1107.527349 | BC17: 2058.048484 | BD17: 1963.831259 | BE17: 2658.857894 | BF17: 987.2350374 | BH17: 1927 | BI17: ='Compile Data'!D73 -> 278.410974 | BJ17: ='Compile Data'!D74 -> 207.1217104 | BK17: ='Compile Data'!D75 -> 269.1731221 | BL17: ='Compile Data'!D76 -> 276.6942149 | BM17: ='Compile Data'!D77 -> 1355.008838 | BN17: ='Compile Data'!D78 -> 261.3214734 | BO17: ='Compile Data'!D79 -> 541.4521565 | BP17: ='Compile Data'!D80 -> 438.4307202 | BQ17: ='Compile Data'!D81 -> 637.3720622 | BR17: ='Compile Data'!D82 -> 922.3140496 | BS17: ='Compile Data'!D83 -> 678.2462138 | BT17: ='Compile Data'!D84 -> 636.7204804 | BV17: 6656.364616 | BW17: 5495.565389 | BX17: 6502.266015 | BZ17: 1031.400021 | CA17: 1900.876175 | CB17: 1878.576412 | CC17: 2874.652806 | CD17: 1299.574474 | CF17: 1927 | CG17: ='Compile Data'!E73 -> 296.5173919 | CH17: ='Compile Data'!E74 -> 207.1217104 | CI17: ='Compile Data'!E75 -> 269.1731221 | CJ17: ='Compile Data'!E76 -> 276.6942149 | CK17: ='Compile Data'!E77 -> 1322.410243 | CL17: ='Compile Data'!E78 -> 261.3214734 | CM17: ='Compile Data'!E79 -> 541.4521565 | CN17: ='Compile Data'!E80 -> 438.4307202 | CO17: ='Compile Data'!E81 -> 642.6793195 | CP17: ='Compile Data'!E82 -> 922.3140496 | CQ17: ='Compile Data'!E83 -> 680.0346985 | CR17: ='Compile Data'!E84 -> 380.0160221 | CT17: 6302.498838 | CU17: 5174.298207 | CV17: 6238.165122 | CX17: 1049.506439 | CY17: 1868.27758 | CZ17: 1883.88367 | DA17: 2625.04409 | DB17: 971.2115499 | DD17: 1927 | DE17: ='Compile Data'!F73 ->  | DF17: ='Compile Data'!F74 ->  | DG17: ='Compile Data'!F75 ->  | DH17: ='Compile Data'!F76 ->  | DI17: ='Compile Data'!F77 ->  | DJ17: ='Compile Data'!F78 ->  | DK17: ='Compile Data'!F79 ->  | DL17: ='Compile Data'!F80 ->  | DM17: ='Compile Data'!F81 ->  | DN17: ='Compile Data'!F82 ->  | DO17: ='Compile Data'!F83 ->  | DP17: ='Compile Data'!F84 ->  | EB17: 1927 | EC17: ='Compile Data'!G73 ->  | ED17: ='Compile Data'!G74 ->  | EE17: ='Compile Data'!G75 ->  | EF17: ='Compile Data'!G76 ->  | EG17: ='Compile Data'!G77 ->  | EH17: ='Compile Data'!G78 ->  | EI17: ='Compile Data'!G79 ->  | EJ17: ='Compile Data'!G80 ->  | EK17: ='Compile Data'!G81 ->  | EL17: ='Compile Data'!G82 ->  | EM17: ='Compile Data'!G83 ->  | EN17: ='Compile Data'!G84 ->  | EZ17: 1927 | FA17: ='Compile Data'!H73 ->  | FB17: ='Compile Data'!H74 ->  | FC17: ='Compile Data'!H75 ->  | FD17: ='Compile Data'!H76 ->  | FE17: ='Compile Data'!H77 ->  | FF17: ='Compile Data'!H78 ->  | FG17: ='Compile Data'!H79 ->  | FH17: ='Compile Data'!H80 ->  | FI17: ='Compile Data'!H81 ->  | FJ17: ='Compile Data'!H82 ->  | FK17: ='Compile Data'!H83 ->  | FL17: ='Compile Data'!H84 -> 
A18: 1922-03-31 | B18: =INDIRECT(CONCATENATE("'",B$1,"'!",B$4,(YEAR($A18)-1921)*12+MONTH($A18)+3+IF(ISNUMBER(FIND("PRV",B$6)),1,0)))*IF(AND(B$3>0,TRIM(B$9)="CFS"),Conv_Flags!$C18,1) -> 276.6942149 | C18: =INDIRECT(CONCATENATE("'",C$1,"'!",C$4,(YEAR($A18)-1921)*12+MONTH($A18)+3+IF(ISNUMBER(FIND("PRV",C$6)),1,0)))*IF(AND(C$3>0,TRIM(C$9)="CFS"),Conv_Flags!$C18,1) -> 276.6942149 | D18: =INDIRECT(CONCATENATE("'",D$1,"'!",D$4,(YEAR($A18)-1921)*12+MONTH($A18)+3+IF(ISNUMBER(FIND("PRV",D$6)),1,0)))*IF(AND(D$3>0,TRIM(D$9)="CFS"),Conv_Flags!$C18,1) -> 276.6942149 | E18: =INDIRECT(CONCATENATE("'",E$1,"'!",E$4,(YEAR($A18)-1921)*12+MONTH($A18)+3+IF(ISNUMBER(FIND("PRV",E$6)),1,0)))*IF(AND(E$3>0,TRIM(E$9)="CFS"),Conv_Flags!$C18,1) -> 276.6942149 | F18: =INDIRECT(CONCATENATE("'",F$1,"'!",F$4,(YEAR($A18)-1921)*12+MONTH($A18)+3+IF(ISNUMBER(FIND("PRV",F$6)),1,0)))*IF(AND(F$3>0,TRIM(F$9)="CFS"),Conv_Flags!$C18,1) ->  | G18: =INDIRECT(CONCATENATE("'",G$1,"'!",G$4,(YEAR($A18)-1921)*12+MONTH($A18)+3+IF(ISNUMBER(FIND("PRV",G$6)),1,0)))*IF(AND(G$3>0,TRIM(G$9)="CFS"),Conv_Flags!$C18,1) ->  | H18: =INDIRECT(CONCATENATE("'",H$1,"'!",H$4,(YEAR($A18)-1921)*12+MONTH($A18)+3+IF(ISNUMBER(FIND("PRV",H$6)),1,0)))*IF(AND(H$3>0,TRIM(H$9)="CFS"),Conv_Flags!$C18,1) ->  | L18: 1928 | M18: =B85 -> 356.7335708 | N18: =B86 -> 293.5743576 | O18: =B87 -> 245.9504132 | P18: =B88 -> 274.5384559 | Q18: =B89 -> 196.36537 | R18: =B90 -> 861.3103009 | S18: =B91 -> 220.1647953 | T18: =B92 -> 402.9046362 | U18: =B93 -> 788.8838197 | V18: =B94 -> 922.3140496 | W18: =B95 -> 742.1563927 | X18: =B96 -> 617.9346074 | Z18: 5869.376872 | AA18: 5778.803624 | AB18: 5922.830769 | AD18: 1170.796798 | AE18: 716.8542391 | AF18: 2273.263552 | AG18: 3071.288869 | AH18: 1260.854772 | AJ18: 1928 | AK18: =C85 -> 345.474284 | AL18: =C86 -> 238.0165289 | AM18: =C87 -> 245.9504132 | AN18: =C88 -> 274.5384559 | AO18: =C89 -> 196.36537 | AP18: =C90 -> 1097.78802 | AQ18: =C91 -> 220.1647953 | AR18: =C92 -> 400.0559407 | AS18: =C93 -> 763.4149471 | AT18: =C94 -> 922.3140496 | AU18: =C95 -> 706.2240941 | AV18: =C96 -> 365.0508781 | AX18: 5699.311754 | AY18: 5608.738507 | AZ18: 5775.357777 | BB18: 1103.979682 | BC18: 716.8542391 | BD18: 2481.423704 | BE18: 2757.003969 | BF18: 918.5618017 | BH18: 1928 | BI18: ='Compile Data'!D85 -> 370.7967885 | BJ18: ='Compile Data'!D86 -> 292.0572056 | BK18: ='Compile Data'!D87 -> 245.9504132 | BL18: ='Compile Data'!D88 -> 274.5384559 | BM18: ='Compile Data'!D89 -> 196.36537 | BN18: ='Compile Data'!D90 -> 789.9228932 | BO18: ='Compile Data'!D91 -> 220.1647953 | BP18: ='Compile Data'!D92 -> 538.56043 | BQ18: ='Compile Data'!D93 -> 783.0868156 | BR18: ='Compile Data'!D94 -> 922.3140496 | BS18: ='Compile Data'!D95 -> 755.1311777 | BT18: ='Compile Data'!D96 -> 375.3519499 | BV18: 5728.936004 | BW18: 5638.362757 | BX18: 5764.240344 | BZ18: 1183.342863 | CA18: 716.8542391 | CB18: 2331.734934 | CC18: 2835.883993 | CD18: 1048.967738 | CF18: 1928 | CG18: ='Compile Data'!E85 -> 353.1789989 | CH18: ='Compile Data'!E86 -> 238.0165289 | CI18: ='Compile Data'!E87 -> 245.9504132 | CJ18: ='Compile Data'!E88 -> 274.5384559 | CK18: ='Compile Data'!E89 -> 196.36537 | CL18: ='Compile Data'!E90 -> 1061.237964 | CM18: ='Compile Data'!E91 -> 220.1647953 | CN18: ='Compile Data'!E92 -> 531.9847992 | CO18: ='Compile Data'!E93 -> 755.8119576 | CP18: ='Compile Data'!E94 -> 922.3140496 | CQ18: ='Compile Data'!E95 -> 766.6418492 | CR18: ='Compile Data'!E96 -> 368.3116639 | CT18: 5919.648976 | CU18: 5829.075728 | CV18: 5934.516845 | CX18: 1111.684397 | CY18: 716.8542391 | CZ18: 2569.199516 | DA18: 2813.07952 | DB18: 990.7054562 | DD18: 1928 | DE18: ='Compile Data'!F85 ->  | DF18: ='Compile Data'!F86 ->  | DG18: ='Compile Data'!F87 ->  | DH18: ='Compile Data'!F88 ->  | DI18: ='Compile Data'!F89 ->  | DJ18: ='Compile Data'!F90 ->  | DK18: ='Compile Data'!F91 ->  | DL18: ='Compile Data'!F92 ->  | DM18: ='Compile Data'!F93 ->  | DN18: ='Compile Data'!F94 ->  | DO18: ='Compile Data'!F95 ->  | DP18: ='Compile Data'!F96 ->  | EB18: 1928 | EC18: ='Compile Data'!G85 ->  | ED18: ='Compile Data'!G86 ->  | EE18: ='Compile Data'!G87 ->  | EF18: ='Compile Data'!G88 ->  | EG18: ='Compile Data'!G89 ->  | EH18: ='Compile Data'!G90 ->  | EI18: ='Compile Data'!G91 ->  | EJ18: ='Compile Data'!G92 ->  | EK18: ='Compile Data'!G93 ->  | EL18: ='Compile Data'!G94 ->  | EM18: ='Compile Data'!G95 ->  | EN18: ='Compile Data'!G96 ->  | EZ18: 1928 | FA18: ='Compile Data'!H85 ->  | FB18: ='Compile Data'!H86 ->  | FC18: ='Compile Data'!H87 ->  | FD18: ='Compile Data'!H88 ->  | FE18: ='Compile Data'!H89 ->  | FF18: ='Compile Data'!H90 ->  | FG18: ='Compile Data'!H91 ->  | FH18: ='Compile Data'!H92 ->  | FI18: ='Compile Data'!H93 ->  | FJ18: ='Compile Data'!H94 ->  | FK18: ='Compile Data'!H95 ->  | FL18: ='Compile Data'!H96 -> 
A19: 1922-04-30 | B19: =INDIRECT(CONCATENATE("'",B$1,"'!",B$4,(YEAR($A19)-1921)*12+MONTH($A19)+3+IF(ISNUMBER(FIND("PRV",B$6)),1,0)))*IF(AND(B$3>0,TRIM(B$9)="CFS"),Conv_Flags!$C19,1) -> 299.053648 | C19: =INDIRECT(CONCATENATE("'",C$1,"'!",C$4,(YEAR($A19)-1921)*12+MONTH($A19)+3+IF(ISNUMBER(FIND("PRV",C$6)),1,0)))*IF(AND(C$3>0,TRIM(C$9)="CFS"),Conv_Flags!$C19,1) -> 299.3161286 | D19: =INDIRECT(CONCATENATE("'",D$1,"'!",D$4,(YEAR($A19)-1921)*12+MONTH($A19)+3+IF(ISNUMBER(FIND("PRV",D$6)),1,0)))*IF(AND(D$3>0,TRIM(D$9)="CFS"),Conv_Flags!$C19,1) -> 296.2282186 | E19: =INDIRECT(CONCATENATE("'",E$1,"'!",E$4,(YEAR($A19)-1921)*12+MONTH($A19)+3+IF(ISNUMBER(FIND("PRV",E$6)),1,0)))*IF(AND(E$3>0,TRIM(E$9)="CFS"),Conv_Flags!$C19,1) -> 436.1282444 | F19: =INDIRECT(CONCATENATE("'",F$1,"'!",F$4,(YEAR($A19)-1921)*12+MONTH($A19)+3+IF(ISNUMBER(FIND("PRV",F$6)),1,0)))*IF(AND(F$3>0,TRIM(F$9)="CFS"),Conv_Flags!$C19,1) ->  | G19: =INDIRECT(CONCATENATE("'",G$1,"'!",G$4,(YEAR($A19)-1921)*12+MONTH($A19)+3+IF(ISNUMBER(FIND("PRV",G$6)),1,0)))*IF(AND(G$3>0,TRIM(G$9)="CFS"),Conv_Flags!$C19,1) ->  | H19: =INDIRECT(CONCATENATE("'",H$1,"'!",H$4,(YEAR($A19)-1921)*12+MONTH($A19)+3+IF(ISNUMBER(FIND("PRV",H$6)),1,0)))*IF(AND(H$3>0,TRIM(H$9)="CFS"),Conv_Flags!$C19,1) ->  | L19: 1929 | M19: =B97 -> 401.8126608 | N19: =B98 -> 241.1075042 | O19: =B99 -> 199.8842791 | P19: =B100 -> 199.8347107 | Q19: =B101 -> 180.4958678 | R19: =B102 -> 199.8347107 | S19: =B103 -> 327.1906476 | T19: =B104 -> 447.9119405 | U19: =B105 -> 596.6625775 | V19: =B106 -> 791.2540638 | W19: =B107 -> 567.9313288 | X19: =B108 -> 393.7273373 | Z19: 4557.895033 | AA19: 4557.895033 | AB19: 4547.647629 | AD19: 1042.639155 | AE19: 580.2148576 | AF19: 1571.599876 | AG19: 2349.575307 | AH19: 1046.944474 | AJ19: 1929 | AK19: =C97 -> 326.0195222 | AL19: =C98 -> 227.4914014 | AM19: =C99 -> 199.8842791 | AN19: =C100 -> 199.8347107 | AO19: =C101 -> 180.4958678 | AP19: =C102 -> 199.8347107 | AQ19: =C103 -> 332.3176491 | AR19: =C104 -> 445.6054048 | AS19: =C105 -> 621.4021178 | AT19: =C106 -> 855.1709078 | AU19: =C107 -> 603.4613159 | AV19: =C108 -> 403.6105436 | AX19: 4684.002273 | AY19: 4684.002273 | AZ19: 4595.128431 | BB19: 953.2299135 | BC19: 580.2148576 | BD19: 1599.159882 | BE19: 2483.644885 | BF19: 1046.044877 | BH19: 1929 | BI19: ='Compile Data'!D97 -> 446.1243866 | BJ19: ='Compile Data'!D98 -> 227.4914014 | BK19: ='Compile Data'!D99 -> 199.8842791 | BL19: ='Compile Data'!D100 -> 199.8347107 | BM19: ='Compile Data'!D101 -> 180.4958678 | BN19: ='Compile Data'!D102 -> 199.8347107 | BO19: ='Compile Data'!D103 -> 328.5898954 | BP19: ='Compile Data'!D104 -> 464.7185321 | BQ19: ='Compile Data'!D105 -> 605.5162577 | BR19: ='Compile Data'!D106 -> 697.8379416 | BS19: ='Compile Data'!D107 -> 640.3396468 | BT19: ='Compile Data'!D108 -> 397.2101304 | BV19: 4579.686422 | BW19: 4579.686422 | BX19: 4587.877761 | BZ19: 1073.334778 | CA19: 580.2148576 | CB19: 1598.659396 | CC19: 2340.903977 | CD19: 1062.684148 | CF19: 1929 | CG19: ='Compile Data'!E97 -> 394.9023909 | CH19: ='Compile Data'!E98 -> 227.4914014 | CI19: ='Compile Data'!E99 -> 199.8842791 | CJ19: ='Compile Data'!E100 -> 199.8347107 | CK19: ='Compile Data'!E101 -> 180.4958678 | CL19: ='Compile Data'!E102 -> 199.8347107 | CM19: ='Compile Data'!E103 -> 328.9993931 | CN19: ='Compile Data'!E104 -> 463.6638756 | CO19: ='Compile Data'!E105 -> 610.3365573 | CP19: ='Compile Data'!E106 -> 759.457347 | CQ19: ='Compile Data'!E107 -> 630.8592071 | CR19: ='Compile Data'!E108 -> 399.2954771 | CT19: 4635.011548 | CU19: 4635.011548 | CV19: 4595.055218 | CX19: 1022.112782 | CY19: 580.2148576 | CZ19: 1602.834537 | DA19: 2399.948589 | DB19: 1061.695168 | DD19: 1929 | DE19: ='Compile Data'!F97 ->  | DF19: ='Compile Data'!F98 ->  | DG19: ='Compile Data'!F99 ->  | DH19: ='Compile Data'!F100 ->  | DI19: ='Compile Data'!F101 ->  | DJ19: ='Compile Data'!F102 ->  | DK19: ='Compile Data'!F103 ->  | DL19: ='Compile Data'!F104 ->  | DM19: ='Compile Data'!F105 ->  | DN19: ='Compile Data'!F106 ->  | DO19: ='Compile Data'!F107 ->  | DP19: ='Compile Data'!F108 ->  | EB19: 1929 | EC19: ='Compile Data'!G97 ->  | ED19: ='Compile Data'!G98 ->  | EE19: ='Compile Data'!G99 ->  | EF19: ='Compile Data'!G100 ->  | EG19: ='Compile Data'!G101 ->  | EH19: ='Compile Data'!G102 ->  | EI19: ='Compile Data'!G103 ->  | EJ19: ='Compile Data'!G104 ->  | EK19: ='Compile Data'!G105 ->  | EL19: ='Compile Data'!G106 ->  | EM19: ='Compile Data'!G107 ->  | EN19: ='Compile Data'!G108 ->  | EZ19: 1929 | FA19: ='Compile Data'!H97 ->  | FB19: ='Compile Data'!H98 ->  | FC19: ='Compile Data'!H99 ->  | FD19: ='Compile Data'!H100 ->  | FE19: ='Compile Data'!H101 ->  | FF19: ='Compile Data'!H102 ->  | FG19: ='Compile Data'!H103 ->  | FH19: ='Compile Data'!H104 ->  | FI19: ='Compile Data'!H105 ->  | FJ19: ='Compile Data'!H106 ->  | FK19: ='Compile Data'!H107 ->  | FL19: ='Compile Data'!H108 -> 
A20: 1922-05-31 | B20: =INDIRECT(CONCATENATE("'",B$1,"'!",B$4,(YEAR($A20)-1921)*12+MONTH($A20)+3+IF(ISNUMBER(FIND("PRV",B$6)),1,0)))*IF(AND(B$3>0,TRIM(B$9)="CFS"),Conv_Flags!$C20,1) -> 497.8276249 | C20: =INDIRECT(CONCATENATE("'",C$1,"'!",C$4,(YEAR($A20)-1921)*12+MONTH($A20)+3+IF(ISNUMBER(FIND("PRV",C$6)),1,0)))*IF(AND(C$3>0,TRIM(C$9)="CFS"),Conv_Flags!$C20,1) -> 589.8063843 | D20: =INDIRECT(CONCATENATE("'",D$1,"'!",D$4,(YEAR($A20)-1921)*12+MONTH($A20)+3+IF(ISNUMBER(FIND("PRV",D$6)),1,0)))*IF(AND(D$3>0,TRIM(D$9)="CFS"),Conv_Flags!$C20,1) -> 523.0856696 | E20: =INDIRECT(CONCATENATE("'",E$1,"'!",E$4,(YEAR($A20)-1921)*12+MONTH($A20)+3+IF(ISNUMBER(FIND("PRV",E$6)),1,0)))*IF(AND(E$3>0,TRIM(E$9)="CFS"),Conv_Flags!$C20,1) -> 621.1891406 | F20: =INDIRECT(CONCATENATE("'",F$1,"'!",F$4,(YEAR($A20)-1921)*12+MONTH($A20)+3+IF(ISNUMBER(FIND("PRV",F$6)),1,0)))*IF(AND(F$3>0,TRIM(F$9)="CFS"),Conv_Flags!$C20,1) ->  | G20: =INDIRECT(CONCATENATE("'",G$1,"'!",G$4,(YEAR($A20)-1921)*12+MONTH($A20)+3+IF(ISNUMBER(FIND("PRV",G$6)),1,0)))*IF(AND(G$3>0,TRIM(G$9)="CFS"),Conv_Flags!$C20,1) ->  | H20: =INDIRECT(CONCATENATE("'",H$1,"'!",H$4,(YEAR($A20)-1921)*12+MONTH($A20)+3+IF(ISNUMBER(FIND("PRV",H$6)),1,0)))*IF(AND(H$3>0,TRIM(H$9)="CFS"),Conv_Flags!$C20,1) ->  | L20: 1930 | M20: =B109 -> 378.6407812 | N20: =B110 -> 274.5763559 | O20: =B111 -> 199.8347107 | P20: =B112 -> 199.8347107 | Q20: =B113 -> 180.4958678 | R20: =B114 -> 199.8347107 | S20: =B115 -> 257.0855985 | T20: =B116 -> 319.0583629 | U20: =B117 -> 559.4138623 | V20: =B118 -> 607.7040205 | W20: =B119 -> 541.9085621 | X20: =B120 -> 237.6336018 | Z20: 3760.397524 | AA20: 3760.397524 | AB20: 3956.021145 | AD20: 1052.886559 | AE20: 580.1652893 | AF20: 1335.392535 | AG20: 1946.660047 | AH20: 695.2271174 | AJ20: 1930 | AK20: =C109 -> 375.2504365 | AL20: =C110 -> 267.1838972 | AM20: =C111 -> 199.8347107 | AN20: =C112 -> 199.8347107 | AO20: =C113 -> 180.4958678 | AP20: =C114 -> 199.8347107 | AQ20: =C115 -> 257.0178719 | AR20: =C116 -> 318.9917413 | AS20: =C117 -> 559.3506392 | AT20: =C118 -> 632.2083316 | AU20: =C119 -> 546.9207025 | AV20: =C120 -> 237.2655072 | AX20: 3780.271652 | AY20: 3780.271652 | AZ20: 3974.189127 | BB20: 1042.103755 | BC20: 580.1652893 | BD20: 1335.194963 | BE20: 1975.74518 | BF20: 685.7823657 | BH20: 1930 | BI20: ='Compile Data'!D109 -> 388.0617149 | BJ20: ='Compile Data'!D110 -> 277.4123031 | BK20: ='Compile Data'!D111 -> 199.8347107 | BL20: ='Compile Data'!D112 -> 199.8347107 | BM20: ='Compile Data'!D113 -> 180.4958678 | BN20: ='Compile Data'!D114 -> 199.8347107 | BO20: ='Compile Data'!D115 -> 255.4073089 | BP20: ='Compile Data'!D116 -> 320.5068043 | BQ20: ='Compile Data'!D117 -> 559.8280669 | BR20: ='Compile Data'!D118 -> 719.3716929 | BS20: ='Compile Data'!D119 -> 655.8558994 | BT20: ='Compile Data'!D120 -> 241.1746061 | BV20: 4049.387712 | BW20: 4049.387712 | BX20: 4197.618397 | BZ20: 1065.143439 | CA20: 580.1652893 | CB20: 1335.576891 | CC20: 2176.230265 | CD20: 739.0505908 | CF20: 1930 | CG20: ='Compile Data'!E109 -> 385.7500752 | CH20: ='Compile Data'!E110 -> 276.6496158 | CI20: ='Compile Data'!E111 -> 199.8347107 | CJ20: ='Compile Data'!E112 -> 199.8347107 | CK20: ='Compile Data'!E113 -> 180.4958678 | CL20: ='Compile Data'!E114 -> 199.8347107 | CM20: ='Compile Data'!E115 -> 255.352163 | CN20: ='Compile Data'!E116 -> 320.4497902 | CO20: ='Compile Data'!E117 -> 559.7716426 | CP20: ='Compile Data'!E118 -> 725.6823986 | CQ20: ='Compile Data'!E119 -> 655.227633 | CR20: ='Compile Data'!E120 -> 240.9253745 | CT20: 4054.602879 | CU20: 4054.602879 | CV20: 4199.808693 | CX20: 1062.069113 | CY20: 580.1652893 | CZ20: 1335.408306 | DA20: 2181.607049 | DB20: 740.6844392 | DD20: 1930 | DE20: ='Compile Data'!F109 ->  | DF20: ='Compile Data'!F110 ->  | DG20: ='Compile Data'!F111 ->  | DH20: ='Compile Data'!F112 ->  | DI20: ='Compile Data'!F113 ->  | DJ20: ='Compile Data'!F114 ->  | DK20: ='Compile Data'!F115 ->  | DL20: ='Compile Data'!F116 ->  | DM20: ='Compile Data'!F117 ->  | DN20: ='Compile Data'!F118 ->  | DO20: ='Compile Data'!F119 ->  | DP20: ='Compile Data'!F120 ->  | EB20: 1930 | EC20: ='Compile Data'!G109 ->  | ED20: ='Compile Data'!G110 ->  | EE20: ='Compile Data'!G111 ->  | EF20: ='Compile Data'!G112 ->  | EG20: ='Compile Data'!G113 ->  | EH20: ='Compile Data'!G114 ->  | EI20: ='Compile Data'!G115 ->  | EJ20: ='Compile Data'!G116 ->  | EK20: ='Compile Data'!G117 ->  | EL20: ='Compile Data'!G118 ->  | EM20: ='Compile Data'!G119 ->  | EN20: ='Compile Data'!G120 ->  | EZ20: 1930 | FA20: ='Compile Data'!H109 ->  | FB20: ='Compile Data'!H110 ->  | FC20: ='Compile Data'!H111 ->  | FD20: ='Compile Data'!H112 ->  | FE20: ='Compile Data'!H113 ->  | FF20: ='Compile Data'!H114 ->  | FG20: ='Compile Data'!H115 ->  | FH20: ='Compile Data'!H116 ->  | FI20: ='Compile Data'!H117 ->  | FJ20: ='Compile Data'!H118 ->  | FK20: ='Compile Data'!H119 ->  | FL20: ='Compile Data'!H120 -> 
A21: 1922-06-30 | B21: =INDIRECT(CONCATENATE("'",B$1,"'!",B$4,(YEAR($A21)-1921)*12+MONTH($A21)+3+IF(ISNUMBER(FIND("PRV",B$6)),1,0)))*IF(AND(B$3>0,TRIM(B$9)="CFS"),Conv_Flags!$C21,1) -> 749.7284737 | C21: =INDIRECT(CONCATENATE("'",C$1,"'!",C$4,(YEAR($A21)-1921)*12+MONTH($A21)+3+IF(ISNUMBER(FIND("PRV",C$6)),1,0)))*IF(AND(C$3>0,TRIM(C$9)="CFS"),Conv_Flags!$C21,1) -> 755.0768143 | D21: =INDIRECT(CONCATENATE("'",D$1,"'!",D$4,(YEAR($A21)-1921)*12+MONTH($A21)+3+IF(ISNUMBER(FIND("PRV",D$6)),1,0)))*IF(AND(D$3>0,TRIM(D$9)="CFS"),Conv_Flags!$C21,1) -> 751.8842782 | E21: =INDIRECT(CONCATENATE("'",E$1,"'!",E$4,(YEAR($A21)-1921)*12+MONTH($A21)+3+IF(ISNUMBER(FIND("PRV",E$6)),1,0)))*IF(AND(E$3>0,TRIM(E$9)="CFS"),Conv_Flags!$C21,1) -> 754.0177105 | F21: =INDIRECT(CONCATENATE("'",F$1,"'!",F$4,(YEAR($A21)-1921)*12+MONTH($A21)+3+IF(ISNUMBER(FIND("PRV",F$6)),1,0)))*IF(AND(F$3>0,TRIM(F$9)="CFS"),Conv_Flags!$C21,1) ->  | G21: =INDIRECT(CONCATENATE("'",G$1,"'!",G$4,(YEAR($A21)-1921)*12+MONTH($A21)+3+IF(ISNUMBER(FIND("PRV",G$6)),1,0)))*IF(AND(G$3>0,TRIM(G$9)="CFS"),Conv_Flags!$C21,1) ->  | H21: =INDIRECT(CONCATENATE("'",H$1,"'!",H$4,(YEAR($A21)-1921)*12+MONTH($A21)+3+IF(ISNUMBER(FIND("PRV",H$6)),1,0)))*IF(AND(H$3>0,TRIM(H$9)="CFS"),Conv_Flags!$C21,1) ->  | L21: 1931 | M21: =B121 -> 264.2050859 | N21: =B122 -> 193.3884298 | O21: =B123 -> 199.8347107 | P21: =B124 -> 199.8347107 | Q21: =B125 -> 180.4958678 | R21: =B126 -> 199.8347107 | S21: =B127 -> 559.1519047 | T21: =B128 -> 449.6658684 | U21: =B129 -> 536.7432528 | V21: =B130 -> 663.6289172 | W21: =B131 -> 465.9084133 | X21: =B132 -> 195.8242785 | Z21: 3995.938291 | AA21: 4002.384572 | AB21: 4108.516151 | AD21: 857.2629371 | AE21: 580.1652893 | AF21: 1745.395737 | AG21: 1862.104862 | AH21: 540.2408653 | AJ21: 1931 | AK21: =C121 -> 255.1284288 | AL21: =C122 -> 193.3884298 | AM21: =C123 -> 199.8347107 | AN21: =C124 -> 199.8347107 | AO21: =C125 -> 180.4958678 | AP21: =C126 -> 199.8347107 | AQ21: =C127 -> 559.0073864 | AR21: =C128 -> 449.5596162 | AS21: =C129 -> 562.3302621 | AT21: =C130 -> 704.1757884 | AU21: =C131 -> 471.1390628 | AV21: =C132 -> 317.6319538 | AX21: 4230.282939 | AY21: 4236.72922 | AZ21: 4292.360928 | BB21: 848.18628 | BC21: 580.1652893 | BD21: 1770.731975 | BE21: 2055.277067 | BF21: 704.0707782 | BH21: 1931 | BI21: ='Compile Data'!D121 -> 266.3105259 | BJ21: ='Compile Data'!D122 -> 231.5654587 | BK21: ='Compile Data'!D123 -> 219.2020598 | BL21: ='Compile Data'!D124 -> 199.8347107 | BM21: ='Compile Data'!D125 -> 180.4958678 | BN21: ='Compile Data'!D126 -> 199.8347107 | BO21: ='Compile Data'!D127 -> 562.8799199 | BP21: ='Compile Data'!D128 -> 450.2327373 | BQ21: ='Compile Data'!D129 -> 604.4351304 | BR21: ='Compile Data'!D130 -> 548.1294983 | BS21: ='Compile Data'!D131 -> 356.7200604 | BT21: ='Compile Data'!D132 -> 161.1347495 | BV21: 3826.85734 | BW21: 3833.303621 | BX21: 3980.77543 | BZ21: 916.9127552 | CA21: 599.5326383 | CB21: 1817.382498 | CC21: 1670.419439 | CD21: 524.4599632 | CF21: 1931 | CG21: ='Compile Data'!E121 -> 268.0645739 | CH21: ='Compile Data'!E122 -> 231.6944909 | CI21: ='Compile Data'!E123 -> 217.2695237 | CJ21: ='Compile Data'!E124 -> 199.8347107 | CK21: ='Compile Data'!E125 -> 180.4958678 | CL21: ='Compile Data'!E126 -> 199.8347107 | CM21: ='Compile Data'!E127 -> 562.7541129 | CN21: ='Compile Data'!E128 -> 450.1542865 | CO21: ='Compile Data'!E129 -> 604.3516852 | CP21: ='Compile Data'!E130 -> 587.8235292 | CQ21: ='Compile Data'!E131 -> 362.0173315 | CR21: ='Compile Data'!E132 -> 176.2525617 | CT21: 3893.487643 | CU21: 3899.933924 | CV21: 4040.547385 | CX21: 916.8632992 | CY21: 597.6001022 | CZ21: 1817.094795 | DA21: 1730.445108 | DB21: 540.316013 | DD21: 1931 | DE21: ='Compile Data'!F121 ->  | DF21: ='Compile Data'!F122 ->  | DG21: ='Compile Data'!F123 ->  | DH21: ='Compile Data'!F124 ->  | DI21: ='Compile Data'!F125 ->  | DJ21: ='Compile Data'!F126 ->  | DK21: ='Compile Data'!F127 ->  | DL21: ='Compile Data'!F128 ->  | DM21: ='Compile Data'!F129 ->  | DN21: ='Compile Data'!F130 ->  | DO21: ='Compile Data'!F131 ->  | DP21: ='Compile Data'!F132 ->  | EB21: 1931 | EC21: ='Compile Data'!G121 ->  | ED21: ='Compile Data'!G122 ->  | EE21: ='Compile Data'!G123 ->  | EF21: ='Compile Data'!G124 ->  | EG21: ='Compile Data'!G125 ->  | EH21: ='Compile Data'!G126 ->  | EI21: ='Compile Data'!G127 ->  | EJ21: ='Compile Data'!G128 ->  | EK21: ='Compile Data'!G129 ->  | EL21: ='Compile Data'!G130 ->  | EM21: ='Compile Data'!G131 ->  | EN21: ='Compile Data'!G132 ->  | EZ21: 1931 | FA21: ='Compile Data'!H121 ->  | FB21: ='Compile Data'!H122 ->  | FC21: ='Compile Data'!H123 ->  | FD21: ='Compile Data'!H124 ->  | FE21: ='Compile Data'!H125 ->  | FF21: ='Compile Data'!H126 ->  | FG21: ='Compile Data'!H127 ->  | FH21: ='Compile Data'!H128 ->  | FI21: ='Compile Data'!H129 ->  | FJ21: ='Compile Data'!H130 ->  | FK21: ='Compile Data'!H131 ->  | FL21: ='Compile Data'!H132 -> 
A22: 1922-07-31 | B22: =INDIRECT(CONCATENATE("'",B$1,"'!",B$4,(YEAR($A22)-1921)*12+MONTH($A22)+3+IF(ISNUMBER(FIND("PRV",B$6)),1,0)))*IF(AND(B$3>0,TRIM(B$9)="CFS"),Conv_Flags!$C22,1) -> 819.9554442 | C22: =INDIRECT(CONCATENATE("'",C$1,"'!",C$4,(YEAR($A22)-1921)*12+MONTH($A22)+3+IF(ISNUMBER(FIND("PRV",C$6)),1,0)))*IF(AND(C$3>0,TRIM(C$9)="CFS"),Conv_Flags!$C22,1) -> 817.9937255 | D22: =INDIRECT(CONCATENATE("'",D$1,"'!",D$4,(YEAR($A22)-1921)*12+MONTH($A22)+3+IF(ISNUMBER(FIND("PRV",D$6)),1,0)))*IF(AND(D$3>0,TRIM(D$9)="CFS"),Conv_Flags!$C22,1) -> 820.3006515 | E22: =INDIRECT(CONCATENATE("'",E$1,"'!",E$4,(YEAR($A22)-1921)*12+MONTH($A22)+3+IF(ISNUMBER(FIND("PRV",E$6)),1,0)))*IF(AND(E$3>0,TRIM(E$9)="CFS"),Conv_Flags!$C22,1) -> 817.9165657 | F22: =INDIRECT(CONCATENATE("'",F$1,"'!",F$4,(YEAR($A22)-1921)*12+MONTH($A22)+3+IF(ISNUMBER(FIND("PRV",F$6)),1,0)))*IF(AND(F$3>0,TRIM(F$9)="CFS"),Conv_Flags!$C22,1) ->  | G22: =INDIRECT(CONCATENATE("'",G$1,"'!",G$4,(YEAR($A22)-1921)*12+MONTH($A22)+3+IF(ISNUMBER(FIND("PRV",G$6)),1,0)))*IF(AND(G$3>0,TRIM(G$9)="CFS"),Conv_Flags!$C22,1) ->  | H22: =INDIRECT(CONCATENATE("'",H$1,"'!",H$4,(YEAR($A22)-1921)*12+MONTH($A22)+3+IF(ISNUMBER(FIND("PRV",H$6)),1,0)))*IF(AND(H$3>0,TRIM(H$9)="CFS"),Conv_Flags!$C22,1) ->  | L22: 1932 | M22: =B133 -> 163.7914012 | N22: =B134 -> 180.6251856 | O22: =B135 -> 200.4337795 | P22: =B136 -> 199.8347107 | Q22: =B137 -> 186.9421488 | R22: =B138 -> 199.8347258 | S22: =B139 -> 351.4880908 | T22: =B140 -> 294.1837752 | U22: =B141 -> 474.1798295 | V22: =B142 -> 567.4867446 | W22: =B143 -> 479.6958674 | X22: =B144 -> 248.8099916 | Z22: 3692.858203 | AA22: 3686.411922 | AB22: 3547.306251 | AD22: 744.6850772 | AE22: 587.210639 | AF22: 1319.686421 | AG22: 1770.172433 | AH22: 739.3775991 | AJ22: 1932 | AK22: =C133 -> 196.2557149 | AL22: =C134 -> 190.1831095 | AM22: =C135 -> 199.8347558 | AN22: =C136 -> 199.8347107 | AO22: =C137 -> 186.9421488 | AP22: =C138 -> 199.8347107 | AQ22: =C139 -> 351.2476046 | AR22: =C140 -> 293.2813365 | AS22: =C141 -> 474.0310111 | AT22: =C142 -> 567.3724161 | AU22: =C143 -> 479.5960402 | AV22: =C144 -> 248.7180624 | AX22: 3691.154951 | AY22: 3684.70867 | AZ22: 3587.131621 | BB22: 786.1082909 | BC22: 586.6116153 | BD22: 1318.394663 | BE22: 1769.71753 | BF22: 739.1802612 | BH22: 1932 | BI22: ='Compile Data'!D133 -> 169.936784 | BJ22: ='Compile Data'!D134 -> 193.3884298 | BK22: ='Compile Data'!D135 -> 199.8347408 | BL22: ='Compile Data'!D136 -> 199.8347107 | BM22: ='Compile Data'!D137 -> 186.9421488 | BN22: ='Compile Data'!D138 -> 199.8347107 | BO22: ='Compile Data'!D139 -> 352.9664837 | BP22: ='Compile Data'!D140 -> 294.9156818 | BQ22: ='Compile Data'!D141 -> 477.4339618 | BR22: ='Compile Data'!D142 -> 568.4204074 | BS22: ='Compile Data'!D143 -> 487.0956363 | BT22: ='Compile Data'!D144 -> 249.2719912 | BV22: 3708.519764 | BW22: 3702.073483 | BX22: 3579.875687 | BZ22: 762.9946652 | CA22: 586.6116003 | CB22: 1325.150838 | CC22: 1782.221997 | CD22: 741.2413123 | CF22: 1932 | CG22: ='Compile Data'!E133 -> 179.1599245 | CH22: ='Compile Data'!E134 -> 184.9035269 | CI22: ='Compile Data'!E135 -> 205.9053956 | CJ22: ='Compile Data'!E136 -> 199.8347107 | CK22: ='Compile Data'!E137 -> 186.9421488 | CL22: ='Compile Data'!E138 -> 199.8347258 | CM22: ='Compile Data'!E139 -> 352.8340812 | CN22: ='Compile Data'!E140 -> 294.7968798 | CO22: ='Compile Data'!E141 -> 477.3309046 | CP22: ='Compile Data'!E142 -> 568.3264347 | CQ22: ='Compile Data'!E143 -> 487.0066474 | CR22: ='Compile Data'!E144 -> 249.1853499 | CT22: 3707.725265 | CU22: 3701.278984 | CV22: 3586.06073 | CX22: 769.8035578 | CY22: 592.6822551 | CZ22: 1324.796591 | DA22: 1781.849337 | DB22: 740.9840209 | DD22: 1932 | DE22: ='Compile Data'!F133 ->  | DF22: ='Compile Data'!F134 ->  | DG22: ='Compile Data'!F135 ->  | DH22: ='Compile Data'!F136 ->  | DI22: ='Compile Data'!F137 ->  | DJ22: ='Compile Data'!F138 ->  | DK22: ='Compile Data'!F139 ->  | DL22: ='Compile Data'!F140 ->  | DM22: ='Compile Data'!F141 ->  | DN22: ='Compile Data'!F142 ->  | DO22: ='Compile Data'!F143 ->  | DP22: ='Compile Data'!F144 ->  | EB22: 1932 | EC22: ='Compile Data'!G133 ->  | ED22: ='Compile Data'!G134 ->  | EE22: ='Compile Data'!G135 ->  | EF22: ='Compile Data'!G136 ->  | EG22: ='Compile Data'!G137 ->  | EH22: ='Compile Data'!G138 ->  | EI22: ='Compile Data'!G139 ->  | EJ22: ='Compile Data'!G140 ->  | EK22: ='Compile Data'!G141 ->  | EL22: ='Compile Data'!G142 ->  | EM22: ='Compile Data'!G143 ->  | EN22: ='Compile Data'!G144 ->  | EZ22: 1932 | FA22: ='Compile Data'!H133 ->  | FB22: ='Compile Data'!H134 ->  | FC22: ='Compile Data'!H135 ->  | FD22: ='Compile Data'!H136 ->  | FE22: ='Compile Data'!H137 ->  | FF22: ='Compile Data'!H138 ->  | FG22: ='Compile Data'!H139 ->  | FH22: ='Compile Data'!H140 ->  | FI22: ='Compile Data'!H141 ->  | FJ22: ='Compile Data'!H142 ->  | FK22: ='Compile Data'!H143 ->  | FL22: ='Compile Data'!H144 -> 
A23: 1922-08-31 | B23: =INDIRECT(CONCATENATE("'",B$1,"'!",B$4,(YEAR($A23)-1921)*12+MONTH($A23)+3+IF(ISNUMBER(FIND("PRV",B$6)),1,0)))*IF(AND(B$3>0,TRIM(B$9)="CFS"),Conv_Flags!$C23,1) -> 706.4728667 | C23: =INDIRECT(CONCATENATE("'",C$1,"'!",C$4,(YEAR($A23)-1921)*12+MONTH($A23)+3+IF(ISNUMBER(FIND("PRV",C$6)),1,0)))*IF(AND(C$3>0,TRIM(C$9)="CFS"),Conv_Flags!$C23,1) -> 705.3334246 | D23: =INDIRECT(CONCATENATE("'",D$1,"'!",D$4,(YEAR($A23)-1921)*12+MONTH($A23)+3+IF(ISNUMBER(FIND("PRV",D$6)),1,0)))*IF(AND(D$3>0,TRIM(D$9)="CFS"),Conv_Flags!$C23,1) -> 706.2656463 | E23: =INDIRECT(CONCATENATE("'",E$1,"'!",E$4,(YEAR($A23)-1921)*12+MONTH($A23)+3+IF(ISNUMBER(FIND("PRV",E$6)),1,0)))*IF(AND(E$3>0,TRIM(E$9)="CFS"),Conv_Flags!$C23,1) -> 704.2989437 | F23: =INDIRECT(CONCATENATE("'",F$1,"'!",F$4,(YEAR($A23)-1921)*12+MONTH($A23)+3+IF(ISNUMBER(FIND("PRV",F$6)),1,0)))*IF(AND(F$3>0,TRIM(F$9)="CFS"),Conv_Flags!$C23,1) ->  | G23: =INDIRECT(CONCATENATE("'",G$1,"'!",G$4,(YEAR($A23)-1921)*12+MONTH($A23)+3+IF(ISNUMBER(FIND("PRV",G$6)),1,0)))*IF(AND(G$3>0,TRIM(G$9)="CFS"),Conv_Flags!$C23,1) ->  | H23: =INDIRECT(CONCATENATE("'",H$1,"'!",H$4,(YEAR($A23)-1921)*12+MONTH($A23)+3+IF(ISNUMBER(FIND("PRV",H$6)),1,0)))*IF(AND(H$3>0,TRIM(H$9)="CFS"),Conv_Flags!$C23,1) ->  | L23: 1933 | M23: =B145 -> 280.1879297 | N23: =B146 -> 210.3796778 | O23: =B147 -> 199.8347107 | P23: =B148 -> 199.8347107 | Q23: =B149 -> 180.4958678 | R23: =B150 -> 199.8347107 | S23: =B151 -> 322.7790612 | T23: =B152 -> 341.7022537 | U23: =B153 -> 441.2553913 | V23: =B154 -> 823.1320835 | W23: =B155 -> 527.4027118 | X23: =B156 -> 244.8930043 | Z23: 3815.175477 | AA23: 3815.175492 | AB23: 3971.732113 | AD23: 890.237029 | AE23: 580.1652893 | AF23: 1305.571417 | AG23: 2036.683191 | AH23: 578.903976 | AJ23: 1933 | AK23: =C145 -> 280.1015228 | AL23: =C146 -> 210.360676 | AM23: =C147 -> 199.8347107 | AN23: =C148 -> 199.8347107 | AO23: =C149 -> 180.4958678 | AP23: =C150 -> 199.8347107 | AQ23: =C151 -> 309.9372095 | AR23: =C152 -> 340.81918 | AS23: =C153 -> 441.4617672 | AT23: =C154 -> 793.592274 | AU23: =C155 -> 554.9528809 | AV23: =C156 -> 262.0409737 | AX23: 3816.815257 | AY23: 3816.815257 | AZ23: 3973.266484 | BB23: 890.1316203 | BC23: 580.1652893 | BD23: 1292.052867 | BE23: 2052.047896 | BF23: 596.0519454 | BH23: 1933 | BI23: ='Compile Data'!D145 -> 280.7998334 | BJ23: ='Compile Data'!D146 -> 211.1694877 | BK23: ='Compile Data'!D147 -> 199.8347107 | BL23: ='Compile Data'!D148 -> 199.8347107 | BM23: ='Compile Data'!D149 -> 180.4958678 | BN23: ='Compile Data'!D150 -> 216.9524632 | BO23: ='Compile Data'!D151 -> 379.6688468 | BP23: ='Compile Data'!D152 -> 346.8288126 | BQ23: ='Compile Data'!D153 -> 620.7139269 | BR23: ='Compile Data'!D154 -> 698.3210757 | BS23: ='Compile Data'!D155 -> 483.946228 | BT23: ='Compile Data'!D156 -> 211.9105001 | BV23: 3885.772934 | BW23: 3885.772934 | BX23: 4030.476464 | BZ23: 891.6387426 | CA23: 580.1652893 | CB23: 1564.16405 | CC23: 2014.891731 | CD23: 559.1762918 | CF23: 1933 | CG23: ='Compile Data'!E145 -> 280.7148076 | CH23: ='Compile Data'!E146 -> 211.0838633 | CI23: ='Compile Data'!E147 -> 199.8347107 | CJ23: ='Compile Data'!E148 -> 199.8347107 | CK23: ='Compile Data'!E149 -> 180.4958678 | CL23: ='Compile Data'!E150 -> 216.8460008 | CM23: ='Compile Data'!E151 -> 379.2900019 | CN23: ='Compile Data'!E152 -> 346.7122924 | CO23: ='Compile Data'!E153 -> 649.5708742 | CP23: ='Compile Data'!E154 -> 681.8746429 | CQ23: ='Compile Data'!E155 -> 504.8969279 | CR23: ='Compile Data'!E156 -> 192.6603612 | CT23: 3890.578657 | CU23: 3890.578657 | CV23: 4043.815062 | CX23: 891.4680924 | CY23: 580.1652893 | CZ23: 1592.419169 | DA23: 2029.002806 | DB23: 531.2226277 | DD23: 1933 | DE23: ='Compile Data'!F145 ->  | DF23: ='Compile Data'!F146 ->  | DG23: ='Compile Data'!F147 ->  | DH23: ='Compile Data'!F148 ->  | DI23: ='Compile Data'!F149 ->  | DJ23: ='Compile Data'!F150 ->  | DK23: ='Compile Data'!F151 ->  | DL23: ='Compile Data'!F152 ->  | DM23: ='Compile Data'!F153 ->  | DN23: ='Compile Data'!F154 ->  | DO23: ='Compile Data'!F155 ->  | DP23: ='Compile Data'!F156 ->  | EB23: 1933 | EC23: ='Compile Data'!G145 ->  | ED23: ='Compile Data'!G146 ->  | EE23: ='Compile Data'!G147 ->  | EF23: ='Compile Data'!G148 ->  | EG23: ='Compile Data'!G149 ->  | EH23: ='Compile Data'!G150 ->  | EI23: ='Compile Data'!G151 ->  | EJ23: ='Compile Data'!G152 ->  | EK23: ='Compile Data'!G153 ->  | EL23: ='Compile Data'!G154 ->  | EM23: ='Compile Data'!G155 ->  | EN23: ='Compile Data'!G156 ->  | EZ23: 1933 | FA23: ='Compile Data'!H145 ->  | FB23: ='Compile Data'!H146 ->  | FC23: ='Compile Data'!H147 ->  | FD23: ='Compile Data'!H148 ->  | FE23: ='Compile Data'!H149 ->  | FF23: ='Compile Data'!H150 ->  | FG23: ='Compile Data'!H151 ->  | FH23: ='Compile Data'!H152 ->  | FI23: ='Compile Data'!H153 ->  | FJ23: ='Compile Data'!H154 ->  | FK23: ='Compile Data'!H155 ->  | FL23: ='Compile Data'!H156 -> 
A24: 1922-09-30 | B24: =INDIRECT(CONCATENATE("'",B$1,"'!",B$4,(YEAR($A24)-1921)*12+MONTH($A24)+3+IF(ISNUMBER(FIND("PRV",B$6)),1,0)))*IF(AND(B$3>0,TRIM(B$9)="CFS"),Conv_Flags!$C24,1) -> 770.439805 | C24: =INDIRECT(CONCATENATE("'",C$1,"'!",C$4,(YEAR($A24)-1921)*12+MONTH($A24)+3+IF(ISNUMBER(FIND("PRV",C$6)),1,0)))*IF(AND(C$3>0,TRIM(C$9)="CFS"),Conv_Flags!$C24,1) -> 423.67869 | D24: =INDIRECT(CONCATENATE("'",D$1,"'!",D$4,(YEAR($A24)-1921)*12+MONTH($A24)+3+IF(ISNUMBER(FIND("PRV",D$6)),1,0)))*IF(AND(D$3>0,TRIM(D$9)="CFS"),Conv_Flags!$C24,1) -> 892.5619835 | E24: =INDIRECT(CONCATENATE("'",E$1,"'!",E$4,(YEAR($A24)-1921)*12+MONTH($A24)+3+IF(ISNUMBER(FIND("PRV",E$6)),1,0)))*IF(AND(E$3>0,TRIM(E$9)="CFS"),Conv_Flags!$C24,1) -> 423.7381941 | F24: =INDIRECT(CONCATENATE("'",F$1,"'!",F$4,(YEAR($A24)-1921)*12+MONTH($A24)+3+IF(ISNUMBER(FIND("PRV",F$6)),1,0)))*IF(AND(F$3>0,TRIM(F$9)="CFS"),Conv_Flags!$C24,1) ->  | G24: =INDIRECT(CONCATENATE("'",G$1,"'!",G$4,(YEAR($A24)-1921)*12+MONTH($A24)+3+IF(ISNUMBER(FIND("PRV",G$6)),1,0)))*IF(AND(G$3>0,TRIM(G$9)="CFS"),Conv_Flags!$C24,1) ->  | H24: =INDIRECT(CONCATENATE("'",H$1,"'!",H$4,(YEAR($A24)-1921)*12+MONTH($A24)+3+IF(ISNUMBER(FIND("PRV",H$6)),1,0)))*IF(AND(H$3>0,TRIM(H$9)="CFS"),Conv_Flags!$C24,1) ->  | L24: 1934 | M24: =B157 -> 160.7820364 | N24: =B158 -> 173.2289353 | O24: =B159 -> 199.8347107 | P24: =B160 -> 199.8347258 | Q24: =B161 -> 180.4958678 | R24: =B162 -> 199.8347258 | S24: =B163 -> 321.3179558 | T24: =B164 -> 376.0269276 | U24: =B165 -> 726.5944409 | V24: =B166 -> 557.3252576 | W24: =B167 -> 228.9794894 | X24: =B168 -> 180.1322718 | Z24: 3532.009657 | AA24: 3532.009642 | AB24: 3504.387345 | AD24: 733.6804082 | AE24: 580.1653043 | AF24: 1623.77405 | AG24: 1693.03146 | AH24: 541.7655556 | AJ24: 1934 | AK24: =C157 -> 160.7820364 | AL24: =C158 -> 173.2289353 | AM24: =C159 -> 199.8347107 | AN24: =C160 -> 199.8347107 | AO24: =C161 -> 180.4958678 | AP24: =C162 -> 199.8347107 | AQ24: =C163 -> 321.1955772 | AR24: =C164 -> 375.9053335 | AS24: =C165 -> 726.47828 | AT24: =C166 -> 557.6054946 | AU24: =C167 -> 229.0553432 | AV24: =C168 -> 167.9753131 | AX24: 3514.964669 | AY24: 3514.964669 | AZ24: 3492.226313 | BB24: 733.6803932 | BC24: 580.1652893 | BD24: 1623.413901 | BE24: 1681.114431 | BF24: 524.7246409 | BH24: 1934 | BI24: ='Compile Data'!D157 -> 175.6840284 | BJ24: ='Compile Data'!D158 -> 171.5817633 | BK24: ='Compile Data'!D159 -> 199.8347107 | BL24: ='Compile Data'!D160 -> 199.8347107 | BM24: ='Compile Data'!D161 -> 180.4958678 | BN24: ='Compile Data'!D162 -> 199.8347258 | BO24: ='Compile Data'!D163 -> 321.9944376 | BP24: ='Compile Data'!D164 -> 376.1538959 | BQ24: ='Compile Data'!D165 -> 730.6423489 | BR24: ='Compile Data'!D166 -> 600.7118472 | BS24: ='Compile Data'!D167 -> 246.561131 | BT24: ='Compile Data'!D168 -> 179.8809917 | BV24: 3594.900599 | BW24: 3594.900599 | BX24: 3583.210459 | BZ24: 746.9352132 | CA24: 580.1652893 | CB24: 1628.625408 | CC24: 1757.796319 | CD24: 538.8369228 | CF24: 1934 | CG24: ='Compile Data'!E157 -> 175.4597548 | CH24: ='Compile Data'!E158 -> 163.1025116 | CI24: ='Compile Data'!E159 -> 199.8347107 | CJ24: ='Compile Data'!E160 -> 199.8347107 | CK24: ='Compile Data'!E161 -> 180.4958678 | CL24: ='Compile Data'!E162 -> 199.8491369 | CM24: ='Compile Data'!E163 -> 321.9336841 | CN24: ='Compile Data'!E164 -> 376.0770664 | CO24: ='Compile Data'!E165 -> 747.576853 | CP24: ='Compile Data'!E166 -> 601.2122747 | CQ24: ='Compile Data'!E167 -> 229.4597112 | CR24: ='Compile Data'!E168 -> 179.4037384 | CT24: 3601.270503 | CU24: 3601.270503 | CV24: 3574.24002 | CX24: 738.2316879 | CY24: 580.1652893 | CZ24: 1645.436741 | DA24: 1757.652577 | DB24: 541.1755344 | DD24: 1934 | DE24: ='Compile Data'!F157 ->  | DF24: ='Compile Data'!F158 ->  | DG24: ='Compile Data'!F159 ->  | DH24: ='Compile Data'!F160 ->  | DI24: ='Compile Data'!F161 ->  | DJ24: ='Compile Data'!F162 ->  | DK24: ='Compile Data'!F163 ->  | DL24: ='Compile Data'!F164 ->  | DM24: ='Compile Data'!F165 ->  | DN24: ='Compile Data'!F166 ->  | DO24: ='Compile Data'!F167 ->  | DP24: ='Compile Data'!F168 ->  | EB24: 1934 | EC24: ='Compile Data'!G157 ->  | ED24: ='Compile Data'!G158 ->  | EE24: ='Compile Data'!G159 ->  | EF24: ='Compile Data'!G160 ->  | EG24: ='Compile Data'!G161 ->  | EH24: ='Compile Data'!G162 ->  | EI24: ='Compile Data'!G163 ->  | EJ24: ='Compile Data'!G164 ->  | EK24: ='Compile Data'!G165 ->  | EL24: ='Compile Data'!G166 ->  | EM24: ='Compile Data'!G167 ->  | EN24: ='Compile Data'!G168 ->  | EZ24: 1934 | FA24: ='Compile Data'!H157 ->  | FB24: ='Compile Data'!H158 ->  | FC24: ='Compile Data'!H159 ->  | FD24: ='Compile Data'!H160 ->  | FE24: ='Compile Data'!H161 ->  | FF24: ='Compile Data'!H162 ->  | FG24: ='Compile Data'!H163 ->  | FH24: ='Compile Data'!H164 ->  | FI24: ='Compile Data'!H165 ->  | FJ24: ='Compile Data'!H166 ->  | FK24: ='Compile Data'!H167 ->  | FL24: ='Compile Data'!H168 -> 
A25: 1922-10-31 | B25: =INDIRECT(CONCATENATE("'",B$1,"'!",B$4,(YEAR($A25)-1921)*12+MONTH($A25)+3+IF(ISNUMBER(FIND("PRV",B$6)),1,0)))*IF(AND(B$3>0,TRIM(B$9)="CFS"),Conv_Flags!$C25,1) -> 351.1698434 | C25: =INDIRECT(CONCATENATE("'",C$1,"'!",C$4,(YEAR($A25)-1921)*12+MONTH($A25)+3+IF(ISNUMBER(FIND("PRV",C$6)),1,0)))*IF(AND(C$3>0,TRIM(C$9)="CFS"),Conv_Flags!$C25,1) -> 306.0505524 | D25: =INDIRECT(CONCATENATE("'",D$1,"'!",D$4,(YEAR($A25)-1921)*12+MONTH($A25)+3+IF(ISNUMBER(FIND("PRV",D$6)),1,0)))*IF(AND(D$3>0,TRIM(D$9)="CFS"),Conv_Flags!$C25,1) -> 537.7446384 | E25: =INDIRECT(CONCATENATE("'",E$1,"'!",E$4,(YEAR($A25)-1921)*12+MONTH($A25)+3+IF(ISNUMBER(FIND("PRV",E$6)),1,0)))*IF(AND(E$3>0,TRIM(E$9)="CFS"),Conv_Flags!$C25,1) -> 364.7975739 | F25: =INDIRECT(CONCATENATE("'",F$1,"'!",F$4,(YEAR($A25)-1921)*12+MONTH($A25)+3+IF(ISNUMBER(FIND("PRV",F$6)),1,0)))*IF(AND(F$3>0,TRIM(F$9)="CFS"),Conv_Flags!$C25,1) ->  | G25: =INDIRECT(CONCATENATE("'",G$1,"'!",G$4,(YEAR($A25)-1921)*12+MONTH($A25)+3+IF(ISNUMBER(FIND("PRV",G$6)),1,0)))*IF(AND(G$3>0,TRIM(G$9)="CFS"),Conv_Flags!$C25,1) ->  | H25: =INDIRECT(CONCATENATE("'",H$1,"'!",H$4,(YEAR($A25)-1921)*12+MONTH($A25)+3+IF(ISNUMBER(FIND("PRV",H$6)),1,0)))*IF(AND(H$3>0,TRIM(H$9)="CFS"),Conv_Flags!$C25,1) ->  | L25: 1935 | M25: =B169 -> 168.2448541 | N25: =B170 -> 193.3884298 | O25: =B171 -> 199.8347107 | P25: =B172 -> 199.8347107 | Q25: =B173 -> 180.4958678 | R25: =B174 -> 199.8347107 | S25: =B175 -> 193.3884588 | T25: =B176 -> 219.9141211 | U25: =B177 -> 520.6125194 | V25: =B178 -> 579.6336686 | W25: =B179 -> 506.6036893 | X25: =B180 -> 240.8816326 | Z25: 3493.879524 | AA25: 3551.84213 | AB25: 3402.667374 | AD25: 761.3027053 | AE25: 580.1652893 | AF25: 1133.74981 | AG25: 1847.73151 | AH25: 678.9781035 | AJ25: 1935 | AK25: =C169 -> 163.360898 | AL25: =C170 -> 193.3884298 | AM25: =C171 -> 199.8347107 | AN25: =C172 -> 199.8347107 | AO25: =C173 -> 180.4958678 | AP25: =C174 -> 199.8347107 | AQ25: =C175 -> 193.3884298 | AR25: =C176 -> 220.6510116 | AS25: =C177 -> 522.1238314 | AT25: =C178 -> 581.3396494 | AU25: =C179 -> 507.9703474 | AV25: =C180 -> 241.1361377 | AX25: 3499.511661 | AY25: 3557.474266 | AZ25: 3403.358735 | BB25: 756.4187492 | BC25: 580.1652893 | BD25: 1135.997983 | BE25: 1852.569966 | BF25: 679.2894276 | BH25: 1935 | BI25: ='Compile Data'!D169 -> 165.5675013 | BJ25: ='Compile Data'!D170 -> 193.3884298 | BK25: ='Compile Data'!D171 -> 199.8347107 | BL25: ='Compile Data'!D172 -> 199.8347107 | BM25: ='Compile Data'!D173 -> 180.4958678 | BN25: ='Compile Data'!D174 -> 199.8347107 | BO25: ='Compile Data'!D175 -> 193.3884443 | BP25: ='Compile Data'!D176 -> 297.7066726 | BQ25: ='Compile Data'!D177 -> 545.2682076 | BR25: ='Compile Data'!D178 -> 575.6463417 | BS25: ='Compile Data'!D179 -> 502.3086241 | BT25: ='Compile Data'!D180 -> 238.5563953 | BV25: 3628.264956 | BW25: 3686.227561 | BX25: 3491.830617 | BZ25: 758.6253525 | CA25: 580.1652893 | CB25: 1236.198035 | CC25: 1861.779569 | CD25: 719.1977024 | CF25: 1935 | CG25: ='Compile Data'!E169 -> 168.3833663 | CH25: ='Compile Data'!E170 -> 193.3884298 | CI25: ='Compile Data'!E171 -> 203.6556639 | CJ25: ='Compile Data'!E172 -> 199.8347107 | CK25: ='Compile Data'!E173 -> 180.4958678 | CL25: ='Compile Data'!E174 -> 199.8347107 | CM25: ='Compile Data'!E175 -> 193.3884443 | CN25: ='Compile Data'!E176 -> 297.3774077 | CO25: ='Compile Data'!E177 -> 601.8291516 | CP25: ='Compile Data'!E178 -> 579.049056 | CQ25: ='Compile Data'!E179 -> 501.0920823 | CR25: ='Compile Data'!E180 -> 237.8518611 | CT25: 3669.865063 | CU25: 3727.827668 | CV25: 3556.180752 | CX25: 765.2621707 | CY25: 583.9862424 | CZ25: 1292.429714 | DA25: 1919.822151 | DB25: 702.3799572 | DD25: 1935 | DE25: ='Compile Data'!F169 ->  | DF25: ='Compile Data'!F170 ->  | DG25: ='Compile Data'!F171 ->  | DH25: ='Compile Data'!F172 ->  | DI25: ='Compile Data'!F173 ->  | DJ25: ='Compile Data'!F174 ->  | DK25: ='Compile Data'!F175 ->  | DL25: ='Compile Data'!F176 ->  | DM25: ='Compile Data'!F177 ->  | DN25: ='Compile Data'!F178 ->  | DO25: ='Compile Data'!F179 ->  | DP25: ='Compile Data'!F180 ->  | EB25: 1935 | EC25: ='Compile Data'!G169 ->  | ED25: ='Compile Data'!G170 ->  | EE25: ='Compile Data'!G171 ->  | EF25: ='Compile Data'!G172 ->  | EG25: ='Compile Data'!G173 ->  | EH25: ='Compile Data'!G174 ->  | EI25: ='Compile Data'!G175 ->  | EJ25: ='Compile Data'!G176 ->  | EK25: ='Compile Data'!G177 ->  | EL25: ='Compile Data'!G178 ->  | EM25: ='Compile Data'!G179 ->  | EN25: ='Compile Data'!G180 ->  | EZ25: 1935 | FA25: ='Compile Data'!H169 ->  | FB25: ='Compile Data'!H170 ->  | FC25: ='Compile Data'!H171 ->  | FD25: ='Compile Data'!H172 ->  | FE25: ='Compile Data'!H173 ->  | FF25: ='Compile Data'!H174 ->  | FG25: ='Compile Data'!H175 ->  | FH25: ='Compile Data'!H176 ->  | FI25: ='Compile Data'!H177 ->  | FJ25: ='Compile Data'!H178 ->  | FK25: ='Compile Data'!H179 ->  | FL25: ='Compile Data'!H180 -> 
A26: 1922-11-30 | B26: =INDIRECT(CONCATENATE("'",B$1,"'!",B$4,(YEAR($A26)-1921)*12+MONTH($A26)+3+IF(ISNUMBER(FIND("PRV",B$6)),1,0)))*IF(AND(B$3>0,TRIM(B$9)="CFS"),Conv_Flags!$C26,1) -> 446.4552621 | C26: =INDIRECT(CONCATENATE("'",C$1,"'!",C$4,(YEAR($A26)-1921)*12+MONTH($A26)+3+IF(ISNUMBER(FIND("PRV",C$6)),1,0)))*IF(AND(C$3>0,TRIM(C$9)="CFS"),Conv_Flags!$C26,1) -> 238.0165289 | D26: =INDIRECT(CONCATENATE("'",D$1,"'!",D$4,(YEAR($A26)-1921)*12+MONTH($A26)+3+IF(ISNUMBER(FIND("PRV",D$6)),1,0)))*IF(AND(D$3>0,TRIM(D$9)="CFS"),Conv_Flags!$C26,1) -> 417.6146726 | E26: =INDIRECT(CONCATENATE("'",E$1,"'!",E$4,(YEAR($A26)-1921)*12+MONTH($A26)+3+IF(ISNUMBER(FIND("PRV",E$6)),1,0)))*IF(AND(E$3>0,TRIM(E$9)="CFS"),Conv_Flags!$C26,1) -> 356.999109 | F26: =INDIRECT(CONCATENATE("'",F$1,"'!",F$4,(YEAR($A26)-1921)*12+MONTH($A26)+3+IF(ISNUMBER(FIND("PRV",F$6)),1,0)))*IF(AND(F$3>0,TRIM(F$9)="CFS"),Conv_Flags!$C26,1) ->  | G26: =INDIRECT(CONCATENATE("'",G$1,"'!",G$4,(YEAR($A26)-1921)*12+MONTH($A26)+3+IF(ISNUMBER(FIND("PRV",G$6)),1,0)))*IF(AND(G$3>0,TRIM(G$9)="CFS"),Conv_Flags!$C26,1) ->  | H26: =INDIRECT(CONCATENATE("'",H$1,"'!",H$4,(YEAR($A26)-1921)*12+MONTH($A26)+3+IF(ISNUMBER(FIND("PRV",H$6)),1,0)))*IF(AND(H$3>0,TRIM(H$9)="CFS"),Conv_Flags!$C26,1) ->  | L26: 1936 | M26: =B181 -> 229.8881129 | N26: =B182 -> 208.2083581 | O26: =B183 -> 214.5836743 | P26: =B184 -> 199.8347107 | Q26: =B185 -> 238.458473 | R26: =B186 -> 276.6942149 | S26: =B187 -> 267.768595 | T26: =B188 -> 368.5711654 | U26: =B189 -> 500.6729985 | V26: =B190 -> 824.172449 | W26: =B191 -> 574.5047379 | X26: =B192 -> 276.6866025 | Z26: 4308.566236 | AA26: 4295.892133 | AB26: 4180.044092 | AD26: 852.514856 | AE26: 652.8768581 | AF26: 1413.706974 | AG26: 2176.036788 | AH26: 858.0541813 | AJ26: 1936 | AK26: =C181 -> 229.9449319 | AL26: =C182 -> 208.2083581 | AM26: =C183 -> 214.5836743 | AN26: =C184 -> 199.8347107 | AO26: =C185 -> 238.458473 | AP26: =C186 -> 276.6942149 | AQ26: =C187 -> 267.768595 | AR26: =C188 -> 368.7803674 | AS26: =C189 -> 500.9353048 | AT26: =C190 -> 827.5110337 | AU26: =C191 -> 574.9718995 | AV26: =C192 -> 276.5767465 | AX26: 4312.450418 | AY26: 4302.644811 | AZ26: 4184.26831 | BB26: 852.571675 | BC26: 652.8768581 | BD26: 1414.178482 | BE26: 2179.994985 | BF26: 857.6611083 | BH26: 1936 | BI26: ='Compile Data'!D181 -> 252.6426243 | BJ26: ='Compile Data'!D182 -> 227.9986829 | BK26: ='Compile Data'!D183 -> 214.5836743 | BL26: ='Compile Data'!D184 -> 199.8347107 | BM26: ='Compile Data'!D185 -> 238.458473 | BN26: ='Compile Data'!D186 -> 288.3273512 | BO26: ='Compile Data'!D187 -> 267.768595 | BP26: ='Compile Data'!D188 -> 368.1265212 | BQ26: ='Compile Data'!D189 -> 495.0092975 | BR26: ='Compile Data'!D190 -> 811.1820519 | BS26: ='Compile Data'!D191 -> 574.7482864 | BT26: ='Compile Data'!D192 -> 276.5509168 | BV26: 4306.570251 | BW26: 4248.607645 | BX26: 4215.231185 | BZ26: 895.0596922 | CA26: 652.8768581 | CB26: 1419.231765 | CC26: 2157.490553 | CD26: 863.2802528 | CF26: 1936 | CG26: ='Compile Data'!E181 -> 237.478109 | CH26: ='Compile Data'!E182 -> 227.0499871 | CI26: ='Compile Data'!E183 -> 214.5836743 | CJ26: ='Compile Data'!E184 -> 199.8347107 | CK26: ='Compile Data'!E185 -> 238.458473 | CL26: ='Compile Data'!E186 -> 288.3273512 | CM26: ='Compile Data'!E187 -> 267.768595 | CN26: ='Compile Data'!E188 -> 368.2292007 | CO26: ='Compile Data'!E189 -> 495.1413223 | CP26: ='Compile Data'!E190 -> 810.4596326 | CQ26: ='Compile Data'!E191 -> 574.8414786 | CR26: ='Compile Data'!E192 -> 276.6037093 | CT26: 4302.113124 | CU26: 4249.216491 | CV26: 4198.776244 | CX26: 878.9464811 | CY26: 652.8768581 | CZ26: 1419.466469 | DA26: 2157.046143 | DB26: 859.2176488 | DD26: 1936 | DE26: ='Compile Data'!F181 ->  | DF26: ='Compile Data'!F182 ->  | DG26: ='Compile Data'!F183 ->  | DH26: ='Compile Data'!F184 ->  | DI26: ='Compile Data'!F185 ->  | DJ26: ='Compile Data'!F186 ->  | DK26: ='Compile Data'!F187 ->  | DL26: ='Compile Data'!F188 ->  | DM26: ='Compile Data'!F189 ->  | DN26: ='Compile Data'!F190 ->  | DO26: ='Compile Data'!F191 ->  | DP26: ='Compile Data'!F192 ->  | EB26: 1936 | EC26: ='Compile Data'!G181 ->  | ED26: ='Compile Data'!G182 ->  | EE26: ='Compile Data'!G183 ->  | EF26: ='Compile Data'!G184 ->  | EG26: ='Compile Data'!G185 ->  | EH26: ='Compile Data'!G186 ->  | EI26: ='Compile Data'!G187 ->  | EJ26: ='Compile Data'!G188 ->  | EK26: ='Compile Data'!G189 ->  | EL26: ='Compile Data'!G190 ->  | EM26: ='Compile Data'!G191 ->  | EN26: ='Compile Data'!G192 ->  | EZ26: 1936 | FA26: ='Compile Data'!H181 ->  | FB26: ='Compile Data'!H182 ->  | FC26: ='Compile Data'!H183 ->  | FD26: ='Compile Data'!H184 ->  | FE26: ='Compile Data'!H185 ->  | FF26: ='Compile Data'!H186 ->  | FG26: ='Compile Data'!H187 ->  | FH26: ='Compile Data'!H188 ->  | FI26: ='Compile Data'!H189 ->  | FJ26: ='Compile Data'!H190 ->  | FK26: ='Compile Data'!H191 ->  | FL26: ='Compile Data'!H192 -> 
A27: 1922-12-31 | B27: =INDIRECT(CONCATENATE("'",B$1,"'!",B$4,(YEAR($A27)-1921)*12+MONTH($A27)+3+IF(ISNUMBER(FIND("PRV",B$6)),1,0)))*IF(AND(B$3>0,TRIM(B$9)="CFS"),Conv_Flags!$C27,1) -> 245.9504132 | C27: =INDIRECT(CONCATENATE("'",C$1,"'!",C$4,(YEAR($A27)-1921)*12+MONTH($A27)+3+IF(ISNUMBER(FIND("PRV",C$6)),1,0)))*IF(AND(C$3>0,TRIM(C$9)="CFS"),Conv_Flags!$C27,1) -> 245.9504132 | D27: =INDIRECT(CONCATENATE("'",D$1,"'!",D$4,(YEAR($A27)-1921)*12+MONTH($A27)+3+IF(ISNUMBER(FIND("PRV",D$6)),1,0)))*IF(AND(D$3>0,TRIM(D$9)="CFS"),Conv_Flags!$C27,1) -> 245.9504132 | E27: =INDIRECT(CONCATENATE("'",E$1,"'!",E$4,(YEAR($A27)-1921)*12+MONTH($A27)+3+IF(ISNUMBER(FIND("PRV",E$6)),1,0)))*IF(AND(E$3>0,TRIM(E$9)="CFS"),Conv_Flags!$C27,1) -> 245.9504132 | F27: =INDIRECT(CONCATENATE("'",F$1,"'!",F$4,(YEAR($A27)-1921)*12+MONTH($A27)+3+IF(ISNUMBER(FIND("PRV",F$6)),1,0)))*IF(AND(F$3>0,TRIM(F$9)="CFS"),Conv_Flags!$C27,1) ->  | G27: =INDIRECT(CONCATENATE("'",G$1,"'!",G$4,(YEAR($A27)-1921)*12+MONTH($A27)+3+IF(ISNUMBER(FIND("PRV",G$6)),1,0)))*IF(AND(G$3>0,TRIM(G$9)="CFS"),Conv_Flags!$C27,1) ->  | H27: =INDIRECT(CONCATENATE("'",H$1,"'!",H$4,(YEAR($A27)-1921)*12+MONTH($A27)+3+IF(ISNUMBER(FIND("PRV",H$6)),1,0)))*IF(AND(H$3>0,TRIM(H$9)="CFS"),Conv_Flags!$C27,1) ->  | L27: 1937 | M27: =B193 -> 315.1288908 | N27: =B194 -> 266.238688 | O27: =B195 -> 199.8347107 | P27: =B196 -> 245.1232128 | Q27: =B197 -> 180.4958678 | R27: =B198 -> 199.8347107 | S27: =B199 -> 193.3884298 | T27: =B200 -> 318.2784491 | U27: =B201 -> 520.0580966 | V27: =B202 -> 668.911507 | W27: =B203 -> 554.4606198 | X27: =B204 -> 295.0070474 | Z27: 4817.218642 | AA27: 6734.032537 | AB27: 3956.760231 | AD27: 1026.325502 | AE27: 625.4537913 | AF27: 1231.559686 | AG27: 2038.437271 | AH27: 778.9739895 | AJ27: 1937 | AK27: =C193 -> 315.0688142 | AL27: =C194 -> 266.0155475 | AM27: =C195 -> 199.8347107 | AN27: =C196 -> 247.9917086 | AO27: =C197 -> 180.4958678 | AP27: =C198 -> 199.8347107 | AQ27: =C199 -> 193.3884298 | AR27: =C200 -> 318.6054923 | AS27: =C201 -> 520.4429558 | AT27: =C202 -> 670.683719 | AU27: =C203 -> 554.9377492 | AV27: =C204 -> 294.9441439 | AX27: 4813.086815 | AY27: 6727.032214 | AZ27: 3962.24385 | BB27: 1028.910781 | BC27: 628.3222871 | BD27: 1232.271589 | BE27: 2041.008568 | BF27: 778.911086 | BH27: 1937 | BI27: ='Compile Data'!D193 -> 320.4184759 | BJ27: ='Compile Data'!D194 -> 266.31086 | BK27: ='Compile Data'!D195 -> 199.8347107 | BL27: ='Compile Data'!D196 -> 199.8347107 | BM27: ='Compile Data'!D197 -> 180.4958678 | BN27: ='Compile Data'!D198 -> 199.8347107 | BO27: ='Compile Data'!D199 -> 193.3884298 | BP27: ='Compile Data'!D200 -> 316.63915 | BQ27: ='Compile Data'!D201 -> 519.4158122 | BR27: ='Compile Data'!D202 -> 752.2678009 | BS27: ='Compile Data'!D203 -> 565.124876 | BT27: ='Compile Data'!D204 -> 291.6927718 | BV27: 4855.503015 | BW27: 7081.789769 | BX27: 4005.258177 | BZ27: 986.3987574 | CA27: 580.1652893 | CB27: 1229.278103 | CC27: 2128.501261 | CD27: 824.6790845 | CF27: 1937 | CG27: ='Compile Data'!E193 -> 316.5150339 | CH27: ='Compile Data'!E194 -> 266.0989056 | CI27: ='Compile Data'!E195 -> 199.8347107 | CJ27: ='Compile Data'!E196 -> 204.9006828 | CK27: ='Compile Data'!E197 -> 180.4958678 | CL27: ='Compile Data'!E198 -> 199.8347107 | CM27: ='Compile Data'!E199 -> 193.3884298 | CN27: ='Compile Data'!E200 -> 316.6298728 | CO27: ='Compile Data'!E201 -> 519.4155217 | CP27: ='Compile Data'!E202 -> 744.6044279 | CQ27: ='Compile Data'!E203 -> 564.7028693 | CR27: ='Compile Data'!E204 -> 291.8660544 | CT27: 4817.179873 | CU27: 7038.400685 | CV27: 3998.287087 | CX27: 987.349333 | CY27: 585.2312613 | CZ27: 1229.268535 | DA27: 2120.588873 | DB27: 821.1266926 | DD27: 1937 | DE27: ='Compile Data'!F193 ->  | DF27: ='Compile Data'!F194 ->  | DG27: ='Compile Data'!F195 ->  | DH27: ='Compile Data'!F196 ->  | DI27: ='Compile Data'!F197 ->  | DJ27: ='Compile Data'!F198 ->  | DK27: ='Compile Data'!F199 ->  | DL27: ='Compile Data'!F200 ->  | DM27: ='Compile Data'!F201 ->  | DN27: ='Compile Data'!F202 ->  | DO27: ='Compile Data'!F203 ->  | DP27: ='Compile Data'!F204 ->  | EB27: 1937 | EC27: ='Compile Data'!G193 ->  | ED27: ='Compile Data'!G194 ->  | EE27: ='Compile Data'!G195 ->  | EF27: ='Compile Data'!G196 ->  | EG27: ='Compile Data'!G197 ->  | EH27: ='Compile Data'!G198 ->  | EI27: ='Compile Data'!G199 ->  | EJ27: ='Compile Data'!G200 ->  | EK27: ='Compile Data'!G201 ->  | EL27: ='Compile Data'!G202 ->  | EM27: ='Compile Data'!G203 ->  | EN27: ='Compile Data'!G204 ->  | EZ27: 1937 | FA27: ='Compile Data'!H193 ->  | FB27: ='Compile Data'!H194 ->  | FC27: ='Compile Data'!H195 ->  | FD27: ='Compile Data'!H196 ->  | FE27: ='Compile Data'!H197 ->  | FF27: ='Compile Data'!H198 ->  | FG27: ='Compile Data'!H199 ->  | FH27: ='Compile Data'!H200 ->  | FI27: ='Compile Data'!H201 ->  | FJ27: ='Compile Data'!H202 ->  | FK27: ='Compile Data'!H203 ->  | FL27: ='Compile Data'!H204 -> 
A28: 1923-01-31 | B28: =INDIRECT(CONCATENATE("'",B$1,"'!",B$4,(YEAR($A28)-1921)*12+MONTH($A28)+3+IF(ISNUMBER(FIND("PRV",B$6)),1,0)))*IF(AND(B$3>0,TRIM(B$9)="CFS"),Conv_Flags!$C28,1) -> 223.6823084 | C28: =INDIRECT(CONCATENATE("'",C$1,"'!",C$4,(YEAR($A28)-1921)*12+MONTH($A28)+3+IF(ISNUMBER(FIND("PRV",C$6)),1,0)))*IF(AND(C$3>0,TRIM(C$9)="CFS"),Conv_Flags!$C28,1) -> 223.6823084 | D28: =INDIRECT(CONCATENATE("'",D$1,"'!",D$4,(YEAR($A28)-1921)*12+MONTH($A28)+3+IF(ISNUMBER(FIND("PRV",D$6)),1,0)))*IF(AND(D$3>0,TRIM(D$9)="CFS"),Conv_Flags!$C28,1) -> 223.6823084 | E28: =INDIRECT(CONCATENATE("'",E$1,"'!",E$4,(YEAR($A28)-1921)*12+MONTH($A28)+3+IF(ISNUMBER(FIND("PRV",E$6)),1,0)))*IF(AND(E$3>0,TRIM(E$9)="CFS"),Conv_Flags!$C28,1) -> 223.6823084 | F28: =INDIRECT(CONCATENATE("'",F$1,"'!",F$4,(YEAR($A28)-1921)*12+MONTH($A28)+3+IF(ISNUMBER(FIND("PRV",F$6)),1,0)))*IF(AND(F$3>0,TRIM(F$9)="CFS"),Conv_Flags!$C28,1) ->  | G28: =INDIRECT(CONCATENATE("'",G$1,"'!",G$4,(YEAR($A28)-1921)*12+MONTH($A28)+3+IF(ISNUMBER(FIND("PRV",G$6)),1,0)))*IF(AND(G$3>0,TRIM(G$9)="CFS"),Conv_Flags!$C28,1) ->  | H28: =INDIRECT(CONCATENATE("'",H$1,"'!",H$4,(YEAR($A28)-1921)*12+MONTH($A28)+3+IF(ISNUMBER(FIND("PRV",H$6)),1,0)))*IF(AND(H$3>0,TRIM(H$9)="CFS"),Conv_Flags!$C28,1) ->  | L28: 1938 | M28: =B205 -> 245.9504132 | N28: =B206 -> 238.0165289 | O28: =B207 -> 1157.693759 | P28: =B208 -> 276.6942149 | Q28: =B209 -> 2065.73876 | R28: =B210 -> 2172.984871 | S28: =B211 -> 667.3387849 | T28: =B212 -> 517.9431082 | U28: =B213 -> 595.4310046 | V28: =B214 -> 719.7030294 | W28: =B215 -> 666.7392052 | X28: =B216 -> 505.8538675 | Z28: 9412.757344 | AA28: 7458.923115 | AB28: 9830.087547 | AD28: 1918.354916 | AE28: 3500.126734 | AF28: 3953.697769 | AG28: 2487.727107 | AH28: 1494.494892 | AJ28: 1938 | AK28: =C205 -> 245.9504132 | AL28: =C206 -> 238.0165289 | AM28: =C207 -> 1147.795096 | AN28: =C208 -> 276.6942149 | AO28: =C209 -> 2065.73876 | AP28: =C210 -> 2172.984871 | AQ28: =C211 -> 667.3387849 | AR28: =C212 -> 517.8478745 | AS28: =C213 -> 595.329836 | AT28: =C214 -> 719.6000497 | AU28: =C215 -> 666.6360453 | AV28: =C216 -> 352.4646501 | AX28: 9081.388674 | AY28: 7119.286277 | AZ28: 9666.397124 | BB28: 1908.456253 | BC28: 3490.228071 | BD28: 3953.501366 | BE28: 2334.030581 | BF28: 1161.199455 | BH28: 1938 | BI28: ='Compile Data'!D205 -> 294.9697837 | BJ28: ='Compile Data'!D206 -> 238.0165289 | BK28: ='Compile Data'!D207 -> 1103.822572 | BL28: ='Compile Data'!D208 -> 291.0894296 | BM28: ='Compile Data'!D209 -> 2315.527903 | BN28: ='Compile Data'!D210 -> 2351.792262 | BO28: ='Compile Data'!D211 -> 633.0621965 | BP28: ='Compile Data'!D212 -> 371.3778884 | BQ28: ='Compile Data'!D213 -> 598.0520338 | BR28: ='Compile Data'!D214 -> 726.7826905 | BS28: ='Compile Data'!D215 -> 667.1062093 | BT28: ='Compile Data'!D216 -> 634.2870868 | BV28: 9855.947751 | BW28: 7678.664324 | BX28: 10225.88659 | BZ28: 1927.898315 | CA28: 3710.439905 | CB28: 3954.284381 | CC28: 2626.22802 | CD28: 1657.284108 | CF28: 1938 | CG28: ='Compile Data'!E205 -> 291.2441093 | CH28: ='Compile Data'!E206 -> 238.0165289 | CI28: ='Compile Data'!E207 -> 1072.080798 | CJ28: ='Compile Data'!E208 -> 291.0894596 | CK28: ='Compile Data'!E209 -> 2315.527903 | CL28: ='Compile Data'!E210 -> 2351.792262 | CM28: ='Compile Data'!E211 -> 633.0621965 | CN28: ='Compile Data'!E212 -> 371.3780085 | CO28: ='Compile Data'!E213 -> 598.0695248 | CP28: ='Compile Data'!E214 -> 726.7907967 | CQ28: ='Compile Data'!E215 -> 667.1075904 | CR28: ='Compile Data'!E216 -> 338.8610699 | CT28: 9291.555299 | CU28: 7065.268515 | CV28: 9895.020248 | CX28: 1892.430896 | CY28: 3678.698161 | CZ28: 3954.301992 | DA28: 2330.828982 | DB28: 1073.323404 | DD28: 1938 | DE28: ='Compile Data'!F205 ->  | DF28: ='Compile Data'!F206 ->  | DG28: ='Compile Data'!F207 ->  | DH28: ='Compile Data'!F208 ->  | DI28: ='Compile Data'!F209 ->  | DJ28: ='Compile Data'!F210 ->  | DK28: ='Compile Data'!F211 ->  | DL28: ='Compile Data'!F212 ->  | DM28: ='Compile Data'!F213 ->  | DN28: ='Compile Data'!F214 ->  | DO28: ='Compile Data'!F215 ->  | DP28: ='Compile Data'!F216 ->  | EB28: 1938 | EC28: ='Compile Data'!G205 ->  | ED28: ='Compile Data'!G206 ->  | EE28: ='Compile Data'!G207 ->  | EF28: ='Compile Data'!G208 ->  | EG28: ='Compile Data'!G209 ->  | EH28: ='Compile Data'!G210 ->  | EI28: ='Compile Data'!G211 ->  | EJ28: ='Compile Data'!G212 ->  | EK28: ='Compile Data'!G213 ->  | EL28: ='Compile Data'!G214 ->  | EM28: ='Compile Data'!G215 ->  | EN28: ='Compile Data'!G216 ->  | EZ28: 1938 | FA28: ='Compile Data'!H205 ->  | FB28: ='Compile Data'!H206 ->  | FC28: ='Compile Data'!H207 ->  | FD28: ='Compile Data'!H208 ->  | FE28: ='Compile Data'!H209 ->  | FF28: ='Compile Data'!H210 ->  | FG28: ='Compile Data'!H211 ->  | FH28: ='Compile Data'!H212 ->  | FI28: ='Compile Data'!H213 ->  | FJ28: ='Compile Data'!H214 ->  | FK28: ='Compile Data'!H215 ->  | FL28: ='Compile Data'!H216 -> 
A29: 1923-02-28 | B29: =INDIRECT(CONCATENATE("'",B$1,"'!",B$4,(YEAR($A29)-1921)*12+MONTH($A29)+3+IF(ISNUMBER(FIND("PRV",B$6)),1,0)))*IF(AND(B$3>0,TRIM(B$9)="CFS"),Conv_Flags!$C29,1) -> 180.4958678 | C29: =INDIRECT(CONCATENATE("'",C$1,"'!",C$4,(YEAR($A29)-1921)*12+MONTH($A29)+3+IF(ISNUMBER(FIND("PRV",C$6)),1,0)))*IF(AND(C$3>0,TRIM(C$9)="CFS"),Conv_Flags!$C29,1) -> 180.4958678 | D29: =INDIRECT(CONCATENATE("'",D$1,"'!",D$4,(YEAR($A29)-1921)*12+MONTH($A29)+3+IF(ISNUMBER(FIND("PRV",D$6)),1,0)))*IF(AND(D$3>0,TRIM(D$9)="CFS"),Conv_Flags!$C29,1) -> 193.6659104 | E29: =INDIRECT(CONCATENATE("'",E$1,"'!",E$4,(YEAR($A29)-1921)*12+MONTH($A29)+3+IF(ISNUMBER(FIND("PRV",E$6)),1,0)))*IF(AND(E$3>0,TRIM(E$9)="CFS"),Conv_Flags!$C29,1) -> 302.4748722 | F29: =INDIRECT(CONCATENATE("'",F$1,"'!",F$4,(YEAR($A29)-1921)*12+MONTH($A29)+3+IF(ISNUMBER(FIND("PRV",F$6)),1,0)))*IF(AND(F$3>0,TRIM(F$9)="CFS"),Conv_Flags!$C29,1) ->  | G29: =INDIRECT(CONCATENATE("'",G$1,"'!",G$4,(YEAR($A29)-1921)*12+MONTH($A29)+3+IF(ISNUMBER(FIND("PRV",G$6)),1,0)))*IF(AND(G$3>0,TRIM(G$9)="CFS"),Conv_Flags!$C29,1) ->  | H29: =INDIRECT(CONCATENATE("'",H$1,"'!",H$4,(YEAR($A29)-1921)*12+MONTH($A29)+3+IF(ISNUMBER(FIND("PRV",H$6)),1,0)))*IF(AND(H$3>0,TRIM(H$9)="CFS"),Conv_Flags!$C29,1) ->  | L29: 1939 | M29: =B217 -> 410.3244305 | N29: =B218 -> 578.3165935 | O29: =B219 -> 235.6894743 | P29: =B220 -> 199.8347107 | Q29: =B221 -> 188.7640347 | R29: =B222 -> 199.8347107 | S29: =B223 -> 524.1003099 | T29: =B224 -> 546.4518595 | U29: =B225 -> 756.7607696 | V29: =B226 -> 922.3140496 | W29: =B227 -> 866.2008471 | X29: =B228 -> 363.8579481 | Z29: 5549.270929 | AA29: 6860.538897 | AB29: 5792.449738 | AD29: 1424.165209 | AE29: 624.2882198 | AF29: 2027.14765 | AG29: 2909.133614 | AH29: 1131.540621 | AJ29: 1939 | AK29: =C217 -> 508.5001976 | AL29: =C218 -> 300.2346074 | AM29: =C219 -> 238.0187826 | AN29: =C220 -> 199.8347107 | AO29: =C221 -> 180.4958678 | AP29: =C222 -> 199.8347107 | AQ29: =C223 -> 486.1466974 | AR29: =C224 -> 551.2805579 | AS29: =C225 -> 766.2010072 | AT29: =C226 -> 922.3140496 | AU29: =C227 -> 889.7274813 | AV29: =C228 -> 448.0151246 | AX29: 5544.091756 | AY29: 7080.752996 | AZ29: 5690.603795 | BB29: 1246.588298 | BC29: 618.3493611 | BD29: 2003.462973 | BE29: 3026.257663 | BF29: 1134.787657 | BH29: 1939 | BI29: ='Compile Data'!D217 -> 444.3375232 | BJ29: ='Compile Data'!D218 -> 578.6594977 | BK29: ='Compile Data'!D219 -> 243.8730299 | BL29: ='Compile Data'!D220 -> 199.8347107 | BM29: ='Compile Data'!D221 -> 229.4991942 | BN29: ='Compile Data'!D222 -> 199.8347107 | BO29: ='Compile Data'!D223 -> 586.2708549 | BP29: ='Compile Data'!D224 -> 576.1212494 | BQ29: ='Compile Data'!D225 -> 833.693453 | BR29: ='Compile Data'!D226 -> 922.3140496 | BS29: ='Compile Data'!D227 -> 1020.221169 | BT29: ='Compile Data'!D228 -> 351.7155895 | BV29: 6093.69065 | BW29: 6913.067567 | BX29: 6186.375031 | BZ29: 1466.704762 | CA29: 673.2069349 | CB29: 2195.920268 | CC29: 3127.944261 | CD29: 1312.432242 | CF29: 1939 | CG29: ='Compile Data'!E217 -> 426.6255507 | CH29: ='Compile Data'!E218 -> 307.8367833 | CI29: ='Compile Data'!E219 -> 263.4141535 | CJ29: ='Compile Data'!E220 -> 199.8347107 | CK29: ='Compile Data'!E221 -> 180.4958678 | CL29: ='Compile Data'!E222 -> 199.8347107 | CM29: ='Compile Data'!E223 -> 592.1584517 | CN29: ='Compile Data'!E224 -> 569.5505424 | CO29: ='Compile Data'!E225 -> 839.3352466 | CP29: ='Compile Data'!E226 -> 921.2666587 | CQ29: ='Compile Data'!E227 -> 893.9928235 | CR29: ='Compile Data'!E228 -> 413.0945087 | CT29: 6009.56504 | CU29: 7489.763123 | CV29: 5807.440008 | CX29: 1197.711198 | CY29: 643.7447321 | CZ29: 2200.878951 | DA29: 3067.689237 | DB29: 1399.627012 | DD29: 1939 | DE29: ='Compile Data'!F217 ->  | DF29: ='Compile Data'!F218 ->  | DG29: ='Compile Data'!F219 ->  | DH29: ='Compile Data'!F220 ->  | DI29: ='Compile Data'!F221 ->  | DJ29: ='Compile Data'!F222 ->  | DK29: ='Compile Data'!F223 ->  | DL29: ='Compile Data'!F224 ->  | DM29: ='Compile Data'!F225 ->  | DN29: ='Compile Data'!F226 ->  | DO29: ='Compile Data'!F227 ->  | DP29: ='Compile Data'!F228 ->  | EB29: 1939 | EC29: ='Compile Data'!G217 ->  | ED29: ='Compile Data'!G218 ->  | EE29: ='Compile Data'!G219 ->  | EF29: ='Compile Data'!G220 ->  | EG29: ='Compile Data'!G221 ->  | EH29: ='Compile Data'!G222 ->  | EI29: ='Compile Data'!G223 ->  | EJ29: ='Compile Data'!G224 ->  | EK29: ='Compile Data'!G225 ->  | EL29: ='Compile Data'!G226 ->  | EM29: ='Compile Data'!G227 ->  | EN29: ='Compile Data'!G228 ->  | EZ29: 1939 | FA29: ='Compile Data'!H217 ->  | FB29: ='Compile Data'!H218 ->  | FC29: ='Compile Data'!H219 ->  | FD29: ='Compile Data'!H220 ->  | FE29: ='Compile Data'!H221 ->  | FF29: ='Compile Data'!H222 ->  | FG29: ='Compile Data'!H223 ->  | FH29: ='Compile Data'!H224 ->  | FI29: ='Compile Data'!H225 ->  | FJ29: ='Compile Data'!H226 ->  | FK29: ='Compile Data'!H227 ->  | FL29: ='Compile Data'!H228 -> 
A30: 1923-03-31 | B30: =INDIRECT(CONCATENATE("'",B$1,"'!",B$4,(YEAR($A30)-1921)*12+MONTH($A30)+3+IF(ISNUMBER(FIND("PRV",B$6)),1,0)))*IF(AND(B$3>0,TRIM(B$9)="CFS"),Conv_Flags!$C30,1) -> 199.8347107 | C30: =INDIRECT(CONCATENATE("'",C$1,"'!",C$4,(YEAR($A30)-1921)*12+MONTH($A30)+3+IF(ISNUMBER(FIND("PRV",C$6)),1,0)))*IF(AND(C$3>0,TRIM(C$9)="CFS"),Conv_Flags!$C30,1) -> 199.8347107 | D30: =INDIRECT(CONCATENATE("'",D$1,"'!",D$4,(YEAR($A30)-1921)*12+MONTH($A30)+3+IF(ISNUMBER(FIND("PRV",D$6)),1,0)))*IF(AND(D$3>0,TRIM(D$9)="CFS"),Conv_Flags!$C30,1) -> 199.8347107 | E30: =INDIRECT(CONCATENATE("'",E$1,"'!",E$4,(YEAR($A30)-1921)*12+MONTH($A30)+3+IF(ISNUMBER(FIND("PRV",E$6)),1,0)))*IF(AND(E$3>0,TRIM(E$9)="CFS"),Conv_Flags!$C30,1) -> 199.8347107 | F30: =INDIRECT(CONCATENATE("'",F$1,"'!",F$4,(YEAR($A30)-1921)*12+MONTH($A30)+3+IF(ISNUMBER(FIND("PRV",F$6)),1,0)))*IF(AND(F$3>0,TRIM(F$9)="CFS"),Conv_Flags!$C30,1) ->  | G30: =INDIRECT(CONCATENATE("'",G$1,"'!",G$4,(YEAR($A30)-1921)*12+MONTH($A30)+3+IF(ISNUMBER(FIND("PRV",G$6)),1,0)))*IF(AND(G$3>0,TRIM(G$9)="CFS"),Conv_Flags!$C30,1) ->  | H30: =INDIRECT(CONCATENATE("'",H$1,"'!",H$4,(YEAR($A30)-1921)*12+MONTH($A30)+3+IF(ISNUMBER(FIND("PRV",H$6)),1,0)))*IF(AND(H$3>0,TRIM(H$9)="CFS"),Conv_Flags!$C30,1) ->  | L30: 1940 | M30: =B229 -> 382.1322143 | N30: =B230 -> 385.5504584 | O30: =B231 -> 213.4690163 | P30: =B232 -> 199.8347107 | Q30: =B233 -> 1500.032003 | R30: =B234 -> 1347.314682 | S30: =B235 -> 267.768595 | T30: =B236 -> 398.8030407 | U30: =B237 -> 677.5808174 | V30: =B238 -> 922.3140496 | W30: =B239 -> 685.2562209 | X30: =B240 -> 517.8479597 | Z30: 7713.524609 | AA30: 9053.787664 | AB30: 7497.903768 | AD30: 1180.9864 | AE30: 1913.33573 | AF30: 2691.467136 | AG30: 2802.999048 | AH30: 1179.56161 | AJ30: 1940 | AK30: =C229 -> 313.3358426 | AL30: =C230 -> 373.4366897 | AM30: =C231 -> 213.4690163 | AN30: =C232 -> 199.8347107 | AO30: =C233 -> 1717.157107 | AP30: =C234 -> 1347.314682 | AQ30: =C235 -> 267.768595 | AR30: =C236 -> 399.9235983 | AS30: =C237 -> 680.1729662 | AT30: =C238 -> 922.3140496 | AU30: =C239 -> 687.8157025 | AV30: =C240 -> 351.8222495 | AX30: 7944.331737 | AY30: 9067.469688 | AZ30: 7474.36521 | BB30: 1100.076259 | BC30: 2130.460835 | BD30: 2695.179842 | BE30: 2642.124968 | BF30: 1003.395883 | BH30: 1940 | BI30: ='Compile Data'!D229 -> 564.5960466 | BJ30: ='Compile Data'!D230 -> 396.1206063 | BK30: ='Compile Data'!D231 -> 213.4690163 | BL30: ='Compile Data'!D232 -> 199.8347107 | BM30: ='Compile Data'!D233 -> 1048.876112 | BN30: ='Compile Data'!D234 -> 1412.798259 | BO30: ='Compile Data'!D235 -> 267.768595 | BP30: ='Compile Data'!D236 -> 380.0782942 | BQ30: ='Compile Data'!D237 -> 753.8079352 | BR30: ='Compile Data'!D238 -> 933.8140328 | BS30: ='Compile Data'!D239 -> 820.8714534 | BT30: ='Compile Data'!D240 -> 664.9764011 | BV30: 7412.868128 | BW30: 9231.440054 | BX30: 7657.011463 | BZ30: 1374.02038 | CA30: 1462.179839 | CB30: 2814.453084 | CC30: 3173.469822 | CD30: 1349.068323 | CF30: 1940 | CG30: ='Compile Data'!E229 -> 594.6542975 | CH30: ='Compile Data'!E230 -> 391.8782057 | CI30: ='Compile Data'!E231 -> 213.4690163 | CJ30: ='Compile Data'!E232 -> 199.8347107 | CK30: ='Compile Data'!E233 -> 1660.69395 | CL30: ='Compile Data'!E234 -> 1412.798139 | CM30: ='Compile Data'!E235 -> 267.768595 | CN30: ='Compile Data'!E236 -> 375.4548647 | CO30: ='Compile Data'!E237 -> 745.2242898 | CP30: ='Compile Data'!E238 -> 909.9379881 | CQ30: ='Compile Data'!E239 -> 794.2145358 | CR30: ='Compile Data'!E240 -> 323.0520015 | CT30: 7757.761152 | CU30: 9189.653539 | CV30: 7888.980595 | CX30: 1399.83623 | CY30: 2073.997677 | CZ30: 2801.245889 | DA30: 2772.428815 | DB30: 1025.554257 | DD30: 1940 | DE30: ='Compile Data'!F229 ->  | DF30: ='Compile Data'!F230 ->  | DG30: ='Compile Data'!F231 ->  | DH30: ='Compile Data'!F232 ->  | DI30: ='Compile Data'!F233 ->  | DJ30: ='Compile Data'!F234 ->  | DK30: ='Compile Data'!F235 ->  | DL30: ='Compile Data'!F236 ->  | DM30: ='Compile Data'!F237 ->  | DN30: ='Compile Data'!F238 ->  | DO30: ='Compile Data'!F239 ->  | DP30: ='Compile Data'!F240 ->  | EB30: 1940 | EC30: ='Compile Data'!G229 ->  | ED30: ='Compile Data'!G230 ->  | EE30: ='Compile Data'!G231 ->  | EF30: ='Compile Data'!G232 ->  | EG30: ='Compile Data'!G233 ->  | EH30: ='Compile Data'!G234 ->  | EI30: ='Compile Data'!G235 ->  | EJ30: ='Compile Data'!G236 ->  | EK30: ='Compile Data'!G237 ->  | EL30: ='Compile Data'!G238 ->  | EM30: ='Compile Data'!G239 ->  | EN30: ='Compile Data'!G240 ->  | EZ30: 1940 | FA30: ='Compile Data'!H229 ->  | FB30: ='Compile Data'!H230 ->  | FC30: ='Compile Data'!H231 ->  | FD30: ='Compile Data'!H232 ->  | FE30: ='Compile Data'!H233 ->  | FF30: ='Compile Data'!H234 ->  | FG30: ='Compile Data'!H235 ->  | FH30: ='Compile Data'!H236 ->  | FI30: ='Compile Data'!H237 ->  | FJ30: ='Compile Data'!H238 ->  | FK30: ='Compile Data'!H239 ->  | FL30: ='Compile Data'!H240 -> 
A31: 1923-04-30 | B31: =INDIRECT(CONCATENATE("'",B$1,"'!",B$4,(YEAR($A31)-1921)*12+MONTH($A31)+3+IF(ISNUMBER(FIND("PRV",B$6)),1,0)))*IF(AND(B$3>0,TRIM(B$9)="CFS"),Conv_Flags!$C31,1) -> 193.3884298 | C31: =INDIRECT(CONCATENATE("'",C$1,"'!",C$4,(YEAR($A31)-1921)*12+MONTH($A31)+3+IF(ISNUMBER(FIND("PRV",C$6)),1,0)))*IF(AND(C$3>0,TRIM(C$9)="CFS"),Conv_Flags!$C31,1) -> 193.3884298 | D31: =INDIRECT(CONCATENATE("'",D$1,"'!",D$4,(YEAR($A31)-1921)*12+MONTH($A31)+3+IF(ISNUMBER(FIND("PRV",D$6)),1,0)))*IF(AND(D$3>0,TRIM(D$9)="CFS"),Conv_Flags!$C31,1) -> 193.3884298 | E31: =INDIRECT(CONCATENATE("'",E$1,"'!",E$4,(YEAR($A31)-1921)*12+MONTH($A31)+3+IF(ISNUMBER(FIND("PRV",E$6)),1,0)))*IF(AND(E$3>0,TRIM(E$9)="CFS"),Conv_Flags!$C31,1) -> 193.3884298 | F31: =INDIRECT(CONCATENATE("'",F$1,"'!",F$4,(YEAR($A31)-1921)*12+MONTH($A31)+3+IF(ISNUMBER(FIND("PRV",F$6)),1,0)))*IF(AND(F$3>0,TRIM(F$9)="CFS"),Conv_Flags!$C31,1) ->  | G31: =INDIRECT(CONCATENATE("'",G$1,"'!",G$4,(YEAR($A31)-1921)*12+MONTH($A31)+3+IF(ISNUMBER(FIND("PRV",G$6)),1,0)))*IF(AND(G$3>0,TRIM(G$9)="CFS"),Conv_Flags!$C31,1) ->  | H31: =INDIRECT(CONCATENATE("'",H$1,"'!",H$4,(YEAR($A31)-1921)*12+MONTH($A31)+3+IF(ISNUMBER(FIND("PRV",H$6)),1,0)))*IF(AND(H$3>0,TRIM(H$9)="CFS"),Conv_Flags!$C31,1) ->  | L31: 1941 | M31: =B241 -> 365.8906001 | N31: =B242 -> 295.8230501 | O31: =B243 -> 535.0588791 | P31: =B244 -> 1672.706959 | Q31: =B245 -> 1367.42281 | R31: =B246 -> 861.7650329 | S31: =B247 -> 794.2247224 | T31: =B248 -> 688.4536364 | U31: =B249 -> 601.2695571 | V31: =B250 -> 823.4950045 | W31: =B251 -> 695.1476788 | X31: =B252 -> 855.7592007 | Z31: 10237.58638 | AA31: 10107.52714 | AB31: 9557.017131 | AD31: 2869.479488 | AE31: 3575.188648 | AF31: 2945.712949 | AG31: 2975.671441 | AH31: 1912.448517 | AJ31: 1941 | AK31: =C241 -> 355.4921998 | AL31: =C242 -> 296.081434 | AM31: =C243 -> 718.6344421 | AN31: =C244 -> 1672.706959 | AO31: =C245 -> 1367.42281 | AP31: =C246 -> 861.7650329 | AQ31: =C247 -> 794.2247224 | AR31: =C248 -> 688.4536364 | AS31: =C249 -> 601.1564179 | AT31: =C250 -> 825.8964437 | AU31: =C251 -> 695.1931941 | AV31: =C252 -> 577.463023 | AX31: 10093.79631 | AY31: 9963.737295 | AZ31: 9454.490315 | BB31: 3042.915035 | BC31: 3758.764211 | BD31: 2945.59981 | BE31: 2699.709079 | BF31: 1467.247843 | BH31: 1941 | BI31: ='Compile Data'!D241 -> 380.4272843 | BJ31: ='Compile Data'!D242 -> 303.6646371 | BK31: ='Compile Data'!D243 -> 245.9504132 | BL31: ='Compile Data'!D244 -> 1631.02593 | BM31: ='Compile Data'!D245 -> 1436.256818 | BN31: ='Compile Data'!D246 -> 851.9235938 | BO31: ='Compile Data'!D247 -> 773.6902763 | BP31: ='Compile Data'!D248 -> 540.2409511 | BQ31: ='Compile Data'!D249 -> 698.3372417 | BR31: ='Compile Data'!D250 -> 922.3140496 | BS31: ='Compile Data'!D251 -> 730.8832651 | BT31: ='Compile Data'!D252 -> 892.5619835 | BV31: 10023.74375 | BW31: 9937.133745 | BX31: 9407.276444 | BZ31: 2561.068264 | CA31: 3313.233161 | CB31: 2864.192063 | CC31: 3244.09654 | CD31: 1908.258272 | CF31: 1941 | CG31: ='Compile Data'!E241 -> 428.4144257 | CH31: ='Compile Data'!E242 -> 274.0878293 | CI31: ='Compile Data'!E243 -> 366.2798215 | CJ31: ='Compile Data'!E244 -> 1856.16423 | CK31: ='Compile Data'!E245 -> 1436.256818 | CL31: ='Compile Data'!E246 -> 851.9235938 | CM31: ='Compile Data'!E247 -> 773.6902763 | CN31: ='Compile Data'!E248 -> 540.2409511 | CO31: ='Compile Data'!E249 -> 712.3516852 | CP31: ='Compile Data'!E250 -> 922.3140496 | CQ31: ='Compile Data'!E251 -> 719.6750478 | CR31: ='Compile Data'!E252 -> 445.2402505 | CT31: 9961.453638 | CU31: 9713.148992 | CV31: 9326.638979 | CX31: 2924.946307 | CY31: 3658.70087 | CZ31: 2878.206506 | DA31: 2799.581033 | DB31: 1226.522936 | DD31: 1941 | DE31: ='Compile Data'!F241 ->  | DF31: ='Compile Data'!F242 ->  | DG31: ='Compile Data'!F243 ->  | DH31: ='Compile Data'!F244 ->  | DI31: ='Compile Data'!F245 ->  | DJ31: ='Compile Data'!F246 ->  | DK31: ='Compile Data'!F247 ->  | DL31: ='Compile Data'!F248 ->  | DM31: ='Compile Data'!F249 ->  | DN31: ='Compile Data'!F250 ->  | DO31: ='Compile Data'!F251 ->  | DP31: ='Compile Data'!F252 ->  | EB31: 1941 | EC31: ='Compile Data'!G241 ->  | ED31: ='Compile Data'!G242 ->  | EE31: ='Compile Data'!G243 ->  | EF31: ='Compile Data'!G244 ->  | EG31: ='Compile Data'!G245 ->  | EH31: ='Compile Data'!G246 ->  | EI31: ='Compile Data'!G247 ->  | EJ31: ='Compile Data'!G248 ->  | EK31: ='Compile Data'!G249 ->  | EL31: ='Compile Data'!G250 ->  | EM31: ='Compile Data'!G251 ->  | EN31: ='Compile Data'!G252 ->  | EZ31: 1941 | FA31: ='Compile Data'!H241 ->  | FB31: ='Compile Data'!H242 ->  | FC31: ='Compile Data'!H243 ->  | FD31: ='Compile Data'!H244 ->  | FE31: ='Compile Data'!H245 ->  | FF31: ='Compile Data'!H246 ->  | FG31: ='Compile Data'!H247 ->  | FH31: ='Compile Data'!H248 ->  | FI31: ='Compile Data'!H249 ->  | FJ31: ='Compile Data'!H250 ->  | FK31: ='Compile Data'!H251 ->  | FL31: ='Compile Data'!H252 -> 
A32: 1923-05-31 | B32: =INDIRECT(CONCATENATE("'",B$1,"'!",B$4,(YEAR($A32)-1921)*12+MONTH($A32)+3+IF(ISNUMBER(FIND("PRV",B$6)),1,0)))*IF(AND(B$3>0,TRIM(B$9)="CFS"),Conv_Flags!$C32,1) -> 577.5354642 | C32: =INDIRECT(CONCATENATE("'",C$1,"'!",C$4,(YEAR($A32)-1921)*12+MONTH($A32)+3+IF(ISNUMBER(FIND("PRV",C$6)),1,0)))*IF(AND(C$3>0,TRIM(C$9)="CFS"),Conv_Flags!$C32,1) -> 670.6486519 | D32: =INDIRECT(CONCATENATE("'",D$1,"'!",D$4,(YEAR($A32)-1921)*12+MONTH($A32)+3+IF(ISNUMBER(FIND("PRV",D$6)),1,0)))*IF(AND(D$3>0,TRIM(D$9)="CFS"),Conv_Flags!$C32,1) -> 540.3500555 | E32: =INDIRECT(CONCATENATE("'",E$1,"'!",E$4,(YEAR($A32)-1921)*12+MONTH($A32)+3+IF(ISNUMBER(FIND("PRV",E$6)),1,0)))*IF(AND(E$3>0,TRIM(E$9)="CFS"),Conv_Flags!$C32,1) -> 618.7047172 | F32: =INDIRECT(CONCATENATE("'",F$1,"'!",F$4,(YEAR($A32)-1921)*12+MONTH($A32)+3+IF(ISNUMBER(FIND("PRV",F$6)),1,0)))*IF(AND(F$3>0,TRIM(F$9)="CFS"),Conv_Flags!$C32,1) ->  | G32: =INDIRECT(CONCATENATE("'",G$1,"'!",G$4,(YEAR($A32)-1921)*12+MONTH($A32)+3+IF(ISNUMBER(FIND("PRV",G$6)),1,0)))*IF(AND(G$3>0,TRIM(G$9)="CFS"),Conv_Flags!$C32,1) ->  | H32: =INDIRECT(CONCATENATE("'",H$1,"'!",H$4,(YEAR($A32)-1921)*12+MONTH($A32)+3+IF(ISNUMBER(FIND("PRV",H$6)),1,0)))*IF(AND(H$3>0,TRIM(H$9)="CFS"),Conv_Flags!$C32,1) ->  | L32: 1942 | M32: =B253 -> 511.9888385 | N32: =B254 -> 544.7004778 | O32: =B255 -> 820.6524638 | P32: =B256 -> 1195.277456 | Q32: =B257 -> 1714.793073 | R32: =B258 -> 276.6942149 | S32: =B259 -> 267.768595 | T32: =B260 -> 503.4241978 | U32: =B261 -> 526.5848399 | V32: =B262 -> 755.5342097 | W32: =B263 -> 684.0958226 | X32: =B264 -> 800.0703642 | Z32: 7874.547503 | AA32: 6010.500599 | AB32: 8601.584554 | AD32: 3072.619236 | AE32: 3730.722993 | AF32: 1574.471848 | AG32: 2766.285236 | AH32: 1704.424681 | AJ32: 1942 | AK32: =C253 -> 617.2372411 | AL32: =C254 -> 272.5475788 | AM32: =C255 -> 1119.729247 | AN32: =C256 -> 1195.277576 | AO32: =C257 -> 1714.793182 | AP32: =C258 -> 276.6942149 | AQ32: =C259 -> 267.768595 | AR32: =C260 -> 503.4241978 | AS32: =C261 -> 526.7226756 | AT32: =C262 -> 755.6024225 | AU32: =C263 -> 684.1122153 | AV32: =C264 -> 388.7966587 | AX32: 7619.743547 | AY32: 5945.661218 | AZ32: 8322.705805 | BB32: 3204.791643 | BC32: 4029.800005 | BD32: 1574.609683 | BE32: 2355.233972 | BF32: 1271.178248 | BH32: 1942 | BI32: ='Compile Data'!D253 -> 529.2138339 | BJ32: ='Compile Data'!D254 -> 486.4824542 | BK32: ='Compile Data'!D255 -> 530.8133523 | BL32: ='Compile Data'!D256 -> 1190.860316 | BM32: ='Compile Data'!D257 -> 1789.812428 | BN32: ='Compile Data'!D258 -> 276.6942149 | BO32: ='Compile Data'!D259 -> 267.768595 | BP32: ='Compile Data'!D260 -> 361.9582157 | BQ32: ='Compile Data'!D261 -> 536.0898115 | BR32: ='Compile Data'!D262 -> 922.3140496 | BS32: ='Compile Data'!D263 -> 710.0574019 | BT32: ='Compile Data'!D264 -> 892.5619835 | BV32: 8269.378349 | BW32: 6014.106337 | BX32: 8494.626656 | BZ32: 2737.369957 | CA32: 3511.486096 | CB32: 1442.510837 | CC32: 3061.023246 | CD32: 1967.872903 | CF32: 1942 | CG32: ='Compile Data'!E253 -> 514.1070984 | CH32: ='Compile Data'!E254 -> 267.1755876 | CI32: ='Compile Data'!E255 -> 922.3140496 | CJ32: ='Compile Data'!E256 -> 1254.154718 | CK32: ='Compile Data'!E257 -> 1789.961684 | CL32: ='Compile Data'!E258 -> 276.6942149 | CM32: ='Compile Data'!E259 -> 267.768595 | CN32: ='Compile Data'!E260 -> 362.1995726 | CO32: ='Compile Data'!E261 -> 537.0576834 | CP32: ='Compile Data'!E262 -> 922.3140496 | CQ32: ='Compile Data'!E263 -> 710.9538359 | CR32: ='Compile Data'!E264 -> 434.8490799 | CT32: 7516.282605 | CU32: 5860.480398 | CV32: 8259.550169 | CX32: 2957.751454 | CY32: 3966.430452 | CZ32: 1443.720066 | DA32: 2605.174649 | DB32: 1100.494859 | DD32: 1942 | DE32: ='Compile Data'!F253 ->  | DF32: ='Compile Data'!F254 ->  | DG32: ='Compile Data'!F255 ->  | DH32: ='Compile Data'!F256 ->  | DI32: ='Compile Data'!F257 ->  | DJ32: ='Compile Data'!F258 ->  | DK32: ='Compile Data'!F259 ->  | DL32: ='Compile Data'!F260 ->  | DM32: ='Compile Data'!F261 ->  | DN32: ='Compile Data'!F262 ->  | DO32: ='Compile Data'!F263 ->  | DP32: ='Compile Data'!F264 ->  | EB32: 1942 | EC32: ='Compile Data'!G253 ->  | ED32: ='Compile Data'!G254 ->  | EE32: ='Compile Data'!G255 ->  | EF32: ='Compile Data'!G256 ->  | EG32: ='Compile Data'!G257 ->  | EH32: ='Compile Data'!G258 ->  | EI32: ='Compile Data'!G259 ->  | EJ32: ='Compile Data'!G260 ->  | EK32: ='Compile Data'!G261 ->  | EL32: ='Compile Data'!G262 ->  | EM32: ='Compile Data'!G263 ->  | EN32: ='Compile Data'!G264 ->  | EZ32: 1942 | FA32: ='Compile Data'!H253 ->  | FB32: ='Compile Data'!H254 ->  | FC32: ='Compile Data'!H255 ->  | FD32: ='Compile Data'!H256 ->  | FE32: ='Compile Data'!H257 ->  | FF32: ='Compile Data'!H258 ->  | FG32: ='Compile Data'!H259 ->  | FH32: ='Compile Data'!H260 ->  | FI32: ='Compile Data'!H261 ->  | FJ32: ='Compile Data'!H262 ->  | FK32: ='Compile Data'!H263 ->  | FL32: ='Compile Data'!H264 -> 
A33: 1923-06-30 | B33: =INDIRECT(CONCATENATE("'",B$1,"'!",B$4,(YEAR($A33)-1921)*12+MONTH($A33)+3+IF(ISNUMBER(FIND("PRV",B$6)),1,0)))*IF(AND(B$3>0,TRIM(B$9)="CFS"),Conv_Flags!$C33,1) -> 622.1512655 | C33: =INDIRECT(CONCATENATE("'",C$1,"'!",C$4,(YEAR($A33)-1921)*12+MONTH($A33)+3+IF(ISNUMBER(FIND("PRV",C$6)),1,0)))*IF(AND(C$3>0,TRIM(C$9)="CFS"),Conv_Flags!$C33,1) -> 708.331321 | D33: =INDIRECT(CONCATENATE("'",D$1,"'!",D$4,(YEAR($A33)-1921)*12+MONTH($A33)+3+IF(ISNUMBER(FIND("PRV",D$6)),1,0)))*IF(AND(D$3>0,TRIM(D$9)="CFS"),Conv_Flags!$C33,1) -> 588.0133264 | E33: =INDIRECT(CONCATENATE("'",E$1,"'!",E$4,(YEAR($A33)-1921)*12+MONTH($A33)+3+IF(ISNUMBER(FIND("PRV",E$6)),1,0)))*IF(AND(E$3>0,TRIM(E$9)="CFS"),Conv_Flags!$C33,1) -> 667.1086712 | F33: =INDIRECT(CONCATENATE("'",F$1,"'!",F$4,(YEAR($A33)-1921)*12+MONTH($A33)+3+IF(ISNUMBER(FIND("PRV",F$6)),1,0)))*IF(AND(F$3>0,TRIM(F$9)="CFS"),Conv_Flags!$C33,1) ->  | G33: =INDIRECT(CONCATENATE("'",G$1,"'!",G$4,(YEAR($A33)-1921)*12+MONTH($A33)+3+IF(ISNUMBER(FIND("PRV",G$6)),1,0)))*IF(AND(G$3>0,TRIM(G$9)="CFS"),Conv_Flags!$C33,1) ->  | H33: =INDIRECT(CONCATENATE("'",H$1,"'!",H$4,(YEAR($A33)-1921)*12+MONTH($A33)+3+IF(ISNUMBER(FIND("PRV",H$6)),1,0)))*IF(AND(H$3>0,TRIM(H$9)="CFS"),Conv_Flags!$C33,1) ->  | L33: 1943 | M33: =B265 -> 464.8921265 | N33: =B266 -> 439.4621901 | O33: =B267 -> 245.9504132 | P33: =B268 -> 576.3604145 | Q33: =B269 -> 469.6632102 | R33: =B270 -> 675.3862597 | S33: =B271 -> 267.768595 | T33: =B272 -> 396.1439421 | U33: =B273 -> 612.5382102 | V33: =B274 -> 922.3140496 | W33: =B275 -> 707.1215489 | X33: =B276 -> 890.7485021 | Z33: 6723.745768 | AA33: 6109.320388 | AB33: 6668.349462 | AD33: 1726.665144 | AE33: 1291.974038 | AF33: 1951.837007 | AG33: 3132.722311 | AH33: 1830.316059 | AJ33: 1943 | AK33: =C265 -> 547.9720564 | AL33: =C266 -> 334.4095332 | AM33: =C267 -> 424.1702198 | AN33: =C268 -> 766.325164 | AO33: =C269 -> 469.6632645 | AP33: =C270 -> 675.3863197 | AQ33: =C271 -> 267.768595 | AR33: =C272 -> 396.1439421 | AS33: =C273 -> 612.6937694 | AT33: =C274 -> 922.3140496 | AU33: =C275 -> 707.6023412 | AV33: =C276 -> 404.04959 | AX33: 6131.947971 | AY33: 5327.557787 | AZ33: 6528.498845 | BB33: 2072.876973 | BC33: 1660.158648 | BD33: 1951.992626 | BE33: 2646.65975 | BF33: 1068.100112 | BH33: 1943 | BI33: ='Compile Data'!D265 -> 500.3123786 | BJ33: ='Compile Data'!D266 -> 574.9985408 | BK33: ='Compile Data'!D267 -> 245.9504132 | BL33: ='Compile Data'!D268 -> 276.6942149 | BM33: ='Compile Data'!D269 -> 448.7065173 | BN33: ='Compile Data'!D270 -> 589.6596907 | BO33: ='Compile Data'!D271 -> 267.768595 | BP33: ='Compile Data'!D272 -> 340.2712258 | BQ33: ='Compile Data'!D273 -> 636.9523954 | BR33: ='Compile Data'!D274 -> 980.7721875 | BS33: ='Compile Data'!D275 -> 725.1722437 | BT33: ='Compile Data'!D276 -> 892.5619254 | BV33: 6357.349773 | BW33: 6063.547285 | BX33: 6479.820328 | BZ33: 1597.955548 | CA33: 971.3511454 | CB33: 1834.651907 | CC33: 3235.458752 | CD33: 1818.311205 | CF33: 1943 | CG33: ='Compile Data'!E265 -> 408.5297311 | CH33: ='Compile Data'!E266 -> 257.1160479 | CI33: ='Compile Data'!E267 -> 294.683392 | CJ33: ='Compile Data'!E268 -> 939.6076782 | CK33: ='Compile Data'!E269 -> 448.7065173 | CL33: ='Compile Data'!E270 -> 637.2010169 | CM33: ='Compile Data'!E271 -> 267.768595 | CN33: ='Compile Data'!E272 -> 363.2524577 | CO33: ='Compile Data'!E273 -> 672.3160963 | CP33: ='Compile Data'!E274 -> 988.1362287 | CQ33: ='Compile Data'!E275 -> 753.3314644 | CR33: ='Compile Data'!E276 -> 445.1127583 | CT33: 6466.489536 | CU33: 5509.7736 | CV33: 6475.761984 | CX33: 1899.936849 | CY33: 1682.997587 | CZ33: 1940.538166 | DA33: 2858.896548 | DB33: 1150.219069 | DD33: 1943 | DE33: ='Compile Data'!F265 ->  | DF33: ='Compile Data'!F266 ->  | DG33: ='Compile Data'!F267 ->  | DH33: ='Compile Data'!F268 ->  | DI33: ='Compile Data'!F269 ->  | DJ33: ='Compile Data'!F270 ->  | DK33: ='Compile Data'!F271 ->  | DL33: ='Compile Data'!F272 ->  | DM33: ='Compile Data'!F273 ->  | DN33: ='Compile Data'!F274 ->  | DO33: ='Compile Data'!F275 ->  | DP33: ='Compile Data'!F276 ->  | EB33: 1943 | EC33: ='Compile Data'!G265 ->  | ED33: ='Compile Data'!G266 ->  | EE33: ='Compile Data'!G267 ->  | EF33: ='Compile Data'!G268 ->  | EG33: ='Compile Data'!G269 ->  | EH33: ='Compile Data'!G270 ->  | EI33: ='Compile Data'!G271 ->  | EJ33: ='Compile Data'!G272 ->  | EK33: ='Compile Data'!G273 ->  | EL33: ='Compile Data'!G274 ->  | EM33: ='Compile Data'!G275 ->  | EN33: ='Compile Data'!G276 ->  | EZ33: 1943 | FA33: ='Compile Data'!H265 ->  | FB33: ='Compile Data'!H266 ->  | FC33: ='Compile Data'!H267 ->  | FD33: ='Compile Data'!H268 ->  | FE33: ='Compile Data'!H269 ->  | FF33: ='Compile Data'!H270 ->  | FG33: ='Compile Data'!H271 ->  | FH33: ='Compile Data'!H272 ->  | FI33: ='Compile Data'!H273 ->  | FJ33: ='Compile Data'!H274 ->  | FK33: ='Compile Data'!H275 ->  | FL33: ='Compile Data'!H276 -> 
A34: 1923-07-31 | B34: =INDIRECT(CONCATENATE("'",B$1,"'!",B$4,(YEAR($A34)-1921)*12+MONTH($A34)+3+IF(ISNUMBER(FIND("PRV",B$6)),1,0)))*IF(AND(B$3>0,TRIM(B$9)="CFS"),Conv_Flags!$C34,1) -> 851.936864 | C34: =INDIRECT(CONCATENATE("'",C$1,"'!",C$4,(YEAR($A34)-1921)*12+MONTH($A34)+3+IF(ISNUMBER(FIND("PRV",C$6)),1,0)))*IF(AND(C$3>0,TRIM(C$9)="CFS"),Conv_Flags!$C34,1) -> 909.6429197 | D34: =INDIRECT(CONCATENATE("'",D$1,"'!",D$4,(YEAR($A34)-1921)*12+MONTH($A34)+3+IF(ISNUMBER(FIND("PRV",D$6)),1,0)))*IF(AND(D$3>0,TRIM(D$9)="CFS"),Conv_Flags!$C34,1) -> 776.1864185 | E34: =INDIRECT(CONCATENATE("'",E$1,"'!",E$4,(YEAR($A34)-1921)*12+MONTH($A34)+3+IF(ISNUMBER(FIND("PRV",E$6)),1,0)))*IF(AND(E$3>0,TRIM(E$9)="CFS"),Conv_Flags!$C34,1) -> 868.3956063 | F34: =INDIRECT(CONCATENATE("'",F$1,"'!",F$4,(YEAR($A34)-1921)*12+MONTH($A34)+3+IF(ISNUMBER(FIND("PRV",F$6)),1,0)))*IF(AND(F$3>0,TRIM(F$9)="CFS"),Conv_Flags!$C34,1) ->  | G34: =INDIRECT(CONCATENATE("'",G$1,"'!",G$4,(YEAR($A34)-1921)*12+MONTH($A34)+3+IF(ISNUMBER(FIND("PRV",G$6)),1,0)))*IF(AND(G$3>0,TRIM(G$9)="CFS"),Conv_Flags!$C34,1) ->  | H34: =INDIRECT(CONCATENATE("'",H$1,"'!",H$4,(YEAR($A34)-1921)*12+MONTH($A34)+3+IF(ISNUMBER(FIND("PRV",H$6)),1,0)))*IF(AND(H$3>0,TRIM(H$9)="CFS"),Conv_Flags!$C34,1) ->  | L34: 1944 | M34: =B277 -> 421.411384 | N34: =B278 -> 518.1561725 | O34: =B279 -> 266.1334788 | P34: =B280 -> 244.6560962 | Q34: =B281 -> 186.9421488 | R34: =B282 -> 199.8347107 | S34: =B283 -> 349.4032089 | T34: =B284 -> 317.4396597 | U34: =B285 -> 524.0461519 | V34: =B286 -> 791.012737 | W34: =B287 -> 623.7913753 | X34: =B288 -> 231.7142045 | Z34: 4325.07783 | AA34: 4343.231651 | AB34: 4674.541328 | AD34: 1450.357131 | AE34: 697.7317238 | AF34: 1390.723731 | AG34: 2170.564469 | AH34: 863.5149939 | AJ34: 1944 | AK34: =C277 -> 358.1913795 | AL34: =C278 -> 305.8591426 | AM34: =C279 -> 245.9504132 | AN34: =C280 -> 244.6560962 | AO34: =C281 -> 186.9421488 | AP34: =C282 -> 199.8347107 | AQ34: =C283 -> 402.7147275 | AR34: =C284 -> 369.7390096 | AS34: =C285 -> 577.4883587 | AT34: =C286 -> 887.0732464 | AU34: =C287 -> 668.8862874 | AV34: =C288 -> 372.8390044 | AX34: 4690.717905 | AY34: 4708.871726 | AZ34: 4820.174525 | BB34: 1154.657031 | BC34: 677.5486582 | BD34: 1549.776807 | BE34: 2506.286897 | BF34: 928.9465725 | BH34: 1944 | BI34: ='Compile Data'!D277 -> 460.3644112 | BJ34: ='Compile Data'!D278 -> 465.3848689 | BK34: ='Compile Data'!D279 -> 273.041497 | BL34: ='Compile Data'!D280 -> 244.6560962 | BM34: ='Compile Data'!D281 -> 186.9421488 | BN34: ='Compile Data'!D282 -> 199.8347107 | BO34: ='Compile Data'!D283 -> 348.8145015 | BP34: ='Compile Data'!D284 -> 318.1549035 | BQ34: ='Compile Data'!D285 -> 587.7711841 | BR34: ='Compile Data'!D286 -> 780.0950245 | BS34: ='Compile Data'!D287 -> 667.151064 | BT34: ='Compile Data'!D288 -> 231.4356712 | BV34: 4429.033419 | BW34: 4447.18724 | BX34: 4763.646082 | BZ34: 1443.446873 | CA34: 704.6397419 | CB34: 1454.5753 | CC34: 2266.452944 | CD34: 871.177038 | CF34: 1944 | CG34: ='Compile Data'!E277 -> 397.5932842 | CH34: ='Compile Data'!E278 -> 307.5130262 | CI34: ='Compile Data'!E279 -> 245.9504132 | CJ34: ='Compile Data'!E280 -> 244.6560962 | CK34: ='Compile Data'!E281 -> 186.9421628 | CL34: ='Compile Data'!E282 -> 199.8347107 | CM34: ='Compile Data'!E283 -> 371.2095558 | CN34: ='Compile Data'!E284 -> 335.4150862 | CO34: ='Compile Data'!E285 -> 666.4679558 | CP34: ='Compile Data'!E286 -> 922.3140496 | CQ34: ='Compile Data'!E287 -> 721.092265 | CR34: ='Compile Data'!E288 -> 251.7570732 | CT34: 4765.886043 | CU34: 4784.03985 | CV34: 4850.745679 | CX34: 1195.71282 | CY34: 677.5486722 | CZ34: 1572.927309 | DA34: 2561.631344 | DB34: 893.5174132 | DD34: 1944 | DE34: ='Compile Data'!F277 ->  | DF34: ='Compile Data'!F278 ->  | DG34: ='Compile Data'!F279 ->  | DH34: ='Compile Data'!F280 ->  | DI34: ='Compile Data'!F281 ->  | DJ34: ='Compile Data'!F282 ->  | DK34: ='Compile Data'!F283 ->  | DL34: ='Compile Data'!F284 ->  | DM34: ='Compile Data'!F285 ->  | DN34: ='Compile Data'!F286 ->  | DO34: ='Compile Data'!F287 ->  | DP34: ='Compile Data'!F288 ->  | EB34: 1944 | EC34: ='Compile Data'!G277 ->  | ED34: ='Compile Data'!G278 ->  | EE34: ='Compile Data'!G279 ->  | EF34: ='Compile Data'!G280 ->  | EG34: ='Compile Data'!G281 ->  | EH34: ='Compile Data'!G282 ->  | EI34: ='Compile Data'!G283 ->  | EJ34: ='Compile Data'!G284 ->  | EK34: ='Compile Data'!G285 ->  | EL34: ='Compile Data'!G286 ->  | EM34: ='Compile Data'!G287 ->  | EN34: ='Compile Data'!G288 ->  | EZ34: 1944 | FA34: ='Compile Data'!H277 ->  | FB34: ='Compile Data'!H278 ->  | FC34: ='Compile Data'!H279 ->  | FD34: ='Compile Data'!H280 ->  | FE34: ='Compile Data'!H281 ->  | FF34: ='Compile Data'!H282 ->  | FG34: ='Compile Data'!H283 ->  | FH34: ='Compile Data'!H284 ->  | FI34: ='Compile Data'!H285 ->  | FJ34: ='Compile Data'!H286 ->  | FK34: ='Compile Data'!H287 ->  | FL34: ='Compile Data'!H288 -> 
A35: 1923-08-31 | B35: =INDIRECT(CONCATENATE("'",B$1,"'!",B$4,(YEAR($A35)-1921)*12+MONTH($A35)+3+IF(ISNUMBER(FIND("PRV",B$6)),1,0)))*IF(AND(B$3>0,TRIM(B$9)="CFS"),Conv_Flags!$C35,1) -> 597.2817517 | C35: =INDIRECT(CONCATENATE("'",C$1,"'!",C$4,(YEAR($A35)-1921)*12+MONTH($A35)+3+IF(ISNUMBER(FIND("PRV",C$6)),1,0)))*IF(AND(C$3>0,TRIM(C$9)="CFS"),Conv_Flags!$C35,1) -> 680.740605 | D35: =INDIRECT(CONCATENATE("'",D$1,"'!",D$4,(YEAR($A35)-1921)*12+MONTH($A35)+3+IF(ISNUMBER(FIND("PRV",D$6)),1,0)))*IF(AND(D$3>0,TRIM(D$9)="CFS"),Conv_Flags!$C35,1) -> 618.7874613 | E35: =INDIRECT(CONCATENATE("'",E$1,"'!",E$4,(YEAR($A35)-1921)*12+MONTH($A35)+3+IF(ISNUMBER(FIND("PRV",E$6)),1,0)))*IF(AND(E$3>0,TRIM(E$9)="CFS"),Conv_Flags!$C35,1) -> 702.0073896 | F35: =INDIRECT(CONCATENATE("'",F$1,"'!",F$4,(YEAR($A35)-1921)*12+MONTH($A35)+3+IF(ISNUMBER(FIND("PRV",F$6)),1,0)))*IF(AND(F$3>0,TRIM(F$9)="CFS"),Conv_Flags!$C35,1) ->  | G35: =INDIRECT(CONCATENATE("'",G$1,"'!",G$4,(YEAR($A35)-1921)*12+MONTH($A35)+3+IF(ISNUMBER(FIND("PRV",G$6)),1,0)))*IF(AND(G$3>0,TRIM(G$9)="CFS"),Conv_Flags!$C35,1) ->  | H35: =INDIRECT(CONCATENATE("'",H$1,"'!",H$4,(YEAR($A35)-1921)*12+MONTH($A35)+3+IF(ISNUMBER(FIND("PRV",H$6)),1,0)))*IF(AND(H$3>0,TRIM(H$9)="CFS"),Conv_Flags!$C35,1) ->  | L35: 1945 | M35: =B289 -> 379.3729581 | N35: =B290 -> 252.4278312 | O35: =B291 -> 224.4367475 | P35: =B292 -> 199.8347107 | Q35: =B293 -> 249.9173554 | R35: =B294 -> 276.6942149 | S35: =B295 -> 275.9337067 | T35: =B296 -> 310.8999067 | U35: =B297 -> 531.8808239 | V35: =B298 -> 786.1653642 | W35: =B299 -> 570.782336 | X35: =B300 -> 316.5911544 | Z35: 6061.763372 | AA35: 6411.670407 | AB35: 4374.93711 | AD35: 1056.072248 | AE35: 674.1888136 | AF35: 1395.408652 | AG35: 2205.419678 | AH35: 920.3620051 | AJ35: 1945 | AK35: =C289 -> 303.6797369 | AL35: =C290 -> 252.4278312 | AM35: =C291 -> 224.4367475 | AN35: =C292 -> 199.8347107 | AO35: =C293 -> 249.9173554 | AP35: =C294 -> 276.6942149 | AQ35: =C295 -> 298.3684207 | AR35: =C296 -> 350.027459 | AS35: =C297 -> 572.3717007 | AT35: =C298 -> 822.7676014 | AU35: =C299 -> 611.3084911 | AV35: =C300 -> 328.1516916 | AX35: 6315.46205 | AY35: 6665.369086 | AZ35: 4489.985961 | BB35: 980.3790263 | BC35: 674.1888136 | BD35: 1497.461795 | BE35: 2334.599485 | BF35: 994.8791481 | BH35: 1945 | BI35: ='Compile Data'!D289 -> 387.3135356 | BJ35: ='Compile Data'!D290 -> 252.4278312 | BK35: ='Compile Data'!D291 -> 224.4367475 | BL35: ='Compile Data'!D292 -> 199.8347107 | BM35: ='Compile Data'!D293 -> 249.9173554 | BN35: ='Compile Data'!D294 -> 276.6942149 | BO35: ='Compile Data'!D295 -> 278.464579 | BP35: ='Compile Data'!D296 -> 309.2957948 | BQ35: ='Compile Data'!D297 -> 530.9974432 | BR35: ='Compile Data'!D298 -> 747.3526956 | BS35: ='Compile Data'!D299 -> 574.5647843 | BT35: ='Compile Data'!D300 -> 338.0131069 | BV35: 5580.17932 | BW35: 5979.599429 | BX35: 4369.312799 | BZ35: 1064.012825 | CA35: 674.1888136 | CB35: 1395.452032 | CC35: 2190.92803 | CD35: 1048.312045 | CF35: 1945 | CG35: ='Compile Data'!E289 -> 389.3325087 | CH35: ='Compile Data'!E290 -> 252.4278312 | CI35: ='Compile Data'!E291 -> 224.4367475 | CJ35: ='Compile Data'!E292 -> 199.8347107 | CK35: ='Compile Data'!E293 -> 249.9173554 | CL35: ='Compile Data'!E294 -> 276.6942149 | CM35: ='Compile Data'!E295 -> 280.358513 | CN35: ='Compile Data'!E296 -> 312.4406395 | CO35: ='Compile Data'!E297 -> 535.6011686 | CP35: ='Compile Data'!E298 -> 807.8090606 | CQ35: ='Compile Data'!E299 -> 598.4778777 | CR35: ='Compile Data'!E300 -> 345.8875549 | CT35: 5806.342514 | CU35: 6205.762562 | CV35: 4473.218183 | CX35: 1066.031798 | CY35: 674.1888136 | CZ35: 1405.094536 | DA35: 2287.775662 | DB35: 974.4494212 | DD35: 1945 | DE35: ='Compile Data'!F289 ->  | DF35: ='Compile Data'!F290 ->  | DG35: ='Compile Data'!F291 ->  | DH35: ='Compile Data'!F292 ->  | DI35: ='Compile Data'!F293 ->  | DJ35: ='Compile Data'!F294 ->  | DK35: ='Compile Data'!F295 ->  | DL35: ='Compile Data'!F296 ->  | DM35: ='Compile Data'!F297 ->  | DN35: ='Compile Data'!F298 ->  | DO35: ='Compile Data'!F299 ->  | DP35: ='Compile Data'!F300 ->  | EB35: 1945 | EC35: ='Compile Data'!G289 ->  | ED35: ='Compile Data'!G290 ->  | EE35: ='Compile Data'!G291 ->  | EF35: ='Compile Data'!G292 ->  | EG35: ='Compile Data'!G293 ->  | EH35: ='Compile Data'!G294 ->  | EI35: ='Compile Data'!G295 ->  | EJ35: ='Compile Data'!G296 ->  | EK35: ='Compile Data'!G297 ->  | EL35: ='Compile Data'!G298 ->  | EM35: ='Compile Data'!G299 ->  | EN35: ='Compile Data'!G300 ->  | EZ35: 1945 | FA35: ='Compile Data'!H289 ->  | FB35: ='Compile Data'!H290 ->  | FC35: ='Compile Data'!H291 ->  | FD35: ='Compile Data'!H292 ->  | FE35: ='Compile Data'!H293 ->  | FF35: ='Compile Data'!H294 ->  | FG35: ='Compile Data'!H295 ->  | FH35: ='Compile Data'!H296 ->  | FI35: ='Compile Data'!H297 ->  | FJ35: ='Compile Data'!H298 ->  | FK35: ='Compile Data'!H299 ->  | FL35: ='Compile Data'!H300 -> 
A36: 1923-09-30 | B36: =INDIRECT(CONCATENATE("'",B$1,"'!",B$4,(YEAR($A36)-1921)*12+MONTH($A36)+3+IF(ISNUMBER(FIND("PRV",B$6)),1,0)))*IF(AND(B$3>0,TRIM(B$9)="CFS"),Conv_Flags!$C36,1) -> 264.0226821 | C36: =INDIRECT(CONCATENATE("'",C$1,"'!",C$4,(YEAR($A36)-1921)*12+MONTH($A36)+3+IF(ISNUMBER(FIND("PRV",C$6)),1,0)))*IF(AND(C$3>0,TRIM(C$9)="CFS"),Conv_Flags!$C36,1) -> 320.3332903 | D36: =INDIRECT(CONCATENATE("'",D$1,"'!",D$4,(YEAR($A36)-1921)*12+MONTH($A36)+3+IF(ISNUMBER(FIND("PRV",D$6)),1,0)))*IF(AND(D$3>0,TRIM(D$9)="CFS"),Conv_Flags!$C36,1) -> 261.6811015 | E36: =INDIRECT(CONCATENATE("'",E$1,"'!",E$4,(YEAR($A36)-1921)*12+MONTH($A36)+3+IF(ISNUMBER(FIND("PRV",E$6)),1,0)))*IF(AND(E$3>0,TRIM(E$9)="CFS"),Conv_Flags!$C36,1) -> 322.8073315 | F36: =INDIRECT(CONCATENATE("'",F$1,"'!",F$4,(YEAR($A36)-1921)*12+MONTH($A36)+3+IF(ISNUMBER(FIND("PRV",F$6)),1,0)))*IF(AND(F$3>0,TRIM(F$9)="CFS"),Conv_Flags!$C36,1) ->  | G36: =INDIRECT(CONCATENATE("'",G$1,"'!",G$4,(YEAR($A36)-1921)*12+MONTH($A36)+3+IF(ISNUMBER(FIND("PRV",G$6)),1,0)))*IF(AND(G$3>0,TRIM(G$9)="CFS"),Conv_Flags!$C36,1) ->  | H36: =INDIRECT(CONCATENATE("'",H$1,"'!",H$4,(YEAR($A36)-1921)*12+MONTH($A36)+3+IF(ISNUMBER(FIND("PRV",H$6)),1,0)))*IF(AND(H$3>0,TRIM(H$9)="CFS"),Conv_Flags!$C36,1) ->  | L36: 1946 | M36: =B301 -> 359.6159824 | N36: =B302 -> 244.1548683 | O36: =B303 -> 1939.292948 | P36: =B304 -> 549.7417465 | Q36: =B305 -> 249.9173554 | R36: =B306 -> 276.6942149 | S36: =B307 -> 401.5810111 | T36: =B308 -> 471.103125 | U36: =B309 -> 661.6503874 | V36: =B310 -> 922.3140496 | W36: =B311 -> 699.0998186 | X36: =B312 -> 601.8533252 | Z36: 5818.159357 | AA36: 5425.983494 | AB36: 7377.018832 | AD36: 3092.805545 | AE36: 2738.95205 | AF36: 1811.028738 | AG36: 2884.917581 | AH36: 1386.222938 | AJ36: 1946 | AK36: =C301 -> 347.6416319 | AL36: =C302 -> 319.0858245 | AM36: =C303 -> 1939.292948 | AN36: =C304 -> 549.7417465 | AO36: =C305 -> 249.9173554 | AP36: =C306 -> 276.6942149 | AQ36: =C307 -> 406.5330449 | AR36: =C308 -> 474.9643543 | AS36: =C309 -> 666.4285576 | AT36: =C310 -> 922.3140496 | AU36: =C311 -> 701.5641264 | AV36: =C312 -> 401.4375678 | AX36: 5505.115813 | AY36: 5116.451665 | AZ36: 7255.615422 | BB36: 3155.762151 | BC36: 2738.95205 | BD36: 1824.620172 | BE36: 2691.744301 | BF36: 1057.123653 | BH36: 1946 | BI36: ='Compile Data'!D301 -> 397.3930591 | BJ36: ='Compile Data'!D302 -> 312.9058787 | BK36: ='Compile Data'!D303 -> 1364.745697 | BL36: ='Compile Data'!D304 -> 599.2548192 | BM36: ='Compile Data'!D305 -> 249.9173554 | BN36: ='Compile Data'!D306 -> 276.6942149 | BO36: ='Compile Data'!D307 -> 375.3259459 | BP36: ='Compile Data'!D308 -> 432.1552918 | BQ36: ='Compile Data'!D309 -> 657.9330643 | BR36: ='Compile Data'!D310 -> 922.3140496 | BS36: ='Compile Data'!D311 -> 738.9272127 | BT36: ='Compile Data'!D312 -> 344.7230114 | BV36: 5386.723581 | BW36: 4920.315789 | BX36: 6672.2896 | BZ36: 2674.299454 | CA36: 2213.917872 | CB36: 1742.108517 | CC36: 2663.897338 | CD36: 934.3669166 | CF36: 1946 | CG36: ='Compile Data'!E301 -> 363.639097 | CH36: ='Compile Data'!E302 -> 264.9227692 | CI36: ='Compile Data'!E303 -> 1570.759552 | CJ36: ='Compile Data'!E304 -> 599.2547592 | CK36: ='Compile Data'!E305 -> 249.9173554 | CL36: ='Compile Data'!E306 -> 276.6942149 | CM36: ='Compile Data'!E307 -> 378.0654313 | CN36: ='Compile Data'!E308 -> 435.724425 | CO36: ='Compile Data'!E309 -> 660.3318246 | CP36: ='Compile Data'!E310 -> 922.3140496 | CQ36: ='Compile Data'!E311 -> 751.040931 | CR36: ='Compile Data'!E312 -> 412.9151246 | CT36: 5550.276226 | CU36: 5082.107031 | CV36: 6885.579534 | CX36: 2798.576177 | CY36: 2419.931666 | CZ36: 1750.815896 | DA36: 2746.60193 | DB36: 1077.098525 | DD36: 1946 | DE36: ='Compile Data'!F301 ->  | DF36: ='Compile Data'!F302 ->  | DG36: ='Compile Data'!F303 ->  | DH36: ='Compile Data'!F304 ->  | DI36: ='Compile Data'!F305 ->  | DJ36: ='Compile Data'!F306 ->  | DK36: ='Compile Data'!F307 ->  | DL36: ='Compile Data'!F308 ->  | DM36: ='Compile Data'!F309 ->  | DN36: ='Compile Data'!F310 ->  | DO36: ='Compile Data'!F311 ->  | DP36: ='Compile Data'!F312 ->  | EB36: 1946 | EC36: ='Compile Data'!G301 ->  | ED36: ='Compile Data'!G302 ->  | EE36: ='Compile Data'!G303 ->  | EF36: ='Compile Data'!G304 ->  | EG36: ='Compile Data'!G305 ->  | EH36: ='Compile Data'!G306 ->  | EI36: ='Compile Data'!G307 ->  | EJ36: ='Compile Data'!G308 ->  | EK36: ='Compile Data'!G309 ->  | EL36: ='Compile Data'!G310 ->  | EM36: ='Compile Data'!G311 ->  | EN36: ='Compile Data'!G312 ->  | EZ36: 1946 | FA36: ='Compile Data'!H301 ->  | FB36: ='Compile Data'!H302 ->  | FC36: ='Compile Data'!H303 ->  | FD36: ='Compile Data'!H304 ->  | FE36: ='Compile Data'!H305 ->  | FF36: ='Compile Data'!H306 ->  | FG36: ='Compile Data'!H307 ->  | FH36: ='Compile Data'!H308 ->  | FI36: ='Compile Data'!H309 ->  | FJ36: ='Compile Data'!H310 ->  | FK36: ='Compile Data'!H311 ->  | FL36: ='Compile Data'!H312 -> 
A37: 1923-10-31 | B37: =INDIRECT(CONCATENATE("'",B$1,"'!",B$4,(YEAR($A37)-1921)*12+MONTH($A37)+3+IF(ISNUMBER(FIND("PRV",B$6)),1,0)))*IF(AND(B$3>0,TRIM(B$9)="CFS"),Conv_Flags!$C37,1) -> 296.6241245 | C37: =INDIRECT(CONCATENATE("'",C$1,"'!",C$4,(YEAR($A37)-1921)*12+MONTH($A37)+3+IF(ISNUMBER(FIND("PRV",C$6)),1,0)))*IF(AND(C$3>0,TRIM(C$9)="CFS"),Conv_Flags!$C37,1) -> 362.5541171 | D37: =INDIRECT(CONCATENATE("'",D$1,"'!",D$4,(YEAR($A37)-1921)*12+MONTH($A37)+3+IF(ISNUMBER(FIND("PRV",D$6)),1,0)))*IF(AND(D$3>0,TRIM(D$9)="CFS"),Conv_Flags!$C37,1) -> 340.9990793 | E37: =INDIRECT(CONCATENATE("'",E$1,"'!",E$4,(YEAR($A37)-1921)*12+MONTH($A37)+3+IF(ISNUMBER(FIND("PRV",E$6)),1,0)))*IF(AND(E$3>0,TRIM(E$9)="CFS"),Conv_Flags!$C37,1) -> 329.7652521 | F37: =INDIRECT(CONCATENATE("'",F$1,"'!",F$4,(YEAR($A37)-1921)*12+MONTH($A37)+3+IF(ISNUMBER(FIND("PRV",F$6)),1,0)))*IF(AND(F$3>0,TRIM(F$9)="CFS"),Conv_Flags!$C37,1) ->  | G37: =INDIRECT(CONCATENATE("'",G$1,"'!",G$4,(YEAR($A37)-1921)*12+MONTH($A37)+3+IF(ISNUMBER(FIND("PRV",G$6)),1,0)))*IF(AND(G$3>0,TRIM(G$9)="CFS"),Conv_Flags!$C37,1) ->  | H37: =INDIRECT(CONCATENATE("'",H$1,"'!",H$4,(YEAR($A37)-1921)*12+MONTH($A37)+3+IF(ISNUMBER(FIND("PRV",H$6)),1,0)))*IF(AND(H$3>0,TRIM(H$9)="CFS"),Conv_Flags!$C37,1) ->  | L37: 1947 | M37: =B313 -> 453.1903871 | N37: =B314 -> 331.1792259 | O37: =B315 -> 199.8347107 | P37: =B316 -> 226.9873571 | Q37: =B317 -> 180.4958813 | R37: =B318 -> 199.8347107 | S37: =B319 -> 277.1695216 | T37: =B320 -> 529.0880966 | U37: =B321 -> 636.0236893 | V37: =B322 -> 879.9197282 | W37: =B323 -> 736.7280701 | X37: =B324 -> 259.6700478 | Z37: 4619.904601 | AA37: 4605.81393 | AB37: 4910.121426 | AD37: 1211.191681 | AE37: 607.3179492 | AF37: 1642.116018 | AG37: 2512.341535 | AH37: 722.2241219 | AJ37: 1947 | AK37: =C313 -> 377.8866274 | AL37: =C314 -> 277.7994576 | AM37: =C315 -> 199.8347107 | AN37: =C316 -> 230.4990859 | AO37: =C317 -> 180.4958678 | AP37: =C318 -> 199.8347107 | AQ37: =C319 -> 311.6511202 | AR37: =C320 -> 537.0455172 | AS37: =C321 -> 645.1827931 | AT37: =C322 -> 919.1197566 | AU37: =C323 -> 720.5250659 | AV37: =C324 -> 273.7705223 | AX37: 4763.25083 | AY37: 4747.542763 | AZ37: 4873.645236 | BB37: 1086.019882 | BC37: 610.8296644 | BD37: 1693.714141 | BE37: 2558.598138 | BF37: 787.4634879 | BH37: 1947 | BI37: ='Compile Data'!D313 -> 340.5580679 | BJ37: ='Compile Data'!D314 -> 249.0858374 | BK37: ='Compile Data'!D315 -> 199.8347107 | BL37: ='Compile Data'!D316 -> 202.268515 | BM37: ='Compile Data'!D317 -> 180.4958678 | BN37: ='Compile Data'!D318 -> 199.8347107 | BO37: ='Compile Data'!D319 -> 283.9600529 | BP37: ='Compile Data'!D320 -> 667.13293 | BQ37: ='Compile Data'!D321 -> 668.1858471 | BR37: ='Compile Data'!D322 -> 922.3140496 | BS37: ='Compile Data'!D323 -> 775.1541593 | BT37: ='Compile Data'!D324 -> 265.7501905 | BV37: 4986.809696 | BW37: 4991.199922 | BX37: 4954.574939 | BZ37: 991.747131 | CA37: 582.5990935 | CB37: 1819.113541 | CC37: 2631.404247 | CD37: 856.0301391 | CF37: 1947 | CG37: ='Compile Data'!E313 -> 394.1529507 | CH37: ='Compile Data'!E314 -> 270.0304494 | CI37: ='Compile Data'!E315 -> 199.8347107 | CJ37: ='Compile Data'!E316 -> 200.5070513 | CK37: ='Compile Data'!E317 -> 180.4958678 | CL37: ='Compile Data'!E318 -> 199.8347107 | CM37: ='Compile Data'!E319 -> 283.7969977 | CN37: ='Compile Data'!E320 -> 662.117367 | CO37: ='Compile Data'!E321 -> 664.9812242 | CP37: ='Compile Data'!E322 -> 922.3140496 | CQ37: ='Compile Data'!E323 -> 755.4696597 | CR37: ='Compile Data'!E324 -> 262.5711067 | CT37: 4918.345698 | CU37: 4928.711829 | CV37: 4996.106145 | CX37: 1064.525162 | CY37: 580.8376298 | CZ37: 1810.7303 | DA37: 2605.33604 | DB37: 817.3953458 | DD37: 1947 | DE37: ='Compile Data'!F313 ->  | DF37: ='Compile Data'!F314 ->  | DG37: ='Compile Data'!F315 ->  | DH37: ='Compile Data'!F316 ->  | DI37: ='Compile Data'!F317 ->  | DJ37: ='Compile Data'!F318 ->  | DK37: ='Compile Data'!F319 ->  | DL37: ='Compile Data'!F320 ->  | DM37: ='Compile Data'!F321 ->  | DN37: ='Compile Data'!F322 ->  | DO37: ='Compile Data'!F323 ->  | DP37: ='Compile Data'!F324 ->  | EB37: 1947 | EC37: ='Compile Data'!G313 ->  | ED37: ='Compile Data'!G314 ->  | EE37: ='Compile Data'!G315 ->  | EF37: ='Compile Data'!G316 ->  | EG37: ='Compile Data'!G317 ->  | EH37: ='Compile Data'!G318 ->  | EI37: ='Compile Data'!G319 ->  | EJ37: ='Compile Data'!G320 ->  | EK37: ='Compile Data'!G321 ->  | EL37: ='Compile Data'!G322 ->  | EM37: ='Compile Data'!G323 ->  | EN37: ='Compile Data'!G324 ->  | EZ37: 1947 | FA37: ='Compile Data'!H313 ->  | FB37: ='Compile Data'!H314 ->  | FC37: ='Compile Data'!H315 ->  | FD37: ='Compile Data'!H316 ->  | FE37: ='Compile Data'!H317 ->  | FF37: ='Compile Data'!H318 ->  | FG37: ='Compile Data'!H319 ->  | FH37: ='Compile Data'!H320 ->  | FI37: ='Compile Data'!H321 ->  | FJ37: ='Compile Data'!H322 ->  | FK37: ='Compile Data'!H323 ->  | FL37: ='Compile Data'!H324 -> 
A38: 1923-11-30 | B38: =INDIRECT(CONCATENATE("'",B$1,"'!",B$4,(YEAR($A38)-1921)*12+MONTH($A38)+3+IF(ISNUMBER(FIND("PRV",B$6)),1,0)))*IF(AND(B$3>0,TRIM(B$9)="CFS"),Conv_Flags!$C38,1) -> 267.0529474 | C38: =INDIRECT(CONCATENATE("'",C$1,"'!",C$4,(YEAR($A38)-1921)*12+MONTH($A38)+3+IF(ISNUMBER(FIND("PRV",C$6)),1,0)))*IF(AND(C$3>0,TRIM(C$9)="CFS"),Conv_Flags!$C38,1) -> 325.5207548 | D38: =INDIRECT(CONCATENATE("'",D$1,"'!",D$4,(YEAR($A38)-1921)*12+MONTH($A38)+3+IF(ISNUMBER(FIND("PRV",D$6)),1,0)))*IF(AND(D$3>0,TRIM(D$9)="CFS"),Conv_Flags!$C38,1) -> 240.2861845 | E38: =INDIRECT(CONCATENATE("'",E$1,"'!",E$4,(YEAR($A38)-1921)*12+MONTH($A38)+3+IF(ISNUMBER(FIND("PRV",E$6)),1,0)))*IF(AND(E$3>0,TRIM(E$9)="CFS"),Conv_Flags!$C38,1) -> 293.6783736 | F38: =INDIRECT(CONCATENATE("'",F$1,"'!",F$4,(YEAR($A38)-1921)*12+MONTH($A38)+3+IF(ISNUMBER(FIND("PRV",F$6)),1,0)))*IF(AND(F$3>0,TRIM(F$9)="CFS"),Conv_Flags!$C38,1) ->  | G38: =INDIRECT(CONCATENATE("'",G$1,"'!",G$4,(YEAR($A38)-1921)*12+MONTH($A38)+3+IF(ISNUMBER(FIND("PRV",G$6)),1,0)))*IF(AND(G$3>0,TRIM(G$9)="CFS"),Conv_Flags!$C38,1) ->  | H38: =INDIRECT(CONCATENATE("'",H$1,"'!",H$4,(YEAR($A38)-1921)*12+MONTH($A38)+3+IF(ISNUMBER(FIND("PRV",H$6)),1,0)))*IF(AND(H$3>0,TRIM(H$9)="CFS"),Conv_Flags!$C38,1) ->  | L38: 1948 | M38: =B325 -> 231.3831353 | N38: =B326 -> 231.1709388 | O38: =B327 -> 231.4334243 | P38: =B328 -> 200.1168542 | Q38: =B329 -> 193.2757128 | R38: =B330 -> 199.8347107 | S38: =B331 -> 240.8734391 | T38: =B332 -> 389.4201466 | U38: =B333 -> 495.2448735 | V38: =B334 -> 773.1082554 | W38: =B335 -> 678.3643253 | X38: =B336 -> 283.4094944 | Z38: 4299.218159 | AA38: 4362.614572 | AB38: 4147.63531 | AD38: 894.1043526 | AE38: 624.8259913 | AF38: 1325.37317 | AG38: 2230.126949 | AH38: 883.0294283 | AJ38: 1948 | AK38: =C325 -> 282.5220267 | AL38: =C326 -> 231.1709388 | AM38: =C327 -> 231.4334243 | AN38: =C328 -> 200.1168542 | AO38: =C329 -> 195.1700328 | AP38: =C330 -> 199.8347107 | AQ38: =C331 -> 241.5386477 | AR38: =C332 -> 547.8558064 | AS38: =C333 -> 466.8713391 | AT38: =C334 -> 801.3208574 | AU38: =C335 -> 689.1076627 | AV38: =C336 -> 308.1736441 | AX38: 4499.677767 | AY38: 4561.179861 | AZ38: 4395.115945 | BB38: 945.243244 | BC38: 626.7203112 | BD38: 1456.100504 | BE38: 2265.473503 | BF38: 911.9114431 | BH38: 1948 | BI38: ='Compile Data'!D325 -> 359.1090099 | BJ38: ='Compile Data'!D326 -> 231.1709388 | BK38: ='Compile Data'!D327 -> 231.4334243 | BL38: ='Compile Data'!D328 -> 200.1168542 | BM38: ='Compile Data'!D329 -> 187.0377544 | BN38: ='Compile Data'!D330 -> 199.8347107 | BO38: ='Compile Data'!D331 -> 241.6258555 | BP38: ='Compile Data'!D332 -> 199.8347107 | BQ38: ='Compile Data'!D333 -> 439.423925 | BR38: ='Compile Data'!D334 -> 815.6809149 | BS38: ='Compile Data'!D335 -> 693.5815464 | BT38: ='Compile Data'!D336 -> 321.5157025 | BV38: 4140.34627 | BW38: 4209.980615 | BX38: 4120.365347 | BZ38: 1021.830227 | CA38: 618.5880328 | CB38: 1080.719202 | CC38: 2270.202089 | CD38: 917.2595852 | CF38: 1948 | CG38: ='Compile Data'!E325 -> 323.6533003 | CH38: ='Compile Data'!E326 -> 231.1709388 | CI38: ='Compile Data'!E327 -> 231.4334243 | CJ38: ='Compile Data'!E328 -> 204.426901 | CK38: ='Compile Data'!E329 -> 186.9421488 | CL38: ='Compile Data'!E330 -> 199.8347107 | CM38: ='Compile Data'!E331 -> 241.4904894 | CN38: ='Compile Data'!E332 -> 199.8347107 | CO38: ='Compile Data'!E333 -> 452.029242 | CP38: ='Compile Data'!E334 -> 816.1650697 | CQ38: ='Compile Data'!E335 -> 705.4547785 | CR38: ='Compile Data'!E336 -> 316.2588843 | CT38: 4148.576891 | CU38: 4213.996794 | CV38: 4108.694599 | CX38: 990.6845643 | CY38: 622.802474 | CZ38: 1093.189153 | DA38: 2289.907975 | DB38: 896.4484265 | DD38: 1948 | DE38: ='Compile Data'!F325 ->  | DF38: ='Compile Data'!F326 ->  | DG38: ='Compile Data'!F327 ->  | DH38: ='Compile Data'!F328 ->  | DI38: ='Compile Data'!F329 ->  | DJ38: ='Compile Data'!F330 ->  | DK38: ='Compile Data'!F331 ->  | DL38: ='Compile Data'!F332 ->  | DM38: ='Compile Data'!F333 ->  | DN38: ='Compile Data'!F334 ->  | DO38: ='Compile Data'!F335 ->  | DP38: ='Compile Data'!F336 ->  | EB38: 1948 | EC38: ='Compile Data'!G325 ->  | ED38: ='Compile Data'!G326 ->  | EE38: ='Compile Data'!G327 ->  | EF38: ='Compile Data'!G328 ->  | EG38: ='Compile Data'!G329 ->  | EH38: ='Compile Data'!G330 ->  | EI38: ='Compile Data'!G331 ->  | EJ38: ='Compile Data'!G332 ->  | EK38: ='Compile Data'!G333 ->  | EL38: ='Compile Data'!G334 ->  | EM38: ='Compile Data'!G335 ->  | EN38: ='Compile Data'!G336 ->  | EZ38: 1948 | FA38: ='Compile Data'!H325 ->  | FB38: ='Compile Data'!H326 ->  | FC38: ='Compile Data'!H327 ->  | FD38: ='Compile Data'!H328 ->  | FE38: ='Compile Data'!H329 ->  | FF38: ='Compile Data'!H330 ->  | FG38: ='Compile Data'!H331 ->  | FH38: ='Compile Data'!H332 ->  | FI38: ='Compile Data'!H333 ->  | FJ38: ='Compile Data'!H334 ->  | FK38: ='Compile Data'!H335 ->  | FL38: ='Compile Data'!H336 -> 
A39: 1923-12-31 | B39: =INDIRECT(CONCATENATE("'",B$1,"'!",B$4,(YEAR($A39)-1921)*12+MONTH($A39)+3+IF(ISNUMBER(FIND("PRV",B$6)),1,0)))*IF(AND(B$3>0,TRIM(B$9)="CFS"),Conv_Flags!$C39,1) -> 226.5427579 | C39: =INDIRECT(CONCATENATE("'",C$1,"'!",C$4,(YEAR($A39)-1921)*12+MONTH($A39)+3+IF(ISNUMBER(FIND("PRV",C$6)),1,0)))*IF(AND(C$3>0,TRIM(C$9)="CFS"),Conv_Flags!$C39,1) -> 284.719518 | D39: =INDIRECT(CONCATENATE("'",D$1,"'!",D$4,(YEAR($A39)-1921)*12+MONTH($A39)+3+IF(ISNUMBER(FIND("PRV",D$6)),1,0)))*IF(AND(D$3>0,TRIM(D$9)="CFS"),Conv_Flags!$C39,1) -> 205.6598956 | E39: =INDIRECT(CONCATENATE("'",E$1,"'!",E$4,(YEAR($A39)-1921)*12+MONTH($A39)+3+IF(ISNUMBER(FIND("PRV",E$6)),1,0)))*IF(AND(E$3>0,TRIM(E$9)="CFS"),Conv_Flags!$C39,1) -> 252.5688272 | F39: =INDIRECT(CONCATENATE("'",F$1,"'!",F$4,(YEAR($A39)-1921)*12+MONTH($A39)+3+IF(ISNUMBER(FIND("PRV",F$6)),1,0)))*IF(AND(F$3>0,TRIM(F$9)="CFS"),Conv_Flags!$C39,1) ->  | G39: =INDIRECT(CONCATENATE("'",G$1,"'!",G$4,(YEAR($A39)-1921)*12+MONTH($A39)+3+IF(ISNUMBER(FIND("PRV",G$6)),1,0)))*IF(AND(G$3>0,TRIM(G$9)="CFS"),Conv_Flags!$C39,1) ->  | H39: =INDIRECT(CONCATENATE("'",H$1,"'!",H$4,(YEAR($A39)-1921)*12+MONTH($A39)+3+IF(ISNUMBER(FIND("PRV",H$6)),1,0)))*IF(AND(H$3>0,TRIM(H$9)="CFS"),Conv_Flags!$C39,1) ->  | L39: 1949 | M39: =B337 -> 356.1741177 | N39: =B338 -> 243.4458161 | O39: =B339 -> 245.9504132 | P39: =B340 -> 223.1574721 | Q39: =B341 -> 233.6315083 | R39: =B342 -> 598.8150988 | S39: =B343 -> 286.1902957 | T39: =B344 -> 379.8604755 | U39: =B345 -> 616.0841684 | V39: =B346 -> 819.4831786 | W39: =B347 -> 589.4343363 | X39: =B348 -> 294.2864024 | Z39: 4964.44012 | AA39: 5005.075238 | AB39: 4886.513283 | AD39: 1068.727819 | AE39: 702.7393936 | AF39: 1880.950038 | AG39: 2319.288086 | AH39: 976.2022459 | AJ39: 1949 | AK39: =C337 -> 332.6693104 | AL39: =C338 -> 271.0684885 | AM39: =C339 -> 245.9504132 | AN39: =C340 -> 223.1574721 | AO39: =C341 -> 233.6315083 | AP39: =C342 -> 571.275738 | AQ39: =C343 -> 286.0677718 | AR39: =C344 -> 383.454498 | AS39: =C345 -> 621.3230307 | AT39: =C346 -> 847.5749671 | AU39: =C347 -> 628.8844583 | AV39: =C348 -> 297.8463649 | AX39: 5028.399753 | AY39: 5069.034871 | AZ39: 4942.904021 | BB39: 1072.845684 | BC39: 702.7393936 | BD39: 1862.121039 | BE39: 2395.628821 | BF39: 991.4489682 | BH39: 1949 | BI39: ='Compile Data'!D337 -> 301.9610863 | BJ39: ='Compile Data'!D338 -> 293.7827964 | BK39: ='Compile Data'!D339 -> 245.9504132 | BL39: ='Compile Data'!D340 -> 223.1574721 | BM39: ='Compile Data'!D341 -> 233.6314811 | BN39: ='Compile Data'!D342 -> 656.3206592 | BO39: ='Compile Data'!D343 -> 260.3312177 | BP39: ='Compile Data'!D344 -> 402.1705679 | BQ39: ='Compile Data'!D345 -> 675.9188856 | BR39: ='Compile Data'!D346 -> 840.812952 | BS39: ='Compile Data'!D347 -> 622.0503874 | BT39: ='Compile Data'!D348 -> 266.5427169 | BV39: 5102.04184 | BW39: 5142.676985 | BX39: 5022.630636 | BZ39: 1064.851768 | CA39: 702.7393664 | CB39: 1994.74133 | CC39: 2405.324942 | CD39: 946.066876 | CF39: 1949 | CG39: ='Compile Data'!E337 -> 301.1154817 | CH39: ='Compile Data'!E338 -> 279.0740606 | CI39: ='Compile Data'!E339 -> 245.9504132 | CJ39: ='Compile Data'!E340 -> 223.1574721 | CK39: ='Compile Data'!E341 -> 233.6314811 | CL39: ='Compile Data'!E342 -> 664.8216807 | CM39: ='Compile Data'!E343 -> 260.485789 | CN39: ='Compile Data'!E344 -> 402.1184775 | CO39: ='Compile Data'!E345 -> 688.9170519 | CP39: ='Compile Data'!E346 -> 842.3807658 | CQ39: ='Compile Data'!E347 -> 623.4414243 | CR39: ='Compile Data'!E348 -> 266.3311693 | CT39: 5124.24394 | CU39: 5164.879086 | CV39: 5031.425267 | CX39: 1049.297428 | CY39: 702.7393664 | CZ39: 2016.342999 | DA39: 2421.070411 | DB39: 943.7084572 | DD39: 1949 | DE39: ='Compile Data'!F337 ->  | DF39: ='Compile Data'!F338 ->  | DG39: ='Compile Data'!F339 ->  | DH39: ='Compile Data'!F340 ->  | DI39: ='Compile Data'!F341 ->  | DJ39: ='Compile Data'!F342 ->  | DK39: ='Compile Data'!F343 ->  | DL39: ='Compile Data'!F344 ->  | DM39: ='Compile Data'!F345 ->  | DN39: ='Compile Data'!F346 ->  | DO39: ='Compile Data'!F347 ->  | DP39: ='Compile Data'!F348 ->  | EB39: 1949 | EC39: ='Compile Data'!G337 ->  | ED39: ='Compile Data'!G338 ->  | EE39: ='Compile Data'!G339 ->  | EF39: ='Compile Data'!G340 ->  | EG39: ='Compile Data'!G341 ->  | EH39: ='Compile Data'!G342 ->  | EI39: ='Compile Data'!G343 ->  | EJ39: ='Compile Data'!G344 ->  | EK39: ='Compile Data'!G345 ->  | EL39: ='Compile Data'!G346 ->  | EM39: ='Compile Data'!G347 ->  | EN39: ='Compile Data'!G348 ->  | EZ39: 1949 | FA39: ='Compile Data'!H337 ->  | FB39: ='Compile Data'!H338 ->  | FC39: ='Compile Data'!H339 ->  | FD39: ='Compile Data'!H340 ->  | FE39: ='Compile Data'!H341 ->  | FF39: ='Compile Data'!H342 ->  | FG39: ='Compile Data'!H343 ->  | FH39: ='Compile Data'!H344 ->  | FI39: ='Compile Data'!H345 ->  | FJ39: ='Compile Data'!H346 ->  | FK39: ='Compile Data'!H347 ->  | FL39: ='Compile Data'!H348 -> 
A40: 1924-01-31 | B40: =INDIRECT(CONCATENATE("'",B$1,"'!",B$4,(YEAR($A40)-1921)*12+MONTH($A40)+3+IF(ISNUMBER(FIND("PRV",B$6)),1,0)))*IF(AND(B$3>0,TRIM(B$9)="CFS"),Conv_Flags!$C40,1) -> 260.3294154 | C40: =INDIRECT(CONCATENATE("'",C$1,"'!",C$4,(YEAR($A40)-1921)*12+MONTH($A40)+3+IF(ISNUMBER(FIND("PRV",C$6)),1,0)))*IF(AND(C$3>0,TRIM(C$9)="CFS"),Conv_Flags!$C40,1) -> 269.8288598 | D40: =INDIRECT(CONCATENATE("'",D$1,"'!",D$4,(YEAR($A40)-1921)*12+MONTH($A40)+3+IF(ISNUMBER(FIND("PRV",D$6)),1,0)))*IF(AND(D$3>0,TRIM(D$9)="CFS"),Conv_Flags!$C40,1) -> 367.5735231 | E40: =INDIRECT(CONCATENATE("'",E$1,"'!",E$4,(YEAR($A40)-1921)*12+MONTH($A40)+3+IF(ISNUMBER(FIND("PRV",E$6)),1,0)))*IF(AND(E$3>0,TRIM(E$9)="CFS"),Conv_Flags!$C40,1) -> 309.4108439 | F40: =INDIRECT(CONCATENATE("'",F$1,"'!",F$4,(YEAR($A40)-1921)*12+MONTH($A40)+3+IF(ISNUMBER(FIND("PRV",F$6)),1,0)))*IF(AND(F$3>0,TRIM(F$9)="CFS"),Conv_Flags!$C40,1) ->  | G40: =INDIRECT(CONCATENATE("'",G$1,"'!",G$4,(YEAR($A40)-1921)*12+MONTH($A40)+3+IF(ISNUMBER(FIND("PRV",G$6)),1,0)))*IF(AND(G$3>0,TRIM(G$9)="CFS"),Conv_Flags!$C40,1) ->  | H40: =INDIRECT(CONCATENATE("'",H$1,"'!",H$4,(YEAR($A40)-1921)*12+MONTH($A40)+3+IF(ISNUMBER(FIND("PRV",H$6)),1,0)))*IF(AND(H$3>0,TRIM(H$9)="CFS"),Conv_Flags!$C40,1) ->  | L40: 1950 | M40: =B349 -> 412.1329407 | N40: =B350 -> 269.7829029 | O40: =B351 -> 241.5813407 | P40: =B352 -> 247.5067431 | Q40: =B353 -> 249.9173554 | R40: =B354 -> 276.6942149 | S40: =B355 -> 222.9854597 | T40: =B356 -> 372.6963291 | U40: =B357 -> 530.0314308 | V40: =B358 -> 620.383617 | W40: =B359 -> 530.3953086 | X40: =B360 -> 253.2775956 | Z40: 5337.092854 | AA40: 6379.356134 | AB40: 4227.385238 | AD40: 1171.003927 | AE40: 739.0054392 | AF40: 1402.407434 | AG40: 1934.087952 | AH40: 1313.533845 | AJ40: 1950 | AK40: =C349 -> 423.8251627 | AL40: =C350 -> 269.7774406 | AM40: =C351 -> 241.5813407 | AN40: =C352 -> 247.5067431 | AO40: =C353 -> 249.9173554 | AP40: =C354 -> 276.6942149 | AQ40: =C355 -> 222.9854597 | AR40: =C356 -> 372.3037752 | AS40: =C357 -> 529.5859633 | AT40: =C358 -> 619.9073283 | AU40: =C359 -> 529.9890341 | AV40: =C360 -> 253.0191245 | AX40: 5283.424731 | AY40: 6325.688011 | AZ40: 4237.092942 | BB40: 1182.690687 | BC40: 739.0054392 | BD40: 1401.569413 | BE40: 1932.50145 | BF40: 1261.586306 | BH40: 1950 | BI40: ='Compile Data'!D349 -> 419.4813097 | BJ40: ='Compile Data'!D350 -> 260.0428493 | BK40: ='Compile Data'!D351 -> 241.5813407 | BL40: ='Compile Data'!D352 -> 247.5067431 | BM40: ='Compile Data'!D353 -> 249.9173554 | BN40: ='Compile Data'!D354 -> 276.6942149 | BO40: ='Compile Data'!D355 -> 222.9854597 | BP40: ='Compile Data'!D356 -> 368.0480104 | BQ40: ='Compile Data'!D357 -> 530.8024858 | BR40: ='Compile Data'!D358 -> 617.6408736 | BS40: ='Compile Data'!D359 -> 535.0345603 | BT40: ='Compile Data'!D360 -> 252.2238378 | BV40: 5223.113514 | BW40: 6416.421777 | BX40: 4221.959041 | BZ40: 1168.612243 | CA40: 739.0054392 | CB40: 1398.530171 | CC40: 1935.701757 | CD40: 1163.542107 | CF40: 1950 | CG40: ='Compile Data'!E349 -> 417.4668702 | CH40: ='Compile Data'!E350 -> 259.9104177 | CI40: ='Compile Data'!E351 -> 241.5813407 | CJ40: ='Compile Data'!E352 -> 247.5067431 | CK40: ='Compile Data'!E353 -> 249.9173554 | CL40: ='Compile Data'!E354 -> 276.6942149 | CM40: ='Compile Data'!E355 -> 222.9854597 | CN40: ='Compile Data'!E356 -> 368.2652586 | CO40: ='Compile Data'!E357 -> 531.0933239 | CP40: ='Compile Data'!E358 -> 617.9998915 | CQ40: ='Compile Data'!E359 -> 535.2956424 | CR40: ='Compile Data'!E360 -> 252.2575704 | CT40: 5220.121902 | CU40: 6413.430164 | CV40: 4220.974088 | CX40: 1166.465372 | CY40: 739.0054392 | CZ40: 1399.038257 | DA40: 1936.646428 | DB40: 1159.422308 | DD40: 1950 | DE40: ='Compile Data'!F349 ->  | DF40: ='Compile Data'!F350 ->  | DG40: ='Compile Data'!F351 ->  | DH40: ='Compile Data'!F352 ->  | DI40: ='Compile Data'!F353 ->  | DJ40: ='Compile Data'!F354 ->  | DK40: ='Compile Data'!F355 ->  | DL40: ='Compile Data'!F356 ->  | DM40: ='Compile Data'!F357 ->  | DN40: ='Compile Data'!F358 ->  | DO40: ='Compile Data'!F359 ->  | DP40: ='Compile Data'!F360 ->  | EB40: 1950 | EC40: ='Compile Data'!G349 ->  | ED40: ='Compile Data'!G350 ->  | EE40: ='Compile Data'!G351 ->  | EF40: ='Compile Data'!G352 ->  | EG40: ='Compile Data'!G353 ->  | EH40: ='Compile Data'!G354 ->  | EI40: ='Compile Data'!G355 ->  | EJ40: ='Compile Data'!G356 ->  | EK40: ='Compile Data'!G357 ->  | EL40: ='Compile Data'!G358 ->  | EM40: ='Compile Data'!G359 ->  | EN40: ='Compile Data'!G360 ->  | EZ40: 1950 | FA40: ='Compile Data'!H349 ->  | FB40: ='Compile Data'!H350 ->  | FC40: ='Compile Data'!H351 ->  | FD40: ='Compile Data'!H352 ->  | FE40: ='Compile Data'!H353 ->  | FF40: ='Compile Data'!H354 ->  | FG40: ='Compile Data'!H355 ->  | FH40: ='Compile Data'!H356 ->  | FI40: ='Compile Data'!H357 ->  | FJ40: ='Compile Data'!H358 ->  | FK40: ='Compile Data'!H359 ->  | FL40: ='Compile Data'!H360 -> 
A41: 1924-02-29 | B41: =INDIRECT(CONCATENATE("'",B$1,"'!",B$4,(YEAR($A41)-1921)*12+MONTH($A41)+3+IF(ISNUMBER(FIND("PRV",B$6)),1,0)))*IF(AND(B$3>0,TRIM(B$9)="CFS"),Conv_Flags!$C41,1) -> 186.9421488 | C41: =INDIRECT(CONCATENATE("'",C$1,"'!",C$4,(YEAR($A41)-1921)*12+MONTH($A41)+3+IF(ISNUMBER(FIND("PRV",C$6)),1,0)))*IF(AND(C$3>0,TRIM(C$9)="CFS"),Conv_Flags!$C41,1) -> 186.9421488 | D41: =INDIRECT(CONCATENATE("'",D$1,"'!",D$4,(YEAR($A41)-1921)*12+MONTH($A41)+3+IF(ISNUMBER(FIND("PRV",D$6)),1,0)))*IF(AND(D$3>0,TRIM(D$9)="CFS"),Conv_Flags!$C41,1) -> 186.9421488 | E41: =INDIRECT(CONCATENATE("'",E$1,"'!",E$4,(YEAR($A41)-1921)*12+MONTH($A41)+3+IF(ISNUMBER(FIND("PRV",E$6)),1,0)))*IF(AND(E$3>0,TRIM(E$9)="CFS"),Conv_Flags!$C41,1) -> 186.9421488 | F41: =INDIRECT(CONCATENATE("'",F$1,"'!",F$4,(YEAR($A41)-1921)*12+MONTH($A41)+3+IF(ISNUMBER(FIND("PRV",F$6)),1,0)))*IF(AND(F$3>0,TRIM(F$9)="CFS"),Conv_Flags!$C41,1) ->  | G41: =INDIRECT(CONCATENATE("'",G$1,"'!",G$4,(YEAR($A41)-1921)*12+MONTH($A41)+3+IF(ISNUMBER(FIND("PRV",G$6)),1,0)))*IF(AND(G$3>0,TRIM(G$9)="CFS"),Conv_Flags!$C41,1) ->  | H41: =INDIRECT(CONCATENATE("'",H$1,"'!",H$4,(YEAR($A41)-1921)*12+MONTH($A41)+3+IF(ISNUMBER(FIND("PRV",H$6)),1,0)))*IF(AND(H$3>0,TRIM(H$9)="CFS"),Conv_Flags!$C41,1) ->  | L41: 1951 | M41: =B361 -> 384.3085992 | N41: =B362 -> 675.9476498 | O41: =B363 -> 972.9485505 | P41: =B364 -> 552.97537 | Q41: =B365 -> 986.7120093 | R41: =B366 -> 248.9203425 | S41: =B367 -> 426.2085163 | T41: =B368 -> 333.271937 | U41: =B369 -> 672.5855501 | V41: =B370 -> 922.3140496 | W41: =B371 -> 670.4237177 | X41: =B372 -> 537.638546 | Z41: 6863.030933 | AA41: 7296.566525 | AB41: 7384.254838 | AD41: 2586.180169 | AE41: 2512.63593 | AF41: 1680.986346 | AG41: 2802.961863 | AH41: 1253.213088 | AJ41: 1951 | AK41: =C361 -> 332.6195319 | AL41: =C362 -> 675.9476498 | AM41: =C363 -> 972.9485505 | AN41: =C364 -> 552.97537 | AO41: =C365 -> 986.7120093 | AP41: =C366 -> 248.9203425 | AQ41: =C367 -> 427.1866445 | AR41: =C368 -> 334.3318776 | AS41: =C369 -> 674.241148 | AT41: =C370 -> 922.3140496 | AU41: =C371 -> 676.0384846 | AV41: =C372 -> 375.4728758 | AX41: 6872.773209 | AY41: 7315.758497 | AZ41: 7179.708534 | BB41: 2534.491102 | BC41: 2512.63593 | BD41: 1684.680013 | BE41: 2648.066558 | BF41: 932.523659 | BH41: 1951 | BI41: ='Compile Data'!D361 -> 274.4169518 | BJ41: ='Compile Data'!D362 -> 636.9013171 | BK41: ='Compile Data'!D363 -> 1010.941705 | BL41: ='Compile Data'!D364 -> 673.8311157 | BM41: ='Compile Data'!D365 -> 1016.901245 | BN41: ='Compile Data'!D366 -> 248.9203425 | BO41: ='Compile Data'!D367 -> 397.8148179 | BP41: ='Compile Data'!D368 -> 301.9757677 | BQ41: ='Compile Data'!D369 -> 694.1511493 | BR41: ='Compile Data'!D370 -> 922.3140496 | BS41: ='Compile Data'!D371 -> 704.3352118 | BT41: ='Compile Data'!D372 -> 648.7030669 | BV41: 6829.160629 | BW41: 7460.17667 | BX41: 7531.20674 | BZ41: 2596.091089 | CA41: 2701.674065 | CB41: 1642.862077 | CC41: 2969.503478 | CD41: 1410.748148 | CF41: 1951 | CG41: ='Compile Data'!E361 -> 274.5544583 | CH41: ='Compile Data'!E362 -> 632.6102789 | CI41: ='Compile Data'!E363 -> 1010.941705 | CJ41: ='Compile Data'!E364 -> 673.8311157 | CK41: ='Compile Data'!E365 -> 1016.901245 | CL41: ='Compile Data'!E366 -> 248.9203425 | CM41: ='Compile Data'!E367 -> 397.9226692 | CN41: ='Compile Data'!E368 -> 302.1042071 | CO41: ='Compile Data'!E369 -> 694.1656185 | CP41: ='Compile Data'!E370 -> 922.3140496 | CQ41: ='Compile Data'!E371 -> 706.7546049 | CR41: ='Compile Data'!E372 -> 307.4387332 | CT41: 6776.05915 | CU41: 7437.928577 | CV41: 7188.459027 | CX41: 2591.937557 | CY41: 2701.674065 | CZ41: 1643.112837 | DA41: 2630.673006 | DB41: 920.8096972 | DD41: 1951 | DE41: ='Compile Data'!F361 ->  | DF41: ='Compile Data'!F362 ->  | DG41: ='Compile Data'!F363 ->  | DH41: ='Compile Data'!F364 ->  | DI41: ='Compile Data'!F365 ->  | DJ41: ='Compile Data'!F366 ->  | DK41: ='Compile Data'!F367 ->  | DL41: ='Compile Data'!F368 ->  | DM41: ='Compile Data'!F369 ->  | DN41: ='Compile Data'!F370 ->  | DO41: ='Compile Data'!F371 ->  | DP41: ='Compile Data'!F372 ->  | EB41: 1951 | EC41: ='Compile Data'!G361 ->  | ED41: ='Compile Data'!G362 ->  | EE41: ='Compile Data'!G363 ->  | EF41: ='Compile Data'!G364 ->  | EG41: ='Compile Data'!G365 ->  | EH41: ='Compile Data'!G366 ->  | EI41: ='Compile Data'!G367 ->  | EJ41: ='Compile Data'!G368 ->  | EK41: ='Compile Data'!G369 ->  | EL41: ='Compile Data'!G370 ->  | EM41: ='Compile Data'!G371 ->  | EN41: ='Compile Data'!G372 ->  | EZ41: 1951 | FA41: ='Compile Data'!H361 ->  | FB41: ='Compile Data'!H362 ->  | FC41: ='Compile Data'!H363 ->  | FD41: ='Compile Data'!H364 ->  | FE41: ='Compile Data'!H365 ->  | FF41: ='Compile Data'!H366 ->  | FG41: ='Compile Data'!H367 ->  | FH41: ='Compile Data'!H368 ->  | FI41: ='Compile Data'!H369 ->  | FJ41: ='Compile Data'!H370 ->  | FK41: ='Compile Data'!H371 ->  | FL41: ='Compile Data'!H372 -> 
A42: 1924-03-31 | B42: =INDIRECT(CONCATENATE("'",B$1,"'!",B$4,(YEAR($A42)-1921)*12+MONTH($A42)+3+IF(ISNUMBER(FIND("PRV",B$6)),1,0)))*IF(AND(B$3>0,TRIM(B$9)="CFS"),Conv_Flags!$C42,1) -> 285.7946804 | C42: =INDIRECT(CONCATENATE("'",C$1,"'!",C$4,(YEAR($A42)-1921)*12+MONTH($A42)+3+IF(ISNUMBER(FIND("PRV",C$6)),1,0)))*IF(AND(C$3>0,TRIM(C$9)="CFS"),Conv_Flags!$C42,1) -> 283.7419312 | D42: =INDIRECT(CONCATENATE("'",D$1,"'!",D$4,(YEAR($A42)-1921)*12+MONTH($A42)+3+IF(ISNUMBER(FIND("PRV",D$6)),1,0)))*IF(AND(D$3>0,TRIM(D$9)="CFS"),Conv_Flags!$C42,1) -> 282.9092665 | E42: =INDIRECT(CONCATENATE("'",E$1,"'!",E$4,(YEAR($A42)-1921)*12+MONTH($A42)+3+IF(ISNUMBER(FIND("PRV",E$6)),1,0)))*IF(AND(E$3>0,TRIM(E$9)="CFS"),Conv_Flags!$C42,1) -> 282.4376314 | F42: =INDIRECT(CONCATENATE("'",F$1,"'!",F$4,(YEAR($A42)-1921)*12+MONTH($A42)+3+IF(ISNUMBER(FIND("PRV",F$6)),1,0)))*IF(AND(F$3>0,TRIM(F$9)="CFS"),Conv_Flags!$C42,1) ->  | G42: =INDIRECT(CONCATENATE("'",G$1,"'!",G$4,(YEAR($A42)-1921)*12+MONTH($A42)+3+IF(ISNUMBER(FIND("PRV",G$6)),1,0)))*IF(AND(G$3>0,TRIM(G$9)="CFS"),Conv_Flags!$C42,1) ->  | H42: =INDIRECT(CONCATENATE("'",H$1,"'!",H$4,(YEAR($A42)-1921)*12+MONTH($A42)+3+IF(ISNUMBER(FIND("PRV",H$6)),1,0)))*IF(AND(H$3>0,TRIM(H$9)="CFS"),Conv_Flags!$C42,1) ->  | L42: 1952 | M42: =B373 -> 359.6102179 | N42: =B374 -> 355.964324 | O42: =B375 -> 796.4063527 | P42: =B376 -> 730.6305294 | Q42: =B377 -> 1242.592442 | R42: =B378 -> 712.2530017 | S42: =B379 -> 892.5619835 | T42: =B380 -> 443.0278193 | U42: =B381 -> 468.9475045 | V42: =B382 -> 665.3357386 | W42: =B383 -> 618.1513288 | X42: =B384 -> 687.2638946 | Z42: 8119.675023 | AA42: 8255.944158 | AB42: 7972.745137 | AD42: 2242.611424 | AE42: 2769.629324 | AF42: 2516.790309 | AG42: 2439.698467 | AH42: 1706.619416 | AJ42: 1952 | AK42: =C373 -> 319.0342543 | AL42: =C374 -> 238.0165289 | AM42: =C375 -> 1117.529624 | AN42: =C376 -> 740.0802253 | AO42: =C377 -> 1242.592442 | AP42: =C378 -> 712.2530017 | AQ42: =C379 -> 892.5619835 | AR42: =C380 -> 443.0278193 | AS42: =C381 -> 468.8654539 | AT42: =C382 -> 665.2284956 | AU42: =C383 -> 618.0318363 | AV42: =C384 -> 617.7416839 | AX42: 8075.647507 | AY42: 8255.409213 | AZ42: 8074.963349 | BB42: 2414.660633 | BC42: 3100.202291 | BD42: 2516.708258 | BE42: 2369.86747 | BF42: 1459.846102 | BH42: 1952 | BI42: ='Compile Data'!D373 -> 417.2770932 | BJ42: ='Compile Data'!D374 -> 344.7679881 | BK42: ='Compile Data'!D375 -> 458.1687813 | BL42: ='Compile Data'!D376 -> 925.2330294 | BM42: ='Compile Data'!D377 -> 1396.515372 | BN42: ='Compile Data'!D378 -> 765.3853164 | BO42: ='Compile Data'!D379 -> 855.8775697 | BP42: ='Compile Data'!D380 -> 334.9307512 | BQ42: ='Compile Data'!D381 -> 464.655798 | BR42: ='Compile Data'!D382 -> 691.5886635 | BS42: ='Compile Data'!D383 -> 621.0394447 | BT42: ='Compile Data'!D384 -> 774.0718233 | BV42: 8361.328346 | BW42: 8347.811393 | BX42: 8049.511631 | BZ42: 2145.446892 | CA42: 2779.917183 | CB42: 2420.849435 | CC42: 2551.35573 | CD42: 1970.753306 | CF42: 1952 | CG42: ='Compile Data'!E373 -> 364.8342323 | CH42: ='Compile Data'!E374 -> 248.5367317 | CI42: ='Compile Data'!E375 -> 892.3356005 | CJ42: ='Compile Data'!E376 -> 956.0864159 | CK42: ='Compile Data'!E377 -> 1396.515372 | CL42: ='Compile Data'!E378 -> 770.9922172 | CM42: ='Compile Data'!E379 -> 870.4292355 | CN42: ='Compile Data'!E380 -> 334.9307512 | CO42: ='Compile Data'!E381 -> 464.3795455 | CP42: ='Compile Data'!E382 -> 691.7066548 | CQ42: ='Compile Data'!E383 -> 620.8810421 | CR42: ='Compile Data'!E384 -> 383.5426588 | CT42: 8173.15711 | CU42: 8329.398724 | CV42: 7995.170457 | CX42: 2461.79298 | CY42: 3244.937388 | CZ42: 2440.731749 | DA42: 2160.509901 | DB42: 1256.03575 | DD42: 1952 | DE42: ='Compile Data'!F373 ->  | DF42: ='Compile Data'!F374 ->  | DG42: ='Compile Data'!F375 ->  | DH42: ='Compile Data'!F376 ->  | DI42: ='Compile Data'!F377 ->  | DJ42: ='Compile Data'!F378 ->  | DK42: ='Compile Data'!F379 ->  | DL42: ='Compile Data'!F380 ->  | DM42: ='Compile Data'!F381 ->  | DN42: ='Compile Data'!F382 ->  | DO42: ='Compile Data'!F383 ->  | DP42: ='Compile Data'!F384 ->  | EB42: 1952 | EC42: ='Compile Data'!G373 ->  | ED42: ='Compile Data'!G374 ->  | EE42: ='Compile Data'!G375 ->  | EF42: ='Compile Data'!G376 ->  | EG42: ='Compile Data'!G377 ->  | EH42: ='Compile Data'!G378 ->  | EI42: ='Compile Data'!G379 ->  | EJ42: ='Compile Data'!G380 ->  | EK42: ='Compile Data'!G381 ->  | EL42: ='Compile Data'!G382 ->  | EM42: ='Compile Data'!G383 ->  | EN42: ='Compile Data'!G384 ->  | EZ42: 1952 | FA42: ='Compile Data'!H373 ->  | FB42: ='Compile Data'!H374 ->  | FC42: ='Compile Data'!H375 ->  | FD42: ='Compile Data'!H376 ->  | FE42: ='Compile Data'!H377 ->  | FF42: ='Compile Data'!H378 ->  | FG42: ='Compile Data'!H379 ->  | FH42: ='Compile Data'!H380 ->  | FI42: ='Compile Data'!H381 ->  | FJ42: ='Compile Data'!H382 ->  | FK42: ='Compile Data'!H383 ->  | FL42: ='Compile Data'!H384 -> 
A43: 1924-04-30 | B43: =INDIRECT(CONCATENATE("'",B$1,"'!",B$4,(YEAR($A43)-1921)*12+MONTH($A43)+3+IF(ISNUMBER(FIND("PRV",B$6)),1,0)))*IF(AND(B$3>0,TRIM(B$9)="CFS"),Conv_Flags!$C43,1) -> 455.6404571 | C43: =INDIRECT(CONCATENATE("'",C$1,"'!",C$4,(YEAR($A43)-1921)*12+MONTH($A43)+3+IF(ISNUMBER(FIND("PRV",C$6)),1,0)))*IF(AND(C$3>0,TRIM(C$9)="CFS"),Conv_Flags!$C43,1) -> 453.8955449 | D43: =INDIRECT(CONCATENATE("'",D$1,"'!",D$4,(YEAR($A43)-1921)*12+MONTH($A43)+3+IF(ISNUMBER(FIND("PRV",D$6)),1,0)))*IF(AND(D$3>0,TRIM(D$9)="CFS"),Conv_Flags!$C43,1) -> 452.9507716 | E43: =INDIRECT(CONCATENATE("'",E$1,"'!",E$4,(YEAR($A43)-1921)*12+MONTH($A43)+3+IF(ISNUMBER(FIND("PRV",E$6)),1,0)))*IF(AND(E$3>0,TRIM(E$9)="CFS"),Conv_Flags!$C43,1) -> 453.2888236 | F43: =INDIRECT(CONCATENATE("'",F$1,"'!",F$4,(YEAR($A43)-1921)*12+MONTH($A43)+3+IF(ISNUMBER(FIND("PRV",F$6)),1,0)))*IF(AND(F$3>0,TRIM(F$9)="CFS"),Conv_Flags!$C43,1) ->  | G43: =INDIRECT(CONCATENATE("'",G$1,"'!",G$4,(YEAR($A43)-1921)*12+MONTH($A43)+3+IF(ISNUMBER(FIND("PRV",G$6)),1,0)))*IF(AND(G$3>0,TRIM(G$9)="CFS"),Conv_Flags!$C43,1) ->  | H43: =INDIRECT(CONCATENATE("'",H$1,"'!",H$4,(YEAR($A43)-1921)*12+MONTH($A43)+3+IF(ISNUMBER(FIND("PRV",H$6)),1,0)))*IF(AND(H$3>0,TRIM(H$9)="CFS"),Conv_Flags!$C43,1) ->  | L43: 1953 | M43: =B385 -> 501.4486383 | N43: =B386 -> 517.9068827 | O43: =B387 -> 639.5552596 | P43: =B388 -> 1859.574751 | Q43: =B389 -> 249.9173554 | R43: =B390 -> 276.6942149 | S43: =B391 -> 324.9206579 | T43: =B392 -> 474.4289198 | U43: =B393 -> 521.4886945 | V43: =B394 -> 889.1202912 | W43: =B395 -> 638.1576776 | X43: =B396 -> 880.5121643 | Z43: 7368.094356 | AA43: 6888.706856 | AB43: 7773.725507 | AD43: 3518.485531 | AE43: 2749.047366 | AF43: 1597.532487 | AG43: 2929.278827 | AH43: 1887.841381 | AJ43: 1953 | AK43: =C385 -> 526.6158626 | AL43: =C386 -> 315.4885557 | AM43: =C387 -> 833.1601472 | AN43: =C388 -> 1912.517018 | AO43: =C389 -> 249.9173554 | AP43: =C390 -> 276.6942149 | AQ43: =C391 -> 308.8821733 | AR43: =C392 -> 486.3662216 | AS43: =C393 -> 521.4886945 | AT43: =C394 -> 894.4743363 | AU43: =C395 -> 641.2540347 | AV43: =C396 -> 451.4711583 | AX43: 7081.882952 | AY43: 6826.947973 | AZ43: 7418.329773 | BB43: 3587.781584 | BC43: 2995.594521 | BD43: 1593.431304 | BE43: 2508.688224 | BF43: 1495.172036 | BH43: 1953 | BI43: ='Compile Data'!D385 -> 584.1826705 | BJ43: ='Compile Data'!D386 -> 612.498812 | BK43: ='Compile Data'!D387 -> 335.3490951 | BL43: ='Compile Data'!D388 -> 2058.314093 | BM43: ='Compile Data'!D389 -> 249.9173554 | BN43: ='Compile Data'!D390 -> 276.6942149 | BO43: ='Compile Data'!D391 -> 289.3062145 | BP43: ='Compile Data'!D392 -> 392.4721294 | BQ43: ='Compile Data'!D393 -> 499.0342523 | BR43: ='Compile Data'!D394 -> 894.1203022 | BS43: ='Compile Data'!D395 -> 651.1083239 | BT43: ='Compile Data'!D396 -> 877.0137978 | BV43: 7562.381612 | BW43: 6999.934443 | BX43: 7720.011261 | BZ43: 3590.344671 | CA43: 2643.580544 | CB43: 1457.506811 | CC43: 2921.276676 | CD43: 1974.121097 | CF43: 1953 | CG43: ='Compile Data'!E385 -> 457.8283478 | CH43: ='Compile Data'!E386 -> 414.6647437 | CI43: ='Compile Data'!E387 -> 811.2001259 | CJ43: ='Compile Data'!E388 -> 2258.926046 | CK43: ='Compile Data'!E389 -> 249.9173554 | CL43: ='Compile Data'!E390 -> 276.6942149 | CM43: ='Compile Data'!E391 -> 318.9415677 | CN43: ='Compile Data'!E392 -> 370.4132415 | CO43: ='Compile Data'!E393 -> 497.1007167 | CP43: ='Compile Data'!E394 -> 902.8467381 | CQ43: ='Compile Data'!E395 -> 653.9058297 | CR43: ='Compile Data'!E396 -> 321.6294228 | CT43: 7008.735264 | CU43: 6861.609643 | CV43: 7534.06835 | CX43: 3942.619263 | CY43: 3320.043527 | CZ43: 1463.149741 | DA43: 2375.482707 | DB43: 1162.507742 | DD43: 1953 | DE43: ='Compile Data'!F385 ->  | DF43: ='Compile Data'!F386 ->  | DG43: ='Compile Data'!F387 ->  | DH43: ='Compile Data'!F388 ->  | DI43: ='Compile Data'!F389 ->  | DJ43: ='Compile Data'!F390 ->  | DK43: ='Compile Data'!F391 ->  | DL43: ='Compile Data'!F392 ->  | DM43: ='Compile Data'!F393 ->  | DN43: ='Compile Data'!F394 ->  | DO43: ='Compile Data'!F395 ->  | DP43: ='Compile Data'!F396 ->  | EB43: 1953 | EC43: ='Compile Data'!G385 ->  | ED43: ='Compile Data'!G386 ->  | EE43: ='Compile Data'!G387 ->  | EF43: ='Compile Data'!G388 ->  | EG43: ='Compile Data'!G389 ->  | EH43: ='Compile Data'!G390 ->  | EI43: ='Compile Data'!G391 ->  | EJ43: ='Compile Data'!G392 ->  | EK43: ='Compile Data'!G393 ->  | EL43: ='Compile Data'!G394 ->  | EM43: ='Compile Data'!G395 ->  | EN43: ='Compile Data'!G396 ->  | EZ43: 1953 | FA43: ='Compile Data'!H385 ->  | FB43: ='Compile Data'!H386 ->  | FC43: ='Compile Data'!H387 ->  | FD43: ='Compile Data'!H388 ->  | FE43: ='Compile Data'!H389 ->  | FF43: ='Compile Data'!H390 ->  | FG43: ='Compile Data'!H391 ->  | FH43: ='Compile Data'!H392 ->  | FI43: ='Compile Data'!H393 ->  | FJ43: ='Compile Data'!H394 ->  | FK43: ='Compile Data'!H395 ->  | FL43: ='Compile Data'!H396 -> 
A44: 1924-05-31 | B44: =INDIRECT(CONCATENATE("'",B$1,"'!",B$4,(YEAR($A44)-1921)*12+MONTH($A44)+3+IF(ISNUMBER(FIND("PRV",B$6)),1,0)))*IF(AND(B$3>0,TRIM(B$9)="CFS"),Conv_Flags!$C44,1) -> 468.6867342 | C44: =INDIRECT(CONCATENATE("'",C$1,"'!",C$4,(YEAR($A44)-1921)*12+MONTH($A44)+3+IF(ISNUMBER(FIND("PRV",C$6)),1,0)))*IF(AND(C$3>0,TRIM(C$9)="CFS"),Conv_Flags!$C44,1) -> 467.2221404 | D44: =INDIRECT(CONCATENATE("'",D$1,"'!",D$4,(YEAR($A44)-1921)*12+MONTH($A44)+3+IF(ISNUMBER(FIND("PRV",D$6)),1,0)))*IF(AND(D$3>0,TRIM(D$9)="CFS"),Conv_Flags!$C44,1) -> 466.8519838 | E44: =INDIRECT(CONCATENATE("'",E$1,"'!",E$4,(YEAR($A44)-1921)*12+MONTH($A44)+3+IF(ISNUMBER(FIND("PRV",E$6)),1,0)))*IF(AND(E$3>0,TRIM(E$9)="CFS"),Conv_Flags!$C44,1) -> 467.1498144 | F44: =INDIRECT(CONCATENATE("'",F$1,"'!",F$4,(YEAR($A44)-1921)*12+MONTH($A44)+3+IF(ISNUMBER(FIND("PRV",F$6)),1,0)))*IF(AND(F$3>0,TRIM(F$9)="CFS"),Conv_Flags!$C44,1) ->  | G44: =INDIRECT(CONCATENATE("'",G$1,"'!",G$4,(YEAR($A44)-1921)*12+MONTH($A44)+3+IF(ISNUMBER(FIND("PRV",G$6)),1,0)))*IF(AND(G$3>0,TRIM(G$9)="CFS"),Conv_Flags!$C44,1) ->  | H44: =INDIRECT(CONCATENATE("'",H$1,"'!",H$4,(YEAR($A44)-1921)*12+MONTH($A44)+3+IF(ISNUMBER(FIND("PRV",H$6)),1,0)))*IF(AND(H$3>0,TRIM(H$9)="CFS"),Conv_Flags!$C44,1) ->  | L44: 1954 | M44: =B397 -> 397.0031773 | N44: =B398 -> 610.3260395 | O44: =B399 -> 245.9504132 | P44: =B400 -> 637.4357987 | Q44: =B401 -> 992.6688068 | R44: =B402 -> 656.2987423 | S44: =B403 -> 584.9768724 | T44: =B404 -> 433.0201714 | U44: =B405 -> 630.679765 | V44: =B406 -> 922.3140496 | W44: =B407 -> 746.1021074 | X44: =B408 -> 603.3870093 | Z44: =IF(Z$11="AVG",AVERAGE(P44:X44,M45:O45),SUM(P44:X44,M45:O45)) -> 7182.632966 | AA44: =IF(AA$11="AVG",AVERAGE(R44:X44,M45:Q45),SUM(R44:X44,M45:Q45)) -> 6014.262581 | AB44: =IF(AB$11="AVG",AVERAGE(M44:X44),SUM(M44:X44)) -> 7460.162953 | AD44: =IF(AD$11="AVG",IF(AD$1="INST-VAL",AVERAGE(X43,M44:O44,M44:P44),AVERAGE(M44:P44)),SUM(M44:P44)) -> 1890.715429 | AE44: =IF(AE$11="AVG",IF(AD$1="INST-VAL",AVERAGE(N44:P44,O44:Q44),AVERAGE(O44:Q44)),SUM(O44:Q44)) -> 1876.055019 | AF44: =IF(AF$11="AVG",IF(AD$1="INST-VAL",AVERAGE(Q44:T44,R44:U44),AVERAGE(R44:U44)),SUM(R44:U44)) -> 2304.975551 | AG44: =IF(AG$11="AVG",IF(AD$1="INST-VAL",AVERAGE(T44:W44,U44:X44),AVERAGE(U44:X44)),SUM(U44:X44)) -> 2902.482931 | AH44: =IF(AH$11="AVG",IF(AD$1="INST-VAL",AVERAGE(W44:X44,M45,X44,M45:N45),AVERAGE(X44,M45:N45)),SUM(X44,M45:N45)) -> 1302.590422 | AJ44: 1954 | AK44: =C397 -> 552.1192271 | AL44: =C398 -> 491.5816503 | AM44: =C399 -> 295.1168676 | AN44: =C400 -> 914.830696 | AO44: =C401 -> 992.6686983 | AP44: =C402 -> 656.2986222 | AQ44: =C403 -> 652.5653151 | AR44: =C404 -> 432.7878215 | AS44: =C405 -> 598.3489153 | AT44: =C406 -> 922.3140496 | AU44: =C407 -> 750.1023444 | AV44: =C408 -> 335.5990057 | AX44: =IF(AX$11="AVG",AVERAGE(AN44:AV44,AK45:AM45),SUM(AN44:AV44,AK45:AM45)) -> 7268.346592 | AY44: =IF(AY$11="AVG",AVERAGE(AP44:AV44,AK45:AO45),SUM(AP44:AV44,AK45:AO45)) -> 5805.878432 | AZ44: =IF(AZ$11="AVG",AVERAGE(AK44:AV44),SUM(AK44:AV44)) -> 7594.333213 | BB44: =IF(BB$11="AVG",IF(BB$1="INST-VAL",AVERAGE(AV43,AK44:AM44,AK44:AN44),AVERAGE(AK44:AN44)),SUM(AK44:AN44)) -> 2253.648441 | BC44: =IF(BC$11="AVG",IF(BB$1="INST-VAL",AVERAGE(AL44:AN44,AM44:AO44),AVERAGE(AM44:AO44)),SUM(AM44:AO44)) -> 2202.616262 | BD44: =IF(BD$11="AVG",IF(BB$1="INST-VAL",AVERAGE(AO44:AR44,AP44:AS44),AVERAGE(AP44:AS44)),SUM(AP44:AS44)) -> 2340.000674 | BE44: =IF(BE$11="AVG",IF(BB$1="INST-VAL",AVERAGE(AR44:AU44,AS44:AV44),AVERAGE(AS44:AV44)),SUM(AS44:AV44)) -> 2606.364315 | BF44: =IF(BF$11="AVG",IF(BB$1="INST-VAL",AVERAGE(AU44:AV44,AK45,AV44,AK45:AL45),AVERAGE(AV44,AK45:AL45)),SUM(AV44,AK45:AL45)) -> 920.4947843 | BH44: 1954 | BI44: ='Compile Data'!D397 -> 441.7183855 | BJ44: ='Compile Data'!D398 -> 655.388914 | BK44: ='Compile Data'!D399 -> 277.2936289 | BL44: ='Compile Data'!D400 -> 635.8424051 | BM44: ='Compile Data'!D401 -> 1109.941875 | BN44: ='Compile Data'!D402 -> 735.75916 | BO44: ='Compile Data'!D403 -> 591.0249677 | BP44: ='Compile Data'!D404 -> 683.6824626 | BQ44: ='Compile Data'!D405 -> 771.4514915 | BR44: ='Compile Data'!D406 -> 922.3140496 | BS44: ='Compile Data'!D407 -> 744.958402 | BT44: ='Compile Data'!D408 -> 668.9126808 | BV44: =IF(BV$11="AVG",AVERAGE(BL44:BT44,BI45:BK45),SUM(BL44:BT44,BI45:BK45)) -> 7808.070725 | BW44: =IF(BW$11="AVG",AVERAGE(BN44:BT44,BI45:BM45),SUM(BN44:BT44,BI45:BM45)) -> 6501.140672 | BX44: =IF(BX$11="AVG",AVERAGE(BI44:BT44),SUM(BI44:BT44)) -> 8238.288423 | BZ44: =IF(BZ$11="AVG",IF(BZ$1="INST-VAL",AVERAGE(BT43,BI44:BK44,BI44:BL44),AVERAGE(BI44:BL44)),SUM(BI44:BL44)) -> 2010.243334 | CA44: =IF(CA$11="AVG",IF(BZ$1="INST-VAL",AVERAGE(BJ44:BL44,BK44:BM44),AVERAGE(BK44:BM44)),SUM(BK44:BM44)) -> 2023.077909 | CB44: =IF(CB$11="AVG",IF(BZ$1="INST-VAL",AVERAGE(BM44:BP44,BN44:BQ44),AVERAGE(BN44:BQ44)),SUM(BN44:BQ44)) -> 2781.918082 | CC44: =IF(CC$11="AVG",IF(BZ$1="INST-VAL",AVERAGE(BP44:BS44,BQ44:BT44),AVERAGE(BQ44:BT44)),SUM(BQ44:BT44)) -> 3107.636624 | CD44: =IF(CD$11="AVG",IF(BZ$1="INST-VAL",AVERAGE(BS44:BT44,BI45,BT44,BI45:BJ45),AVERAGE(BT44,BI45:BJ45)),SUM(BT44,BI45:BJ45)) -> 1336.549682 | CF44: 1954 | CG44: ='Compile Data'!E397 -> 362.021895 | CH44: ='Compile Data'!E398 -> 478.8564243 | CI44: ='Compile Data'!E399 -> 317.4818124 | CJ44: ='Compile Data'!E400 -> 1251.775797 | CK44: ='Compile Data'!E401 -> 1109.941983 | CL44: ='Compile Data'!E402 -> 735.75922 | CM44: ='Compile Data'!E403 -> 590.1931883 | CN44: ='Compile Data'!E404 -> 701.141219 | CO44: ='Compile Data'!E405 -> 721.9009943 | CP44: ='Compile Data'!E406 -> 922.3140496 | CQ44: ='Compile Data'!E407 -> 751.2156063 | CR44: ='Compile Data'!E408 -> 375.5651827 | CT44: =IF(CT$11="AVG",AVERAGE(CJ44:CR44,CG45:CI45),SUM(CJ44:CR44,CG45:CI45)) -> 8027.773092 | CU44: =IF(CU$11="AVG",AVERAGE(CL44:CR44,CG45:CK45),SUM(CL44:CR44,CG45:CK45)) -> 6119.781832 | CV44: =IF(CV$11="AVG",AVERAGE(CG44:CR44),SUM(CG44:CR44)) -> 8318.167372 | CX44: =IF(CX$11="AVG",IF(CX$1="INST-VAL",AVERAGE(CR43,CG44:CI44,CG44:CJ44),AVERAGE(CG44:CJ44)),SUM(CG44:CJ44)) -> 2410.135928 | CY44: =IF(CY$11="AVG",IF(CX$1="INST-VAL",AVERAGE(CH44:CJ44,CI44:CK44),AVERAGE(CI44:CK44)),SUM(CI44:CK44)) -> 2679.199593 | CZ44: =IF(CZ$11="AVG",IF(CX$1="INST-VAL",AVERAGE(CK44:CN44,CL44:CO44),AVERAGE(CL44:CO44)),SUM(CL44:CO44)) -> 2748.994622 | DA44: =IF(DA$11="AVG",IF(CX$1="INST-VAL",AVERAGE(CN44:CQ44,CO44:CR44),AVERAGE(CO44:CR44)),SUM(CO44:CR44)) -> 2770.995833 | DB44: =IF(DB$11="AVG",IF(CX$1="INST-VAL",AVERAGE(CQ44:CR44,CG45,CR44,CG45:CH45),AVERAGE(CR44,CG45:CH45)),SUM(CR44,CG45:CH45)) -> 966.984804 | DD44: 1954 | DE44: ='Compile Data'!F397 ->  | DF44: ='Compile Data'!F398 ->  | DG44: ='Compile Data'!F399 ->  | DH44: ='Compile Data'!F400 ->  | DI44: ='Compile Data'!F401 ->  | DJ44: ='Compile Data'!F402 ->  | DK44: ='Compile Data'!F403 ->  | DL44: ='Compile Data'!F404 ->  | DM44: ='Compile Data'!F405 ->  | DN44: ='Compile Data'!F406 ->  | DO44: ='Compile Data'!F407 ->  | DP44: ='Compile Data'!F408 ->  | DR44: =IF(DR$11="AVG",AVERAGE(DH44:DP44,DE45:DG45),SUM(DH44:DP44,DE45:DG45)) ->  | DS44: =IF(DS$11="AVG",AVERAGE(DJ44:DP44,DE45:DI45),SUM(DJ44:DP44,DE45:DI45)) ->  | DT44: =IF(DT$11="AVG",AVERAGE(DE44:DP44),SUM(DE44:DP44)) ->  | DV44: =IF(DV$11="AVG",IF(DV$1="INST-VAL",AVERAGE(DP43,DE44:DG44,DE44:DH44),AVERAGE(DE44:DH44)),SUM(DE44:DH44)) ->  | DW44: =IF(DW$11="AVG",IF(DV$1="INST-VAL",AVERAGE(DF44:DH44,DG44:DI44),AVERAGE(DG44:DI44)),SUM(DG44:DI44)) ->  | DX44: =IF(DX$11="AVG",IF(DV$1="INST-VAL",AVERAGE(DI44:DL44,DJ44:DM44),AVERAGE(DJ44:DM44)),SUM(DJ44:DM44)) ->  | DY44: =IF(DY$11="AVG",IF(DV$1="INST-VAL",AVERAGE(DL44:DO44,DM44:DP44),AVERAGE(DM44:DP44)),SUM(DM44:DP44)) ->  | DZ44: =IF(DZ$11="AVG",IF(DV$1="INST-VAL",AVERAGE(DO44:DP44,DE45,DP44,DE45:DF45),AVERAGE(DP44,DE45:DF45)),SUM(DP44,DE45:DF45)) ->  | EB44: 1954 | EC44: ='Compile Data'!G397 ->  | ED44: ='Compile Data'!G398 ->  | EE44: ='Compile Data'!G399 ->  | EF44: ='Compile Data'!G400 ->  | EG44: ='Compile Data'!G401 ->  | EH44: ='Compile Data'!G402 ->  | EI44: ='Compile Data'!G403 ->  | EJ44: ='Compile Data'!G404 ->  | EK44: ='Compile Data'!G405 ->  | EL44: ='Compile Data'!G406 ->  | EM44: ='Compile Data'!G407 ->  | EN44: ='Compile Data'!G408 ->  | EP44: =IF(EP$11="AVG",AVERAGE(EF44:EN44,EC45:EE45),SUM(EF44:EN44,EC45:EE45)) ->  | EQ44: =IF(EQ$11="AVG",AVERAGE(EH44:EN44,EC45:EG45),SUM(EH44:EN44,EC45:EG45)) ->  | ER44: =IF(ER$11="AVG",AVERAGE(EC44:EN44),SUM(EC44:EN44)) ->  | ET44: =IF(ET$11="AVG",IF(ET$1="INST-VAL",AVERAGE(EN43,EC44:EE44,EC44:EF44),AVERAGE(EC44:EF44)),SUM(EC44:EF44)) ->  | EU44: =IF(EU$11="AVG",IF(ET$1="INST-VAL",AVERAGE(ED44:EF44,EE44:EG44),AVERAGE(EE44:EG44)),SUM(EE44:EG44)) ->  | EV44: =IF(EV$11="AVG",IF(ET$1="INST-VAL",AVERAGE(EG44:EJ44,EH44:EK44),AVERAGE(EH44:EK44)),SUM(EH44:EK44)) ->  | EW44: =IF(EW$11="AVG",IF(ET$1="INST-VAL",AVERAGE(EJ44:EM44,EK44:EN44),AVERAGE(EK44:EN44)),SUM(EK44:EN44)) ->  | EX44: =IF(EX$11="AVG",IF(ET$1="INST-VAL",AVERAGE(EM44:EN44,EC45,EN44,EC45:ED45),AVERAGE(EN44,EC45:ED45)),SUM(EN44,EC45:ED45)) ->  | EZ44: 1954 | FA44: ='Compile Data'!H397 ->  | FB44: ='Compile Data'!H398 ->  | FC44: ='Compile Data'!H399 ->  | FD44: ='Compile Data'!H400 ->  | FE44: ='Compile Data'!H401 ->  | FF44: ='Compile Data'!H402 ->  | FG44: ='Compile Data'!H403 ->  | FH44: ='Compile Data'!H404 ->  | FI44: ='Compile Data'!H405 ->  | FJ44: ='Compile Data'!H406 ->  | FK44: ='Compile Data'!H407 ->  | FL44: ='Compile Data'!H408 ->  | FN44: =IF(FN$11="AVG",AVERAGE(FD44:FL44,FA45:FC45),SUM(FD44:FL44,FA45:FC45)) ->  | FO44: =IF(FO$11="AVG",AVERAGE(FF44:FL44,FA45:FE45),SUM(FF44:FL44,FA45:FE45)) ->  | FP44: =IF(FP$11="AVG",AVERAGE(FA44:FL44),SUM(FA44:FL44)) ->  | FR44: =IF(FR$11="AVG",IF(FR$1="INST-VAL",AVERAGE(FL43,FA44:FC44,FA44:FD44),AVERAGE(FA44:FD44)),SUM(FA44:FD44)) ->  | FS44: =IF(FS$11="AVG",IF(FR$1="INST-VAL",AVERAGE(FB44:FD44,FC44:FE44),AVERAGE(FC44:FE44)),SUM(FC44:FE44)) ->  | FT44: =IF(FT$11="AVG",IF(FR$1="INST-VAL",AVERAGE(FE44:FH44,FF44:FI44),AVERAGE(FF44:FI44)),SUM(FF44:FI44)) ->  | FU44: =IF(FU$11="AVG",IF(FR$1="INST-VAL",AVERAGE(FH44:FK44,FI44:FL44),AVERAGE(FI44:FL44)),SUM(FI44:FL44)) ->  | FV44: =IF(FV$11="AVG",IF(FR$1="INST-VAL",AVERAGE(FK44:FL44,FA45,FL44,FA45:FB45),AVERAGE(FL44,FA45:FB45)),SUM(FL44,FA45:FB45)) -> 
A45: 1924-06-30 | B45: =INDIRECT(CONCATENATE("'",B$1,"'!",B$4,(YEAR($A45)-1921)*12+MONTH($A45)+3+IF(ISNUMBER(FIND("PRV",B$6)),1,0)))*IF(AND(B$3>0,TRIM(B$9)="CFS"),Conv_Flags!$C45,1) -> 639.3789902 | C45: =INDIRECT(CONCATENATE("'",C$1,"'!",C$4,(YEAR($A45)-1921)*12+MONTH($A45)+3+IF(ISNUMBER(FIND("PRV",C$6)),1,0)))*IF(AND(C$3>0,TRIM(C$9)="CFS"),Conv_Flags!$C45,1) -> 648.0224303 | D45: =INDIRECT(CONCATENATE("'",D$1,"'!",D$4,(YEAR($A45)-1921)*12+MONTH($A45)+3+IF(ISNUMBER(FIND("PRV",D$6)),1,0)))*IF(AND(D$3>0,TRIM(D$9)="CFS"),Conv_Flags!$C45,1) -> 719.1869318 | E45: =INDIRECT(CONCATENATE("'",E$1,"'!",E$4,(YEAR($A45)-1921)*12+MONTH($A45)+3+IF(ISNUMBER(FIND("PRV",E$6)),1,0)))*IF(AND(E$3>0,TRIM(E$9)="CFS"),Conv_Flags!$C45,1) -> 675.8642045 | F45: =INDIRECT(CONCATENATE("'",F$1,"'!",F$4,(YEAR($A45)-1921)*12+MONTH($A45)+3+IF(ISNUMBER(FIND("PRV",F$6)),1,0)))*IF(AND(F$3>0,TRIM(F$9)="CFS"),Conv_Flags!$C45,1) ->  | G45: =INDIRECT(CONCATENATE("'",G$1,"'!",G$4,(YEAR($A45)-1921)*12+MONTH($A45)+3+IF(ISNUMBER(FIND("PRV",G$6)),1,0)))*IF(AND(G$3>0,TRIM(G$9)="CFS"),Conv_Flags!$C45,1) ->  | H45: =INDIRECT(CONCATENATE("'",H$1,"'!",H$4,(YEAR($A45)-1921)*12+MONTH($A45)+3+IF(ISNUMBER(FIND("PRV",H$6)),1,0)))*IF(AND(H$3>0,TRIM(H$9)="CFS"),Conv_Flags!$C45,1) ->  | L45: 1955 | M45: =B409 -> 360.5767562 | N45: =B410 -> 338.6266561 | O45: =B411 -> 276.5462303 | P45: =B412 -> 258.3583594 | Q45: =B413 -> 203.3758613 | R45: =B414 -> 199.8347107 | S45: =B415 -> 348.496875 | T45: =B416 -> 308.8614786 | U45: =B417 -> 671.0926007 | V45: =B418 -> 858.4021294 | W45: =B419 -> 519.7077544 | X45: =B420 -> 229.1657396 | Z45: 5905.479849 | AA45: 8922.711008 | AB45: 4573.045152 | AD45: 1234.108002 | AE45: 738.280451 | AF45: 1528.285665 | AG45: 2278.368224 | AH45: 813.8728541 | AJ45: 1955 | AK45: =C409 -> 334.9584627 | AL45: =C410 -> 249.937316 | AM45: =C411 -> 427.9353448 | AN45: =C412 -> 258.3583594 | AO45: =C413 -> 186.6728751 | AP45: =C414 -> 199.8347408 | AQ45: =C415 -> 340.7528248 | AR45: =C416 -> 332.5588849 | AS45: =C417 -> 665.2768853 | AT45: =C418 -> 881.220155 | AU45: =C419 -> 624.8519764 | AV45: =C420 -> 262.2518821 | AX45: 6080.918757 | AY45: 9114.852902 | AZ45: 4764.609707 | BB45: 1271.189483 | BC45: 872.9665793 | BD45: 1538.423336 | BE45: 2433.600899 | BF45: 829.3893643 | BH45: 1955 | BI45: ='Compile Data'!D409 -> 374.1730223 | BJ45: ='Compile Data'!D410 -> 293.4639786 | BK45: ='Compile Data'!D411 -> 276.5462303 | BL45: ='Compile Data'!D412 -> 258.3583594 | BM45: ='Compile Data'!D413 -> 180.4958678 | BN45: ='Compile Data'!D414 -> 199.8347107 | BO45: ='Compile Data'!D415 -> 309.166997 | BP45: ='Compile Data'!D416 -> 332.0702567 | BQ45: ='Compile Data'!D417 -> 668.9143079 | BR45: ='Compile Data'!D418 -> 874.5172856 | BS45: ='Compile Data'!D419 -> 606.7954571 | BT45: ='Compile Data'!D420 -> 227.8531185 | BV45: 5654.854293 | BW45: 9151.443644 | BX45: 4602.189592 | BZ45: 1202.541591 | CA45: 715.4004575 | CB45: 1509.986272 | CC45: 2378.080169 | CD45: 990.5953745 | CF45: 1955 | CG45: ='Compile Data'!E409 -> 338.5307783 | CH45: ='Compile Data'!E410 -> 252.888843 | CI45: ='Compile Data'!E411 -> 276.5462303 | CJ45: ='Compile Data'!E412 -> 258.3583594 | CK45: ='Compile Data'!E413 -> 195.3681605 | CL45: ='Compile Data'!E414 -> 199.8347107 | CM45: ='Compile Data'!E415 -> 367.1448541 | CN45: ='Compile Data'!E416 -> 343.7557835 | CO45: ='Compile Data'!E417 -> 697.0647598 | CP45: ='Compile Data'!E418 -> 861.4334562 | CQ45: ='Compile Data'!E419 -> 568.2178706 | CR45: ='Compile Data'!E420 -> 240.9497369 | CT45: 5921.130682 | CU45: 9403.011764 | CV45: 4600.093543 | CX45: 1126.324211 | CY45: 730.2727502 | CZ45: 1607.800108 | DA45: 2367.665824 | DB45: 1007.529736 | DD45: 1955 | DE45: ='Compile Data'!F409 ->  | DF45: ='Compile Data'!F410 ->  | DG45: ='Compile Data'!F411 ->  | DH45: ='Compile Data'!F412 ->  | DI45: ='Compile Data'!F413 ->  | DJ45: ='Compile Data'!F414 ->  | DK45: ='Compile Data'!F415 ->  | DL45: ='Compile Data'!F416 ->  | DM45: ='Compile Data'!F417 ->  | DN45: ='Compile Data'!F418 ->  | DO45: ='Compile Data'!F419 ->  | DP45: ='Compile Data'!F420 ->  | EB45: 1955 | EC45: ='Compile Data'!G409 ->  | ED45: ='Compile Data'!G410 ->  | EE45: ='Compile Data'!G411 ->  | EF45: ='Compile Data'!G412 ->  | EG45: ='Compile Data'!G413 ->  | EH45: ='Compile Data'!G414 ->  | EI45: ='Compile Data'!G415 ->  | EJ45: ='Compile Data'!G416 ->  | EK45: ='Compile Data'!G417 ->  | EL45: ='Compile Data'!G418 ->  | EM45: ='Compile Data'!G419 ->  | EN45: ='Compile Data'!G420 ->  | EZ45: 1955 | FA45: ='Compile Data'!H409 ->  | FB45: ='Compile Data'!H410 ->  | FC45: ='Compile Data'!H411 ->  | FD45: ='Compile Data'!H412 ->  | FE45: ='Compile Data'!H413 ->  | FF45: ='Compile Data'!H414 ->  | FG45: ='Compile Data'!H415 ->  | FH45: ='Compile Data'!H416 ->  | FI45: ='Compile Data'!H417 ->  | FJ45: ='Compile Data'!H418 ->  | FK45: ='Compile Data'!H419 ->  | FL45: ='Compile Data'!H420 -> 
